Workbook

Sheet Control (hidden)
A1: App Version | B1: 2022-08-03p
A2: GYPSY available | B2: TRUE
A3: GYPSY version | B3: 2009-May-21
A4: SAS Version | B4: 2010-Feb-26
A5: DLL Version | B5: 20100329
A6: DLL Build | B6: 35
A7: GYPSY Valid Input | B7: FALSE | C7: Input Valid | D7: =fripsy_Valid_Input(StandErrorWarning,nTwarning,PlantDataWarning,YSCperfEarlyLate,YSCzeroOutNote,YrPlantWarning,YrPrepWarning,YrThinWarning,YrWeedWarning) -> TRUE
A8: Stand ID
A9: Stand Type | B9: Regenerated
A10: Stand Age | B10: =YSChandOut -> 18
A11: Is Spatial | B11: TRUE
A12: BA Adjusted | B12: TRUE
A13: Util STDOB | B13: 15
A14: Util TOP DIB | B14: 10
A15: Util STHT | B15: 30 | C15: Pine total age must be a number!
A17: Obs_header | B17: gypsy_model_id | C17: stand_id | D17: standtype | E17: standage | F17: spatial | G17: ba_known | H17: sdob_aw | I17: tdib_aw | J17: stht_aw | K17: sdob_sb | L17: tdib_sb | M17: stht_sb | N17: sdob_sw | O17: tdib_sw | P17: stht_sw | Q17: sdob_pl | R17: tdib_pl | S17: stht_pl | T17: tage_aw | U17: bage_aw | V17: topht_aw | W17: den13_aw | X17: ps_aw | Y17: ba_aw | Z17: tage_sb | AA17: bage_sb | AB17: topht_sb | AC17: den03_sb | AD17: ps_sb | AE17: ba_sb | AF17: tage_sw | AG17: bage_sw | AH17: topht_sw | AI17: den03_sw | AJ17: ps_sw | AK17: ba_sw | AL17: tage_pl | AM17: bage_pl | AN17: topht_pl | AO17: den03_pl | AP17: ps_pl | AQ17: ba_pl | AR17: SI_bh_aw | AS17: SI_t_aw | AT17: y2bh_aw | AU17: SDF_aw | AV17: N0_aw | AW17: PSI_aw | AX17: SI_bh_sb | AY17: SI_t_sb | AZ17: y2bh_sb | BA17: SDF_sb | BB17: N0_sb | BC17: PSI_sb | BD17: SI_bh_sw | BE17: SI_t_sw | BF17: y2bh_sw | BG17: SDF_sw | BH17: N0_sw | BI17: PSI_sw | BJ17: SI_bh_pl | BK17: SI_t_pl | BL17: y2bh_pl | BM17: SDF_pl | BN17: N0_pl | BO17: PSI_pl
A19: Proj_header | B19: gypsy_model_id | C19: stand_id | D19: standage_p | E19: tage_aw | F19: bage_aw | G19: ba_aw | H19: ps_aw | I19: den13_aw | J19: mden13_aw | K19: sc_aw | L19: topht_aw | M19: qmd_aw | N19: tage_sb | O19: bage_sb | P19: ba_sb | Q19: ps_sb | R19: den03_sb | S19: mden03_sb | T19: sc_sb | U19: topht_sb | V19: qmd_sb | W19: tage_sw | X19: bage_sw | Y19: ba_sw | Z19: ps_sw | AA19: den03_sw | AB19: mden03_sw | AC19: sc_sw | AD19: topht_sw | AE19: qmd_sw | AF19: tage_pl | AG19: bage_pl | AH19: ba_pl | AI19: ps_pl | AJ19: den03_pl | AK19: mden03_pl | AL19: sc_pl | AM19: topht_pl | AN19: qmd_pl | AO19: tv_aw | AP19: mv_aw | AQ19: mai_aw | AR19: tv_sb | AS19: mv_sb | AT19: mai_sb | AU19: tv_sw | AV19: mv_sw | AW19: mai_sw | AX19: tv_pl | AY19: mv_pl | AZ19: mai_pl | BA19: tv_con | BB19: mv_con | BC19: mai_con | BD19: tv_dec | BE19: mv_dec | BF19: mai_dec | BG19: tv_tot | BH19: mv_tot | BI19: mai_tot
A22: lkp | B22: spp | C22: b1 | D22: b2 | E22: b3 | F22: b4 | H22: AWSIhand
A23: Aw | B23: Aw | C23: 9.908888 | D23: -3.92451 | E23: -0.32778 | F23: 0.134376 | H23: =fripsy_GYPSY_SI("AW",tophtAWhandB/100,ageAWhandB,"T",2) -> 14.06779347 | I23: =IF(Thin=TRUE,"Unthinned SI used!","") -> 
A24: Pb | B24: Pb | C24: 9.908888 | D24: -3.92451 | E24: -0.32778 | F24: 0.134376
A25: Bw | B25: Bw | C25: 9.908888 | D25: -3.92451 | E25: -0.32778 | F25: 0.134376
A26: Sb | B26: Sb | C26: 14.56236 | D26: -6.04705 | E26: -1.53715 | F26: 0.240174
A27: Sw | B27: Sw | C27: 12.14943 | D27: -3.77051 | E27: -0.28534 | F27: 0.165483
A28: Fb | B28: Fb | C28: 12.14943 | D28: -3.77051 | E28: -0.28534 | F28: 0.165483
A29: Fd | B29: Fd | C29: 12.14943 | D29: -3.77051 | E29: -0.28534 | F29: 0.165483
A30: Pl | B30: Pl | C30: 12.84571 | D30: -5.73936 | E30: -0.91312 | F30: 0.150668
A31: Pj | B31: Pj | C31: 12.84571 | D31: -5.73936 | E31: -0.91312 | F31: 0.150668
A32: Lt | B32: Lt | C32: 12.84571 | D32: -5.73936 | E32: -0.91312 | F32: 0.150668

Sheet Input
B1: Stand, Site and Establishment Factors
B3: Stand Identifier | G3: Soil Nutrient Class | L3: Soil Moisture Class
B4: Example 1
B6: Natural Sub-Region | G6: Elevation (required) | L6: Latitude (required)
G7: 1160 | H7: m | L7: 53.5 | M7: oN
B9: Depth LFH (optional) | G9: Slope (optional) | L9: Cones (optional)
B10: =IF(LFHinc=TRUE,"Yes","No") -> Yes | C10: 30 | D10: cm | G10: =IF(SlopeInc=TRUE,"Yes","No") -> No | I10: % | L10: =IF(ConesInc=TRUE,"Yes","No") -> No | N10: per m2
B12: Secondary Species (optional) | F12: AW | I12: SB | L12: SW
B13: % stocking at establishment | F13: =IF(EsAW=TRUE,"Yes","No") -> No | I13: =IF(EsSB=TRUE,"Yes","No") -> No | L13: =IF(EsSW=TRUE,"Yes","No") -> No
G15: =StandErrorWarning -> Inputs for stand and site factors OK
B17: Projection Options | L17: =IF(gypsy_available=TRUE," GYPSY DLL version: " & dll_version," GYPSY DLL is not available!") -> GYPSY DLL version: 20100329
D19: Adjust for Western Gall Rust? | E19: =IF(WGRadj=TRUE,"Yes","No") -> No | I19: Exclude PL natural regeneration? | J19: =IF(PLnExcInput=TRUE,"Yes","No") -> No | L19: =" " & L17 -> GYPSY DLL version: 20100329
G21: Include yield projection? | H21: =IF(IncYieldSummary=TRUE,"Yes","No") -> Yes | L21: Include detailed GYPSY output? | M21: =IF(IncGYPSY=TRUE,"Yes","No") -> Yes
B23: Events
B24: Event | D24: Selected? | E24: Year | F24: Stand age | G24: Status
B27: Cut | D27: Always | E27: 2000 | F27: =YSCZeroOut -> 0 | G27: =YSCzeroOutNote -> Year OK
B30: Site preparation | E30: 2000 | F30: =YSCprepOut -> 0 | G30: =YrPrepWarning -> Year OK
B33: Plant | D33: =IF(Plant=TRUE,"Yes","No") -> Yes | E33: 2001 | F33: =YSCplantOut -> 1 | G33: =YrPlantWarning -> Year OK
G34: Planting density | I34: 400 | J34: trees per ha | L34: Planting advanced? | N34: =IF(Pearly=TRUE,"Yes","No") -> No
G35: =PlantDataWarning -> Planting density OK
B38: Weed (last) | D38: =IF(Weed=TRUE,"Yes","No") -> Yes | E38: 2006 | F38: =YSCweedOut -> 6 | G38: =YrWeedWarning -> Year OK
B41: Thin | D41: =IF(ThinInput=TRUE,"Yes","No") -> No | E41: 2002 | F41: =YSCthinInputOut ->  | G41: =YrThinWarning -> Year not required
G42: Post-thinning density target | J42: 4000 | K42: trees per ha at handover
G43: =nTwarning -> Thinning target not required
B46: Performance | D46: Always | E46: 2000 | F46: =YSCperfOut -> 0 | G46: =YSCperfEarlyLate -> Warning: performance assessment year less than 11 years after cut
B49: Handover | D49: Always | E49: =YrHandOut -> 2018 | F49: =YSChandOut -> 18 | G49: Fixed

Sheet Ranges (hidden)
A1: SNC | B1: SMC | C1: NSR | D1: PrepMethod
A2: Poor | B2: Dry | C2: Lower Foothills | D2: None
A3: Medium | B3: Mesic | C3: Upper Foothills | D3: Drag
A4: Rich | B4: Moist | D4: Mound

Sheet Variables (hidden)
A1: Name | B1: Value | C1: Source | D1: Type | E1: Input cell validation rules | F1: Notes
A2: ageAWhand | B2: =IF(psAWhand=0," ",IF(Thin=TRUE,ageAWhandA,ageAWhandB)) -> 14.677048 | C2: Calculated | D2: Output (to GYPSY) | F2: Total age of AW at handover
A3: ageAWhandA | B3: =Submodels!C428 -> 16.58603084 | C3: Submodel 6B1 | D3: Internal
A4: ageAWhandB | B4: =Submodels!C427 -> 14.677048 | C4: Submodel 6B1 | D4: Internal
A5: ageAWperf | B5: =IF(psAWperf=0," ",IF(ThinYetPerf=TRUE,ageAWperfA,ageAWperfB)) -> -2.33981 | C5: Calculated | D5: Internal | F5: Total age of AW at performance assessment
A6: ageAWperfOut | B6: =IF(ageAWperf<0," ",ageAWperf) ->  | C6: Calculated | D6: Output | F6: Total age of AW at performance assessment
A7: ageAWperfA | B7: =Submodels!B428 -> 1.472512637 | C7: Submodel 6B1 | D7: Internal
A8: ageAWperfB | B8: =Submodels!B427 -> -2.33981 | C8: Submodel 6B1 | D8: Internal
A9: ageAWthinA | B9: =IF(Thin=TRUE,IF(psAWthinA=0," ",Submodels!D428)," ") ->  | C9: Submodel 6B1 | D9: Internal | F9: Total age of AW in thin year, after thinning
A10: ageAWthinAout | B10: =IF(ageAWthinA<0," ",ageAWthinA) ->  | C10: Calculated | D10: Output | F10: Total age of AW in thin year, after thinning
A11: ageAWthinB | B11: =IF(Thin=TRUE,IF(psAWb=0," ",Submodels!D427)," ") ->  | C11: Submodel 6B1 | D11: Output | F11: Total age of AW in thin year, before thinning
A12: agePLhand | B12: =IF(denPLhand=0," ",IF(Plant=TRUE,GSGhand,IF(Thin=TRUE,agePLnHandA,agePLnHandB))) -> 18 | C12: Calculated | D12: Output (to GYPSY) | F12: Total age of PL at handover
A13: agePLnHandA | B13: =Submodels!C365 -> 17.10832484 | C13: Submodel 6A2 | D13: Internal
A14: agePLnHandB | B14: =Submodels!C353 -> 16.63355738 | C14: Submodel 6A1 | D14: Internal
A15: agePLperf | B15: =IF(denPLperf=0," ",IF(Plant=TRUE,GSGperf,IF(ThinYetPerf=TRUE,agePLnPerfA,agePLnPerfB))) -> 0 | C15: Calculated | D15: Output | F15: Total age of PL at performance assessment
A16: agePLnPerfA | B16: =Submodels!B365 -> 0.9656584162 | C16: Submodel 6A2 | D16: Internal
A17: agePLnPerfB | B17: =Submodels!B353 -> -0.2521244067 | C17: Submodel 6A1 | D17: Internal
A18: agePLthinA | B18: =IF(Thin=TRUE,IF(denPLthinA=0," ",IF(Plant=TRUE,GSGthin,agePLnThinA))," ") ->  | C18: Calculated | D18: Output | F18: Total age of PL in thin year, after thinning
A19: agePLthinB | B19: =IF(Thin=TRUE,IF(denPLthinB=0," ",IF(Plant=TRUE,GSGthin,agePLnThinB))," ") ->  | C19: Calculated | D19: Output | F19: Total age of PL in thin year,before thinning
A20: agePLnThinA | B20: =Submodels!D365 -> 2.801977216 | C20: Submodel 6A2 | D20: Internal
A21: agePLnThinB | B21: =Submodels!D353 -> 1.652620193 | C21: Submodel 6A1 | D21: Internal
A22: ageSBhand | B22: =IF(OR(psSBhand=0,Thin=TRUE)," ",Submodels!B470) -> 13.05235611 | C22: Submodel 6C1 | D22: Output (to GYPSY) | F22: Total age of SB at handover
A23: ageSWhand | B23: =IF(OR(psSWhand=0,Thin=TRUE)," ",Submodels!A491) -> 11.51819737 | C23: Submodel 6C3 | D23: Output (to GYPSY) | F23: Total age of SW at handover
A24: baAW | B24: =IF(Thin=TRUE,baAWa,baAWb) -> 0.02820191017 | C24: Calculated | D24: Output (to GYPSY) | F24: Basal area per ha of AW at handover
A25: baAWa | B25: =PI()*(dbhAWa/2)^2*denAWhandA/10000 -> 0.3233580234 | C25: Calculated | D25: Internal | F25: Basal area per ha aspen / poplar (1.3m) = PI()*(dbhAW/2)^2*denAW/10000
A26: baAWb | B26: =PI()*(dbhAWb/2)^2*denAWhandB/10000 -> 0.02820191017 | C26: Calculated | D26: Internal
A27: baPL | B27: =IF(WGRadj=TRUE,baPLx,baPLnotX) -> 10.98205929 | C27: Calculated | D27: Output (to GYPSY) | F27: Basal area per ha of PL at handover
A28: baPLnotX | B28: =IF(Thin=TRUE,baPLa,baPLb) -> 10.98205929 | C28: Calculated | D28: Internal
A29: baPLa | B29: =SUM(baPLnA,baPLpA) -> 71.26305886 | C29: Calculated | D29: Internal
A30: baPLb | B30: =SUM(baPLnB,baPLpB) -> 10.98205929 | C30: Calculated | D30: Internal
A31: baPLx | B31: =IF(Thin=TRUE,baPLxA,baPLxB) -> 8.577749211 | C31: Calculated | D31: Internal
A32: baPLxA | B32: =SUM(baPLnXa,baPLpXa) -> 54.23616696 | C32: Calculated | D32: Internal
A33: baPLxB | B33: =SUM(baPLnXb,baPLpXb) -> 8.577749211 | C33: Calculated | D33: Internal
A34: baPLnA | B34: =PI()*(dbhPLnA/2)^2*denPLnHandA/10000 -> 68.48376462 | C34: Calculated | D34: Internal | F34: Basal area per ha pine natural regeneration (1.3m)= PI()*(dbhPLn/2)^2*denPLn/10000
A35: baPLnB | B35: =PI()*(dbhPLnB/2)^2*denPLnHandB/10000 -> 8.124941892 | C35: Calculated | D35: Internal
A36: baPLnXa | B36: =PI()*(dbhPLnXa/2)^2*denPLnHandXa/10000 -> 51.87812402 | C36: Calculated | D36: Internal
A37: baPLnXb | B37: =PI()*(dbhPLnXb/2)^2*denPLnHandXb/10000 -> 6.154841888 | C37: Calculated | D37: Internal
A38: baPLpA | B38: =IF(denPLpHandA>0, PI()*(dbhPLpA/2)^2*denPLpHandA/10000,0) -> 2.779294237 | C38: Calculated | D38: Internal | F38: Basal area per ha planted pine (1.3m)= PI()*(dbhPLp/2)^2*denPLp/10000
A39: baPLpB | B39: =IF(denPLpHandB>0,PI()*(dbhPLpB/2)^2*denPLpHandB/10000,0) -> 2.857117401 | C39: Calculated | D39: Internal
A40: baPLpXa | B40: =IF(denPLpHandXa>0,PI()*(dbhPLpXa/2)^2*denPLpHandXa/10000,0) -> 2.358042945 | C40: Calculated | D40: Internal
A41: baPLpXb | B41: =IF(denPLpHandXb>0, PI()*(dbhPLpXb/2)^2*denPLpHandXb/10000,0) -> 2.422907324 | C41: Calculated | D41: Internal
A42: Cones | B42: =IF(ConesInc=TRUE,ConesInput,ConesDef) -> 3 | C42: Calculated | D42: Internal
A43: ConesInput | B43: =IF(InCones>10,10,InCones) -> 0 | C43: Input (optional; required if ConesInc is TRUE) | D43: Input | E43: 0 to 30 | F43: Ground cone density per m2 (pine only)
A44: ConesInc | B44: FALSE | C44: Input (required) | D44: Input | E44: TRUE / FALSE | F44: Is cones optional input selected?
A45: ConesDef | B45: 3 | C45: Calculated | D45: Internal | F45: Default value for cones if optional input not selected (based on RLP modal value)
A46: ConesMiss | B46: =IF(AND(ConesInc=TRUE,InCones=""),TRUE,FALSE) -> FALSE | C46: Calculated | D46: Error | E46: Stop error | F46: Cones missing
A47: ConesOut | B47: =IF(ConesInc=TRUE,InCones,"unknown") -> unknown | C47: Calculated | D47: Output | F47: Ground cone density per m2 (pine only)
A48: dbhAW | B48: =IF(psAWhand=0," ",IF(Thin=TRUE,dbhAWa,dbhAWb)) -> 2.349828692 | C48: Calculated | D48: Internal | F48: Quadratic mean diameter breast-height of AW at handover
A49: dbhAWout | B49: =IF(dbhAW<0," ",dbhAW) -> 2.349828692 | C49: Calculated | D49: Output | F49: Quadratic mean diameter breast-height of AW at handover
A50: dbhAWa | B50: =Submodels!C344 -> 1.717796045 | C50: Submodel 5B2 | D50: Internal
A51: dbhAWb | B51: =Submodels!C338 -> 2.349828692 | C51: Submodel 5B1 | D51: Internal
A52: dbhPL | B52: =IF(denPLhand=0," ",IF(WGRadj=TRUE,dbhPLx,dbhPLnotX)) -> 5.201742893 | C52: Calculated | D52: Output | F52: Quadratic mean diameter breast-height of PL at handover
A53: dbhPLnotX | B53: =IF(Thin=TRUE,dbhPLa,dbhPLb) -> 5.201742893 | C53: Calculated | D53: Internal
A54: dbhPLa | B54: =SQRT(baPLa/denPLhandA*10000/PI())*2 -> 15.06112086 | C54: Calculated | D54: Internal
A55: dbhPLb | B55: =SQRT(baPLb/denPLhandB*10000/PI())*2 -> 5.201742893 | C55: Calculated | D55: Internal
A56: dbhPLx | B56: =IF(Thin=TRUE,dbhPLxA,dbhPLxB) -> 5.346830383 | C56: Calculated | D56: Internal
A57: dbhPLxA | B57: =SQRT(baPLxA/denPLhandXa*10000/PI())*2 -> 15.26441929 | C57: Calculated | D57: Internal
A58: dbhPLxB | B58: =SQRT(baPLxB/denPLhandXb*10000/PI())*2 -> 5.346830383 | C58: Calculated | D58: Internal
A59: dbhPLnA | B59: =Submodels!E324 -> 15.31142332 | C59: Submodel 5A4 | D59: Internal | F59: Quadratic mean diameter breast-height pine ingress at handover - thinned
A60: dbhPLnB | B60: =Submodels!E306 -> 4.600897681 | C60: Submodel 5A3 | D60: Internal | F60: Quadratic mean diameter breast-height pine ingress at handover - not thinned
A61: dbhPLnXa | B61: =1.016237*dbhPLnA -> 15.5600349 | C61: Calculated | D61: Internal | F61: dbhPLn adjusted for exclusion of trees with more than 50% girdling of main stem by western gall rust
A62: dbhPLnXb | B62: =1.016237*dbhPLnB -> 4.675602457 | C62: Calculated | D62: Internal
A63: dbhPLpA | B63: =Submodels!E293 -> 11.22889296 | C63: Submodel 5A2 | D63: Internal | F63: Quadratic mean diameter breast-height planted pine at handover - thinned
A64: dbhPLpB | B64: =Submodels!D285 -> 11.385018 | C64: Submodel 5A1 | D64: Internal | F64: Quadratic mean diameter breast-height planted pine at handover - not thinned
A65: dbhPLpXa | B65: =0.197571+0.987841*dbhPLpA -> 11.28993185 | C65: Calculated | D65: Internal | F65: dbhPLp adjusted for exclusion of trees with more than 50% girdling of main stem by western gall rust
A66: dbhPLpXb | B66: =0.197571+0.987841*dbhPLpB -> 11.44415856 | C66: Calculated | D66: Internal
A67: denAWhand | B67: =IF(Thin=TRUE,denAWhandA,denAWhandB) -> 65.03037207 | C67: Calculated | D67: Output (to GYPSY) | F67: Density of AW at handover (trees per ha 1.3m+)
A68: denAWhandA | B68: =tpspAWa*psAWhandA*10 -> 1395.245284 | C68: Calculated | D68: Internal | F68: Stems per ha aspen / poplar (1.3m+) = tpspAW*psAW/100 *1000
A69: denAWhandA2000Less | B69: =IF(denAWhandA<2000,0,denAWhandA-2000) -> 0 | C69: Calculated | D69: Internal
A70: denAWhandB | B70: =tpspAWhandB*psAWb*10 -> 65.03037207 | C70: Calculated | D70: Internal
A71: denAWperf | B71: =IF(ThinYetPerf=TRUE,denAWperfA,denAWperfB) -> 185.4854465 | C71: Calculated | D71: Output | F71: Density of AW at performance assessment (trees per ha 1.3m+)
A72: denAWperfA | B72: =tpspAWa*psAWperfA*10 ->  | C72: Calculated | D72: Internal
A73: denAWperfB | B73: =tpspAWperfB*psAWb*10 -> 185.4854465 | C73: Calculated | D73: Internal
A74: denAWthinA | B74: =IF(Thin=TRUE,tpspAWa*psAWthinA*10," ") ->  | C74: Calculated | D74: Output | F74: Density of AW after thinning (trees per ha 1.3m+)
A75: denAWthinB | B75: =IF(Thin=TRUE,tpspAWthinB*psAWb*10," ") ->  | C75: Calculated | D75: Output | F75: Density of AW before thinning (trees per ha 1.3m+)
A76: denPLhand | B76: =IF(WGRadj=TRUE,denPLhandX,denPLhandNotX) -> 5167.686248 | C76: Calculated | D76: Output (to GYPSY) | F76: Density of PL at handover (trees per ha 1.3m+)
A77: denPLhandNotX | B77: =IF(Thin=TRUE,denPLhandA,denPLhandB) -> 5167.686248 | C77: Calculated | D77: Internal
A78: denPLhandA | B78: =SUM(denPLnHandA,denPLpHandA) -> 4000 | C78: Calculated | D78: Internal
A79: denPLhandB | B79: =SUM(denPLnHandB,denPLpHandB) -> 5167.686248 | C79: Calculated | D79: Internal
A80: denPLhandX | B80: =IF(Thin=TRUE,denPLhandXa,denPLhandXb) -> 3820.24001 | C80: Calculated | D80: Internal
A81: denPLhandXa | B81: =SUM(denPLnHandXa,denPLpHandXa) -> 2963.729302 | C81: Calculated | D81: Internal
A82: denPLhandXb | B82: =SUM(denPLnHandXb,denPLpHandXb) -> 3820.24001 | C82: Calculated | D82: Internal
A83: denPLnHandA | B83: =IF(PLnExc=TRUE,0,nTn) -> 3719.346307 | C83: Calculated | D83: Internal | F83: Stems per ha pine ingress (1.3m+) at handover; thinned = nTn
A84: denPLnHandB | B84: =IF(PLnExc=TRUE,0,Submodels!E44) -> 4887.032555 | C84: Submodel 2A | D84: Internal
A85: denPLnHandXa | B85: =0.733511*denPLnHandA -> 2728.181429 | C85: Calculated | D85: Internal | F85: denPLnHand adjusted for exclusion of trees with more than 50% girdling of main stem by western gall rust
A86: denPLnHandXb | B86: =0.733511*denPLnHandB -> 3584.692136 | C86: Calculated | D86: Internal
A87: denPLperf | B87: =IF(ThinYetPerf=TRUE,denPLperfA,denPLperfB) -> 8726.939203 | C87: Calculated | D87: Output | F87: Density of PL at performance assessment (trees per ha 1.3m+)
A88: denPLperfA | B88: =SUM(denPLnPerfA,denPLpPerfA) -> 6083.384815 | C88: Calculated | D88: Internal
A89: denPLperfB | B89: =SUM(denPLnPerfB,denPLpPerfB) -> 8726.939203 | C89: Calculated | D89: Internal
A90: denPLnPerfA | B90: =IF(PLnExc=TRUE,0,Submodels!C70) -> 5775.002199 | C90: Submodel 2Ct | D90: Internal
A91: denPLnPerfB | B91: =IF(PLnExc=TRUE,0,Submodels!C62) -> 8319.918832 | C91: Submodel 2Cnt | D91: Internal
A92: denPLthinA | B92: =IF(Thin=TRUE,SUM(denPLnThinA,denPLpThinA)," ") ->  | C92: Calculated | D92: Output | F92: Density of PL after thinning (trees per ha 0.3m+)
A93: denPLthinB | B93: =IF(Thin=TRUE,SUM(denPLnThinB,denPLpThinB)," ") ->  | C93: Calculated | D93: Output | F93: Density of PL before thinning (trees per ha 0.3m+)
A94: denPLnThinA | B94: =IF(PLnExc=TRUE,0,Submodels!C70) -> 5775.002199 | C94: Submodel 2Ct | D94: Internal
A95: denPLnThinB | B95: =IF(PLnExc=TRUE,0,Submodels!C62) -> 8319.918832 | C95: Submodel 2Cnt | D95: Internal
A96: denPLpHandA | B96: =nTp -> 280.6536934 | C96: Calculated | D96: Internal | F96: Stems per ha planted pine (1.3m+) at handover; unthinned = (1-(Mp/100*GSP))*nP; if thinned =nTp
A97: denPLpHandB | B97: =IF(Submodels!I11<0,0,Submodels!I11) -> 280.6536934 | C97: Submodel 1A | D97: Internal
A98: denPLpHandXa | B98: =0.839283*denPLpHandA -> 235.5478738 | C98: Calculated | D98: Internal
A99: denPLpHandXb | B99: =0.839283*denPLpHandB -> 235.5478738 | C99: Calculated | D99: Internal
A100: denPLpPerfA | B100: =IF(Submodels!G28<0,0,Submodels!G28) -> 308.3826163 | C100: Submodel 1B | D100: Internal
A101: denPLpPerfB | B101: =IF(Submodels!G11<0,0,Submodels!G11) -> 407.020371 | C101: Submodel 1A | D101: Internal
A102: denPLpThinA | B102: =IF(Submodels!F28<0,0,Submodels!H28) -> 305.0339802 | C102: Submodel 1B | D102: Internal
A103: denPLpThinB | B103: =IF(Submodels!H11<0,0,Submodels!H11) -> 392.979629 | C103: Submodel 1A | D103: Internal | F103: Stems per ha planted pine (30cm+) at thinning; unthinned = nP*(1-(mP/100*GSP)); thinned = nTp*1/(1-(mT/100*GST))
A104: denSB | B104: =IF(Thin=TRUE," ",tpspSB*psSBhand*10) -> 144.7037087 | C104: Calculated | D104: Output (to GYPSY) | F104: Density of SB at handover (trees per ha 1.3m+)
A105: denSW | B105: =IF(Thin=TRUE," ",tpspSW*psSWhand*10) -> 28.54518602 | C105: Calculated | D105: Output (to GYPSY) | F105: Density of SB at handover (trees per ha 1.3m+)
A106: Elev | B106: =InElev -> 1160 | C106: Input (required) | D106: Input | E106: 840 to 1621 | F106: Elevation above sea level
A107: ElevMiss | B107: =IF(InElev="",TRUE,FALSE) -> FALSE | C107: Calculated | D107: Error | E107: Stop error | F107: Elevation missing
A108: EsAW | B108: FALSE | C108: Calculated | D108: Input | F108: Establishment survey conducted for AW (TRUE or FALSE)
A109: EsSB | B109: FALSE | C109: Calculated | D109: Input | F109: Establishment survey conducted for SB (TRUE or FALSE)
A110: EsSW | B110: FALSE | C110: Calculated | D110: Input | F110: Establishment survey conducted for SW (TRUE or FALSE)
A111: GSGhand | B111: =GSPhand+PstockAge -> 18 | C111: Calculated | D111: Internal | F111: Growing seasons since germination (PL planted stock)
A112: GSGperf | B112: =GSPperf+PstockAge -> 0 | C112: Calculated | D112: Internal
A113: GSGthin | B113: =GSPthin+PstockAge -> 2 | C113: Calculated | D113: Internal
A114: GSPhand | B114: =IF(Pearly=TRUE,YrHand-YrP+1,YrHand-YrP) -> 17 | C114: Calculated | D114: Internal | F114: Growing seasons since planting (PL planted stock) at handover
A115: GSPperf | B115: =IF(Pearly=TRUE,YrPerf-YrP+1,YrPerf-YrP) -> -1 | C115: Calculated | D115: Internal | F115: Growing seasons since planting (PL planted stock) at performance assessment
A116: GSPthin | B116: =IF(Pearly=TRUE,YrThin-YrP+1,YrThin-YrP) -> 1 | C116: Calculated | D116: Internal | F116: Growing seasons since planting (PL planted stock) at thinning
A117: IncYieldSummary | B117: TRUE | C117: Calculated | D117: Input | E117: TRUE / FALSE | F117: Include projected yield in summary report?
A118: IncGYPSY | B118: TRUE | C118: Calculated | D118: Input | E118: TRUE / FALSE | F118: Generate detailed GYPSY output
A119: IntPerfHand | B119: =YSChand-YSCperf -> 18 | C119: Calculated | D119: Internal | F119: Years between performance and handover = YSChand-YSCperf; positive integer (<7?) or 0
A120: IntThinHand | B120: =YSChand-YSCthin -> 16 | C120: Calculated | D120: Internal | F120: Years since thinning - between thinning and handover = YSChand-YSCthin
A121: IntThinPerf | B121: =YSCperf-YSCthin -> -2 | C121: Calculated | D121: Internal | F121: Years since thiining - between thinning and performance (not applicable if performance assessment before thinning) =YSCperf-YSCthin
A122: Lat | B122: =InLat -> 53.5 | C122: Input (required) | D122: Input | E122: 51.50 to 54.80 | F122: Latitude in decimal degrees
A123: LatMiss | B123: =IF(InLat="",TRUE,FALSE) -> FALSE | C123: Calculated | D123: Error | E123: Stop error | F123: Latitude missing
A124: LFH | B124: =IF(LFHinc=TRUE,LFHinput,LFHdef) -> 30 | C124: Calculated | D124: Internal
A125: LFHinput | B125: =IF(InLFH<4,4,InLFH) -> 30 | C125: Input (optional; required if LFHinc is TRUE) | D125: Input | E125: 2 to 57 | F125: Depth of organic soil (litter, fungi, humus) cm, limited with minimum value
A126: LFHinc | B126: TRUE | C126: Input (required) | D126: Input | E126: TRUE / FALSE | F126: Is LFH optional input selected?
A127: LFHdef | B127: 8.7 | C127: Calculated | D127: Internal | F127: Default value for LFH if optional input not selected
A128: LFHmiss | B128: =IF(AND(LFHinc=TRUE,InLFH=""),TRUE,FALSE) -> FALSE | C128: Calculated | D128: Error | E128: Stop error | F128: LFH missing
A129: LFHout | B129: =IF(LFHinc=TRUE,InLFH,"unknown") -> 30 | C129: Calculated | D129: Output | F129: Depth of organic soil (litter, fungi, humus) cm
A130: LN1Cones | B130: =LN(Cones+1) -> 1.386294361 | C130: Calculated | D130: Internal | F130: Natural logarithm of (Cones+1)
A131: LNdenPLpHandAless6 | B131: =IF(LN(denPLpHandA)<6,0,LN(denPLpHandA)-6) -> 0 | C131: Calculated | D131: Internal | F131: Transformation for computing dbhPLpA
A132: LN1denPLnHandA | B132: =LN(denPLnHandA+1) -> 8.221572036 | C132: Calculated | D132: Internal | F132: LN of (denPL+1)
A133: LN1denPLnHandB | B133: =LN(denPLnHandB+1) -> 8.494545161 | C133: Calculated | D133: Internal
A134: LN1denPLnPerfA | B134: =LN(denPLnPerfA+1) -> 8.661467061 | C134: Calculated | D134: Internal
A135: LN1denPLnPerfB | B135: =LN(denPLnPerfB+1) -> 9.026527964 | C135: Calculated | D135: Internal
A136: LN1denPLnThinA | B136: =LN(denPLnThinA+1) -> 8.661467061 | C136: Calculated | D136: Internal
A137: LN1denPLnThinB | B137: =LN(denPLnThinB+1) -> 9.026527964 | C137: Calculated | D137: Internal
A138: LNnP | B138: =LN(nP) -> 5.991464547 | C138: Calculated | D138: Internal
A139: LNtophtPLpHand | B139: =LN(tophtPLpHand) -> 6.545492694 | C139: Calculated | D139: Internal
A140: nP | B140: =IF(Plant=TRUE,nPinput,0) -> 400 | C140: Calculated | D140: Internal | F140: Number of PL planted per ha (set to zero if Plant=FALSE)
A141: nPinput | B141: =InNpInput -> 400 | C141: Input (required if Plant=TRUE) | D141: Input | E141: 800 to 4500 | F141: Number of PL planted per ha
A142: nPout | B142: =IF(Plant=TRUE,nP," ") -> 400 | C142: Calculated | D142: Output | F142: Number of PL planted per ha
A143: nPoutLabel | B143: =IF(Plant=TRUE,"Density:"," ") -> Density: | C143: Calculated | D143: Output | F143: nP heading
A144: nPoutUnits | B144: =IF(Plant=TRUE,"trees per ha"," ") -> trees per ha | C144: Calculated | D144: Output | F144: nP units for output
A145: nP750Less | B145: =IF(nP-750<0,0,nP-750) -> 0 | C145: Calculated | D145: Internal | F145: nP-750 (transformation used when no response shown below 750 stems per ha)
A146: nP1600Less | B146: =IF(nP-1600<0,0,nP-1600) -> 0 | C146: Calculated | D146: Internal | F146: nP-1600 (transformation used when no response shown below 1600 stems per ha)
A147: NSR | B147: 2 | C147: Input (required) | D147: Input | E147: Pick list | F147: Natural sub-region: 1=LF, 2= UF
A148: NSRout | B148: =IF(NSR=1,"LF","UF") -> UF | C148: Calculated | D148: Output | F148: Natural sub-region: 1=LF, 2= UF
A149: nT | B149: =InNt -> 4000 | C149: Input (required if THIN=TRUE) | D149: Input | E149: 500 to 5000 | F149: Target post-thinning density of lodegpole pine at handover (trees per ha 1.3m+)
A150: nTwarning | B150: =IF(ThinInput=FALSE,"Thinning target not required",IF(AND(InNt=0,ThinInput=FALSE)," ",IF(ThinInput=FALSE,"Thinning target not required",IF(InNt=0,"Error: thinning target missing",IF(InNt>denPLhandB,"Warning: thinning target exceeds number of available trees","Thinning target OK"))))) -> Thinning target not required | C150: Calculated | D150: Error and warning | E150: Stop error | F150: Warning if thinning target missing or exceeds number of available trees at handover
A151: nTout | B151: =IF(Thin=TRUE,nT," ") ->  | C151: Calculated | D151: Output | F151: Target post-thinning density of lodegpole pine at handover (trees per ha 1.3m+)
A152: nToutUnits | B152: =IF(Thin=TRUE,"trees per ha at handover"," ") ->  | C152: Calculated | D152: Output | F152: Target units
A153: nToutLabel | B153: =IF(ThinInput=FALSE," ",IF(Thin=TRUE,"Target density:","THINNING CANCELLED!")) ->  | C153: Calculated | D153: Output | F153: Target label
A154: nTn | B154: =IF(denPLnHandB<(nT-nTp),denPLnHandB,(nT-nTp)) -> 3719.346307 | C154: Calculated | D154: Internal | F154: Target post-thinning density of natural lodegpole pine at handover (trees per ha 1.3m+)
A155: nTp | B155: =IF(denPLpHandB<nT,denPLpHandB,nT) -> 280.6536934 | C155: Calculated | D155: Internal | F155: Target post-thinning density of WGR-free planted PL at handover (trees per ha 1.3m+)
A156: MaxBaPL | B156: =IF(SNC=1,18.5,26.8) -> 26.8 | C156: Calculated | D156: Internal | F156: Maximum basal area of PL at handover (97.5 percentile)
A157: MaxBaPLcheck | B157: =IF(baPL>MaxBaPL,"X","OK") -> OK | C157: Calculated | D157: Internal check | F157: Maximum basal area of PL at handover (97.5 percentile)
A158: MaxDbhDenPLnA | B158: =(EXP(5.8392126-0.4545962*LN(denPLhandA))) -> 7.915074858 | C158: Calculated | D158: Internal | F158: Maximum handover Dbh for PL ingress at denPLhandA
A159: MaxDbhDenPLnAcheck | B159: =IF(dbhPLnA>MaxDbhDenPLnA,"X","OK") -> X | C159: Calculated | D159: Internal check | F159: Maximum handover Dbh for PL ingress at denPLhandA
A160: MaxDbhDenPLpA | B160: =EXP(4.5923903-0.2859742*LN(denPLpHandA)) -> 19.69409783 | C160: Calculated | D160: Internal | F160: Maximum handover Dbh for planted PL ingress at denPLpHandA
A161: MaxDbhDenPLpAcheck | B161: =IF(dbhPLpA>MaxDbhDenPLpA,"X","OK") -> OK | C161: Calculated | D161: Internal check | F161: Maximum handover Dbh for planted PL ingress at denPLpHandA
A162: MaxDbhDenPLnB | B162: =(EXP(5.8392126-0.4545962*LN(denPLhandB))) -> 7.045105436 | C162: Calculated | D162: Internal | F162: Maximum handover Dbh for PL ingress at denPLhandB
A163: MaxDbhDenPLnBcheck | B163: =IF(dbhPLnB>MaxDbhDenPLnB,"X","OK") -> OK | C163: Calculated | D163: Internal check | F163: Maximum handover Dbh for PL ingress at denPLhandB
A164: MaxDbhDenPLpB | B164: =EXP(4.5923903-0.2859742*LN(denPLpHandB)) -> 19.69409783 | C164: Calculated | D164: Internal | F164: Maximum handover Dbh for planted PL ingress at denPLpHandB
A165: MaxDbhDenPLpBcheck | B165: =IF(dbhPLpB>MaxDbhDenPLpB,"X","OK") -> OK | C165: Calculated | D165: Internal check | F165: Maximum handover Dbh for planted PL ingress at denPLpHandB
A166: MaxDbhPLnA | B166: =IF(SNC=1,6.75,10.88) -> 10.88 | C166: Calculated | D166: Internal | F166: Maximum DBH for PL ingress at handover (97.5 percentile)
A167: MaxDbhPLnAcheck | B167: =IF(dbhPLnA>MaxDbhPLnA,"X","OK") -> X | C167: Calculated | D167: Internal check | F167: Maximum DBH for PL ingress at handover (97.5 percentile)
A168: MaxDbhPLpA | B168: =IF(SNC=1,10.93,IF(SNC=2,13.22,15.19)) -> 13.22 | C168: Calculated | D168: Internal | F168: Maximum DBH for planted PL at handover (97.5 percentile)
A169: MaxDbhPLpAcheck | B169: =IF(dbhPLpA>MaxDbhPLpA,"X","OK") -> OK | C169: Calculated | D169: Internal check | F169: Maximum DBH for planted PL at handover (97.5 percentile)
A170: MaxDbhPLnB | B170: =IF(SNC=1,6.75,10.88) -> 10.88 | C170: Calculated | D170: Internal | F170: Maximum DBH for PL ingress at handover (97.5 percentile)
A171: MaxDbhPLnBcheck | B171: =IF(dbhPLnB>MaxDbhPLnB,"X","OK") -> OK | C171: Calculated | D171: Internal check | F171: Maximum DBH for PL ingress at handover (97.5 percentile)
A172: MaxDbhPLpB | B172: =IF(SNC=1,10.93,IF(SNC=2,13.22,15.19)) -> 13.22 | C172: Calculated | D172: Internal | F172: Maximum DBH for planted PL at handover (97.5 percentile)
A173: MaxDbhPLpBcheck | B173: =IF(dbhPLpB>MaxDbhPLpB,"X","OK") -> OK | C173: Calculated | D173: Internal check | F173: Maximum DBH for planted PL at handover (97.5 percentile)
A174: MaxDenPLn | B174: =IF(SNC=1,16198,IF(SNC=2,23248,5300)) -> 23248 | C174: Calculated | D174: Internal | F174: Maximum density for PL ingress at handover (97.5 percentile)
A175: MaxDenPLnCheck | B175: =IF(denPLnHandB>MaxDenPLn,"X","OK") -> OK | C175: Calculated | D175: Internal check | F175: Maximum density for PL ingress at handover (97.5 percentile)
A176: MaxSD | B176: 0.00075 | C176: Set | D176: Internal | F176: Maximum ratio of stocking probability (S) to density - changed from 1 (theoretical) to 0.00075 (EPH data)
A177: MaxSpinAWweed | B177: 0.55 | C177: Calculated | D177: Internal | F177: This is the maximum value of spinAW used for estimating weeded AW trees per stocked plot in sub-model 4A6
A178: MaxSpinAWweedCheck | B178: =IF(spinAW>MaxSpinAWweed,"X","OK") -> OK | C178: Calculated | D178: Internal check | F178: This is the maximum value of spinAW used for estimating AW trees per ha in weeded stands (based on EPH data)
A179: MaxTophtPLn | B179: =IF(SNC=1,702.1,IF(SNC=2,907.2,992.4)) -> 907.2 | C179: Calculated | D179: Internal | F179: Maximum PL top ht at handover (97.5 percentile) in LFN stands
A180: MaxTophtPLnCheck | B180: =IF(tophtPLnHandB>MaxTophtPLn,"X","OK") -> OK | C180: Calculated | D180: Internal check | F180: Maximum PL top ht at handover (97.5 percentile) in LFN stands
A181: MaxTophtPLp | B181: =IF(SNC=1,702.1,IF(SNC=2,907.2,992.4)) -> 907.2 | C181: Calculated | D181: Internal | F181: Maximum PL top ht at handover (97.5 percentile) in planted stands
A182: MaxTophtPLpCheck | B182: =IF(tophtPLpHand>MaxTophtPLn,"X","OK") -> OK | C182: Calculated | D182: Internal check | F182: Maximum PL top ht at handover (97.5 percentile) in planted stands
A183: Pearly | B183: FALSE | C183: Input (required if Plant=TRUE) | D183: Input | E183: TRUE / FALSE | F183: Plant early (TRUE only if full growing season expected in same year)
A184: PearlyOut | B184: =IF(AND(Plant=TRUE,Pearly=TRUE),"(advanced)"," ") ->  | C184: Calculated | D184: Output | F184: Plant early (TRUE only if full growing season expected in same year)
A185: Plant | B185: TRUE | C185: Input (required) | D185: Input | E185: TRUE / FALSE | F185: Plant at specified nP level (TRUE), or leave for natural (FALSE)
A186: PlantDataWarning | B186: =IF(Plant=FALSE,"Planting density not required ",IF(InNpInput=0,"Error: planting density missing","Planting density OK")) -> Planting density OK | C186: Calculated | D186: Error | E186: Stop error | F186: Warning if planting density needed and missing
A187: PLnExc | B187: =IF(OR(Cones=0,PLnExcInput=TRUE),TRUE,FALSE) -> FALSE | C187: Calculated | D187: Internal | F187: Exclude all PL natural regeneration - models input (also assumed if Cones = 0)
A188: PLnExcInput | B188: FALSE | C188: Input (required) | D188: Input | E188: TRUE / FALSE | F188: Exclude all PL natural regeneration - user input
A189: PLnExcNote | B189: =IF(PLnExc=TRUE,"(PL ingress excluded)","(PL ingress included)") -> (PL ingress included) | C189: Calculated | D189: Output | F189: Pine ingress excluded from all computations and report
A190: PLnExcOut | B190: =IF(PLnExc=TRUE,"PL ingress excluded from all projections","PL ingress included in all projections") -> PL ingress included in all projections | C190: Calculated | D190: Output | F190: Pine ingress excluded from all computations and report
A191: Prep | B191: 2 | C191: Input (required) | D191: Input | E191: Pick list | F191: Mechanical site preparation: 1=None, 2=Drag, 3=Mound
A192: PrepOut | B192: =IF(Prep=2,"Drag scarification",IF(Prep=3,"Mounding"," ")) -> Drag scarification | C192: Calculated | D192: Output | F192: Mechanical site preparation: 1=None, 2=Drag, 3=Mound
A193: PrepB | B193: =IF(Prep=1,"None","MSP") -> MSP | C193: Calculated | D193: Internal | F193: Broad mechanical site prep (2 levels): none, MSP
A194: psAWes | B194: =InPsAWes -> 0 | C194: Input (required if EsAW=TRUE) | D194: Input | E194: 0 to 100 | F194: Percent stocking of AW at establishment survey (trees 1.3m+)
A195: psAWesMiss | B195: =IF(AND(EsAW=TRUE,InPsAWes=""),TRUE,FALSE) -> FALSE | C195: Calculated | D195: Error | E195: Stop error | F195: psAWes is required and missing
A196: psAWesOut | B196: =IF(EsAW=TRUE,psAWes,"unknown") -> unknown | C196: Calculated | D196: Output | F196: Percent stocking of AW at establishment survey (trees 1.3m+)
A197: psAWhand | B197: =IF(Thin=TRUE,psAWhandA,psAWb) -> 5.017143979 | C197: Calculated | D197: Output (to GYPSY) | F197: Percent stocking of AW at handover (trees 1.3m+)
A198: psAWperf | B198: =IF(ThinYetPerf=TRUE,psAWperfA,psAWb) -> 5.017143979 | C198: Calculated | D198: Output | F198: Percent stocking of AW at performance assessment (trees 1.3m+)
A199: psAWhandA | B199: =Submodels!O153 -> 91.76171353 | C199: Submodel 4A4 | D199: Internal
A200: psAWperfA | B200: =Submodels!E153 ->  | C200: Submodel 4A4 | D200: Internal
... 157 more rows

Sheet Submodels (hidden)
A1: 1A | B1: Mean annual mortality of unthinned lodgepole pine planted stock to handover age | Q1: Original | R1: Revisions1 | S1: Revisions2
A2: Ln1mP | B2: Transformation: mP = exp(LN1mP)-1
A3: Intercept | B3: 1Aa | C3: 7.2803319
A4: PrepB[MSP] | B4: 1Ab | C4: -0.149253
A5: NSR[LF] | B5: 1Ac | C5: 0.1233784
A6: SMCb[MesicDry] | B6: 1Ad | C6: 0.1024504
A7: Lat | B7: 1Ae | C7: -0.122209
A8: denAWh | B8: 1Af | C8: 3.97e-05
A9: LFH | B9: 1Ag | C9: 0.01463
A10: PrepB | B10: NSR | C10: SMCb | D10: Index | E10: Ln1mP | F10: mp | G10: denPLpPerfB | H10: denPLpThinB | I10: denPLpHandB
A11: =PrepB -> MSP | B11: =NSR -> 2 | C11: =SMCb -> MesicDry | D11: =INDEX(A12:D19,MATCH(A11&B11&C11,A12:A19&B12:B19&C12:C19,0),4) -> 7 | E11: =LOOKUP(D11,D12:D19,E12:E19) -> 1.013451106 | F11: =EXP(E11)-1 -> 1.755092744 | G11: =nP*(1-($F11/100*GSPperf)) -> 407.020371 | H11: =nP*(1-($F11/100*GSPthin)) -> 392.979629 | I11: =nP*(1-($F11/100*GSPhand)) -> 280.6536934 | S11: Potential negative values set to zero in Variables worksheet
A12: None | B12: 1 | C12: MesicDry | D12: 1 | E12: =_1Aa+_1Ab*(-1)+_1Ac*1+_1Ad*1+_1Ae*Lat+_1Af*denAWhandB+_1Ag*LFH -> 1.558713906 | F12: =EXP(E12)-1 -> 3.752704887
A13: None | B13: 1 | C13: Moist | D13: 2 | E13: =_1Aa+_1Ab*(-1)+_1Ac*1+_1Ad*(-1)+_1Ae*Lat+_1Af*denAWhandB+_1Ag*LFH -> 1.353813106 | F13: 2.872162381
A14: None | B14: 2 | C14: MesicDry | D14: 3 | E14: =_1Aa+_1Ab*(-1)+_1Ac*(-1)+_1Ad*1+_1Ae*Lat+_1Af*denAWhandB+_1Ag*LFH -> 1.311957106 | F14: 2.713434189
A15: None | B15: 2 | C15: Moist | D15: 4 | E15: =_1Aa+_1Ab*(-1)+_1Ac*(-1)+_1Ad*(-1)+_1Ae*Lat+_1Af*denAWhandB+_1Ag*LFH -> 1.107056306 | F15: 2.025439305
A16: MSP | B16: 1 | C16: MesicDry | D16: 5 | E16: =_1Aa+_1Ab*1+_1Ac*1+_1Ad*1+_1Ae*Lat+_1Af*denAWhandB+_1Ag*LFH -> 1.260207906 | F16: 2.526154519
A17: MSP | B17: 1 | C17: Moist | D17: 6 | E17: =_1Aa+_1Ab*1+_1Ac*1+_1Ad*(-1)+_1Ae*Lat+_1Af*denAWhandB+_1Ag*LFH -> 1.055307106 | F17: 1.872857289
A18: MSP | B18: 2 | C18: MesicDry | D18: 7 | E18: =_1Aa+_1Ab*1+_1Ac*(-1)+_1Ad*1+_1Ae*Lat+_1Af*denAWhandB+_1Ag*LFH -> 1.013451106 | F18: 1.755092744
A19: MSP | B19: 2 | C19: Moist | D19: 8 | E19: =_1Aa+_1Ab*1+_1Ac*(-1)+_1Ad*(-1)+_1Ae*Lat+_1Af*denAWhandB+_1Ag*LFH -> 0.8085503058 | F19: 1.244651568
A20: 1B | B20: Mean annual mortality of thinned lodgepole pine planted stock to handover age
A21: LN1mT | B21: Transformation: mT = exp(LN1mT)-1
A22: Intercept | B22: 1Ba | C22: 0.9218365
A23: SNCb[B] | B23: 1Bb | C23: -0.171878
A24: spinAW | B24: 1Bc | C24: 0.3248999
A25: Elev | B25: 1Bd | C25: -0.000624
A26: nP | B26: 1Be | C26: 6.88e-05
A27: SNCb | B27: Ln1mP | C27: mp | D27: denPLpPerfA | E27: denPLpThinA | F27: denPLpHandB | G27: denPLpPerfAadj | H27: denPLpThinAadj | S27: Potential negative values set to zero in Variables worksheet
A28: =IF(SNC=1,"B","CD") -> CD | B28: =IF(A28="B",B29,B30) -> 0.405158652 | C28: =EXP(B28)-1 -> 0.4995403863 | D28: =nTp*1/(1-($C28/100*IntPerfHand)) -> 308.3826163 | E28: =nTp*1/(1-($C28/100*IntThinHand)) -> 305.0339802 | F28: =nTp*1 -> 280.6536934 | G28: =IF(D28<F28,F28,D28) -> 308.3826163 | H28: =IF(E28<F28,F28,E28) -> 305.0339802 | S28: Perf and Thin values constrained to be not less than Hand
A29: B | B29: =_1Ba+_1Bb+_1Bc*spinAW+_1Bd*Elev+_1Be*nP -> 0.06140265202
A30: CD | B30: =_1Ba+_1Bb*(-1)+_1Bc*spinAW+_1Bd*Elev+_1Be*nP -> 0.405158652
A31: 2A | B31: Stems per ha of unthinned lodgepole pine natural regeneration at handover stage (with SSPT adjustment)
A32: SQRTdenPLnHand | B32: Transformation: denPLnHand = (SQRTdenPLnHand)^2
A33: Intercept | B33: 2Aa | C33: 318.45901
A34: PrepC[Drag] | B34: 2Ab | C34: 15.816305
B35: 2Ac | D35: (Not used)
A36: SNC[B] | B36: 2Ad | C36: -8.415743
A37: SNC[C] | B37: 2Ae | C37: 13.193607
A38: Lat | B38: 2Af | C38: -5.170499
A39: denAW | B39: 2Ag | C39: -0.00319
A40: nP1600Less | B40: 2Ah | C40: -0.008248
A41: LN1Cones | B41: 2Ai | C41: 22.081144
A42: LFH | B42: 2Aj | C42: -1.044781
A43: Prep | B43: SNC | C43: Index | D43: SQRTdenPLnHand | E43: denPLnHand2A
A44: =Prep -> 2 | B44: =SNC -> 2 | C44: =INDEX(A45:C53,MATCH(A44&B44,A45:A53&B45:B53,0),3) -> 5 | D44: =LOOKUP(C44,C45:C53,D45:D53) -> 69.90731403 | E44: =LOOKUP(C44,C45:C53,E45:E53) -> 4887.032555 | F44: Note: Prep 1 and 3 are the same
A45: 1 | B45: 1 | C45: 1 | D45: =_2Aa+_2Ab*(-1)+_2Ad*1+_2Ae*0+_2Af*Lat+_2Ag*denAWhandB+_2Ah*nP1600Less+_2Ai*LN1Cones+_2Aj*LFH -> 16.66535403 | E45: =IF(D45<0,0,D45^2) -> 277.7340249
A46: 1 | B46: 2 | C46: 2 | D46: =_2Aa+_2Ab*(-1)+_2Ad*0+_2Ae*1+_2Af*Lat+_2Ag*denAWhandB+_2Ah*nP1600Less+_2Ai*LN1Cones+_2Aj*LFH -> 38.27470403 | E46: =IF(D46<0,0,D46^2) -> 1464.952968
A47: 1 | B47: 3 | C47: 3 | D47: =_2Aa+_2Ab*(-1)+_2Ad*(-1)+_2Ae*(-1)+_2Af*Lat+_2Ag*denAWhandB+_2Ah*nP1600Less+_2Ai*LN1Cones+_2Aj*LFH -> 20.30323303 | E47: =IF(D47<0,0,IF(D47^2>5300,5300,D47^2)) -> 412.2212714 | F47: Note maximum limited
A48: 2 | B48: 1 | C48: 4 | D48: =_2Aa+_2Ab*1+_2Ad*1+_2Ae*0+_2Af*Lat+_2Ag*denAWhandB+_2Ah*nP1600Less+_2Ai*LN1Cones+_2Aj*LFH -> 48.29796403 | E48: =IF(D48<0,0,D48^2) -> 2332.693329
A49: 2 | B49: 2 | C49: 5 | D49: =_2Aa+_2Ab*1+_2Ad*0+_2Ae*1+_2Af*Lat+_2Ag*denAWhandB+_2Ah*nP1600Less+_2Ai*LN1Cones+_2Aj*LFH -> 69.90731403 | E49: =IF(D49<0,0,D49^2) -> 4887.032555
A50: 2 | B50: 3 | C50: 6 | D50: =_2Aa+_2Ab*1+_2Ad*(-1)+_2Ae*(-1)+_2Af*Lat+_2Ag*denAWhandB+_2Ah*nP1600Less+_2Ai*LN1Cones+_2Aj*LFH -> 51.93584303 | E50: =IF(D50<0,0,IF(D50^2>5300,5300,D50^2)) -> 2697.331791 | F50: Note maximum limited
A51: 3 | B51: 1 | C51: 7 | D51: =_2Aa+_2Ab*(-1)+_2Ad*1+_2Ae*0+_2Af*Lat+_2Ag*denAWhandB+_2Ah*nP1600Less+_2Ai*LN1Cones+_2Aj*LFH -> 16.66535403 | E51: =IF(D51<0,0,D51^2) -> 277.7340249
A52: 3 | B52: 2 | C52: 8 | D52: =_2Aa+_2Ab*(-1)+_2Ad*0+_2Ae*1+_2Af*Lat+_2Ag*denAWhandB+_2Ah*nP1600Less+_2Ai*LN1Cones+_2Aj*LFH -> 38.27470403 | E52: =IF(D52<0,0,D52^2) -> 1464.952968
A53: 3 | B53: 3 | C53: 9 | D53: =_2Aa+_2Ab*(-1)+_2Ad*(-1)+_2Ae*(-1)+_2Af*Lat+_2Ag*denAWhandB+_2Ah*nP1600Less+_2Ai*LN1Cones+_2Aj*LFH -> 20.30323303 | E53: =IF(D53<0,0,IF(D53^2>6562,6562,D53^2)) -> 412.2212714 | F53: Note maximum limited
A54: 2Bnt (not thinned) | B54: Stems per ha of unthinned lodgepole pine natural regeneration at performance and thinning stage
A55: SQRTdenPLn | B55: Transformation: denPLn = (SQRTdenPLn)^2
A56: Intercept | B56: 2Ca | C56: 3.5594531
A57: SQRTdenPLnHand | B57: 2Cb | C57: 1.2230386
A58: Thin[No] | B58: 2Cc | C58: 2.1547925
A59: Thin | B59: SQRTdenPLn | C59: denPLnPerf2C
A60: =Thin -> FALSE | B60: =IF(Thin=TRUE,B61,B62) -> 91.21358908 | C60: =B60^2 -> 8319.918832
A61: TRUE | B61: =_2Ca+_2Cb*SQRTdenPLnHandA+_2Cc*(-1) -> 75.99343524 | C61: =B61^2 -> 5775.002199
A62: FALSE | B62: =_2Ca+_2Cb*SQRTdenPLnHandB+_2Cc*1 -> 91.21358908 | C62: =IF(B62<0,0,B62^2) -> 8319.918832 | D62: denPLnPerfB
A63: 2Ct (thinned) | B63: Stems per ha of thinned lodgepole pine natural regeneration at performance and thinning stage
A64: SQRTdenPLn | B64: Transformation: denPLn = (SQRTdenPLn)^2
A65: Intercept | B65: 2Ca | C65: 3.5594531
A66: SQRTdenPLnHand | B66: 2Cb | C66: 1.2230386
A67: Thin[No] | B67: 2Cc | C67: 2.1547925
A68: Thin | B68: SQRTdenPLn | C68: denPLnPerf2C
A69: =Thin -> FALSE | B69: =IF(Thin=TRUE,B70,B71) -> 91.21358908 | C69: =B69^2 -> 8319.918832
A70: TRUE | B70: =_2Ca+_2Cb*SQRTdenPLnHandA+_2Cc*(-1) -> 75.99343524 | C70: =IF(B70<0,0,B70^2) -> 5775.002199 | D70: denPLnPerfA
A71: FALSE | B71: =_2Ca+_2Cb*SQRTdenPLnHandB+_2Cc*1 -> 91.21358908 | C71: =B71^2 -> 8319.918832
A72: 3A | B72: Percent stocking pine (1.3m+) in planted stands at handover stage
A73: sPL13Plant | B73: Transformation: sPL13 = ((1 + eY)-1)
A74: Intercept | B74: 3Aa | C74: 2.63935273
A75: Thinned[No] | B75: 3Ab | C75: 0.40137704
A76: SQRTdenPLnHand | B76: 3Ac | C76: -0.044647 | E76: Note: if thinned,use nTn
A77: SQRTdenPLpHand | B77: 3Ad | C77: -0.1093307 | E77: Note: if thinned, use nTP
A78: Thin | B78: y | C78: sPLhand | D78: psPLhand | E78: yX | F78: sPhandX | G78: psPLhandX
A79: =Thin -> FALSE | B79: =IF(Thin=TRUE,B80,B81) -> -1.912008899 | C79: =((1+EXP(B79))^-1) -> 0.8712446691 | D79: =C79*100 -> 87.12446691 | Q79: Not used
A80: TRUE | B80: =_3Aa+_3Ab*(-1)+_3Ac*SQRTdenPLnHandA+_3Ad*SQRTdenPLpHandA -> -2.316472879 | C80: =((1+EXP(B80))^-1) -> 0.9102321578 | D80: =IF(C80<denPLhandA*MaxSD,C80*100,denPLhandA*MaxSD*100) -> 91.02321578 | E80: =_3Aa+_3Ab*(-1)+_3Ac*SQRTdenPLnHandXa+_3Ad*SQRTdenPLpHandXa -> -1.771986706 | F80: =((1+EXP(E80))^-1) -> 0.8547045634 | G80: =IF(F80<denPLhandXa*MaxSD,F80*100,denPLhandXa*MaxSD*100) -> 85.47045634 | H80: A | Q80: Constrained
A81: FALSE | B81: =_3Aa+_3Ab*1+_3Ac*SQRTdenPLnHandB+_3Ad*SQRTdenPLpHandB -> -1.912008899 | C81: 0.8712446691 | D81: =IF(C81<denPLhandB*MaxSD,C81*100,denPLhandB*MaxSD*100) -> 87.12446691 | E81: =_3Aa+_3Ab*1+_3Ac*SQRTdenPLnHandXb+_3Ad*SQRTdenPLpHandXb -> -1.310349205 | F81: 0.7875715846 | G81: =IF(F81<denPLhandXb*MaxSD,F81*100,denPLhandXb*MaxSD*100) -> 78.75715846 | H81: B | Q81: Constrained
A82: 3B | B82: Percent stocking pine (1.3m+) in unplanted (leave for natural) stands at handover stage
A83: sPL13Lfn | B83: Transformation: sPL13 = ((1 + eY)-1)
A84: Intercept | B84: 3Ba | C84: 3.41114208
A85: Thinned[No] | B85: 3Bb | C85: 0.31759737
A86: SQRTdenPLnHand | B86: 3Bc | C86: -0.0902168 | F86: Note: if thinned, use nTn
A87: Thin | B87: y | C87: sPLhand | D87: psPLhand | E87: yX | F87: sPhandX | G87: psPLhandX
A88: =Thin -> FALSE | B88: =IF(Thin=TRUE,B89,B90) -> -2.578074718 | C88: =((1+EXP(B88))^-1) -> 0.9294371062 | D88: =C88*100 -> 92.94371062 | Q88: Not used
A89: TRUE | B89: =_3Ba+_3Bb*(-1)+_3Bc*SQRTdenPLnHandA -> -2.408457078 | C89: =((1+EXP(B89))^-1) -> 0.9174699288 | D89: =IF(C89<denPLhandA*MaxSD,C89*100,denPLhandA*MaxSD*100) -> 91.74699288 | E89: =_3Ba+_3Bb*(-1)+_3Bc*SQRTdenPLnHandXa -> -1.618658846 | F89: =((1+EXP(E89))^-1) -> 0.8346100852 | G89: =IF(F89<denPLhandXa*MaxSD,F89*100,denPLhandXa*MaxSD*100) -> 83.46100852 | H89: A | Q89: Constrained
A90: FALSE | B90: =_3Ba+_3Bb*1+_3Bc*SQRTdenPLnHandB -> -2.578074718 | C90: 0.9294371062 | D90: =IF(C90<denPLhandB*MaxSD,C90*100,denPLhandB*MaxSD*100) -> 92.94371062 | E90: =_3Ba+_3Bb*1+_3Bc*SQRTdenPLnHandXb -> -1.672747736 | F90: 0.8419418219 | G90: =IF(F90<denPLhandXb*MaxSD,F90*100,denPLhandXb*MaxSD*100) -> 84.19418219 | H90: B | Q90: Constrained
A91: 3C | B91: Percent stocking pine (30cm+) in planted stands during performance and thinning stage
A92: Model sPL03plant | B92: Transformation: sPL = ((1 + eY)-1)
A93: Intercept | B93: 3Ca | C93: 2.56435842
A94: Thinned[No] | B94: 3Cb | C94: 0.2825084
A95: SQRTdenPLnPerf | B95: 3Cc | C95: -0.0347872
A96: SQRTdenPLpPerf | B96: 3Cd | C96: -0.1090304
A97: Thin | B97: y-perf | C97: sPLperfPlant | D97: psPLplantPerf | E97: y-thin | F97: sPLthinPlant | G97: psPLplantThin
A98: =Thin -> FALSE | B98: =IF(Thin=TRUE,B99,B100) -> -2.525859158 | C98: =((1+EXP(B98))^-1) -> 0.925934877 | D98: =C98*100 -> 92.5934877 | E98: =IF(Thin=TRUE,E99,E100) -> -2.487585992 | F98: =((1+EXP(E98))^-1) -> 0.9232669567 | G98: =F98*100 -> 92.32669567 | Q98: Not used
A99: TRUE | B99: =_3Ca+_3Cb*(-1)+_3Cc*SQRTdenPLnPerfA+_3Cd*SQRTdenPLpPerfA -> -2.276412713 | C99: =((1+EXP(B99))^-1) -> 0.906904619 | D99: =IF(C99<denPLperfA*MaxSD,C99*100,denPLperfA*MaxSD*100) -> 90.6904619 | E99: =_3Ca+_3Cb*(-1)+_3Cc*SQRTdenPLnThinA+_3Cd*SQRTdenPLpThinA -> -2.265988953 | F99: =((1+EXP(E99))^-1) -> 0.9060208145 | G99: =IF(F99<denPLthinA*MaxSD,F99*100,denPLthinA*MaxSD*100) ->  | H99: A | Q99: Constrained
A100: FALSE | B100: =_3Ca+_3Cb*1+_3Cc*SQRTdenPLnPerfB+_3Cd*SQRTdenPLpPerfB -> -2.525859158 | C100: 0.925934877 | D100: =IF(C100<denPLperfB*MaxSD,C100*100,denPLperfB*MaxSD*100) -> 92.5934877 | E100: =_3Ca+_3Cb*1+_3Cc*SQRTdenPLnThinB+_3Cd*SQRTdenPLpThinB -> -2.487585992 | F100: 0.9232669567 | G100: =IF(F100<denPLthinB*MaxSD,F100*100,denPLthinB*MaxSD*100) ->  | H100: B | Q100: Constrained
A101: 3D | B101: Percent stocking pine (30cm+) in unplanted (leave for natural) stands during performance and thinning stage
A102: sPL03Lfn | B102: Transformation: sPL = ((1 + eY)-1)
A103: Intercept | B103: 3Da | C103: 2.68121574
A104: Thinned[No] | B104: 3Db | C104: 0.24992337
A105: SQRTdenPLnPerf | B105: 3Dc | C105: -0.0643641
A106: Thin | B106: y-perf | C106: sPLperfLfn | D106: psPLlfnPerf | E106: y-thin | F106: sPLthinLfn | G106: psPLPLlfnThin
A107: =Thin -> FALSE | B107: =IF(Thin=TRUE,B108,B109) -> -2.939741459 | C107: =((1+EXP(B107))^-1) -> 0.9497763955 | D107: =C107*100 -> 94.97763955 | E107: =IF(Thin=TRUE,E108,E109) -> -2.939741459 | F107: =((1+EXP(E107))^-1) -> 0.9497763955 | G107: =F107*100 -> 94.97763955 | Q107: Not used
A108: TRUE | B108: =_3Da+_3Db*(-1)+_3Dc*SQRTdenPLnPerfA -> -2.459956695 | C108: =((1+EXP(B108))^-1) -> 0.9212865225 | D108: =IF(C108<denPLperfA*MaxSD,C108*100,denPLperfA*MaxSD*100) -> 92.12865225 | E108: =_3Da+_3Db*(-1)+_3Dc*SQRTdenPLnThinA -> -2.459956695 | F108: =((1+EXP(E108))^-1) -> 0.9212865225 | G108: =IF(F108<denPLthinA*MaxSD,F108*100,denPLthinA*MaxSD*100) ->  | H108: A | Q108: Constrained
A109: FALSE | B109: =_3Da+_3Db*1+_3Dc*SQRTdenPLnPerfB -> -2.939741459 | C109: 0.9497763955 | D109: =IF(C109<denPLperfB*MaxSD,C109*100,denPLperfB*MaxSD*100) -> 94.97763955 | E109: =_3Da+_3Db*1+_3Dc*SQRTdenPLnThinB -> -2.939741459 | F109: 0.9497763955 | G109: =IF(F109<denPLthinB*MaxSD,F109*100,denPLthinB*MaxSD*100) ->  | H109: B | Q109: Constrained
A110: 4A1 | B110: Stocking probability index for aspen/poplar (1.3m+) in unweeded stands
A111: spinAW | B111: Transformation: spinAW = ((1 + eY)-1) | S111: Revised model 4A1 based on C, T plots only, avoiding possible bias caused by including unweeded W and WT plots
A112: Intercept | B112: 4A1a | C112: -9.8674522 | Q112: -10.718688 | S112: -9.8674522
A113: SNC[B] | B113: 4A1b | C113: 2.9547378 | Q113: 2.93022803 | S113: 2.9547378
A114: SNC[C] | B114: 4A1c | C114: -0.4395933 | Q114: -0.280939 | S114: -0.4395933
A115: Elev | B115: 4A1d | C115: 0.01052609 | Q115: 0.01142429 | S115: 0.01052609
A116: SNC | B116: y | C116: spinAW4A1
A117: =SNC -> 2 | B117: =IF(SNC=1,B118,IF(SNC=2,B119,B120)) -> 0.8506099 | C117: =((1+EXP(B117))^-1) -> 0.2993049327
A118: 1 | B118: =_4A1a+_4A1b*1+_4A1c*0+_4A1d*Elev -> 5.29755 | C118: =((1+EXP(B118))^-1) -> 0.004978924572
A119: 2 | B119: =_4A1a+_4A1b*0+_4A1c*1+_4A1d*(Elev-100) -> 0.8506099 | C119: 0.2993049327 | S119: Elevation adjustment -100
A120: 3 | B120: =_4A1a+_4A1b*(-1)+_4A1c*(-1)+_4A1d*Elev -> -0.1723323 | C120: 0.5429767658
A121: 4A2 | B121: Stocking probability index for aspen/poplar (1.3m+) - weeded
A122: spinAW | B122: Stratum averages for establishment (GS7)
A123: SNC | B123: spinAW | C123: spinAW4A2
A124: =SNC -> 2 | B124: =IF(SNC=1,B125,IF(SNC=2,B126,B127)) -> 0.02389705882 | C124: =IF(B124<C117,B124,C117) -> 0.02389705882
A125: 1 | B125: 0.008928571429
A126: 2 | B126: 0.02389705882
A127: 3 | B127: 0.02743902439
A128: 4A3NoWeed | B128: Stocking probability unthinned unweeded aspen/poplar(1.3m+) during performance and handover stages | S128: New model
A129: sAw
A130: Intercept | B130: 4A3NWa | C130: 1.06231657 | S130: 1.06231657
A131: SNC[B] | B131: 4A3NWb | C131: 0.74389368 | S131: 0.74389368
A132: SNC[C] | B132: 4A3NWc | C132: -0.473438 | S132: -0.473438
A133: Elev | B133: 4A3NWd | C133: 0.00136858 | S133: 0.00136858
A134: spinAwPb | B134: 4A3NWe | C134: -5.2519521 | S134: -5.2519521
A135: SNC | B135: y | C135: sAW | D135: psAW
A136: =SNC -> 2 | B136: =IF(SNC=1,B137,IF(SNC=2,B138,B139)) -> 2.050925162 | C136: =((1+EXP(B136))^-1) -> 0.1139589322 | D136: =C136*100 -> 11.39589322
A137: 1 | B137: =_4A3NWa+_4A3NWb*1+_4A3NWc*0+_4A3NWd*Elev+_4A3NWe*spinAW -> 3.268256842 | C137: =((1+EXP(B137))^-1) -> 0.03667636645
A138: 2 | B138: =_4A3NWa+_4A3NWb*0+_4A3NWc*1+_4A3NWd*(Elev)+_4A3NWe*spinAW -> 2.050925162 | C138: 0.1139589322
A139: 3 | B139: =_4A3NWa+_4A3NWb*(-1)+_4A3NWc*(-1)+_4A3NWd*Elev+_4A3NWe*spinAW -> 2.253907482 | C139: 0.09501294608
A140: 4A3Weed | B140: Stocking probability unthinned weeded aspen/poplar(1.3m+) during performance and handover stages | S140: New model
A141: sAW
A142: Intercept | B142: 4A3Wa | C142: 1.17969636 | S142: 1.17969636
A143: Elev | B143: 4A3Wb | C143: 0.00225166 | S143: 0.00225166
A144: spinAwPb | B144: 4A3Wc | C144: -14.710444 | S144: -14.710444
A145: y | B145: sAW | C145: psAW
A146: =_4A3Wa+_4A3Wb*(Elev)+_4A3Wc*spinAW -> 3.440085614 | B146: =((1+EXP(A146))^-1) -> 0.03106590699 | C146: =IF((B146*100*1.615)>100,100,(B146*100*1.615)) -> 5.017143979 | S146: Adjustment factor 1.615 applied based on RLP trends and outlier removals
A147: 4A4 | B147: Stocking probability of thinned aspen / poplar(1.3m+) during performance and handover stages
A148: sAWt | B148: Transformation: sAWt = ((1 + eY)-1) | S148: Original retained | U148: Alternative
A149: Intercept | B149: 4A4a | C149: 5.62534165 | Q149: 5.62534165 | S149: 5.62534165 | U149: 5.08704712
A150: spinAW | B150: 4A4b | C150: -3.9612752 | Q150: -3.9612752 | S150: -3.9612752 | U150: -3.0766104
A151: GST | B151: 4A4c | C151: -0.4963176 | Q151: -0.4963176 | S151: -0.4963176 | U151: -0.5456438
A152: Y-perf | B152: sAWperf | C152: psAWperf | D152: sAWperf4A4 | E152: psAWperfA | F152: Y-thin | G152: sAWthin | H152: psAWthin | I152: sAWthin4A4 | J152: psAWthinA | K152: Y-hand | L152: sAWhand | M152: psAWhand | N152: sAWhand4A4 | O152: psAWhandA
A153: =IF(IntThinPerf<0," ",_4A4a+_4A4b*spinAW+_4A4c*IntThinPerf) ->  | B153: =((1+EXP(A153))^-1) ->  | C153: =B153*100 ->  | D153: =IF(spinAW>0,B153,B153) ->  | E153: =IF(spinAW>0,C153,C153) ->  | F153: =_4A4a+_4A4b*spinAW+_4A4c*0 -> 5.530678824 | G153: =((1+EXP(F153))^-1) -> 0.003947652075 | H153: =G153*100 -> 0.3947652075 | I153: =IF(spinAW>0,G153,G153) -> 0.003947652075 | J153: =IF(spinAW>0,H153,H153) -> 0.3947652075 | K153: =IF(IntThinHand<0," ",_4A4a+_4A4b*spinAW+_4A4c*IntThinHand) -> -2.410402776 | L153: =((1+EXP(K153))^-1) -> 0.9176171353 | M153: =L153*100 -> 91.76171353 | N153: =IF(spinAW>0,L153,L153) -> 0.9176171353 | O153: =IF(spinAW>0,M153,M153) -> 91.76171353 | R153: Note: set to zero if spinaAW=0 | S153: Condition removed
A154: 4A5 | B154: Trees per stocked plot of unweeded unthinned aspen / poplar (1.3m+) during performance and handover stages
A155: LNtpspAW | B155: Transformation: tpspAW = EXP(LNtpspAW) | S155: Revised model 4A5. Based on only C treatment plots. Latitude removed. spinAW 0 plots retained
A156: Intercept | B156: 4A5a | C156: 2.0045586 | Q156: 11.135025 | S156: 2.0045586
A157: spinAW | B157: 4A5b | C157: 1.5858104 | Q157: 1.7413374 | S157: 1.5858104
A158: YSC | B158: 4A5c | C158: -0.085171 | Q158: -0.08716 | S158: -0.085171
A159: NSR[LF] | B159: 4A5d | C159: 0.3412056 | Q159: 0.2767093 | S159: 0.3412056
A160: Lat | B160: 4A5e | C160: 0 | Q160: -0.171582 | S160: 0
A161: NSR | B161: LNtpspAWperf | C161: tpspAWperf4A5 | D161: LNtpspAWhand | E161: tpspAWhand4A5 | F161: LNtpspAWthin | G161: tpspAWthin4A5
A162: =NSR -> 2 | B162: =IF(NSR=1,B163,B164) -> 1.701249204 | C162: =IF(EXP(B162)<1,1,EXP(B162)*1.04) -> 5.700021334 | D162: =IF(NSR=1,D163,D164) -> 0.1681712044 | E162: =IF(EXP(D162)<1,1,EXP(D162)*1.04) -> 1.230464718 | F162: =IF(NSR=1,F163,F164) -> 1.530907204 | G162: =IF(EXP(F162)<1,1,EXP(F162)*1.04) -> 4.807263088 | Q162: Cannot be <1 | S162: Adjustment factor 1.040 applied based on RLP stratum means
A163: LF | B163: =_4A5a+_4A5b*spinAW+_4A5c*YSCperf+_4A5d*1+_4A5e*Lat -> 2.383660404 | C163: =EXP(B163) -> 10.84452565 | D163: =_4A5a+_4A5b*spinAW+_4A5c*YSChand+_4A5d*1+_4A5e*Lat -> 0.8505824044 | E163: =EXP(D163) -> 2.341009869 | F163: =_4A5a+_4A5b*spinAW+_4A5c*YSCthin+_4A5d*1+_4A5e*Lat -> 2.213318404 | G163: =EXP(F163) -> 9.146016272
A164: UF | B164: =_4A5a+_4A5b*spinAW+_4A5c*YSCperf+_4A5d*(-1)+_4A5e*Lat -> 1.701249204 | C164: 5.480789744 | D164: =_4A5a+_4A5b*spinAW+_4A5c*YSChand+_4A5d*(-1)+_4A5e*Lat -> 0.1681712044 | E164: 1.183139152 | F164: =_4A5a+_4A5b*spinAW+_4A5c*YSCthin+_4A5d*(-1)+_4A5e*Lat -> 1.530907204 | G164: 4.622368354
A165: 4A6 | B165: Trees per stocked plot of weeded unthinned aspen / poplar (1.3m+) during performance and handover stages
A166: LNtpspAW | B166: Transformation: tpspAW = EXP(LNtpspAW) | R166: Original model checked and retained
A167: Intercept | B167: 4A6a | C167: 0.9378484
A168: spinAW | B168: 4A6b | C168: 5.5998424
A169: YSC | B169: 4A6c | C169: -0.058229
A170: LNtpspAWperf | B170: tpspAWperf4A6 | C170: LNtpspAWhand | D170: tpspAWhand4A6 | E170: LNtpspAWthin | F170: tpspAWthin
A171: =_4A6a+_4A6b*spinAWweed+_4A6c*YSCperf -> 1.071668163 | B171: =IF(EXP(A171)<1,1,EXP(A171)*1.266) -> 3.69703256 | C171: =_4A6a+_4A6b*spinAWweed+_4A6c*YSChand -> 0.02354616324 | D171: =IF(EXP(C171)<1,1,EXP(C171)*1.266) -> 1.296163162 | E171: =_4A6a+_4A6b*spinAWweed+_4A6c*YSCthin -> 0.9552101632 | F171: =IF(EXP(E171)<1,1,EXP(E171)*1.266) -> 3.29060845 | Q171: Cannot be < 1 | S171: Adjustment factor 1.266 applied based on RLP stratum means
A172: 4A7 | B172: Trees per stocked plot of thinned aspen / poplar (1.3m+) during performance and handover stages
A173: LNtpspAW | B173: Transformation: tpspAW = EXP(LNtpspAW) | R173: Original model checked and retained
A174: Intercept | B174: 4A7a | C174: 0.3209677
A175: spinAW | B175: 4A7b | C175: 1.5184861
A176: NSR[LF] | B176: 4A7c | C176: 0.1990344
A177: NSR | B177: LNtpspAW | C177: tpspAW4A7
A178: =NSR -> 2 | B178: =IF(NSR=1,B179,B180) -> 0.1582206517 | C178: =IF(EXP(B178)<1,1,EXP(B178)*1.298) -> 1.520509187 | Q178: Cannot be <1 | S178: Adjustment factor 1.298 applied based on RLP stratum means
A179: LF | B179: =_4A7a+_4A7b*spinAW+_4A7c*1 -> 0.5562894517 | C179: =EXP(B179) -> 1.744188582
A180: UF | B180: =_4A7a+_4A7b*spinAW+_4A7c*(-1) -> 0.1582206517 | C180: 1.171424643
A181: 4B1 | B181: Stocking probability index of black spruce (30cm+)
A182: spinSB | B182: Transformation: spinSB = ((1 + eY)-1)
A183: Intercept | B183: 4B1a | C183: 4.28226793
A184: NSR[LF] | B184: 4B1b | C184: 0.97900427
A185: SMC[Dry] | B185: 4B1c | C185: 1.98632197
A186: SMC[Mesic] | B186: 4B1d | C186: -1.0862344
A187: SNCb[B] | B187: 4B1e | C187: -0.9220635
A188: LFH | B188: 4B1f | C188: -0.0365635
A189: Slope | B189: 4B1g | C189: 0.19538885
A190: NSR | B190: SMC | C190: SNCb | D190: Index | E190: Y | F190: spinSB
A191: =NSR -> 2 | B191: =SMC -> 2 | C191: =SNCb -> CD | D191: =INDEX(A192:D203,MATCH(A191&B191&C191,A192:A203&B192:B203&C192:C203,0),4) -> 10 | E191: =LOOKUP(D191,D192:D203,E192:E203) -> 2.82374316 | F191: =((1+EXP(E191))^-1) -> 0.05605454443
A192: 1 | B192: 1 | C192: B | D192: 1 | E192: =_4B1a+_4B1b*1+_4B1c*1+_4B1d*0+_4B1e*1+_4B1f*LFH+_4B1g*Slope -> 6.01018107 | F192: 0.002447638226
A193: 1 | B193: 1 | C193: CD | D193: 2 | E193: =_4B1a+_4B1b*1+_4B1c*1+_4B1d*0+_4B1e*(-1)+_4B1f*LFH+_4B1g*Slope -> 7.85430807 | F193: 0.0003879259561
A194: 1 | B194: 2 | C194: B | D194: 3 | E194: =_4B1a+_4B1b*1+_4B1c*0+_4B1d*1+_4B1e*1+_4B1f*LFH+_4B1g*Slope -> 2.9376247 | F194: 0.05032467259
A195: 1 | B195: 2 | C195: CD | D195: 4 | E195: =_4B1a+_4B1b*1+_4B1c*0+_4B1d*1+_4B1e*(-1)+_4B1f*LFH+_4B1g*Slope -> 4.7817517 | F195: 0.008311642165
A196: 1 | B196: 3 | C196: B | D196: 5 | E196: =_4B1a+_4B1b*1+_4B1c*(-1)+_4B1d*(-1)+_4B1e*1+_4B1f*LFH+_4B1g*Slope -> 3.12377153 | F196: 0.04213728321
A197: 1 | B197: 3 | C197: CD | D197: 6 | E197: =_4B1a+_4B1b*1+_4B1c*(-1)+_4B1d*(-1)+_4B1e*(-1)+_4B1f*LFH+_4B1g*Slope -> 4.96789853 | F197: 0.00690967835
A198: 2 | B198: 1 | C198: B | D198: 7 | E198: =_4B1a+_4B1b*(-1)+_4B1c*1+_4B1d*0+_4B1e*1+_4B1f*LFH+_4B1g*Slope -> 4.05217253 | F198: 0.01708750623
A199: 2 | B199: 1 | C199: CD | D199: 8 | E199: =_4B1a+_4B1b*(-1)+_4B1c*1+_4B1d*0+_4B1e*(-1)+_4B1f*LFH+_4B1g*Slope -> 5.89629953 | F199: 0.002742061258
A200: 2 | B200: 2 | C200: B | D200: 9 | E200: =_4B1a+_4B1b*(-1)+_4B1c*0+_4B1d*1+_4B1e*1+_4B1f*LFH+_4B1g*Slope -> 0.97961616 | F200: 0.2729679525
... 306 more rows

Sheet Report
A1: Stand Regeneration Report | F1: Stand identifier: | G1: =StandId -> Example 1
A2: =IF(fripsy_validinput=FALSE,"IMPORTANT NOTE: There are errors on the Input worksheet! This report is not valid!","") -> 
A3: Stand, Site and Establishment Factors
A4: Natural sub-region: | C4: =NSRout -> UF | D4: Elevation (m): | F4: =Elev -> 1160 | G4: Latitude (deg.): | I4: =Lat -> 53.5
A5: Soil moisture class: | C5: =SMCout -> mesic | D5: Soil nutrient class: | F5: =SNCout -> medium | G5: Depth LFH (cm): | I5: =LFHout -> 30
A6: Cone density (per m2): | C6: =ConesOut -> unknown | D6: Slope %: | F6: =SlopeOut -> unknown
A7: Secondary species % stocking | D7: AW: | E7: =psAWesOut -> unknown | F7: SB: | G7: =psSBesOut -> unknown | H7: SW: | I7: =psSWesOut -> unknown
A9: Selected Projection Options
A10: =WGRAdjOut -> No adjustment for Western Gall Rust | F10: =PLnExcOut -> PL ingress included in all projections
A12: Events | C12: Year | D12: Details
A13: Cut (timber year of cut) | C13: =YrCout -> 2000
A14: Site preparation | C14: =YrPrepOut -> 2000 | D14: =PrepOut -> Drag scarification
A15: Plant | C15: =YrPout -> 2001 | D15: =PearlyOut ->  | E15: =nPoutLabel -> Density: | F15: =IFERROR(ROUND(nPout,0),"") -> 400 | G15: =nPoutUnits -> trees per ha
A16: Weed (last chemical) | C16: =YrWeedOut -> 2006
A17: Thin (manual) | C17: =YrThinOut -> Never | E17: =nToutLabel ->  | F17: =IFERROR(ROUND(nTout,0),"") ->  | G17: =nToutUnits -> 
A18: Performance assessment | C18: =YrPerfOut -> 2000
A19: Handover | C19: =YrHandOut -> 2018
A21: Regeneration Forecast | C21: =PLnExcNote -> (PL ingress included)
A22: Event | B22: Years | C22: Species | D22: Age | E22: Top ht | F22: % * | G22: Trees * | H22: DBH | I22: Basal area
B23: since cut | D23: (years) | E23: (m) | F23: stocked | G23: per ha | H23: (cm) | I23: (m2/ha)
A24: Thin | B24: =YSCthinOut ->  | C24: AW | D24: =ageAWthinB ->  | E24: =tophtAWthinB ->  | F24: =psAWthinB ->  | G24: =denAWthinB -> 
A25: (before) | C25: PL | D25: =agePLthinB ->  | E25: =tophtPLthinB ->  | F25: =psPLthinB ->  | G25: =denPLthinB -> 
A26: Thin | B26: =YSCthinOut ->  | C26: AW | D26: =ageAWthinAout ->  | E26: =tophtAWthinA ->  | F26: =psAWthinA ->  | G26: =denAWthinA -> 
A27: (after) | C27: PL | D27: =agePLthinA ->  | E27: =tophtPLthinA ->  | F27: =psPLthinA ->  | G27: =denPLthinA -> 
A28: Performance | B28: =YSCperfOut -> 0 | C28: AW | D28: =ageAWperfOut ->  | E28: =tophtAWperf -> 0.5800240306 | F28: =psAWperf -> 5.017143979 | G28: =denAWperf -> 185.4854465
A29: =ThinPerfNote ->  | C29: PL | D29: =agePLperf -> 0 | E29: =tophtPLperf -> -1.323306259 | F29: =psPLperf -> 89.81568307 | G29: =denPLperf -> 8726.939203
A30: Handover | B30: =YSChandOut -> 18 | C30: AW | D30: =ageAWhand -> 14.677048 | E30: =tophtAWhandOut -> 4.707395722 | F30: =psAWhand -> 5.017143979 | G30: =denAWhand -> 65.03037207 | H30: =dbhawout -> 2.349828692 | I30: =baAW -> 0.02820191017
A31: =WGRadjNote ->  | C31: PL | D31: =agePLhand -> 18 | E31: =tophtPLhandOut -> 6.960995585 | F31: =psPLhand -> 84.5107329 | G31: =denPLhand -> 5167.686248 | H31: =dbhPL -> 5.201742893 | I31: =baPL -> 10.98205929
C32: SB | D32: =ageSBhand -> 13.05235611 | E32: =tophtSB -> 2.450941738 | F32: =psSBhand -> 11.03486888 | G32: =denSB -> 144.7037087 | H32: =IF(AND(TRIM(D32)<>"",D32<9.5),"Too young to project!",IF(AND(TRIM(G32)<>"",G32<=50),"Dens. too low to project!","")) -> 
C33: SW | D33: =ageSWhand -> 11.51819737 | E33: =tophtSW -> 2.234953567 | F33: =psSWhand -> 2.854518602 | G33: =denSW -> 28.54518602 | H33: =IF(AND(TRIM(D33)<>"",D33<9.5),"Too young to project!",IF(AND(TRIM(G33)<>"",G33<=50),"Dens. too low to project!","")) -> Dens. too low to project!
A35: Yield Projection to age of PL MAI culmination at | E35: =IFERROR(INDEX(GYPSY_Projected!C$2:C$252,$I$35),"") -> 83 | F35: years after cut | I35: =MATCH(C39,GYPSY_Projected!AY$2:AY$252,0) -> 84
A36: Species | B36: Site index | C36: MAI | D36: Volume | E36: Age | F36: Top ht | G36: Trees | H36: DBH | I36: Basal area
B37: (m @ 50 yrs) | C37: (m3/ha/yr) | D37: (m3/ha) | E37: (years) | F37: (m) | G37: (per ha) | H37: (cm) | I37: (m2/ha)
A38: AW | B38: =IF(GYPSY_Observed!AQ2>0,GYPSY_Observed!AQ2,"") -> 14.06779347 | C38: =IF($B38<>"",D38/$E$35,"") -> 0.018171902 | D38: =IF($B38<>"",INDEX(GYPSY_Projected!AO$2:AO$252,$I$35),"") -> 1.508267866 | E38: =IF($B38<>"",INDEX(GYPSY_Projected!D$2:D$252,$I$35),"") -> 79.677048 | F38: =IF($B38<>"",INDEX(GYPSY_Projected!K$2:K$252,$I$35),"") -> 17.74558841 | G38: =IF($B38<>"",INDEX(GYPSY_Projected!H$2:H$252,$I$35),"") -> 63.98089702 | H38: =IF($B38<>"",INDEX(GYPSY_Projected!L$2:L$252,$I$35),"") -> 10.59282484 | I38: =IF($B38<>"",INDEX(GYPSY_Projected!F$2:F$252,$I$35),"") -> 0.5638502638
A39: PL | B39: =IF(GYPSY_Observed!BI2>0,GYPSY_Observed!BI2,"") -> 20.04901044 | C39: =IF(MAX(GYPSY_Projected!AY$2:AY$252)=0,"",MAX(GYPSY_Projected!AY$2:AY$252)) -> 4.047562254 | D39: =IF($B39<>"",INDEX(GYPSY_Projected!AX$2:AX$252,$I$35),"") -> 335.947667 | E39: =IF($B39<>"",INDEX(GYPSY_Projected!AE$2:AE$252,$I$35),"") -> 83 | F39: =IF($B39<>"",INDEX(GYPSY_Projected!AL$2:AL$252,$I$35),"") -> 24.39271892 | G39: =IF($B39<>"",INDEX(GYPSY_Projected!AI$2:AI$252,$I$35),"") -> 1114.506172 | H39: =IF($B39<>"",INDEX(GYPSY_Projected!AM$2:AM$252,$I$35),"") -> 20.30061372 | I39: =IF($B39<>"",INDEX(GYPSY_Projected!AG$2:AG$252,$I$35),"") -> 36.07370041
A40: SB | B40: =IF(GYPSY_Observed!AW2>0,GYPSY_Observed!AW2,"") -> 15.11782156 | C40: =IF($B40<>"",D40/$E$35,"") -> 0.09785567094 | D40: =IF($B40<>"",INDEX(GYPSY_Projected!AR$2:AR$252,$I$35),"") -> 8.122020688 | E40: =IF($B40<>"",INDEX(GYPSY_Projected!M$2:M$252,$I$35),"") -> 78.05235611 | F40: =IF($B40<>"",INDEX(GYPSY_Projected!T$2:T$252,$I$35),"") -> 18.25967496 | G40: =IF($B40<>"",INDEX(GYPSY_Projected!Q$2:Q$252,$I$35),"") -> 86.99631665 | H40: =IF($B40<>"",INDEX(GYPSY_Projected!U$2:U$252,$I$35),"") -> 16.1111371 | I40: =IF($B40<>"",INDEX(GYPSY_Projected!O$2:O$252,$I$35),"") -> 1.773548761
A41: SW | B41: =IF(GYPSY_Observed!BC2>0,GYPSY_Observed!BC2,"") -> 16.51429314 | C41: 0 | D41: =IF($B41<>"",INDEX(GYPSY_Projected!AU$2:AU$252,$I$35),"") -> 0 | E41: =IF($B41<>"",INDEX(GYPSY_Projected!V$2:V$252,$I$35),"") -> 0 | F41: =IF($B41<>"",INDEX(GYPSY_Projected!AC$2:AC$252,$I$35),"") -> 0 | G41: =IF($B41<>"",INDEX(GYPSY_Projected!Z$2:Z$252,$I$35),"") -> 0 | H41: =IF($B41<>"",INDEX(GYPSY_Projected!AD$2:AD$252,$I$35),"") -> 0 | I41: =IF($B41<>"",INDEX(GYPSY_Projected!X$2:X$252,$I$35),"") -> 0
A42: Con | C42: =IF(ISNA(I35),"",SUM(C39:C41)) -> 4.145417925 | D42: =IFERROR(INDEX(GYPSY_Projected!BA$2:BA$252,$I$35),"") -> 344.0696877 | E42: =IF(gypsy_available=FALSE,"GYPSY DLL is unavailable!",IF(IncYieldSummary=FALSE,"No output requested.",IF(gypsy_validinput=FALSE,"GYPSY input error!",""))) -> GYPSY input error! | G42: =IF(ISNA(I35),"",SUM(G39:G41)) -> 1201.502488 | H42: =IF(ISNA(I35),"",qmd(I42,G42)) -> 20.02672258 | I42: =IF(ISNA(I35),"",SUM(I39:I41)) -> 37.84724917
A43: * Based on minimum tree height 0.3m for conifers at thinning and performance, and 1.3m for AW (always) and conifers at handover.

Sheet Batch_Setup
A1: StandId | B1: SNC | C1: SMC | D1: NSR | E1: Elev | F1: Lat | G1: LFH | H1: Slope | I1: Cones | J1: PsAW | K1: PsSB | L1: PsSW | M1: WGR | N1: ExPLnat | O1: YrCut | P1: Prep | Q1: YrPrep | R1: YrPlant | S1: PSph | T1: PEarly | U1: YrWeed | V1: YrThin | W1: ThinSph | X1: YrPerf | Y1: Status
A2: Example 1 | B2: 2 | C2: 2 | D2: UF | E2: 500 | F2: 55 | G2: 100 | H2: 30 | I2: 100 | O2: 2000 | P2: 1 | R2: 2012 | S2: 700 | V2: 2012 | W2: 4000 | X2: 2014 | Y2: !!

Sheet Batch_Output
A1: Input Data | AF1: Before Thinning | AO1: After Thinning | AW1: Performance Assessment | BF1: Handover | BZ1: GYPSY Projection @ PL Culmination Age | DL1: Errors and Warnings | EF1: Internal Checks | ES1: GYPSY
A2: Stand identifier | B2: Soil nutrient class | C2: Soil moisture class | D2: Natural subregion | E2: Elevation (m) | F2: Latitude (degrees) | G2: Depth of LFH (cm) | H2: Slope percent | I2: Cones per m2 | J2: Percent stocking AW at ES | K2: Percent stocking SB at ES | L2: Percent stocking SW at ES | M2: Adjust for Western Gall Rust | N2: Exclude PL natural regen | O2: Include yield projection in summary | P2: Include detailed GYPSY output | Q2: Year of cut | R2: Site prep. method | S2: Year of site prep | T2: Planted | U2: Year of planting | V2: Planted trees per ha | W2: Planting advanced | X2: Weeded | Y2: Year of weeding | Z2: Thinned | AA2: Year of Thinning | AB2: Post-thinning density target (trees/ha) | AC2: Year of perf assess | AD2: Year of handover | AE2: Input Validation Status | AF2: Stand age at thinning (years) | AG2: AW age (years) before thinning | AH2: AW top height (m) before thinning | AI2: AW percent stocking before thinning | AJ2: AW density (trees/ha) before thinning | AK2: PL age (years) before thinning | AL2: PL top height (m) before thinning | AM2: PL percent stocking before thinning | AN2: PL density (trees/ha) before thinning | AO2: AW age (years) after thinning | AP2: AW top height (m) after thinning | AQ2: AW percent stocking after thinning | AR2: AW density (trees/ha) after thinning | AS2: PL age (years) after thinning | AT2: PL top height (m) after thinning | AU2: PL percent stocking after thinning | AV2: PL density (trees/ha) after thinning | AW2: Stand age at perf. ass. (years) | AX2: AW age (years) at perf. ass. | AY2: AW top height (m) at perf. ass. | AZ2: AW percent stocking at perf. ass. | BA2: AW density (trees/ha) at perf. ass. | BB2: PL age (years) at perf. ass. | BC2: PL top height (m) at perf. ass. | BD2: PL percent stocking at perf. ass. | BE2: PL density (trees/ha) at perf. ass. | BF2: AW age (years) at handover | BG2: AW top height (m) at handover | BH2: AW percent stocking at handover | BI2: AW density (trees/ha) at handover | BJ2: AW DBH (cm) at handover | BK2: AW basal area (m2/ha) at handover | BL2: PL age (years) at handover | BM2: PL top height (m) at handover | BN2: PL percent stocking at handover | BO2: PL density (trees/ha) at handover | BP2: PL DBH (cm) at handover | BQ2: PL basal area (m2/ha) at handover | BR2: SB age (years) at handover | BS2: SB top height (m) at handover | BT2: SB percent stocking at handover | BU2: SB density (trees/ha) at handover | BV2: SW age (years) at handover | BW2: SW top height (m) at handover | BX2: SW percent stocking at handover | BY2: SW density (trees/ha) at handover | BZ2: Stand age at PL culmination (years) | CA2: AW site index (m) | CB2: AW MAI (m3/ha/yr) | CC2: AW gross merch. vol. (m3/ha) | CD2: AW total age (years) | CE2: AW top height (m) | CF2: AW density (trees/ha) | CG2: AW DBH (cm) | CH2: AW basal area (m2/ha) | CI2: PL site index (m) | CJ2: PL MAI (m3/ha/yr) | CK2: PL gross merch. vol. (m3/ha) | CL2: PL total age (years) | CM2: PL top height (m) | CN2: PL density (trees/ha) | CO2: PL DBH (cm) | CP2: PL basal area (m2/ha) | CQ2: SB site index (m) | CR2: SB MAI (m3/ha/yr) | CS2: SB gross merch. vol. (m3/ha) | CT2: SB total age (years) | CU2: SB top height (m) | CV2: SB density (trees/ha) | CW2: SB DBH (cm) | CX2: SB basal area (m2/ha) | CY2: SW site index (m) | CZ2: SW MAI (m3/ha/yr) | DA2: SW gross merch. vol. (m3/ha) | DB2: SW total age (years) | DC2: SW top height (m) | DD2: SW density (trees/ha) | DE2: SW DBH (cm) | DF2: SW basal area (m2/ha) | DG2: Conifer MAI (m3/ha/yr) | DH2: Conifer gross merch. vol. (m3/ha) | DI2: Conifer density (trees/ha) | DJ2: Conifer DBH (cm) | DK2: Conifer basal area (m2/ha) | DL2: Missing cones per m2 | DM2: Missing elevation | DN2: Missing latitude | DO2: Missing depth to LFH | DP2: Infeasible or missing thinning density target | DQ2: Planting density issue | DR2: Missing Ps AW at estab. survey | DS2: Missing Ps SB at estab. survey | DT2: Missing Ps SW at estab. survey | DU2: Missing slope percent | DV2: Missing stand identifier | DW2: Missing or invalid stand input | DX2: Missing year of performance assessment | DY2: Missing year of cut | DZ2: Planting year issue | EA2: Site prep. year issue | EB2: Thinning year issue | EC2: Weeding year issue | ED2: SB input issue at handover | EE2: SW input issue at handover | ES2: Run Status
A3: StandId | B3: SNC | C3: SMC | D3: NSR | E3: Elev | F3: Lat | G3: LFH | H3: Slope | I3: Cones | J3: PsAW | K3: PsSB | L3: PsSW | M3: WGR | N3: ExPLnat | O3: IncYieldSum | P3: IncGYPSY | Q3: YrCut | R3: Prep | S3: YrPrep | T3: Plant | U3: YrPlant | V3: PSph | W3: PEarly | X3: Weed | Y3: YrWeed | Z3: Thin | AA3: YrThin | AB3: ThinSph | AC3: YrPerf | AD3: YrHand | AE3: Status | AF3: YSCthin | AG3: ageAWthinB | AH3: thAWthinB | AI3: psAWthinB | AJ3: denAWthinB | AK3: agePLthinB | AL3: thPLthinB | AM3: psPLthinB | AN3: denPLthinB | AO3: ageAWthinA | AP3: thAWthinA | AQ3: psAWthinA | AR3: denAWthinA | AS3: agePLthinA | AT3: thPLthinA | AU3: psPLthinA | AV3: denPLthinA | AW3: YSCperf | AX3: ageAWperf | AY3: thAWperf | AZ3: psAWperf | BA3: denAWperf | BB3: agePLperf | BC3: thPLperf | BD3: psPLperf | BE3: denPLperf | BF3: ageAWhand | BG3: thAWhand | BH3: psAWhand | BI3: denAWhand | BJ3: qmdAWhand | BK3: baAWhand | BL3: agePLhand | BM3: thPLhand | BN3: psPLhand | BO3: denPLhand | BP3: qmdPLhand | BQ3: baPLhand | BR3: ageSBhand | BS3: thSBhand | BT3: psSBhand | BU3: denSBhand | BV3: ageSWhand | BW3: thSWhand | BX3: psSWhand | BY3: denSWhand | BZ3: CulmAge | CA3: siAWproj | CB3: maiAWproj | CC3: volAWproj | CD3: ageAWproj | CE3: thAWproj | CF3: denAWproj | CG3: qmdAWproj | CH3: baAWproj | CI3: siPLproj | CJ3: maiPLproj | CK3: volPLproj | CL3: agePLproj | CM3: thPLproj | CN3: denPLproj | CO3: qmdPLproj | CP3: baPLproj | CQ3: siSBproj | CR3: maiSBproj | CS3: volSBproj | CT3: ageSBproj | CU3: thSBproj | CV3: denSBproj | CW3: qmdSBproj | CX3: baSBproj | CY3: siSWproj | CZ3: maiSWproj | DA3: volSWproj | DB3: ageSWproj | DC3: thSWproj | DD3: denSWproj | DE3: qmdSWproj | DF3: baSWproj | DG3: maiCOproj | DH3: volCOproj | DI3: denCOproj | DJ3: qmdCOproj | DK3: baCOproj | DL3: ConesMiss | DM3: ElevMiss | DN3: LatMiss | DO3: LFHmiss | DP3: nTwarning | DQ3: PlantDataWarning | DR3: psAWesMiss | DS3: psSBesMiss | DT3: psSWesMiss | DU3: SlopeMiss | DV3: StandMiss | DW3: StandErrorWarning | DX3: YSCperfEarlyLate | DY3: YSCzeroOutNote | DZ3: YrPlantWarning | EA3: YrPrepWarning | EB3: YrThinWarning | EC3: YrWeedWarning | ED3: warnSBhand | EE3: warnSWhand | EF3: MaxBaPLcheck | EG3: MaxDbhDenPLnAcheck | EH3: MaxDbhDenPLpAcheck | EI3: MaxDbhDenPLnBcheck | EJ3: MaxDbhDenPLpBcheck | EK3: MaxDbhPLnAcheck | EL3: MaxDbhPLpAcheck | EM3: MaxDbhPLnBcheck | EN3: MaxDbhPLpBcheck | EO3: MaxDenPLnCheck | EP3: MaxSpinAWweedCheck | EQ3: MaxTophtPLnCheck | ER3: MaxTophtPLpCheck | ES3: GYPSYRun
A4: Example 1 | B4: 2 | C4: 2 | D4: UF | E4: 1160 | F4: 53.5 | M4: FALSE | N4: FALSE | O4: TRUE | P4: TRUE | Q4: 2000 | R4: 1 | T4: TRUE | U4: 2001 | V4: 1600 | W4: FALSE | X4: FALSE | Z4: TRUE | AA4: 2012 | AB4: 4000 | AC4: 2014 | AD4: 2018 | AE4: OK | AF4: 12 | AG4: 10.76132681 | AH4: 3.257761987 | AI4: 35.3315709 | AJ4: 1121.614681 | AK4: 12 | AL4: 4.063716219 | AM4: 94.7803027 | AN4: 7272.103433 | AO4: 2.614902688 | AP4: 1.1956293 | AQ4: 1.16617304 | AR4: 26.93861806 | AS4: 12 | AT4: 4.063716219 | AU4: 94.83667384 | AV4: 5672.123245 | AW4: 14 | AX4: 4.294182488 | AY4: 1.470052028 | AZ4: 3.085614187 | BA4: 71.27774286 | BB4: 14 | BC4: 4.984194201 | BD4: 94.77191585 | BE4: 5653.271968 | BF4: 7.652742088 | BG4: 2.222311932 | BH4: 18.81911289 | BI4: 434.7218441 | BJ4: 0.4587673814 | BK4: 0.007185986688 | BL4: 18 | BM4: 6.825150166 | BN4: 94.89818323 | BO4: 4000 | BP4: 7.523702095 | BQ4: 17.78332866 | BZ4: 76 | CA4: 15.74420226 | CB4: 0.3950965964 | CC4: 30.02734132 | CD4: 65.65274209 | CE4: 17.69884283 | CF4: 281.9460757 | CG4: 17.05077593 | CH4: 6.437900055 | CI4: 19.77580036 | CJ4: 4.445442631 | CK4: 337.8536399 | CL4: 76 | CM4: 23.19005112 | CN4: 1105.361758 | CO4: 20.83870784 | CP4: 37.69952586 | DG4: 4.445442631 | DH4: 337.8536399 | DI4: 1105.361758 | DJ4: 20.83870784 | DK4: 37.69952586 | DL4: FALSE | DM4: FALSE | DN4: FALSE | DO4: FALSE | DP4: Thinning target OK | DQ4: Planting density OK | DR4: FALSE | DS4: FALSE | DT4: FALSE | DU4: FALSE | DV4: FALSE | DW4: Inputs for stand and site factors OK | DX4: Year OK | DY4: Year OK | DZ4: Year OK | EA4: OK | EB4: Year OK | EC4: OK | ES4: OK

Sheet Batch_Controls (hidden)
A1: VERSION | B1: =fripsy_app_version -> 2022-08-03p
A2: OUTPUT | B2: C:\Users\Wynford\Dropbox\Shared files
A3: PDF | B3: FALSE
A4: CSV | B4: TRUE | C4: always output batch processing data?
A5: NUMRUNS | B5: 1
A6: ONE STAND
A7: GYPSY | B7: FALSE

Sheet GYPSY_Observed
A1: gypsy_model_id | B1: stand_id | C1: standtype | D1: standage | E1: spatial | F1: ba_known | G1: sdob_aw | H1: tdib_aw | I1: stht_aw | J1: sdob_sb | K1: tdib_sb | L1: stht_sb | M1: sdob_sw | N1: tdib_sw | O1: stht_sw | P1: sdob_pl | Q1: tdib_pl | R1: stht_pl | S1: tage_aw | T1: bage_aw | U1: topht_aw | V1: den13_aw | W1: ps_aw | X1: ba_aw | Y1: tage_sb | Z1: bage_sb | AA1: topht_sb | AB1: den03_sb | AC1: ps_sb | AD1: ba_sb | AE1: tage_sw | AF1: bage_sw | AG1: topht_sw | AH1: den03_sw | AI1: ps_sw | AJ1: ba_sw | AK1: tage_pl | AL1: bage_pl | AM1: topht_pl | AN1: den03_pl | AO1: ps_pl | AP1: ba_pl | AQ1: SI_bh_aw | AR1: SI_t_aw | AS1: y2bh_aw | AT1: SDF_aw | AU1: N0_aw | AV1: PSI_aw | AW1: SI_bh_sb | AX1: SI_t_sb | AY1: y2bh_sb | AZ1: SDF_sb | BA1: N0_sb | BB1: PSI_sb | BC1: SI_bh_sw | BD1: SI_t_sw | BE1: y2bh_sw | BF1: SDF_sw | BG1: N0_sw | BH1: PSI_sw | BI1: SI_bh_pl | BJ1: SI_t_pl | BK1: y2bh_pl | BL1: SDF_pl | BM1: N0_pl | BN1: PSI_pl
A2: 20090521 | B2: Example 1 | C2: Regenerated | D2: 18 | E2: Y | F2: Y | G2: 15 | H2: 10 | I2: 0.3 | J2: 15 | K2: 10 | L2: 0.3 | M2: 15 | N2: 10 | O2: 0.3 | P2: 15 | Q2: 10 | R2: 0.3 | S2: 14.677048 | T2: 10.10498918 | U2: 4.707395723 | V2: 65.03037207 | W2: 5.017143979 | X2: 0.02820191017 | Y2: 13.05235611 | Z2: 4.147012104 | AA2: 2.450941738 | AB2: 144.7037087 | AC2: 11.03486888 | AE2: 11.51819737 | AF2: 3.179031639 | AG2: 2.234953567 | AI2: 2.854518602 | AK2: 18 | AL2: 12.0687534 | AM2: 6.960995585 | AN2: 5167.686248 | AO2: 84.5107329 | AP2: 10.98205929 | AQ2: 14.06779347 | AR2: 13.26034488 | AS2: 4.572058817 | AT2: 64.77194766 | AV2: 4.904569888 | AW2: 15.11782156 | AX2: 13.24592836 | AY2: 8.905344005 | AZ2: 121.757283 | BB2: 10.68406033 | BC2: 16.51429314 | BD2: 14.43505246 | BE2: 8.339165728 | BH2: 2.811549199 | BI2: 20.04901044 | BJ2: 18.68742325 | BK2: 5.931246597 | BL2: 2330.116334 | BN2: 73.34010176

Sheet GYPSY_Projected
A1: gypsy_model_id | B1: stand_id | C1: standage_p | D1: tage_aw | E1: bage_aw | F1: ba_aw | G1: ps_aw | H1: den13_aw | I1: mden13_aw | J1: sc_aw | K1: topht_aw | L1: qmd_aw | M1: tage_sb | N1: bage_sb | O1: ba_sb | P1: ps_sb | Q1: den03_sb | R1: mden03_sb | S1: sc_sb | T1: topht_sb | U1: qmd_sb | V1: tage_sw | W1: bage_sw | X1: ba_sw | Y1: ps_sw | Z1: den03_sw | AA1: mden03_sw | AB1: sc_sw | AC1: topht_sw | AD1: qmd_sw | AE1: tage_pl | AF1: bage_pl | AG1: ba_pl | AH1: ps_pl | AI1: den03_pl | AJ1: mden03_pl | AK1: sc_pl | AL1: topht_pl | AM1: qmd_pl | AN1: tv_aw | AO1: mv_aw | AP1: mai_aw | AQ1: tv_sb | AR1: mv_sb | AS1: mai_sb | AT1: tv_sw | AU1: mv_sw | AV1: mai_sw | AW1: tv_pl | AX1: mv_pl | AY1: mai_pl | AZ1: tv_con | BA1: mv_con | BB1: mai_con | BC1: tv_dec | BD1: mv_dec | BE1: mai_dec | BF1: tv_tot | BG1: mv_tot | BH1: mai_tot
A2: 20090521 | B2: Example 1 | C2: 0
A3: 20090521 | B3: Example 1 | C3: 1
A4: 20090521 | B4: Example 1 | C4: 2
A5: 20090521 | B5: Example 1 | C5: 3
A6: 20090521 | B6: Example 1 | C6: 4
A7: 20090521 | B7: Example 1 | C7: 5
A8: 20090521 | B8: Example 1 | C8: 6
A9: 20090521 | B9: Example 1 | C9: 7
A10: 20090521 | B10: Example 1 | C10: 8
A11: 20090521 | B11: Example 1 | C11: 9
A12: 20090521 | B12: Example 1 | C12: 10
A13: 20090521 | B13: Example 1 | C13: 11
A14: 20090521 | B14: Example 1 | C14: 12
A15: 20090521 | B15: Example 1 | C15: 13
A16: 20090521 | B16: Example 1 | C16: 14
A17: 20090521 | B17: Example 1 | C17: 15
A18: 20090521 | B18: Example 1 | C18: 16
A19: 20090521 | B19: Example 1 | C19: 17
A20: 20090521 | B20: Example 1 | C20: 18 | D20: 14.677048 | E20: 10.10498918 | F20: 0.02820191017 | G20: 5.017143979 | H20: 65.03037207 | I20: 7.122427565 | J20: 0.01209322837 | K20: 4.707395723 | L20: 2.349828692 | M20: 13.05235611 | N20: 4.147012104 | O20: 0.02581342125 | P20: 11.03486888 | Q20: 144.7037087 | R20: 0.5404073475 | S20: 0.02690950304 | T20: 2.450941738 | U20: 1.507085921 | AE20: 18 | AF20: 12.0687534 | AG20: 10.98205929 | AH20: 84.5107329 | AI20: 5167.686248 | AJ20: 12.0598476 | AK20: 0.9609972686 | AL20: 6.960995587 | AM20: 5.201742893 | AN20: 0.02573349892 | AO20: 1.507076215e-06 | AP20: 1.026825159e-07 | AQ20: 0.03022168944 | AR20: 3.279280887e-07 | AS20: 1.821822715e-08 | AW20: 33.18834856 | AX20: 0.09698385361 | AY20: 0.005387991867 | AZ20: 33.21857024 | BA20: 0.09698418154 | BB20: 0.005388010086 | BC20: 0.02573349892 | BD20: 1.507076215e-06 | BE20: 8.372645638e-08 | BF20: 33.24430374 | BG20: 0.09698568862 | BH20: 0.005388093812
A21: 20090521 | B21: Example 1 | C21: 19 | D21: 15.677048 | E21: 11.10498918 | F21: 0.07100122674 | G21: 5.016577659 | H21: 65.02994168 | I21: 8.928801788 | J21: 0.01234001615 | K21: 5.023301048 | L21: 3.728475582 | M21: 14.05235611 | N21: 5.147012104 | O21: 0.04028622442 | P21: 11.03246484 | Q21: 144.5469921 | R21: 1.767830199 | S21: 0.02742909145 | T21: 2.753543375 | U21: 1.883774067 | AE21: 19 | AF21: 13.0687534 | AG21: 11.93618088 | AH21: 84.27310646 | AI21: 5060.265575 | AJ21: 21.23089113 | AK21: 0.9602308924 | AL21: 7.449142233 | AM21: 5.480259201 | AN21: 0.07670991727 | AO21: 1.934977149e-05 | AP21: 1.23427392e-06 | AQ21: 0.05204454572 | AR21: 1.65556489e-06 | AS21: 8.713499421e-08 | AW21: 38.76094265 | AX21: 0.1556537242 | AY21: 0.008192301275 | AZ21: 38.8129872 | BA21: 0.1556553798 | BB21: 0.00819238841 | BC21: 0.07670991727 | BD21: 1.934977149e-05 | BE21: 1.018409026e-06 | BF21: 38.88969712 | BG21: 0.1556747296 | BH21: 0.008193406819
A22: 20090521 | B22: Example 1 | C22: 20 | D22: 16.677048 | E22: 12.10498918 | F22: 0.1134700411 | G22: 5.015943267 | H22: 65.0294116 | I22: 10.76974605 | J22: 0.0125990374 | K22: 5.334202696 | L22: 4.713470065 | M22: 15.05235611 | N22: 6.147012104 | O22: 0.05749690845 | P22: 11.02983215 | Q22: 144.3704443 | R22: 3.060129228 | S22: 0.02797086092 | T22: 3.062798818 | U22: 2.251843268 | AE22: 20 | AF22: 14.0687534 | AG22: 12.8637214 | AH22: 84.02755677 | AI22: 4952.058877 | AJ22: 34.39557541 | AK22: 0.9594301017 | AL22: 7.932034678 | AM22: 5.751027871 | AN22: 0.1422822494 | AO22: 8.38454923e-05 | AP22: 5.027597948e-06 | AQ22: 0.0813439049 | AR22: 6.207700821e-06 | AS22: 3.10385041e-07 | AW22: 44.61079758 | AX22: 0.2402702001 | AY22: 0.01201351 | AZ22: 44.69214148 | BA22: 0.2402764078 | BB22: 0.01201382039 | BC22: 0.1422822494 | BD22: 8.38454923e-05 | BE22: 4.192274615e-06 | BF22: 44.83442373 | BG22: 0.2403602532 | BH22: 0.01201801266
A23: 20090521 | B23: Example 1 | C23: 21 | D23: 17.677048 | E23: 13.10498918 | F23: 0.1557645343 | G23: 5.015235385 | H23: 65.02876903 | I23: 12.63292117 | J23: 0.01287023442 | K23: 5.640083354 | L23: 5.52251092 | M23: 16.05235611 | N23: 7.147012104 | O23: 0.07722137051 | P23: 11.02695855 | Q23: 144.1731114 | R23: 4.407981318 | S23: 0.02853416677 | T23: 3.377454306 | U23: 2.611449767 | AE23: 21 | AF23: 15.0687534 | AG23: 13.76464525 | AH23: 83.77411901 | AI23: 4843.446496 | AJ23: 52.11083698 | AK23: 0.9585955988 | AL23: 8.408826783 | AM23: 6.01534191 | AN23: 0.2224515847 | AO23: 0.000246924501 | AP23: 1.396865025e-05 | AQ23: 0.1188255436 | AR23: 1.894494822e-05 | AS23: 9.021403914e-07 | AW23: 50.70646325 | AX23: 0.358854011 | AY23: 0.01708828624 | AZ23: 50.8252888 | BA23: 0.358872956 | BB23: 0.01708918838 | BC23: 0.2224515847 | BD23: 0.000246924501 | BE23: 1.175830957e-05 | BF23: 51.04774038 | BG23: 0.3591198805 | BH23: 0.01710094669
A24: 20090521 | B24: Example 1 | C24: 22 | D24: 18.677048 | E24: 14.10498918 | F24: 0.19794127 | G24: 5.014448339 | H24: 65.02800064 | I24: 14.50658415 | J24: 0.01315354767 | K24: 5.940955323 | L24: 6.22548276 | M24: 17.05235611 | N24: 8.147012104 | O24: 0.09923991181 | P24: 11.02383153 | Q24: 143.9540799 | R24: 5.804066828 | S24: 0.02911833108 | T24: 3.696377067 | U24: 2.962690297 | AE24: 22 | AF24: 16.0687534 | AG24: 14.63906587 | AH24: 83.51283351 | AI24: 4734.779273 | AJ24: 74.73545527 | AK24: 0.9577281212 | AL24: 8.878820684 | AM24: 6.274250773 | AN24: 0.3169025898 | AO24: 0.0005901421446 | AP24: 3.15971852e-05 | AQ24: 0.1650767871 | AR24: 4.96707044e-05 | AS24: 2.257759291e-06 | AW24: 57.01791018 | AX24: 0.5210076172 | AY24: 0.02368216442 | AZ24: 57.18298697 | BA24: 0.5210572879 | BB24: 0.02368442218 | BC24: 0.3169025898 | BD24: 0.0005901421446 | BE24: 2.682464294e-05 | BF24: 57.49988956 | BG24: 0.52164743 | BH24: 0.02371124682
A25: 20090521 | B25: Example 1 | C25: 23 | D25: 19.677048 | E25: 15.10498918 | F25: 0.2399867074 | G25: 5.013576199 | H25: 65.02709263 | I25: 16.37974916 | J25: 0.01344891589 | K25: 6.236853313 | L25: 6.854905694 | M25: 18.05235611 | N25: 9.147012104 | O25: 0.1233396382 | P25: 11.02043827 | Q25: 143.712479 | R25: 7.242293893 | S25: 0.02972264274 | T25: 4.018544794 | U25: 3.305667394 | AE25: 23 | AF25: 17.0687534 | AG25: 15.48721021 | AH25: 83.24374595 | AI25: 4626.378229 | AJ25: 102.4155826 | AK25: 0.9568284414 | AL25: 9.341447825 | AM25: 6.528615445 | AN25: 0.4250968166 | AO25: 0.001232257252 | AP25: 6.262409136e-05 | AQ25: 0.2205676139 | AR25: 0.0001158389679 | AS25: 5.036476865e-06 | AW25: 63.51660496 | AX25: 0.7380621355 | AY25: 0.03208965806 | AZ25: 63.73717257 | BA25: 0.7381779744 | BB25: 0.03209469454 | BC25: 0.4250968166 | BD25: 0.001232257252 | BE25: 5.357640225e-05 | BF25: 64.16226939 | BG25: 0.7394102317 | BH25: 0.03214827094
A26: 20090521 | B26: Example 1 | C26: 24 | D26: 20.677048 | E26: 16.10498918 | F26: 0.2818398705 | G26: 5.012612771 | H26: 65.02603068 | I26: 18.24231472 | J26: 0.01375627619 | K26: 6.527828953 | L26: 7.428697128 | M26: 19.05235611 | N26: 10.1470121 | O26: 0.1493160362 | P26: 11.0167657 | Q26: 143.4474821 | R26: 8.717405158 | S26: 0.03034635763 | T26: 4.343036116 | U26: 3.640506583 | AE26: 24 | AF26: 18.0687534 | AG26: 16.30939243 | AH26: 82.96690741 | AI26: 4518.534712 | AJ26: 135.091713 | AK26: 0.9558973662 | AL26: 9.796252209 | AM26: 6.779148372 | AN26: 0.5463259976 | AO26: 0.002336121323 | AP26: 0.0001129813755 | AQ26: 0.2856544904 | AR26: 0.0002460915619 | AS26: 1.025381508e-05 | AW26: 70.17556091 | AX26: 1.023210823 | AY26: 0.04263378428 | AZ26: 70.4612154 | BA26: 1.023456914 | BB26: 0.04264403809 | BC26: 0.5463259976 | BD26: 0.002336121323 | BE26: 9.733838847e-05 | BF26: 71.00754139 | BG26: 1.025793036 | BH26: 0.04274137648
A27: 20090521 | B27: Example 1 | C27: 25 | D27: 21.677048 | E27: 17.10498918 | F27: 0.3234095192 | G27: 5.011551595 | H27: 65.02480002 | I27: 20.08515484 | J27: 0.01407556417 | K27: 6.813946594 | L27: 7.957780322 | M27: 20.05235611 | N27: 11.1470121 | O27: 0.1769739551 | P27: 11.01280047 | Q27: 143.1583092 | R27: 10.22474058 | S27: 0.03098869919 | T27: 4.669021941 | U27: 3.967358604 | AE27: 25 | AF27: 19.0687534 | AG27: 17.10599392 | AH27: 82.68237441 | AI27: 4411.510939 | AJ27: 172.5205066 | AK27: 0.9549357366 | AL27: 10.24287563 | AM27: 7.026443132 | AN27: 0.6797526589 | AO27: 0.004114192753 | AP27: 0.0001897948814 | AQ27: 0.3605861246 | AR27: 0.0004844414361 | AS27: 1.937765744e-05 | AW27: 76.96936575 | AX27: 1.391621232 | AY27: 0.05566484927 | AZ27: 77.32995188 | BA27: 1.392105673 | BB27: 0.05568422692 | BC27: 0.6797526589 | BD27: 0.004114192753 | BE27: 0.0001645677101 | BF27: 78.00970454 | BG27: 1.396219866 | BH27: 0.05584879463
A28: 20090521 | B28: Example 1 | C28: 26 | D28: 22.677048 | E28: 18.10498918 | F28: 0.3645869058 | G28: 5.010385942 | H28: 65.02338543 | I28: 21.90017447 | J28: 0.01440671407 | K28: 7.095280053 | L28: 8.449301435 | M28: 21.05235611 | N28: 12.1470121 | O28: 0.206128169 | P28: 11.00852899 | Q28: 142.8442285 | R28: 11.76007731 | S28: 0.03164885899 | T28: 4.995757548 | U28: 4.28639691 | AE28: 26 | AF28: 20.0687534 | AG28: 17.87744785 | AH28: 82.39020895 | AI28: 4305.540864 | AJ28: 214.3054013 | AK28: 0.9539444269 | AL28: 10.68104467 | AM28: 7.270996934 | AN28: 0.8244436834 | AO28: 0.006832019778 | AP28: 0.0003012746535 | AQ28: 0.445510526 | AR28: 0.0008949530123 | AS28: 3.442126971e-05 | AW28: 83.8741887 | AX28: 1.86051676 | AY28: 0.07155833692 | AZ28: 84.31969922 | BA28: 1.861411713 | BB28: 0.07159275819 | BC28: 0.8244436834 | BD28: 0.006832019778 | BE28: 0.0002627699915 | BF28: 85.14414291 | BG28: 1.868243733 | BH28: 0.07185552818
A29: 20090521 | B29: Example 1 | C29: 27 | D29: 23.677048 | E29: 19.10498918 | F29: 0.4052550298 | G29: 5.009108805 | H29: 65.02177123 | I29: 23.6803317 | J29: 0.01474965888 | K29: 7.371910087 | L29: 8.908198142 | M29: 22.05235611 | N29: 13.1470121 | O29: 0.2366036383 | P29: 11.0039374 | Q29: 142.5045586 | R29: 13.31951432 | S29: 0.03232599772 | T29: 5.322575348 | U29: 4.597813911 | AE29: 27 | AF29: 21.0687534 | AG29: 18.62422715 | AH29: 82.09047849 | AI29: 4200.831298 | AJ29: 259.9311167 | AK29: 0.9529243434 | AL29: 11.11055921 | AM29: 7.513228007 | AN29: 0.9793986485 | AO29: 0.01080914006 | AP29: 0.0004565239746 | AQ29: 0.540482897 | AR29: 0.001566716116 | AS29: 5.802652282e-05 | AW29: 90.86776977 | AX29: 2.449217041 | AY29: 0.09071174226 | AZ29: 91.40825266 | BA29: 2.450783757 | BB29: 0.09076976878 | BC29: 0.9793986485 | BD29: 0.01080914006 | BE29: 0.0004003385207 | BF29: 92.38765131 | BG29: 2.461592897 | BH29: 0.0911701073
A30: 20090521 | B30: Example 1 | C30: 28 | D30: 24.677048 | E30: 20.10498918 | F30: 0.4452951666 | G30: 5.007712904 | H30: 65.01994133 | I30: 25.41963066 | J30: 0.01510433046 | K30: 7.643922416 | L30: 9.338040717 | M30: 23.05235611 | N30: 14.1470121 | O30: 0.2682355572 | P30: 10.9990116 | Q30: 142.1386705 | R30: 14.89938655 | S30: 0.03301924619 | T30: 5.648878249 | U30: 4.901817167 | AE30: 28 | AF30: 22.0687534 | AG30: 19.34683487 | AH30: 81.78325599 | AI30: 4097.563237 | AJ30: 308.7984502 | AK30: 0.9518764234 | AL30: 11.53128234 | AM30: 7.753489256 | AN30: 1.143573699 | AO30: 0.01641699921 | AP30: 0.0006652740315 | AQ30: 0.6454739832 | AR30: 0.002618870271 | AS30: 9.353108111e-05 | AW30: 97.92939431 | AX30: 3.179125623 | AY30: 0.1135402008 | AZ30: 98.5748683 | BA30: 3.181744493 | BB30: 0.1136337319 | BC30: 1.143573699 | BD30: 0.01641699921 | BE30: 0.0005863214003 | BF30: 99.71844199 | BG30: 3.198161493 | BH30: 0.1142200533
A31: 20090521 | B31: Example 1 | C31: 29 | D31: 25.677048 | E31: 21.10498918 | F31: 0.4845913184 | G31: 5.006190673 | H31: 65.01787921 | I31: 27.11308981 | J31: 0.01547065966 | K31: 7.911406175 | L31: 9.741514344 | M31: 24.05235611 | N31: 15.1470121 | O31: 0.3008692477 | P31: 10.99373724 | Q31: 141.7459894 | R31: 16.49620034 | S31: 0.0337277067 | T31: 5.974133557 | U31: 5.19862594 | AE31: 29 | AF31: 23.0687534 | AG31: 20.04579659 | AH31: 81.46861978 | AI31: 3995.893332 | AJ31: 360.2569366 | AK31: 0.9508016336 | AL31: 11.94313153 | AM31: 7.992079138 | AN31: 1.315901409 | AO31: 0.02407367975 | AP31: 0.0009375563635 | AQ31: 0.7603785987 | AR31: 0.004205412636 | AS31: 0.0001450142288 | AW31: 105.0398554 | AX31: 4.073652805 | AY31: 0.1404707864 | AZ31: 105.800234 | BA31: 4.077858217 | BB31: 0.1406158006 | BC31: 1.315901409 | BD31: 0.02407367975 | BE31: 0.0008301268879 | BF31: 107.1161354 | BG31: 4.101931897 | BH31: 0.1414459275
A32: 20090521 | B32: Example 1 | C32: 30 | D32: 26.677048 | E32: 22.10498918 | F32: 0.5230331119 | G32: 5.004534266 | H32: 65.01556795 | I32: 28.75669063 | J32: 0.01584857647 | K32: 8.174452686 | L32: 10.12070977 | M32: 25.05235611 | N32: 16.1470121 | O32: 0.3343599455 | P32: 10.98809973 | Q32: 141.3259967 | R32: 18.106585 | S32: 0.0344504545 | T32: 6.297867369 | U32: 5.488468219 | AE32: 30 | AF32: 24.0687534 | AG32: 20.72165413 | AH32: 81.14665359 | AI32: 3895.955451 | AJ32: 413.633891 | AK32: 0.949700969 | AL32: 12.34607083 | AM32: 8.229250424 | AN32: 1.495307024 | AO32: 0.03423544158 | AP32: 0.001283329459 | AQ32: 0.8850241049 | AR32: 0.006519515864 | AS32: 0.0002173171955 | AW32: 112.1814065 | AX32: 5.158061562 | AY32: 0.1719353854 | AZ32: 113.0664306 | BA32: 5.164581078 | BB32: 0.1721527026 | BC32: 1.495307024 | BD32: 0.03423544158 | BE32: 0.001141181386 | BF32: 114.5617376 | BG32: 5.198816519 | BH32: 0.173293884
A33: 20090521 | B33: Example 1 | C33: 31 | D33: 27.677048 | E33: 23.10498918 | F33: 0.5605175636 | G33: 5.00273555 | H33: 65.01299024 | I33: 30.34731178 | J33: 0.01623801012 | K33: 8.433154506 | L33: 10.47730535 | M33: 26.05235611 | N33: 17.1470121 | O33: 0.3685725084 | P33: 10.98208428 | Q33: 140.8782314 | R33: 19.72725711 | S33: 0.03518653947 | T33: 6.619659423 | U33: 5.771578182 | AE33: 31 | AF33: 25.0687534 | AG33: 21.37496061 | AH33: 80.81744645 | AI33: 3797.862303 | AJ33: 468.2590727 | AK33: 0.9485754504 | AL33: 12.74010404 | AM33: 8.465217353 | AN33: 1.680721495 | AO33: 0.04738529007 | AP33: 0.001712078906 | AQ33: 1.01917868 | AR33: 0.009797090949 | AS33: 0.0003160351919 | AW33: 119.3377072 | AX33: 6.459225404 | AY33: 0.2083621098 | AZ33: 120.3568859 | BA33: 6.469022495 | BB33: 0.208678145 | BC33: 1.680721495 | BD33: 0.04738529007 | BE33: 0.001528557744 | BF33: 122.0376074 | BG33: 6.516407785 | BH33: 0.2102067027
A34: 20090521 | B34: Example 1 | C34: 32 | D34: 28.677048 | E34: 24.10498918 | F34: 0.5969500353 | G34: 5.000786103 | H34: 65.01012836 | I34: 31.88265334 | J34: 0.01663888919 | K34: 8.687604662 | L34: 10.81268469 | M34: 27.05235611 | N34: 18.1470121 | O34: 0.4033810742 | P34: 10.97567586 | Q34: 140.4022924 | R34: 21.35499507 | S34: 0.03593498803 | T34: 6.939138352 | U34: 6.048194085 | AE34: 32 | AF34: 26.0687534 | AG34: 22.00627625 | AH34: 80.48109261 | AI34: 3701.707076 | AJ34: 523.4847225 | AK34: 0.9474261228 | AL34: 13.12526874 | AM34: 8.700161511 | AN34: 1.871091738 | AO34: 0.06401899339 | AP34: 0.002232412255 | AQ34: 1.16255926 | AR34: 0.01431935336 | AS34: 0.0004474797924 | AW34: 126.4937635 | AX34: 8.005288968 | AY34: 0.2501652802 | AZ34: 127.6563227 | BA34: 8.019608321 | BB34: 0.25061276 | BC34: 1.871091738 | BD34: 0.06401899339 | BE34: 0.002000593543 | BF34: 129.5274145 | BG34: 8.083627314 | BH34: 0.2526133536
A35: 20090521 | B35: Example 1 | C35: 33 | D35: 29.677048 | E35: 25.10498918 | F35: 0.632244626 | G35: 4.998677215 | H35: 65.00696424 | I35: 33.3611553 | J35: 0.01705114176 | K35: 8.937896055 | L35: 11.12801468 | M35: 28.05235611 | N35: 19.1470121 | O35: 0.4386686834 | P35: 10.96885924 | Q35: 139.8978389 | R35: 22.98662187 | S35: 0.03669480511 | T35: 7.255977328 | U35: 6.318556482 | AE35: 33 | AF35: 27.0687534 | AG35: 22.61616501 | AH35: 80.13769145 | AI35: 3607.565068 | AJ35: 578.7010803 | AK35: 0.9462540531 | AL35: 13.50163106 | AM35: 8.934236713 | AN35: 2.065388517 | AO35: 0.08462915202 | AP35: 0.002851670153 | AQ35: 1.314839067 | AR35: 0.02041418658 | AS35: 0.0006186117146 | AW35: 133.6358639 | AX35: 9.825225352 | AY35: 0.2977341016 | AZ35: 134.9507029 | BA35: 9.845639538 | BB35: 0.2983527133 | BC35: 2.065388517 | BD35: 0.08462915202 | BE35: 0.002564519758 | BF35: 137.0160914 | BG35: 9.93026869 | BH35: 0.300917233
A36: 20090521 | B36: Example 1 | C36: 34 | D36: 30.677048 | E36: 26.10498918 | F36: 0.6663241823 | G36: 4.996399885 | H36: 65.00347942 | I36: 34.78191381 | J36: 0.01747469551 | K36: 9.184120993 | L36: 11.42429858 | M36: 29.05235611 | N36: 20.1470121 | O36: 0.474326882 | P36: 10.96161899 | Q36: 139.3645927 | R36: 24.61899451 | S36: 0.0374649764 | T36: 7.569890048 | U36: 6.582906758 | AE36: 34 | AF36: 28.0687534 | AG36: 23.20519179 | AH36: 79.78734737 | AI36: 3515.495281 | AJ36: 633.3477116 | AK36: 0.9450603281 | AL36: 13.86928112 | AM36: 9.167573082 | AN36: 2.262612365 | AO36: 0.1096880652 | AP36: 0.003575574326 | AQ36: 1.475654665 | AR36: 0.0284561436 | AS36: 0.0008369453999 | AW36: 140.7515144 | AX36: 11.94828874 | AY36: 0.3514202571 | AZ36: 142.2271691 | BA36: 11.97674488 | BB36: 0.3522572025 | BC36: 2.262612365 | BD36: 0.1096880652 | BE36: 0.003226119566 | BF36: 144.4897814 | BG36: 12.08643295 | BH36: 0.3554833221
A37: 20090521 | B37: Example 1 | C37: 35 | D37: 31.677048 | E37: 27.10498918 | F37: 0.69912006 | G37: 4.993944821 | H37: 64.99965512 | I37: 36.14459808 | J37: 0.01790947779 | K37: 9.426370821 | L37: 11.70241283 | M37: 30.05235611 | N37: 21.1470121 | O37: 0.510255315 | P37: 10.95393949 | Q37: 138.8023387 | R37: 26.24899886 | S37: 0.03824447066 | T37: 7.880627053 | U37: 6.841485897 | AE37: 35 | AF37: 29.0687534 | AG37: 23.7739201 | AH37: 79.43016967 | AI37: 3425.54197 | AJ37: 686.9211025 | AK37: 0.9438460515 | AL37: 14.22832906 | AM37: 9.400280486 | AN37: 2.461797888 | AO37: 0.1396302316 | AP37: 0.004407930675 | AQ37: 1.644612522 | AR37: 0.0388649811 | AS37: 0.001110428031 | AW37: 147.8293716 | AX37: 14.40336672 | AY37: 0.4115247633 | AZ37: 149.4739842 | BA37: 14.4422317 | BB37: 0.4126351913 | BC37: 2.461797888 | BD37: 0.1396302316 | BE37: 0.003989435188 | BF37: 151.935782 | BG37: 14.58186193 | BH37: 0.4166246265
A38: 20090521 | B38: Example 1 | C38: 36 | D38: 32.677048 | E38: 28.10498918 | F38: 0.7305717334 | G38: 4.991302443 | H38: 64.99547216 | I38: 37.44937003 | J38: 0.01835541578 | K38: 9.664735639 | L38: 11.96313325 | M38: 31.05235611 | N38: 22.1470121 | O38: 0.5463613154 | P38: 10.94580495 | Q38: 138.210926 | R38: 27.87354885 | S38: 0.03903224222 | T38: 8.187972347 | U38: 7.09453347 | AE38: 36 | AF38: 30.0687534 | AG38: 24.32291019 | AH38: 79.06627244 | AI38: 3337.736119 | AJ38: 738.9790478 | AK38: 0.942612342 | AL38: 14.57890151 | AM38: 9.632451439 | AN38: 2.662016768 | AO38: 0.1748353538 | AP38: 0.00535040233 | AQ38: 1.821295046 | AR38: 0.0521026813 | AS38: 0.001447296703 | AW38: 154.8591762 | AX38: 17.21824366 | AY38: 0.4782845461 | AZ38: 156.6804713 | BA38: 17.27034634 | BB38: 0.4797318428 | BC38: 2.662016768 | BD38: 0.1748353538 | BE38: 0.004856537605 | BF38: 159.342488 | BG38: 17.4451817 | BH38: 0.4845883804
A39: 20090521 | B39: Example 1 | C39: 37 | D39: 33.677048 | E39: 29.10498918 | F39: 0.7606263164 | G39: 4.988462879 | H39: 64.99091105 | I39: 38.69680853 | J39: 0.01881243654 | K39: 9.899304082 | L39: 12.20715391 | M39: 32.05235611 | N39: 23.1470121 | O39: 0.5825594983 | P39: 10.93719942 | Q39: 137.5902684 | R39: 29.489589 | S39: 0.03982723356 | T39: 8.491740284 | U39: 7.342286791 | AE39: 37 | AF39: 31.0687534 | AG39: 24.85271741 | AH39: 78.69577442 | AI39: 3252.096842 | AJ39: 789.1423655 | AK39: 0.9413603299 | AL39: 14.92113864 | AM39: 9.864163571 | AN39: 2.862379728 | AO39: 0.2156126903 | AP39: 0.006402363125 | AQ39: 2.005266103 | AR39: 0.06866897851 | AS39: 0.001855918338 | AW39: 161.8316867 | AX39: 20.41879446 | AY39: 0.5518593098 | AZ39: 163.8369529 | BA39: 20.48746344 | BB39: 0.5537152282 | BC39: 2.862379728 | BD39: 0.2156126903 | BE39: 0.005827370007 | BF39: 166.6993326 | BG39: 20.70307613 | BH39: 0.5595425982
A40: 20090521 | B40: Example 1 | C40: 38 | D40: 34.677048 | E40: 30.10498918 | F40: 0.7892380447 | G40: 4.985415971 | H40: 64.98595197 | I40: 39.88783906 | J40: 0.01928046711 | K40: 10.13016315 | L40: 12.43510116 | M40: 33.05235611 | N40: 24.1470121 | O40: 0.6187713603 | P40: 10.92810679 | Q40: 136.9403451 | R40: 31.09409973 | S40: 0.04062837799 | T40: 8.791772725 | U40: 7.584980217 | AE40: 38 | AF40: 32.0687534 | AG40: 25.36389092 | AH40: 78.31879883 | AI40: 3168.632704 | AJ40: 837.0944603 | AK40: 0.9400911549 | AL40: 15.25519148 | AM40: 10.09548174 | AN40: 3.06203769 | AO40: 0.2621875091 | AP40: 0.007560837045 | AQ40: 2.196076025 | AR40: 0.08909546991 | AS40: 0.002344617629 | AW40: 168.7386153 | AX40: 24.02813571 | AY40: 0.6323193609 | AZ40: 170.9346913 | BA40: 24.11723118 | BB40: 0.6346639785 | BC40: 3.06203769 | BD40: 0.2621875091 | BE40: 0.006899671293 | BF40: 173.996729 | BG40: 24.37941869 | BH40: 0.6415636498
A41: 20090521 | B41: Example 1 | C41: 39 | D41: 35.677048 | E41: 31.10498918 | F41: 0.8163677468 | G41: 4.982151274 | H41: 64.98057477 | I41: 41.02366966 | J41: 0.0197594346 | K41: 10.35739811 | L41: 12.64754415 | M41: 34.05235611 | N41: 25.1470121 | O41: 0.6549248902 | P41: 10.91851081 | Q41: 136.2612006 | R41: 32.68410463 | S41: 0.04143460244 | T41: 9.087936422 | U41: 7.822844574 | AE41: 39 | AF41: 33.0687534 | AG41: 25.85697264 | AH41: 77.93547324 | AI41: 3087.342948 | AJ41: 882.5792126 | AK41: 0.938805963 | AL41: 15.58121968 | AM41: 10.32645983 | AN41: 3.260182291 | AO41: 0.3146902624 | AP41: 0.00882052412 | AQ41: 2.39326612 | AR41: 0.113938449 | AS41: 0.002921498692 | AW41: 175.5725646 | AX41: 28.06576902 | AY41: 0.7196351031 | AZ41: 177.9658307 | BA41: 28.17970747 | BB41: 0.7225566017 | BC41: 3.260182291 | BD41: 0.3146902624 | BE41: 0.008068981087 | BF41: 181.226013 | BG41: 28.49439773 | BH41: 0.7306255828
A42: 20090521 | B42: Example 1 | C42: 40 | D42: 36.677048 | E42: 32.10498918 | F42: 0.8419823258 | G42: 4.978658064 | H42: 64.97475896 | I42: 42.10573345 | J42: 0.02024926622 | K42: 10.58109235 | L42: 12.84500295 | M42: 35.05235611 | N42: 26.1470121 | O42: 0.6909541915 | P42: 10.90839513 | Q42: 135.5529448 | R42: 34.25667915 | S42: 0.04224483032 | T42: 9.380120628 | U42: 8.056106683 | AE42: 40 | AF42: 34.0687534 | AG42: 26.3324963 | AH42: 77.54592939 | AI42: 3008.21864 | AJ42: 925.3976253 | AK42: 0.9375059035 | AL42: 15.89938953 | AM42: 10.55714232 | AN42: 3.456045931 | AO42: 0.3731489246 | AP42: 0.01017390834 | AQ42: 2.596372702 | AR42: 0.1437706527 | AS42: 0.003594266317 | AW42: 182.3269671 | AX42: 32.54675715 | AY42: 0.8136689289 | AZ42: 184.9233398 | BA42: 32.69052781 | BB42: 0.8172631952 | BC42: 3.456045931 | BD42: 0.3731489246 | BE42: 0.009328723114 | BF42: 188.3793857 | BG42: 33.06367673 | BH42: 0.8265919183
A43: 20090521 | B43: Example 1 | C43: 41 | D43: 37.677048 | E43: 33.10498918 | F43: 0.8660542643 | G43: 4.974925336 | H43: 64.9684838 | I43: 43.1356376 | J43: 0.02074988941 | K43: 10.80132739 | L43: 13.02795488 | M43: 36.05235611 | N43: 27.1470121 | O43: 0.7267991181 | P43: 10.89774326 | Q43: 134.8157527 | R43: 35.80896036 | S43: 0.04305798435 | T43: 9.668234906 | U43: 8.284988973 | AE43: 41 | AF43: 35.0687534 | AG43: 26.79098677 | AH43: 77.15030305 | AI43: 2931.243718 | AJ43: 965.4035997 | AK43: 0.9361921262 | AL43: 16.20987225 | AM43: 10.7875656 | AN43: 3.648901443 | AO43: 0.4374847419 | AP43: 0.01161143893 | AQ43: 2.804930675 | AR43: 0.1791721582 | AS43: 0.004370052639 | AW43: 188.996027 | AX43: 37.48097734 | AY43: 0.914170179 | AZ43: 191.8009576 | BA43: 37.6601495 | BB43: 0.9185402317 | BC43: 3.648901443 | BD43: 0.4374847419 | BE43: 0.01067035956 | BF43: 195.4498591 | BG43: 38.09763424 | BH43: 0.9292105912
A44: 20090521 | B44: Example 1 | C44: 42 | D44: 38.677048 | E44: 34.10498918 | F44: 0.8885611579 | G44: 4.970941814 | H44: 64.96172818 | I44: 44.11511876 | J44: 0.02126123179 | K44: 11.01818279 | L44: 13.19683956 | M44: 37.05235611 | N44: 28.1470121 | O44: 0.762404925 | P44: 10.88653866 | Q44: 134.0498636 | R44: 37.33815726 | S44: 0.04387298956 | T44: 9.952207125 | U44: 8.509709167 | AE44: 42 | AF44: 36.0687534 | AG44: 27.23295945 | AH44: 76.74873381 | AI44: 2856.39596 | AJ44: 1002.499158 | AK44: 0.9348657786 | AL44: 16.51284255 | AM44: 11.01775914 | AN44: 3.838061498 | AO44: 0.5075114394 | AP44: 0.01312177288 | AQ44: 3.018476688 | AR44: 0.2207206978 | AS44: 0.00525525471 | AW44: 195.5746643 | AX44: 42.87249657 | AY44: 1.020773728 | AZ44: 198.593141 | BA44: 43.09321727 | BB44: 1.026028983 | BC44: 3.838061498 | BD44: 0.5075114394 | BE44: 0.0120836057 | BF44: 202.4312025 | BG44: 43.60072871 | BH44: 1.038112588
A45: 20090521 | B45: Example 1 | C45: 43 | D45: 39.677048 | E45: 35.10498918 | F45: 0.9094852836 | G45: 4.966695954 | H45: 64.95447076 | I45: 45.04600447 | J45: 0.0217832213 | K45: 11.23173618 | L45: 13.35206301 | M45: 38.05235611 | N45: 29.1470121 | O45: 0.7977219338 | P45: 10.87476468 | Q45: 133.2555806 | R45: 38.84156133 | S45: 0.04468877613 | T45: 10.23198163 | U45: 8.730480026 | AE45: 43 | AF45: 37.0687534 | AG45: 27.65891981 | AH45: 76.34136491 | AI45: 2783.647859 | AJ45: 1036.62937 | AK45: 0.9335280026 | AL45: 16.80847733 | AM45: 11.24774649 | AN45: 4.022877819 | AO45: 0.5829377445 | AP45: 0.0146920644 | AQ45: 3.236551895 | AR45: 0.2689816836 | AS45: 0.006255387991 | AW45: 202.058462 | AX45: 48.71911068 | AY45: 1.133002574 | AZ45: 205.2950139 | BA45: 48.98809237 | BB45: 1.139257962 | BC45: 4.022877819 | BD45: 0.5829377445 | BE45: 0.01355669173 | BF45: 209.3178917 | BG45: 49.57103011 | BH45: 1.152814654
A46: 20090521 | B46: Example 1 | C46: 44 | D46: 40.677048 | E46: 36.10498918 | F46: 0.9288132011 | G46: 4.962175954 | H46: 64.94668988 | I46: 45.93018026 | J46: 0.02231578615 | K46: 11.44206318 | L46: 13.49400101 | M46: 39.05235611 | N46: 30.1470121 | O46: 0.8327052134 | P46: 10.86240464 | Q46: 132.4332691 | R46: 40.31655704 | S46: 0.04550428234 | T46: 10.50751757 | U46: 8.947509152 | AE46: 44 | AF46: 38.0687534 | AG46: 28.06936298 | AH46: 75.92834305 | AI46: 2712.967426 | AJ46: 1067.777196 | AK46: 0.9321799315 | AL46: 17.09695466 | AM46: 11.47754616 | AN46: 4.202740253 | AO46: 0.6633729221 | AP46: 0.01630828575 | AQ46: 3.458704346 | AR46: 0.324498239 | AS46: 0.007374959978 | AW46: 208.4436154 | AX46: 55.01208186 | AY46: 1.250274588 | AZ46: 211.9023197 | BA46: 55.3365801 | BB46: 1.257649548 | BC46: 4.202740253 | BD46: 0.6633729221 | BE46: 0.01507665732 | BF46: 216.10506 | BG46: 55.99995303 | BH46: 1.272726205
A47: 20090521 | B47: Example 1 | C47: 45 | D47: 41.677048 | E47: 37.10498918 | F47: 0.9465353898 | G47: 4.957369758 | H47: 64.93836361 | I47: 46.76956177 | J47: 0.02285885488 | K47: 11.64923749 | L47: 13.6230019 | M47: 40.05235611 | N47: 31.1470121 | O47: 0.8673142758 | P47: 10.84944182 | Q47: 131.5833558 | R47: 41.7606321 | S47: 0.04631845748 | T47: 10.77878738 | U47: 9.160998831 | AE47: 45 | AF47: 39.0687534 | AG47: 28.46477355 | AH47: 75.5098182 | AI47: 2644.318907 | AJ47: 1095.958409 | AK47: 0.9308226876 | AL47: 17.37845283 | AM47: 11.70717232 | AN47: 4.377075749 | AO47: 0.748334894 | AP47: 0.01795556379 | AQ47: 3.684491043 | AR47: 0.3877815334 | AS47: 0.008617367409 | AW47: 214.7268848 | AX47: 61.73609865 | AY47: 1.371913303 | AZ47: 218.4113758 | BA47: 62.12388018 | BB47: 1.380530671 | BC47: 4.377075749 | BD47: 0.748334894 | BE47: 0.01662966431 | BF47: 222.7884516 | BG47: 62.87221507 | BH47: 1.397160335
A48: 20090521 | B48: Example 1 | C48: 46 | D48: 42.677048 | E48: 38.10498918 | F48: 0.9626459172 | G48: 4.952265069 | H48: 64.92946977 | I48: 47.56607161 | J48: 0.02341235634 | K48: 11.85333087 | L48: 13.73938894 | M48: 41.05235611 | N48: 32.1470121 | O48: 0.9015127869 | P48: 10.83585948 | Q48: 130.7063266 | R48: 43.17138719 | S48: 0.04713026464 | T48: 11.04577535 | U48: 9.371145916 | AE48: 46 | AF48: 40.0687534 | AG48: 28.84562529 | AH48: 75.0859434 | AI48: 2577.663432 | AJ48: 1121.216707 | AK48: 0.929457379 | AL48: 17.65314956 | AM48: 11.93663551 | AN48: 4.545347288 | AO48: 0.837260426 | AP48: 0.0196185178 | AQ48: 3.91347968 | AR48: 0.4593016945 | AS48: 0.009984819446 | AW48: 220.9055507 | AX48: 68.86946915 | AY48: 1.497162373 | AZ48: 224.8190304 | BA48: 69.32877084 | BB48: 1.507147192 | BC48: 4.545347288 | BD48: 0.837260426 | BE48: 0.01820131361 | BF48: 229.3643776 | BG48: 70.16603127 | BH48: 1.525348506
A49: 20090521 | B49: Example 1 | C49: 47 | D49: 43.677048 | E49: 39.10498918 | F49: 0.9771421395 | G49: 4.946849357 | H49: 64.91998591 | I49: 48.32162027 | J49: 0.02397621969 | K49: 12.05441315 | L49: 13.8434623 | M49: 42.05235611 | N49: 33.1470121 | O49: 0.9352682924 | P49: 10.82164089 | Q49: 129.8027252 | R49: 44.54654506 | S49: 0.04793868349 | T49: 11.30847643 | U49: 9.578141739 | AE49: 47 | AF49: 41.0687534 | AG49: 29.21238102 | AH49: 74.65687458 | AI49: 2512.959599 | AJ49: 1143.619125 | AK49: 0.9280850968 | AL49: 17.92122137 | AM49: 12.1659432 | AN49: 4.70705277 | AO49: 0.9295168276 | AP49: 0.02128158541 | AQ49: 4.145250107 | AR49: 0.5394795489 | AS49: 0.01147828827 | AW49: 226.9773712 | AX49: 76.38454337 | AY49: 1.62520305 | AZ49: 231.1226213 | BA49: 76.92402292 | BB49: 1.636681339 | BC49: 4.70705277 | BD49: 0.9295168276 | BE49: 0.01977695378 | BF49: 235.8296741 | BG49: 77.85353974 | BH49: 1.656458292
A50: 20090521 | B50: Example 1 | C50: 48 | D50: 44.677048 | E50: 40.10498918 | F50: 0.99002443 | G50: 4.941109871 | H50: 64.90988932 | I50: 49.03809066 | J50: 0.0245503744 | K50: 12.25255228 | L50: 13.93550081 | M50: 43.05235611 | N50: 34.1470121 | O50: 0.9685519577 | P50: 10.80676935 | Q50: 128.8731509 | R50: 45.88395885 | S50: 0.04874271297 | T50: 11.566895 | U50: 9.782172061 | AE50: 48 | AF50: 42.0687534 | AG50: 29.56549254 | AH50: 74.2227703 | AI50: 2450.163984 | AJ50: 1163.251777 | AK50: 0.9267069126 | AL50: 18.182843 | AM50: 12.39510022 | AN50: 4.861723906 | AO50: 1.024414605 | AP50: 0.02292932615 | AQ50: 4.379395528 | AR50: 0.6286793997 | AS50: 0.01309748749 | AW50: 232.940543 | AX50: 84.24834538 | AY50: 1.755173862 | AZ50: 237.3199385 | BA50: 84.87702478 | BB50: 1.76827135 | BC50: 4.861723906 | BD50: 1.024414605 | BE50: 0.02134197094 | BF50: 242.1816625 | BG50: 85.90143938 | BH50: 1.789613321
A51: 20090521 | B51: Example 1 | C51: 49 | D51: 45.677048 | E51: 41.10498918 | F51: 1.001295934 | G51: 4.935033654 | H51: 64.89915706 | I51: 49.71732579 | J51: 0.02513475018 | K51: 12.44781436 | L51: 14.0157634 | M51: 44.05235611 | N51: 35.1470121 | O51: 1.001338321 | P51: 10.79122819 | Q51: 127.9182558 | R51: 47.18161948 | S51: 0.04954137388 | T51: 11.82104386 | U51: 9.983417036 | AE51: 49 | AF51: 43.0687534 | AG51: 29.90540057 | AH51: 73.7837916 | AI51: 2389.231607 | AJ51: 1180.215986 | AK51: 0.9253238759 | AL51: 18.43818699 | AM51: 12.62410929 | AN51: 5.008925106 | AO51: 1.121220538 | AP51: 0.02454669438 | AQ51: 4.615523477 | AR51: 0.7272030099 | AS51: 0.01484087775 | AW51: 238.7936637 | AX51: 92.42338283 | AY51: 1.886191486 | AZ51: 243.4091872 | BA51: 93.15058584 | BB51: 1.901032364 | BC51: 5.008925106 | BD51: 1.121220538 | BE51: 0.02288205179 | BF51: 248.4181123 | BG51: 94.27180638 | BH51: 1.923914416
A52: 20090521 | B52: Example 1 | C52: 50 | D52: 46.677048 | E52: 42.10498918 | F52: 1.010962351 | G52: 4.928607554 | H52: 64.88776595 | I52: 50.36111921 | J52: 0.02572927699 | K52: 12.64026368 | L52: 14.08449045 | M52: 45.05235611 | N52: 36.1470121 | O52: 1.033605063 | P52: 10.77500084 | Q52: 126.938743 | R52: 48.43766217 | S52: 0.05033371131 | T52: 12.07094327 | U52: 10.1820512 | AE52: 50 | AF52: 44.0687534 | AG52: 30.23253473 | AH52: 73.34010176 | AI52: 2330.116334 | AJ52: 1194.624801 | AK52: 0.9239370117 | AL52: 18.68742325 | AM52: 12.85297129 | AN52: 5.148252389 | AO52: 1.219170703 | AP52: 0.02611927606 | AQ52: 4.853256575 | AR52: 0.8352849082 | AS52: 0.01670569816 | AW52: 244.5356976 | AX52: 100.8685905 | AY52: 2.01737181 | AZ52: 249.3889542 | BA52: 101.7038754 | BB52: 2.034077508 | BC52: 5.148252389 | BD52: 1.219170703 | BE52: 0.02438341405 | BF52: 254.5372066 | BG52: 102.9230461 | BH52: 2.058460922
A53: 20090521 | B53: Example 1 | C53: 51 | D53: 47.677048 | E53: 43.10498918 | F53: 1.019031731 | G53: 4.921818243 | H53: 64.87569261 | I53: 50.97120768 | J53: 0.02633388494 | K53: 12.82996275 | L53: 14.1419048 | M53: 46.05235611 | N53: 37.1470121 | O53: 1.065332782 | P53: 10.75807081 | Q53: 125.9353631 | R53: 49.65037183 | S53: 0.05111879703 | T53: 12.31662006 | U53: 10.37824349 | AE53: 51 | AF53: 45.0687534 | AG53: 30.54731361 | AH53: 72.89186611 | AI53: 2272.771235 | AJ53: 1206.599912 | AK53: 0.922547318 | AL53: 18.93071875 | AM53: 13.08168565 | AN53: 5.279332321 | AO53: 1.317483053 | AP53: 0.0276334863 | AQ53: 5.092233113 | AR53: 0.953089086 | AS53: 0.01868802129 | AW53: 250.165943 | AX53: 109.540358 | AY53: 2.147850157 | AZ53: 255.2581761 | BA53: 110.4934471 | BB53: 2.166538179 | BC53: 5.279332321 | BD53: 1.317483053 | BE53: 0.02583300104 | BF53: 260.5375084 | BG53: 111.8109302 | BH53: 2.19237118
A54: 20090521 | B54: Example 1 | C54: 52 | D54: 48.677048 | E54: 44.10498918 | F54: 1.025514301 | G54: 4.914652229 | H54: 64.86291339 | I54: 51.54926597 | J54: 0.02694850427 | K54: 13.01697236 | L54: 14.18821282 | M54: 47.05235611 | N54: 38.1470121 | O54: 1.096504792 | P54: 10.74042174 | Q54: 124.9089119 | R54: 50.81818749 | S54: 0.05189573163 | T54: 12.55810687 | U54: 10.57215724 | AE54: 52 | AF54: 46.0687534 | AG54: 30.85014478 | AH54: 72.43925177 | AI54: 2217.148898 | AJ54: 1216.268949 | AK54: 0.9211557641 | AL54: 19.16823733 | AM54: 13.31025061 | AN54: 5.401820981 | AO54: 1.415369224 | AP54: 0.02907672675 | AQ54: 5.332107452 | AR54: 1.080707105 | AS54: 0.02078282894 | AW54: 255.6840022 | AX54: 118.393589 | AY54: 2.276799789 | AZ54: 261.0161097 | BA54: 119.4742961 | BB54: 2.297582618 | BC54: 5.401820981 | BD54: 1.415369224 | BE54: 0.02721863892 | BF54: 266.4179306 | BG54: 120.8896653 | BH54: 2.324801257
A55: 20090521 | B55: Example 1 | C55: 53 | D55: 49.677048 | E55: 45.10498918 | F55: 1.030422306 | G55: 4.907095882 | H55: 64.84940449 | I55: 52.0969031 | J55: 0.02757306523 | K55: 13.2013516 | L55: 14.22360519 | M55: 48.05235611 | N55: 39.1470121 | O55: 1.127106924 | P55: 10.72203741 | Q55: 123.8602271 | R55: 51.93970563 | S55: 0.05266364662 | T55: 12.79544143 | U55: 10.76395026 | AE55: 53 | AF55: 47.0687534 | AG55: 31.14142492 | AH55: 71.98242751 | AI55: 2163.201698 | AJ55: 1223.76314 | AK55: 0.9197632882 | AL55: 19.40013942 | AM55: 13.53866343 | AN55: 5.515402974 | AO55: 1.512045337 | AP55: 0.0304375038 | AQ55: 5.572550296 | AR55: 1.218157587 | AS55: 0.02298410542 | AW55: 261.0897536 | AX55: 127.3827416 | AY55: 2.403447955 | AZ55: 266.6623039 | BA55: 128.6008992 | BB55: 2.42643206 | BC55: 5.515402974 | BD55: 1.512045337 | BE55: 0.02852915731 | BF55: 272.1777069 | BG55: 130.1129445 | BH55: 2.454961218
A56: 20090521 | B56: Example 1 | C56: 54 | D56: 50.677048 | E56: 46.10498918 | F56: 1.033769861 | G56: 4.899135447 | H56: 64.83514188 | I56: 52.61566015 | J56: 0.02820749804 | K56: 13.38315793 | L56: 14.24825765 | M56: 49.05235611 | N56: 40.1470121 | O56: 1.157127341 | P56: 10.70290178 | Q56: 122.790185 | R56: 53.01368247 | S56: 0.05342170623 | T56: 13.0286659 | U56: 10.95377485 | AE56: 54 | AF56: 48.0687534 | AG56: 31.42153988 | AH56: 71.52156349 | AI56: 2110.882034 | AJ56: 1229.215319 | AK56: 0.9183707957 | AL56: 19.62658195 | AM56: 13.76692067 | AN56: 5.619790474 | AO56: 1.606741651 | AP56: 0.03170550998 | AQ56: 5.813248816 | AR56: 1.365387024 | AS56: 0.02528494489 | AW56: 266.3833253 | AX56: 136.4628048 | AY56: 2.527088978 | AZ56: 272.1965741 | BA56: 137.8281918 | BB56: 2.552373922 | BC56: 5.619790474 | BD56: 1.606741651 | BE56: 0.02975447502 | BF56: 277.8163646 | BG56: 139.4349335 | BH56: 2.582128397
A57: 20090521 | B57: Example 1 | C57: 55 | D57: 51.677048 | E57: 47.10498918 | F57: 1.035572827 | G57: 4.890757069 | H57: 64.82010133 | I57: 53.10700906 | J57: 0.0288517328 | K57: 13.56244722 | L57: 14.2623316 | M57: 50.05235611 | N57: 41.1470121 | O57: 1.186556365 | P57: 10.68299902 | Q57: 121.6996972 | R57: 54.03903516 | S57: 0.05416910918 | T57: 13.25782627 | U57: 11.14177791 | AE57: 55 | AF57: 49.0687534 | AG57: 31.69086486 | AH57: 71.05683105 | AI57: 2060.142534 | AJ57: 1232.758243 | AK57: 0.916979158 | AL57: 19.8477182 | AM57: 13.9950183 | AN57: 5.714722321 | AO57: 1.698710967 | AP57: 0.0328716719 | AQ57: 6.053906672 | AR57: 1.522271796 | AS57: 0.02767766903 | AW57: 271.5650712 | AX57: 145.5901741 | AY57: 2.647094075 | AZ57: 277.6189779 | BA57: 147.1124459 | BB57: 2.674771744 | BC57: 5.714722321 | BD57: 1.698710967 | BE57: 0.03088565394 | BF57: 283.3337002 | BG57: 148.8111569 | BH57: 2.705657398
A58: 20090521 | B58: Example 1 | C58: 56 | D58: 52.677048 | E58: 48.10498918 | F58: 1.035848692 | G58: 4.881946815 | H58: 64.80425847 | I58: 53.57235243 | J58: 0.02950569937 | K58: 13.73927377 | L58: 14.26597464 | M58: 51.05235611 | N58: 42.1470121 | O58: 1.215386316 | P58: 10.66231351 | Q58: 120.5897074 | R58: 55.01484204 | S58: 0.05490509016 | T58: 13.48297186 | U58: 11.32810093 | AE58: 56 | AF58: 50.0687534 | AG58: 31.94976449 | AH58: 70.58840252 | AI58: 2010.93623 | AJ58: 1234.523197 | AK58: 0.9155892105 | AL58: 20.06369771 | AM58: 14.22295188 | AN58: 5.799963155 | AO58: 1.78723578 | AP58: 0.03392816887 | AQ58: 6.294243933 | AR58: 1.688621284 | AS58: 0.0301539515 | AW58: 276.6355483 | AX58: 154.7234004 | AY58: 2.762917864 | AZ58: 282.9297922 | BA58: 156.4120217 | BB58: 2.793071815 | BC58: 5.799963155 | BD58: 1.78723578 | BE58: 0.03191492465 | BF58: 288.7297554 | BG58: 158.1992574 | BH58: 2.82498674
A59: 20090521 | B59: Example 1 | C59: 57 | D59: 53.677048 | E59: 49.10498918 | F59: 1.034616477 | G59: 4.8726907 | H59: 64.78758872 | I59: 54.01302403 | J59: 0.03016932725 | K59: 13.91369037 | L59: 14.25932102 | M59: 52.05235611 | N59: 43.1470121 | O59: 1.243611354 | P59: 10.64082989 | Q59: 119.4611878 | R59: 55.94034189 | S59: 0.0556289212 | T59: 13.70415485 | U59: 11.51288017 | AE59: 57 | AF59: 51.0687534 | AG59: 32.19859305 | AH59: 70.11645098 | AI59: 1963.2167 | AJ59: 1234.638853 | AK59: 0.9142017516 | AL59: 20.27466628 | AM59: 14.4507167 | AN59: 5.875302599 | AO59: 1.871634207 | AP59: 0.03486842657 | AQ59: 6.533996912 | AR59: 1.864181908 | AS59: 0.03270494575 | AW59: 281.5954961 | AX59: 163.8237947 | AY59: 2.874101661 | AZ59: 288.129493 | BA59: 165.6879766 | BB59: 2.906806607 | BC59: 5.875302599 | BD59: 1.871634207 | BE59: 0.03283568784 | BF59: 294.0047956 | BG59: 167.5596108 | BH59: 2.939642294
A60: 20090521 | B60: Example 1 | C60: 58 | D60: 54.677048 | E60: 50.10498918 | F60: 1.031896636 | G60: 4.862974711 | H60: 64.77006736 | I60: 54.43028991 | J60: 0.03084254553 | K60: 14.08574838 | L60: 14.24249197 | M60: 53.05235611 | N60: 44.1470121 | O60: 1.271227336 | P60: 10.61853311 | Q60: 118.3151353 | R60: 56.81493221 | S60: 0.05633991281 | T60: 13.92142978 | U60: 11.69624666 | AE60: 58 | AF60: 52.0687534 | AG60: 32.43769456 | AH60: 69.6411501 | AI60: 1916.938199 | AJ60: 1233.230362 | AK60: 0.9128175417 | AL60: 20.48076586 | AM60: 14.6783079 | AN60: 5.940554491 | AO60: 1.951264743 | AP60: 0.03568709019 | AQ60: 6.772917923 | AR60: 2.048641954 | AS60: 0.03532141301 | AW60: 286.4458175 | AX60: 172.8558843 | AY60: 2.980273867 | AZ60: 293.2187354 | BA60: 174.9045263 | BB60: 3.01559528 | BC60: 5.940554491 | BD60: 1.951264743 | BE60: 0.03364249557 | BF60: 299.1592899 | BG60: 176.855791 | BH60: 3.049237776
A61: 20090521 | B61: Example 1 | C61: 59 | D61: 55.677048 | E61: 51.10498918 | F61: 1.027710983 | G61: 4.852784837 | H61: 64.75166952 | I61: 54.82534996 | J61: 0.03152528271 | K61: 14.25549769 | L61: 14.21559601 | M61: 54.05235611 | N61: 45.1470121 | O61: 1.298231681 | P61: 10.5954084 | Q61: 117.1525685 | R61: 57.63816669 | S61: 0.05703741495 | T61: 14.13485324 | U61: 11.87832636 | AE61: 59 | AF61: 53.0687534 | AG61: 32.66740302 | AH61: 69.16267389 | AI61: 1872.055757 | AJ61: 1230.418637 | AK61: 0.9114373023 | AL61: 20.68213464 | AM61: 14.90572055 | AN61: 5.995556157 | AO61: 2.02552997 | AP61: 0.03637998139 | AQ61: 7.010774982 | AR61: 2.241637007 | AS61: 0.03799384757 | AW61: 291.1875607 | AX61: 181.7877222 | AY61: 3.081147834 | AZ61: 298.1983356 | BA61: 184.0293592 | BB61: 3.119141682 | BC61: 5.995556157 | BD61: 2.02552997 | BE61: 0.03433101644 | BF61: 304.1938918 | BG61: 186.0548892 | BH61: 3.153472698
A62: 20090521 | B62: Example 1 | C62: 60 | D62: 56.677048 | E62: 52.10498918 | F62: 1.022082618 | G62: 4.842107097 | H62: 64.73237016 | I62: 55.19933979 | J62: 0.03221746662 | K62: 14.42298686 | L62: 14.17872914 | M62: 55.05235611 | N62: 46.1470121 | O62: 1.324623243 | P62: 10.57144138 | Q62: 115.9745236 | R62: 58.40975183 | S62: 0.0577208178 | T62: 14.34448346 | U62: 12.05924022 | AE62: 60 | AF62: 54.0687534 | AG62: 32.88804257 | AH62: 68.68119652 | AI62: 1828.52527 | AJ62: 1226.319819 | AK62: 0.9100617156 | AL62: 20.87890697 | AM62: 15.13294971 | AN62: 6.040167735 | AO62: 2.093879303 | AP62: 0.03694404308 | AQ62: 7.24735145 | AR62: 2.442755825 | AS62: 0.04071259708 | AW62: 295.8219031 | AX62: 190.5910597 | AY62: 3.176517662 | AZ62: 303.0692546 | BA62: 193.0338155 | BB62: 3.217230259 | BC62: 6.040167735 | BD62: 2.093879303 | BE62: 0.03489798838 | BF62: 309.1094223 | BG62: 195.1276948 | BH62: 3.252128247
A63: 20090521 | B63: Example 1 | C63: 61 | D63: 57.677048 | E63: 53.10498918 | F63: 1.015035868 | G63: 4.830927572 | H63: 64.71214415 | I63: 55.55333295 | J63: 0.03291902426 | K63: 14.58826309 | L63: 14.13197495 | M63: 56.05235611 | N63: 47.1470121 | O63: 1.350402191 | P63: 10.54661801 | Q63: 114.7820512 | R63: 59.12954288 | S63: 0.05838955236 | T63: 14.55038002 | U63: 12.23910429 | AE63: 61 | AF63: 55.0687534 | AG63: 33.09992765 | AH63: 68.19689213 | AI63: 1786.303564 | AJ63: 1221.044887 | AK63: 0.9086914234 | AL63: 21.07121344 | AM63: 15.35999057 | AN63: 6.074271542 | AO63: 2.155810921 | AP63: 0.03737727564 | AQ63: 7.482445635 | AR63: 2.651546512 | AS63: 0.0434679756 | AW63: 300.3501363 | AX63: 199.2413977 | AY63: 3.266252421 | AZ63: 307.8325819 | BA63: 201.8929442 | BB63: 3.309720396 | BC63: 6.074271542 | BD63: 2.155810921 | BE63: 0.03534116264 | BF63: 313.9068535 | BG63: 204.0487551 | BH63: 3.345061559
A64: 20090521 | B64: Example 1 | C64: 62 | D64: 58.677048 | E64: 54.10498918 | F64: 1.006596229 | G64: 4.819232435 | H64: 64.69096621 | I64: 55.88834324 | J64: 0.03362988172 | K64: 14.75137229 | L64: 14.07540468 | M64: 57.05235611 | N64: 48.1470121 | O64: 1.375569894 | P64: 10.52092466 | Q64: 113.5762126 | R64: 59.79753899 | S64: 0.05904309087 | T64: 14.75260356 | U64: 12.41802985 | AE64: 62 | AF64: 56.0687534 | AG64: 33.30336324 | AH64: 67.70993461 | AI64: 1745.348454 | AJ64: 1214.699396 | AK64: 0.9073270274 | AL64: 21.25918091 | AM64: 15.58683843 | AN64: 6.097771493 | AO64: 2.210872994 | AP64: 0.03767866771 | AQ64: 7.715870358 | AR64: 2.867522826 | AS64: 0.04625036816 | AW64: 304.7736518 | AX64: 207.7179346 | AY64: 3.350289268 | AZ64: 312.4895222 | BA64: 210.5854574 | BB64: 3.396539636 | BC64: 6.097771493 | BD64: 2.210872994 | BE64: 0.03565924184 | BF64: 318.5872937 | BG64: 212.7963304 | BH64: 3.432198878
A65: 20090521 | B65: Example 1 | C65: 63 | D65: 59.677048 | E65: 55.10498918 | F65: 0.9967903275 | G65: 4.807007989 | H65: 64.66881097 | I65: 56.2053272 | J65: 0.034349964 | K65: 14.91235911 | L65: 14.00907721 | M65: 58.05235611 | N65: 49.1470121 | O65: 1.400128822 | P65: 10.49434817 | Q65: 112.3580764 | R65: 60.41387789 | S65: 0.05968094699 | T65: 14.95121553 | U65: 12.59612348 | AE65: 63 | AF65: 57.0687534 | AG65: 33.49864501 | AH65: 67.22049745 | AI65: 1705.618782 | AJ65: 1207.383328 | AK65: 0.905969089 | AL65: 21.44293254 | AM65: 15.81348878 | AN65: 6.110592553 | AO65: 2.258664334 | AP65: 0.03784812436 | AQ65: 7.947452489 | AR65: 3.090170496 | AS65: 0.04905032534 | AW65: 309.0939286 | AX65: 216.0034308 | AY65: 3.428625886 | AZ65: 317.0413811 | BA65: 219.0936013 | BB65: 3.477676211 | BC65: 6.110592553 | BD65: 2.258664334 | BE65: 0.03585181483 | BF65: 323.1519737 | BG65: 221.3522657 | BH65: 3.513528026
A66: 20090521 | B66: Example 1 | C66: 64 | D66: 60.677048 | E66: 56.10498918 | F66: 0.9856458737 | G66: 4.794240699 | H66: 64.64565294 | I66: 56.5051866 | J66: 0.03507919489 | K66: 15.07126701 | L66: 13.93303892 | M66: 59.05235611 | N66: 50.1470121 | O66: 1.424082441 | P66: 10.46687581 | Q66: 111.1287152 | R66: 60.97882995 | S66: 0.0603026759 | T66: 15.14627796 | U66: 12.77348724 | AE66: 64 | AF66: 58.0687534 | AG66: 33.68605959 | AH66: 66.72875351 | AI66: 1667.074453 | AJ66: 1199.191026 | AK66: 0.9046181292 | AL66: 21.62258788 | AM66: 16.03993734 | AN66: 6.11268025 | AO66: 2.298834594 | AP66: 0.03788639477 | AQ66: 8.177032465 | AR66: 3.31895343 | AS66: 0.05185864734 | AW66: 313.3125213 | AX66: 224.0840083 | AY66: 3.501312629 | AZ66: 321.4895538 | BA66: 227.4029617 | BB66: 3.553171276 | BC66: 6.11268025 | BD66: 2.298834594 | BE66: 0.03591929053 | BF66: 327.6022341 | BG66: 229.7017963 | BH66: 3.589090567
A67: 20090521 | B67: Example 1 | C67: 65 | D67: 61.677048 | E67: 57.10498918 | F67: 0.9731916349 | G67: 4.780917231 | H67: 64.62146655 | I67: 56.78877107 | J67: 0.03581749686 | K67: 15.22813824 | L67: 13.84732349 | M67: 60.05235611 | N67: 51.1470121 | O67: 1.447435127 | P67: 10.43849538 | Q67: 109.8892022 | R67: 61.4927918 | S67: 0.06090787417 | T67: 15.33785322 | U67: 12.95021872 | AE67: 65 | AF67: 59.0687534 | AG67: 33.86588468 | AH67: 66.23487487 | AI67: 1629.676453 | AJ67: 1190.211203 | AK67: 0.903274629 | AL67: 21.79826289 | AM67: 16.26618011 | AN67: 6.10400022 | AO67: 2.331084111 | AP67: 0.03779500133 | AQ67: 8.404463783 | AR67: 3.553319709 | AS67: 0.05466645707 | AW67: 317.4310493 | AX67: 231.9489047 | AY67: 3.568444688 | AZ67: 325.8355131 | BA67: 235.5022245 | BB67: 3.623111145 | BC67: 6.10400022 | BD67: 2.331084111 | BE67: 0.03586283248 | BF67: 331.9395133 | BG67: 237.8333086 | BH67: 3.658973978
A68: 20090521 | B68: Example 1 | C68: 66 | D68: 62.677048 | E68: 58.10498918 | F68: 0.9594574076 | G68: 4.767024488 | H68: 64.59622616 | I68: 57.0568806 | J68: 0.03656479092 | K68: 15.38301395 | L68: 13.75195163 | M68: 61.05235611 | N68: 52.1470121 | O68: 1.470192076 | P68: 10.4091952 | Q68: 108.640608 | R68: 61.95627964 | S68: 0.06149617946 | T68: 15.52600392 | U68: 13.12641119 | AE68: 66 | AF68: 60.0687534 | AG68: 34.03838933 | AH68: 65.73903264 | AI68: 1593.386864 | AJ68: 1180.527016 | AK68: 0.9019390296 | AL68: 21.97007005 | AM68: 16.49221333 | AN68: 6.084537806 | AO68: 2.355163514 | AP68: 0.03757617165 | AQ68: 8.629612489 | AR68: 3.7927073 | AS68: 0.05746526212 | AW68: 321.4511868 | AX68: 239.5901987 | AY68: 3.630154526 | AZ68: 330.0807993 | BA68: 243.382906 | BB68: 3.687619788 | BC68: 6.084537806 | BD68: 2.355163514 | BE68: 0.03568429567 | BF68: 336.1653371 | BG68: 245.7380695 | BH68: 3.723304084
A69: 20090521 | B69: Example 1 | C69: 67 | D69: 63.677048 | E69: 59.10498918 | F69: 0.9444739975 | G69: 4.752549653 | H69: 64.56990606 | I69: 57.31026813 | J69: 0.03732099647 | K69: 15.53593414 | L69: 13.64693066 | M69: 62.05235611 | N69: 53.1470121 | O69: 1.492359224 | P69: 10.37896416 | Q69: 107.3839978 | R69: 62.3699221 | S69: 0.06206727012 | T69: 15.71079265 | U69: 13.30215372 | AE69: 67 | AF69: 61.0687534 | AG69: 34.20383411 | AH69: 65.24139681 | AI69: 1558.168873 | AJ69: 1170.216185 | AK69: 0.9006117334 | AL69: 22.13811843 | AM69: 16.71803356 | AN69: 6.054297688 | AO69: 2.370873167 | AP69: 0.03723277447 | AQ69: 8.85235666 | AR69: 4.036549397 | AS69: 0.06024700592 | AW69: 325.374654 | AX69: 247.0025189 | AY69: 3.686604759 | AZ69: 334.2270107 | BA69: 251.0390683 | BB69: 3.746851765 | BC69: 6.054297688 | BD69: 2.370873167 | BE69: 0.03538616668 | BF69: 340.2813084 | BG69: 253.4099414 | BH69: 3.782237932
A70: 20090521 | B70: Example 1 | C70: 68 | D70: 64.677048 | E70: 60.10498918 | F70: 0.9282732048 | G70: 4.737480225 | H70: 64.54248048 | I70: 57.54964192 | J70: 0.0380860312 | K70: 15.68693777 | L70: 13.53225399 | M70: 63.05235611 | N70: 54.1470121 | O70: 1.513943175 | P70: 10.34779173 | Q70: 106.120428 | R70: 62.73445297 | S70: 0.06262086463 | T70: 15.89228191 | U70: 13.47753133 | AE70: 68 | AF70: 62.0687534 | AG70: 34.36247131 | AH70: 64.74213607 | AI70: 1523.986769 | AJ70: 1159.351144 | AK70: 0.8992931042 | AL70: 22.30251376 | AM70: 16.94363769 | AN70: 6.013303572 | AO70: 2.378062542 | AP70: 0.03676826038 | AQ70: 9.072585875 | AR70: 4.284279363 | AS70: 0.06300410828 | AW70: 329.2032088 | AX70: 254.1827501 | AY70: 3.737981619 | AZ70: 338.2757947 | BA70: 258.4670294 | BB70: 3.800985727 | BC70: 6.013303572 | BD70: 2.378062542 | BE70: 0.03497150797 | BF70: 344.2890983 | BG70: 260.845092 | BH70: 3.835957235
A71: 20090521 | B71: Example 1 | C71: 69 | D71: 65.677048 | E71: 61.10498918 | F71: 0.910887815 | G71: 4.721804064 | H71: 64.51392362 | I71: 57.77566809 | J71: 0.03885981094 | K71: 15.83606277 | L71: 13.40790048 | M71: 64.05235611 | N71: 55.1470121 | O71: 1.534951127 | P71: 10.31566802 | Q71: 104.8509441 | R71: 63.05070373 | S71: 0.06315672084 | T71: 16.07053394 | U71: 13.65262504 | AE71: 69 | AF71: 63.0687534 | AG71: 34.51454517 | AH71: 64.24141763 | AI71: 1490.805937 | AJ71: 1147.999235 | AK71: 0.8979834682 | AL71: 22.46335849 | AM71: 17.1690229 | AN71: 5.961597905 | AO71: 2.376629587 | AP71: 0.03618660795 | AQ71: 9.290200697 | AR71: 4.535335234 | AS71: 0.06572949614 | AW71: 332.9386389 | AX71: 261.1297451 | AY71: 3.78448906 | AZ71: 342.2288396 | BA71: 265.6650804 | BB71: 3.850218556 | BC71: 5.961597905 | BD71: 2.376629587 | BE71: 0.03444390706 | BF71: 348.1904375 | BG71: 268.0417099 | BH71: 3.884662463
A72: 20090521 | B72: Example 1 | C72: 70 | D72: 66.677048 | E72: 62.10498918 | F72: 0.8923515941 | G72: 4.705509434 | H72: 64.48420963 | I72: 57.98897283 | J72: 0.03964224956 | K72: 15.98334605 | L72: 13.27383365 | M72: 65.05235611 | N72: 56.1470121 | O72: 1.55539081 | P72: 10.2825838 | Q72: 103.5765772 | R72: 63.31959595 | S72: 0.06367463518 | T72: 16.24561063 | U72: 13.82751206 | AE72: 70 | AF72: 64.0687534 | AG72: 34.66029205 | AH72: 63.73940711 | AI72: 1458.592855 | AJ72: 1136.222907 | AK72: 0.8966831153 | AL72: 22.62075192 | AM72: 17.3941867 | AN72: 5.899241645 | AO72: 2.366520162 | AP72: 0.03549227557 | AQ72: 9.505112144 | AR72: 4.789163753 | AS72: 0.06841662504 | AW72: 336.5827554 | AX72: 267.8440488 | AY72: 3.826343554 | AZ72: 346.0878675 | BA72: 272.6332125 | BB72: 3.894760179 | BC72: 5.899241645 | BD72: 2.366520162 | BE72: 0.03380743088 | BF72: 351.9871092 | BG72: 274.9997327 | BH72: 3.92856761
A73: 20090521 | B73: Example 1 | C73: 71 | D73: 67.677048 | E73: 63.10498918 | F73: 0.8726992886 | G73: 4.688585044 | H73: 64.45331266 | I73: 58.19014471 | J73: 0.04043325882 | K73: 16.12882356 | L73: 13.13000068 | M73: 66.05235611 | N73: 57.1470121 | O73: 1.575270423 | P73: 10.24853051 | Q73: 102.2983425 | R73: 63.54213358 | S73: 0.06417444174 | T73: 16.41757342 | U73: 14.00226589 | AE73: 71 | AF73: 65.0687534 | AG73: 34.79994065 | AH73: 63.23626839 | AI73: 1427.315074 | AJ73: 1124.079936 | AK73: 0.8953922994 | AL73: 22.77479024 | AM73: 17.61912695 | AN73: 5.826314061 | AO73: 2.347727582 | AP73: 0.03469015939 | AQ73: 9.71724118 | AR73: 5.045223945 | AS73: 0.07105949218 | AW73: 340.1373861 | AX73: 274.3276393 | AY73: 3.863769568 | AZ73: 349.8546272 | BA73: 279.3728633 | BB73: 3.93482906 | BC73: 5.826314061 | BD73: 2.347727582 | BE73: 0.03306658567 | BF73: 355.6809413 | BG73: 281.7205909 | BH73: 3.967895646
A74: 20090521 | B74: Example 1 | C74: 72 | D74: 68.677048 | E74: 64.10498918 | F74: 0.8519666297 | G74: 4.671020092 | H74: 64.42120684 | I74: 58.37973683 | J74: 0.04123274831 | K74: 16.2725303 | L74: 12.97633125 | M74: 67.05235611 | N74: 58.1470121 | O74: 1.594598579 | P74: 10.21350032 | Q74: 101.0172361 | R74: 63.71939538 | S74: 0.06465601118 | T74: 16.58648319 | U74: 14.17695644 | AE74: 72 | AF74: 66.0687534 | AG74: 34.93371222 | AH74: 62.73216343 | AI74: 1396.941207 | AJ74: 1111.623663 | AK74: 0.8941112405 | AL74: 22.92556666 | AM74: 17.8438418 | AN74: 5.74291258 | AO74: 2.320292345 | AP74: 0.03378555736 | AQ74: 9.926518205 | AR74: 5.30299022 | AS74: 0.07365264194 | AW74: 343.60437 | AX74: 280.5836905 | AY74: 3.896995702 | AZ74: 353.5308882 | BA74: 285.8866807 | BB74: 3.970648344 | BC74: 5.74291258 | BD74: 2.320292345 | BE74: 0.03222628256 | BF74: 359.2738008 | BG74: 288.2069731 | BH74: 4.002874626
A75: 20090521 | B75: Example 1 | C75: 73 | D75: 69.677048 | E75: 65.10498918 | F75: 0.8301903419 | G75: 4.652804314 | H75: 64.38786634 | I75: 58.55826885 | J75: 0.04204062527 | K75: 16.41450037 | L75: 12.81273609 | M75: 68.05235611 | N75: 59.1470121 | O75: 1.613384252 | P75: 10.17748614 | Q75: 99.73423355 | R75: 63.85252726 | S75: 0.0651192496 | T75: 16.7524002 | U75: 14.35165014 | AE75: 73 | AF75: 67.0687534 | AG75: 35.06182073 | AH75: 62.22725219 | AI75: 1367.440904 | AJ75: 1098.903219 | AK75: 0.8928401251 | AL75: 23.07317144 | AM75: 18.06832977 | AN75: 5.649152665 | AO75: 2.284302057 | AP75: 0.03278413944 | AQ75: 10.13288255 | AR75: 5.561955019 | AS75: 0.07619116464 | AW75: 346.9855522 | AX75: 286.6163557 | AY75: 3.926251448 | AZ75: 357.1184348 | BA75: 292.1783107 | BB75: 4.002442612 | BC75: 5.649152665 | BD75: 2.284302057 | BE75: 0.031291809 | BF75: 362.7675875 | BG75: 294.4626128 | BH75: 4.033734421
A76: 20090521 | B76: Example 1 | C76: 74 | D76: 70.677048 | E76: 66.10498918 | F76: 0.8074081547 | G76: 4.633928021 | H76: 64.3532653 | I76: 58.72622895 | J76: 0.04285679456 | K76: 16.55476698 | L76: 12.63910527 | M76: 69.05235611 | N76: 60.1470121 | O76: 1.631636726 | P76: 10.14048166 | Q76: 98.45028768 | R76: 63.94273481 | S76: 0.06556409739 | T76: 16.91538403 | U76: 14.5264101 | AE76: 74 | AF76: 68.0687534 | AG76: 35.18447309 | AH76: 61.72169244 | AI76: 1338.784841 | AJ76: 1085.963767 | AK76: 0.891579108 | AL76: 23.21769202 | AM76: 18.29258965 | AN76: 5.545167738 | AO76: 2.239891639 | AP76: 0.03169192407 | AQ76: 10.33628201 | AR76: 5.821631024 | AS76: 0.07867068951 | AW76: 350.2827792 | AX76: 292.4305746 | AY76: 3.951764521 | AZ76: 360.6190612 | BA76: 298.2522056 | BB76: 4.030435211 | BC76: 5.545167738 | BD76: 2.239891639 | BE76: 0.03026880593 | BF76: 366.164229 | BG76: 300.4920973 | BH76: 4.060704017
A77: 20090521 | B77: Example 1 | C77: 75 | D77: 71.677048 | E77: 67.10498918 | F77: 0.7836588182 | G77: 4.614382152 | H77: 64.31737793 | I77: 58.88407573 | J77: 0.04368115851 | K77: 16.6933625 | L77: 12.45530613 | M77: 70.05235611 | N77: 61.1470121 | O77: 1.649365555 | P77: 10.10248136 | Q77: 97.16632673 | R77: 63.99127592 | S77: 0.06599052786 | T77: 17.07549351 | U77: 14.70129618 | AE77: 75 | AF77: 69.0687534 | AG77: 35.30186933 | AH77: 61.21563972 | AI77: 1310.944686 | AJ77: 1072.846735 | AK77: 0.8903283136 | AL77: 23.3592131 | AM77: 18.51662056 | AN77: 5.431109125 | AO77: 2.187243816 | AP77: 0.03051526084 | AQ77: 10.53667233 | AR77: 6.08155295 | AS77: 0.08108737266 | AW77: 353.4978944 | AX77: 298.0319028 | AY77: 3.973758704 | AZ77: 364.0345667 | BA77: 304.1134557 | BB77: 4.054846077 | BC77: 5.431109125 | BD77: 2.187243816 | BE77: 0.02916325088 | BF77: 369.4656758 | BG77: 306.3006996 | BH77: 4.084009328
A78: 20090521 | B78: Example 1 | C78: 76 | D78: 72.677048 | E78: 68.10498918 | F78: 0.7589821217 | G78: 4.594158314 | H78: 64.28017848 | I78: 59.03223992 | J78: 0.04451361687 | K78: 16.83031844 | L78: 12.26118077 | M78: 71.05235611 | N78: 62.1470121 | O78: 1.666580515 | P78: 10.06348056 | Q78: 95.88325292 | R78: 63.99945364 | S78: 0.06639854595 | T78: 17.23278669 | U78: 14.87636514 | AE78: 76 | AF78: 70.0687534 | AG78: 35.41420279 | AH78: 60.70924715 | AI78: 1283.893085 | AJ78: 1059.590045 | AK78: 0.8890878372 | AL78: 23.49781669 | AM78: 18.74042192 | AN78: 5.307146042 | AO78: 2.12658996 | AP78: 0.02926081917 | AQ78: 10.73401678 | AR78: 6.341278946 | AS78: 0.08343788087 | AW78: 356.6327346 | AX78: 303.4263626 | AY78: 3.992452139 | AZ78: 367.3667514 | BA78: 309.7676415 | BB78: 4.07589002 | BC78: 5.307146042 | BD78: 2.12658996 | BE78: 0.02798144684 | BF78: 372.6738974 | BG78: 311.8942315 | BH78: 4.103871467
A79: 20090521 | B79: Example 1 | C79: 77 | D79: 73.677048 | E79: 69.10498918 | F79: 0.7334189146 | G79: 4.573248827 | H79: 64.24164126 | I79: 59.17112611 | J79: 0.04535406667 | K79: 16.96566555 | L79: 12.05654297 | M79: 72.05235611 | N79: 63.1470121 | O79: 1.683291569 | P79: 10.0234754 | Q79: 94.60194097 | R79: 63.96860916 | S79: 0.06678818682 | T79: 17.38732076 | U79: 15.05167076 | AE79: 77 | AF79: 71.0687534 | AG79: 35.52166031 | AH79: 60.20266538 | AI79: 1257.603629 | AJ79: 1046.228338 | AK79: 0.8878577465 | AL79: 23.63358222 | AM79: 18.96399345 | AN79: 5.173465607 | AO79: 2.058211308 | AP79: 0.02793558325 | AQ79: 10.92828569 | AR79: 6.600391641 | AS79: 0.08571937197 | AW79: 359.6891265 | AX79: 308.6203139 | AY79: 4.008056025 | AZ79: 370.6174121 | BA79: 315.2207056 | BB79: 4.093775397 | BC79: 5.173465607 | BD79: 2.058211308 | BE79: 0.02673001698 | BF79: 375.7908778 | BG79: 317.2789169 | BH79: 4.120505414
A80: 20090521 | B80: Example 1 | C80: 78 | D80: 74.677048 | E80: 70.10498918 | F80: 0.70701113 | G80: 4.55164677 | H80: 64.20174064 | I80: 59.30111432 | J80: 0.04620240221 | K80: 17.09943377 | L80: 11.84117455 | M80: 73.05235611 | N80: 64.1470121 | O80: 1.699508831 | P80: 9.982462944 | Q80: 93.32323691 | R80: 63.90011516 | S80: 0.06715951443 | T80: 17.53915208 | U80: 15.22726393 | AE80: 78 | AF80: 72.0687534 | AG80: 35.62442241 | AH80: 59.69604247 | AI80: 1232.050836 | AJ80: 1032.793191 | AK80: 0.8866380834 | AL80: 23.76658663 | AM80: 19.18733514 | AN80: 5.03027287 | AO80: 1.982440608 | AP80: 0.0265468529 | AQ80: 11.119456 | AR80: 6.858498852 | AS80: 0.08792947247 | AW80: 362.6688835 | AX80: 313.6203446 | AY80: 4.020773649 | AZ80: 373.7883395 | BA80: 320.4788435 | BB80: 4.108703121 | BC80: 5.03027287 | BD80: 1.982440608 | BE80: 0.02541590524 | BF80: 378.8186124 | BG80: 322.4612841 | BH80: 4.134119027
A81: 20090521 | B81: Example 1 | C81: 79 | D81: 75.677048 | E81: 71.10498918 | F81: 0.6798018096 | G81: 4.529346021 | H81: 64.16045111 | I81: 59.42256145 | J81: 0.04705851494 | K81: 17.2316523 | L81: 11.61482079 | M81: 74.05235611 | N81: 65.1470121 | O81: 1.715242531 | P81: 9.940441117 | Q81: 92.04795698 | R81: 63.79536928 | S81: 0.06751262007 | T81: 17.68833607 | U81: 15.40319278 | AE81: 79 | AF81: 73.0687534 | AG81: 35.72266348 | AH81: 59.18952378 | AI81: 1207.210118 | AJ81: 1019.313326 | AK81: 0.885428865 | AL81: 23.89690442 | AM81: 19.41044724 | AN81: 4.877790868 | AO81: 1.899664228 | AP81: 0.02510225065 | AQ81: 11.30751088 | AR81: 7.115234003 | AS81: 0.09006625321 | AW81: 365.5738032 | AX81: 318.4331768 | AY81: 4.030799707 | AZ81: 376.8813141 | BA81: 325.5484108 | BB81: 4.12086596 | BC81: 4.877790868 | BD81: 1.899664228 | BE81: 0.02404638263 | BF81: 381.7591049 | BG81: 327.4480751 | BH81: 4.144912343
A82: 20090521 | B82: Example 1 | C82: 80 | D82: 76.677048 | E82: 72.10498918 | F82: 0.6518351298 | G82: 4.506341305 | H82: 64.11774722 | I82: 59.53580275 | J82: 0.04792229344 | K82: 17.3623496 | L82: 11.37718482 | M82: 75.05235611 | N82: 66.1470121 | O82: 1.730502985 | P82: 9.897408779 | Q82: 90.77688679 | R82: 63.65578806 | S82: 0.06784762091 | T82: 17.83492725 | U82: 15.57950279 | AE82: 80 | AF82: 74.0687534 | AG82: 35.81655196 | AH82: 58.68325192 | AI82: 1183.05776 | AJ82: 1005.814811 | AK82: 0.8842300856 | AL82: 24.02460775 | AM82: 19.63333027 | AN82: 4.716260688 | AO82: 1.810324763 | AP82: 0.02360973473 | AQ82: 11.49243929 | AR82: 7.370256272 | AS82: 0.0921282034 | AW82: 368.4056647 | AX82: 323.0655892 | AY82: 4.038319865 | AZ82: 379.898104 | BA82: 330.4358455 | BB82: 4.130448069 | BC82: 4.716260688 | BD82: 1.810324763 | BE82: 0.02262905954 | BF82: 384.6143647 | BG82: 332.2461703 | BH82: 4.153077128
A83: 20090521 | B83: Example 1 | C83: 81 | D83: 77.677048 | E83: 73.10498918 | F83: 0.6231564277 | G83: 4.482628226 | H83: 64.07360367 | I83: 59.64115312 | J83: 0.04879362332 | K83: 17.49155345 | L83: 11.12792074 | M83: 76.05235611 | N83: 67.1470121 | O83: 1.745300568 | P83: 9.853365727 | Q83: 89.51078055 | R83: 63.48280102 | S83: 0.06816465845 | T83: 17.97897921 | U83: 15.75623691 | AE83: 81 | AF83: 75.0687534 | AG83: 35.90625049 | AH83: 58.17736664 | AI83: 1159.570887 | AJ83: 992.3212457 | AK83: 0.8830417182 | AL83: 24.14976651 | AM83: 19.85598499 | AN83: 4.545941532 | AO83: 1.714924206 | AP83: 0.02207761817 | AQ83: 11.6742356 | AR83: 7.623250506 | AS83: 0.09411420378 | AW83: 371.1662267 | AX83: 327.5243523 | AY83: 4.043510523 | AZ83: 382.8404623 | BA83: 335.1476029 | BB83: 4.137624727 | BC83: 4.545941532 | BD83: 1.714924206 | BE83: 0.02117190378 | BF83: 387.3864039 | BG83: 336.8625271 | BH83: 4.15879663
A84: 20090521 | B84: Example 1 | C84: 82 | D84: 78.677048 | E84: 74.10498918 | F84: 0.5938122275 | G84: 4.458203314 | H84: 64.02799528 | I84: 59.73890836 | J84: 0.0496723872 | K84: 17.61929092 | L84: 10.86662488 | M84: 77.05235611 | N84: 68.1470121 | O84: 1.759645688 | P84: 9.808312714 | Q84: 88.25036054 | R84: 63.27784514 | S84: 0.06846389708 | T84: 18.12054456 | U84: 15.93343562 | AE84: 82 | AF84: 76.0687534 | AG84: 35.99191611 | AH84: 57.67200478 | AI84: 1136.727446 | AJ84: 978.8539478 | AK84: 0.8818637157 | AL84: 24.27244838 | AM84: 20.07841241 | AN84: 4.367110776 | AO84: 1.614027691 | AP84: 0.02051459393 | AQ84: 11.85289924 | AR84: 7.873926932 | AS84: 0.09602349917 | AW84: 373.8572254 | AX84: 331.8161761 | AY84: 4.046538732 | AZ84: 385.7101247 | BA84: 339.690103 | BB84: 4.142562232 | BC84: 4.367110776 | BD84: 1.614027691 | BE84: 0.01968326453 | BF84: 390.0772354 | BG84: 341.3041307 | BH84: 4.162245496
A85: 20090521 | B85: Example 1 | C85: 83 | D85: 79.677048 | E85: 75.10498918 | F85: 0.5638502638 | G85: 4.43306406 | H85: 63.98089702 | I85: 59.82934635 | J85: 0.05055846466 | K85: 17.74558841 | L85: 10.59282484 | M85: 78.05235611 | N85: 69.1470121 | O85: 1.773548761 | P85: 9.762251471 | Q85: 86.99631665 | R85: 63.04235968 | S85: 0.06874552259 | T85: 18.25967496 | U85: 16.1111371 | AE85: 83 | AF85: 77.0687534 | AG85: 36.07370041 | AH85: 57.16730018 | AI85: 1114.506172 | AJ85: 965.43212 | AK85: 0.8806960128 | AL85: 24.39271892 | AM85: 20.30061372 | AN85: 4.180064008 | AO85: 1.508267866 | AP85: 0.01892976589 | AQ85: 12.02843431 | AR85: 8.122020688 | AS85: 0.09785567094 | AW85: 376.4803728 | AX85: 335.947667 | AY85: 4.047562254 | AZ85: 388.5088072 | BA85: 344.0696877 | BB85: 4.145417925 | BC85: 4.180064008 | BD85: 1.508267866 | BE85: 0.018171902 | BF85: 392.6888712 | BG85: 345.5779556 | BH85: 4.163589827
A86: 20090521 | B86: Example 1 | C86: 84 | D86: 80.677048 | E86: 76.10498918 | F86: 0.5333195035 | G86: 4.407208951 | H86: 63.93228402 | I86: 59.91272816 | J86: 0.05145173223 | K86: 17.8704717 | L86: 10.30596545 | M86: 79.05235611 | N86: 70.1470121 | O86: 1.78702019 | P86: 9.715184711 | Q86: 85.74930615 | R86: 62.77778134 | S86: 0.06900974064 | T86: 18.39642112 | U86: 16.28937726 | AE86: 84 | AF86: 78.0687534 | AG86: 36.1517497 | AH86: 56.66338366 | AI86: 1092.886565 | AJ86: 952.0730121 | AK86: 0.8795385271 | AL86: 24.51064166 | AM86: 20.52259035 | AN86: 3.98511503 | AO86: 1.398349895 | AP86: 0.01733268544 | AQ86: 12.20084926 | AR86: 8.36729121 | AS86: 0.09961060964 | AW86: 379.0373556 | AX86: 339.9252953 | AY86: 4.046729706 | AZ86: 391.2382048 | BA86: 348.2925865 | BB86: 4.146340316 | BC86: 3.98511503 | BD86: 1.398349895 | BE86: 0.01664702256 | BF86: 395.2233199 | BG86: 349.6909364 | BH86: 4.162987338
A87: 20090521 | B87: Example 1 | C87: 85 | D87: 81.677048 | E87: 77.10498918 | F87: 0.5022701628 | G87: 4.380637503 | H87: 63.88213157 | I87: 59.98929909 | J87: 0.05235206331 | K87: 17.99396591 | L87: 10.00539065 | M87: 80.05235611 | N87: 71.1470121 | O87: 1.800070347 | P87: 9.667116153 | Q87: 84.5099535 | R87: 62.48553969 | S87: 0.06925677536 | T87: 18.53083272 | U87: 16.46818992 | AE87: 85 | AF87: 79.0687534 | AG87: 36.22620518 | AH87: 56.16038292 | AI87: 1071.848867 | AJ87: 938.7920721 | AK87: 0.8783911613 | AL87: 24.6262781 | AM87: 20.74434392 | AN87: 3.782595791 | AO87: 1.285057113 | AP87: 0.01573339322 | AQ87: 12.37015655 | AR87: 8.609521488 | AS87: 0.1012884881 | AW87: 381.5298334 | AX87: 343.7553682 | AY87: 4.044180803 | AZ87: 393.8999899 | BA87: 352.3648897 | BB87: 4.145469291 | BC87: 3.782595791 | BD87: 1.285057113 | BE87: 0.01511831898 | BF87: 397.6825857 | BG87: 353.6499468 | BH87: 4.16058761
A88: 20090521 | B88: Example 1 | C88: 86 | D88: 82.677048 | E88: 78.10498918 | F88: 0.4707537182 | G88: 4.353350294 | H88: 63.83041519 | I88: 60.05928964 | J88: 0.05325932824 | K88: 18.11609559 | L88: 9.690319671 | M88: 81.05235611 | N88: 72.1470121 | O88: 1.812709552 | P88: 9.618050525 | Q88: 83.27885037 | R88: 62.16705302 | S88: 0.06948686788 | T88: 18.66295852 | U88: 16.64760682 | AE88: 86 | AF88: 80.0687534 | AG88: 36.29720305 | AH88: 55.65842253 | AI88: 1051.374029 | AJ88: 925.6030878 | AK88: 0.8772538039 | AL88: 24.73968785 | AM88: 20.96587621 | AN88: 3.572856247 | AO88: 1.169257262 | AP88: 0.01414246506 | AQ88: 12.53637235 | AR88: 8.84851723 | AS88: 0.1028897352 | AW88: 383.9594381 | AX88: 347.444011 | AY88: 4.04004664 | AZ88: 396.4958104 | BA88: 356.2925282 | BB88: 4.142936375 | BC88: 3.572856247 | BD88: 1.169257262 | BE88: 0.01359601468 | BF88: 400.0686667 | BG88: 357.4617855 | BH88: 4.15653239
A89: 20090521 | B89: Example 1 | C89: 87 | D89: 83.677048 | E89: 79.10498918 | F89: 0.4388229098 | G89: 4.325348987 | H89: 63.77711057 | I89: 60.12291644 | J89: 0.05417339418 | K89: 18.23688468 | L89: 9.359815455 | M89: 82.05235611 | N89: 73.1470121 | O89: 1.824948057 | P89: 9.567993574 | Q89: 82.05655574 | R89: 61.82372451 | S89: 0.0697002749 | T89: 18.79284628 | U89: 16.82765778 | AE89: 87 | AF89: 81.0687534 | AG89: 36.36487475 | AH89: 55.15762387 | AI89: 1031.443695 | AJ89: 912.5183199 | AK89: 0.8761263309 | AL89: 24.85092866 | AM89: 21.18718919 | AN89: 3.356264083 | AO89: 1.051909235 | AP89: 0.01257106052 | AQ89: 12.69951625 | AR89: 9.084105936 | AS89: 0.1044150108 | AW89: 386.3277728 | AX89: 350.9971525 | AY89: 4.034450029 | AZ89: 399.0272891 | BA89: 360.0812585 | BB89: 4.13886504 | BC89: 3.356264083 | BD89: 1.051909235 | BE89: 0.01209091075 | BF89: 402.3835532 | BG89: 361.1331677 | BH89: 4.150955951
A90: 20090521 | B90: Example 1 | C90: 88 | D90: 84.677048 | E90: 80.10498918 | F90: 0.4065317352 | G90: 4.296636361 | H90: 63.72219364 | I90: 60.1803831 | J90: 0.05509412522 | K90: 18.35635656 | L90: 9.012741753 | M90: 83.05235611 | N90: 74.1470121 | O90: 1.836796035 | P90: 9.516952076 | Q90: 80.8435961 | R90: 61.45693869 | S90: 0.06989726738 | T90: 18.92054278 | U90: 17.00837075 | AE90: 88 | AF90: 82.0687534 | AG90: 36.42934701 | AH90: 54.6581051 | AI90: 1012.040171 | AJ90: 899.5486253 | AK90: 0.8750086074 | AL90: 24.96005648 | AM90: 21.40828496 | AN90: 3.133204273 | AO90: 0.9340701019 | AP90: 0.01103097148 | AQ90: 12.85961095 | AR90: 9.316135918 | AS90: 0.1058651809 | AW90: 388.6364111 | AX90: 354.4205159 | AY90: 4.027505862 | AZ90: 401.4960221 | BA90: 363.7366518 | BB90: 4.133371043 | BC90: 3.133204273 | BD90: 0.9340701019 | BE90: 0.01061443298 | BF90: 404.6292264 | BG90: 364.6707219 | BH90: 4.143985476
A91: 20090521 | B91: Example 1 | C91: 89 | D91: 85.677048 | E91: 81.10498918 | F91: 0.3739354296 | G91: 4.267216327 | H91: 63.66564056 | I91: 60.23188102 | J91: 0.05602138228 | K91: 18.47453404 | L91: 8.647703896 | M91: 84.05235611 | N91: 75.1470121 | O91: 1.848263561 | P91: 9.464933835 | Q91: 79.64046581 | R91: 61.0680583 | S91: 0.07007812913 | T91: 19.04609385 | U91: 17.18977192 | AE91: 89 | AF91: 83.0687534 | AG91: 36.49074209 | AH91: 54.15998114 | AI91: 993.1464045 | AJ91: 886.703573 | AK91: 0.8739004886 | AL91: 25.06712554 | AM91: 21.6291658 | AN91: 2.904078397 | AO91: 0.8169020832 | AP91: 0.009534666545 | AQ91: 13.01668204 | AR91: 9.544475272 | AS91: 0.1072412952 | AW91: 390.8868965 | AX91: 357.7196122 | AY91: 4.019321486 | AZ91: 403.9035785 | BA91: 367.2640875 | BB91: 4.126562781 | BC91: 2.904078397 | BD91: 0.8169020832 | BE91: 0.009178675092 | BF91: 406.8076569 | BG91: 368.0809896 | BH91: 4.135741456
A92: 20090521 | B92: Example 1 | C92: 90 | D92: 86.677048 | E92: 82.10498918 | F92: 0.3410904319 | G92: 4.237093949 | H92: 63.60742775 | I92: 60.27759016 | J92: 0.05695502321 | K92: 18.59143941 | L92: 8.262964961 | M92: 85.05235611 | N92: 76.1470121 | O92: 1.859360605 | P92: 9.411947686 | Q92: 78.44762744 | R92: 60.65842143 | S92: 0.07024315554 | T92: 19.16954435 | U92: 17.37188578 | AE92: 90 | AF92: 84.0687534 | AG92: 36.54917784 | AH92: 53.66336365 | AI92: 974.7459603 | AJ92: 873.9915512 | AK92: 0.8728018213 | AL92: 25.17218838 | AM92: 21.84983408 | AN92: 2.669303627 | AO92: 0.7016788586 | AP92: 0.008095324827 | AQ92: 13.17075769 | AR92: 9.769010824 | AS92: 0.1085445647 | AW92: 393.0807417 | AX92: 360.8997384 | AY92: 4.009997093 | AZ92: 406.2514994 | BA92: 370.6687492 | BB92: 4.118541658 | BC92: 2.669303627 | BD92: 0.7016788586 | BE92: 0.007796431763 | BF92: 408.920803 | BG92: 371.3704281 | BH92: 4.12633809
A93: 20090521 | B93: Example 1 | C93: 91 | D93: 87.677048 | E93: 83.10498918 | F93: 0.308054331 | G93: 4.206275457 | H93: 63.5475319 | I93: 60.31767976 | J93: 0.05789490272 | K93: 18.70709442 | L93: 7.856323804 | M93: 86.05235611 | N93: 77.1470121 | O93: 1.870097018 | P93: 9.3580035 | Q93: 77.26551233 | R93: 60.22933894 | S93: 0.07039265233 | T93: 19.2909382 | U93: 17.55473524 | AE93: 91 | AF93: 85.0687534 | AG93: 36.6047679 | AH93: 53.16836097 | AI93: 956.8229983 | AJ93: 861.4198673 | AK93: 0.871712445 | AL93: 25.27529594 | AM93: 22.07029231 | AN93: 2.429311255 | AO93: 0.5897902544 | AP93: 0.006726848906 | AQ93: 13.32186845 | AR93: 9.989647053 | AS93: 0.1097763412 | AW93: 395.2194285 | AX93: 363.9659762 | AY93: 3.999626113 | AZ93: 408.5412969 | BA93: 373.9556233 | BB93: 4.109402454 | BC93: 2.429311255 | BD93: 0.5897902544 | BE93: 0.006481211587 | BF93: 410.9706082 | BG93: 374.5454136 | BH93: 4.115883665
A94: 20090521 | B94: Example 1 | C94: 92 | D94: 88.677048 | E94: 84.10498918 | F94: 0.2748857907 | G94: 4.174768257 | H94: 63.48592999 | I94: 60.35230896 | J94: 0.05884087249 | K94: 18.82152034 | L94: 7.42493168 | M94: 87.05235611 | N94: 78.1470121 | O94: 1.880482522 | P94: 9.303112171 | Q94: 76.09452113 | R94: 59.78209222 | S94: 0.07052693432 | T94: 19.41031838 | U94: 17.73834166 | AE94: 92 | AF94: 86.0687534 | AG94: 36.65762179 | AH94: 52.67507818 | AI94: 939.3622516 | AJ94: 848.9948402 | AK94: 0.8706321932 | AL94: 25.37649758 | AM94: 22.29054312 | AN94: 2.184544532 | AO94: 0.4827437708 | AP94: 0.005443841238 | AQ94: 13.47004704 | AR94: 10.20630503 | AS94: 0.1109380981 | AW94: 397.3044075 | AX94: 366.9231945 | AY94: 3.988295593 | AZ94: 410.7744546 | BA94: 377.1294996 | BB94: 4.099233691 | BC94: 2.184544532 | BD94: 0.4827437708 | BE94: 0.0052472149 | BF94: 412.9589991 | BG94: 377.6122433 | BH94: 4.104480906
A95: 20090521 | B95: Example 1 | C95: 93 | D95: 89.677048 | E95: 85.10498918 | F95: 0.2416444484 | G95: 4.142580936 | H95: 63.42259929 | I95: 60.38162751 | J95: 0.05979278113 | K95: 18.93473792 | L95: 6.965005309 | M95: 88.05235611 | N95: 79.1470121 | O95: 1.890526704 | P95: 9.247285621 | Q95: 74.93502448 | R95: 59.31793128 | S95: 0.07064632431 | T95: 19.52772693 | U95: 17.92272498 | AE95: 93 | AF95: 87.0687534 | AG95: 36.70784509 | AH95: 52.18361704 | AI95: 922.3490048 | AJ95: 836.7218864 | AK95: 0.8695608946 | AL95: 25.47584116 | AM95: 22.51058921 | AN95: 1.935455509 | AO95: 0.3821605273 | AP95: 0.004261519929 | AQ95: 13.61532806 | AR95: 10.41892131 | AS95: 0.112031412 | AW95: 399.3370979 | AX95: 369.7760521 | AY95: 3.976086582 | AZ95: 412.952426 | BA95: 380.1949734 | BB95: 4.088117994 | BC95: 1.935455509 | BD95: 0.3821605273 | BE95: 0.004109252981 | BF95: 414.8878815 | BG95: 380.577134 | BH95: 4.092227247
A96: 20090521 | B96: Example 1 | C96: 94 | D96: 90.677048 | E96: 86.10498918 | F96: 0.2083907834 | G96: 4.109723269 | H96: 63.35751739 | I96: 60.40577629 | J96: 0.06075047426 | K96: 19.04676746 | L96: 6.471355188 | M96: 89.05235611 | N96: 80.1470121 | O96: 1.900239008 | P96: 9.190536786 | Q96: 73.78736365 | R96: 58.83807298 | S96: 0.07075115188 | T96: 19.64320497 | U96: 18.10790373 | AE96: 94 | AF96: 88.0687534 | AG96: 36.75553953 | AH96: 51.69407599 | AI96: 905.7690742 | AJ96: 824.605599 | AK96: 0.8684983739 | AL96: 25.5733731 | AM96: 22.73043338 | AN96: 1.682500256 | AO96: 0.289761814 | AP96: 0.003195536471 | AQ96: 13.75774788 | AR96: 10.62744695 | AS96: 0.1130579462 | AW96: 401.3188873 | AX96: 372.5290026 | AY96: 3.963074495 | AZ96: 415.0766352 | BA96: 383.1564495 | BB96: 4.076132442 | BC96: 1.682500256 | BD96: 0.289761814 | BE96: 0.003082572489 | BF96: 416.7591355 | BG96: 383.4462113 | BH96: 4.079215014
A97: 20090521 | B97: Example 1 | C97: 95 | D97: 91.677048 | E97: 87.10498918 | F97: 0.1751859514 | G97: 4.076206208 | H97: 63.29066223 | I97: 60.4248879 | J97: 0.06171379453 | K97: 19.15762876 | L97: 5.936560218 | M97: 90.05235611 | N97: 81.1470121 | O97: 1.909628725 | P97: 9.132879606 | Q97: 72.65185135 | R97: 58.34369965 | S97: 0.07084175245 | T97: 19.75679273 | U97: 18.29389516 | AE97: 95 | AF97: 89.0687534 | AG97: 36.80080313 | AH97: 51.20655017 | AI97: 889.6087869 | AJ97: 812.6498211 | AK97: 0.867444453 | AL97: 25.66913837 | AM97: 22.95007852 | AN97: 1.426131332 | AO97: 0.207340187 | AP97: 0.002261636816 | AQ97: 13.89734438 | AR97: 10.83184638 | AS97: 0.1140194356 | AW97: 403.2511319 | AX97: 375.1862995 | AY97: 3.949329468 | AZ97: 417.1484763 | BA97: 386.0181459 | BB97: 4.063348904 | BC97: 1.426131332 | BD97: 0.207340187 | BE97: 0.002182528284 | BF97: 418.5746076 | BG97: 386.2254861 | BH97: 4.065531432
A98: 20090521 | B98: Example 1 | C98: 96 | D98: 92.677048 | E98: 88.10498918 | F98: 0.1420915798 | G98: 4.042041884 | H98: 63.22201208 | I98: 60.43908716 | J98: 0.06268258165 | K98: 19.2673412 | L98: 5.349400007 | M98: 91.05235611 | N98: 82.1470121 | O98: 1.918704993 | P98: 9.074329018 | Q98: 71.52877251 | R98: 57.83595792 | S98: 0.07091846614 | T98: 19.86852955 | U98: 18.48071527 | AE98: 96 | AF98: 90.0687534 | AG98: 36.8437303 | AH98: 50.72113145 | AI98: 873.8549623 | AJ98: 800.8577138 | AK98: 0.8663989522 | AL98: 25.76318062 | AM98: 23.16952755 | AN98: 1.166785108 | AO98: 0.1367052478 | AP98: 0.001475071237 | AQ98: 14.03415682 | AR98: 11.03209647 | AS98: 0.1149176715 | AW98: 405.1351563 | AX98: 377.7520028 | AY98: 3.934916696 | AZ98: 419.1693131 | BA98: 388.7840993 | BB98: 4.049834368 | BC98: 1.166785108 | BD98: 0.1367052478 | BE98: 0.001424012998 | BF98: 420.3360982 | BG98: 388.9208046 | BH98: 4.051258381
A99: 20090521 | B99: Example 1 | C99: 97 | D99: 93.677048 | E99: 89.10498918 | F99: 0.1091695203 | G99: 4.007243588 | H99: 63.15154559 | I99: 60.44849163 | J99: 0.0636566725 | K99: 19.37592371 | L99: 4.691522118 | M99: 92.05235611 | N99: 83.1470121 | O99: 1.927476787 | P99: 9.014900934 | Q99: 70.41838513 | R99: 57.31595772 | S99: 0.07098163692 | T99: 19.97845388 | U99: 18.6683789 | AE99: 97 | AF99: 91.0687534 | AG99: 36.88441202 | AH99: 50.23790837 | AI99: 858.4948932 | AJ99: 789.2318182 | AK99: 0.8653616906 | AL99: 25.85554216 | AM99: 23.38878349 | AN99: 0.9048581146 | AO99: 0.07958726128 | AP99: 0.0008495919009 | AQ99: 14.16822564 | AR99: 11.22818552 | AS99: 0.1157544899 | AW99: 406.972254 | AX99: 380.2299854 | AY99: 3.919896756 | AZ99: 421.1404796 | BA99: 391.4581709 | BB99: 4.035651246 | BC99: 0.9048581146 | BD99: 0.07958726128 | BE99: 0.0008204872297 | BF99: 422.0453377 | BG99: 391.5377581 | BH99: 4.036471733
A100: 20090521 | B100: Example 1 | C100: 98 | D100: 94.677048 | E100: 90.10498918 | F100: 0.07648155555 | G100: 3.97182576 | H100: 63.0792418 | I100: 60.45321204 | J100: 0.06463590112 | K100: 19.4833948 | L100: 3.929073773 | M100: 93.05235611 | N100: 84.1470121 | O100: 1.935952916 | P100: 8.954612228 | Q100: 69.32092114 | R100: 56.78477158 | S100: 0.07103161162 | T100: 20.08660331 | U100: 18.85689975 | AE100: 98 | AF100: 92.0687534 | AG100: 36.92293587 | AH100: 49.75696624 | AI100: 843.5163278 | AJ100: 777.7741134 | AK100: 0.8643324873 | AL100: 25.94626405 | AM100: 23.60784937 | AN100: 0.6406556818 | AO100: 0.03746694799 | AP100: 0.0003957342226 | AQ100: 14.2995923 | AR100: 11.42011234 | AS100: 0.1165317586 | AW100: 408.7636872 | AX100: 382.6239397 | AY100: 3.904325915 | AZ100: 423.0632795 | BA100: 394.044052 | BB100: 4.020857674 | BC100: 0.6406556818 | BD100: 0.03746694799 | BE100: 0.0003823157958 | BF100: 423.7039352 | BG100: 394.081519 | BH100: 4.02123999
A101: 20090521 | B101: Example 1 | C101: 99 | D101: 95.677048 | E101: 91.10498918 | F101: 0.04408905594 | G101: 3.935803964 | H101: 63.00508012 | I101: 60.45335272 | J101: 0.06562009881 | K101: 19.58977256 | L101: 2.984919856 | M101: 94.05235611 | N101: 85.1470121 | O101: 1.944142023 | P101: 8.893480716 | Q101: 68.23658732 | R101: 56.24343409 | S101: 0.07106873912 | T101: 20.19301458 | U101: 19.04629049 | AE101: 99 | AF101: 93.0687534 | AG101: 36.95938623 | AH101: 49.2783871 | AI101: 828.9074525 | AJ101: 766.4860693 | AK101: 0.8633111621 | AL101: 26.03538612 | AM101: 23.82672829 | AN101: 0.3742483268 | AO101: 0.01125964274 | AP101: 0.0001176838435 | AQ101: 14.42829918 | AR101: 11.60788533 | AS101: 0.117251367 | AW101: 410.5106874 | AX101: 384.9373855 | AY101: 3.888256419 | AZ101: 424.9389866 | BA101: 396.5452708 | BB101: 4.005507786 | BC101: 0.3742483268 | BD101: 0.01125964274 | BE101: 0.000113733765 | BF101: 425.3132349 | BG101: 396.5565305 | BH101: 4.00562152
A102: 20090521 | B102: Example 1 | C102: 100 | D102: 96.677048 | E102: 92.10498918 | F102: 0.01205258525 | G102: 3.899194868 | H102: 62.9290404 | I102: 60.44901204 | J102: 0.06660909419 | K102: 19.69507468 | L102: 1.561599318 | M102: 95.05235611 | N102: 86.1470121 | O102: 1.952052577 | P102: 8.831525132 | Q102: 67.16556618 | R102: 55.69294155 | S102: 0.07109336953 | T102: 20.29772362 | U102: 19.2365628 | AE102: 100 | AF102: 94.0687534 | AG102: 36.99384429 | AH102: 48.80224977 | AI102: 814.6568747 | AJ102: 755.3686953 | AK102: 0.8622975363 | AL102: 26.12294699 | AM102: 24.04542337 | AN102: 0.1047782394 | AO102: 0.0006100927019 | AP102: 6.310626095e-06 | AQ102: 14.55438939 | AR102: 11.79152162 | AS102: 0.1179152162 | AW102: 412.2144555 | AX102: 387.1736767 | AY102: 3.871736767 | AZ102: 426.7688449 | BA102: 398.9651983 | BB102: 3.989651983 | BC102: 0.1047782394 | BD102: 0.0006100927019 | BE102: 6.100927019e-06 | BF102: 426.8736231 | BG102: 398.9658084 | BH102: 3.989658084
A103: 20090521 | B103: Example 1 | C103: 101 | D103: 97.677048 | E103: 93.10498918 | F103: 0 | G103: 3.862016211 | H103: 62.85110293 | I103: 0 | J103: 0.06760271326 | K103: 19.79931847 | L103: 0 | M103: 96.05235611 | N103: 87.1470121 | O103: 1.959692873 | P103: 8.768765105 | Q103: 66.10801694 | R103: 55.13425179 | S103: 0.07110585344 | T103: 20.40076552 | U103: 19.4277274 | AE103: 101 | AF103: 95.0687534 | AG103: 37.02638827 | AH103: 48.32862986 | AI103: 800.7536076 | AJ103: 744.4225852 | AK103: 0.8612914333 | AL103: 26.20898417 | AM103: 24.26393774 | AN103: 0 | AO103: 0 | AP103: 0 | AQ103: 14.67790664 | AR103: 11.97104627 | AS103: 0.1185252106 | AW103: 413.876162 | AX103: 389.3360085 | AY103: 3.854811966 | AZ103: 428.5540687 | BA103: 401.3070548 | BB103: 3.973337176 | BC103: 0 | BD103: 0 | BE103: 0 | BF103: 428.5540687 | BG103: 401.3070548 | BH103: 3.973337176
A104: 20090521 | B104: Example 1 | C104: 102 | D104: 98.677048 | E104: 94.10498918 | F104: 0 | G104: 3.824286766 | H104: 62.77124842 | I104: 0 | J104: 0.0686007795 | K104: 19.90252083 | L104: 0 | M104: 97.05235611 | N104: 88.1470121 | O104: 1.967071033 | P104: 8.705221134 | Q104: 65.06407646 | R104: 54.56828416 | S104: 0.07110654121 | T104: 20.50217457 | U104: 19.61979413 | AE104: 102 | AF104: 96.0687534 | AG104: 37.05709343 | AH104: 47.85759983 | AI104: 787.1870536 | AJ104: 733.6479582 | AK104: 0.8602926793 | AL104: 26.29353404 | AM104: 24.48227456 | AN104: 0 | AO104: 0 | AP104: 0 | AQ104: 14.79889518 | AR104: 12.14649149 | AS104: 0.1190832499 | AW104: 415.4969477 | AX104: 391.427425 | AY104: 3.837523775 | AZ104: 430.2958429 | BA104: 403.5739165 | BB104: 3.956607025 | BC104: 0 | BD104: 0 | BE104: 0 | BF104: 430.2958429 | BG104: 403.5739165 | BH104: 3.956607025
A105: 20090521 | B105: Example 1 | C105: 103 | D105: 99.677048 | E105: 95.10498918 | F105: 0 | G105: 3.786026309 | H105: 62.68945807 | I105: 0 | J105: 0.06960311391 | K105: 20.00469833 | L105: 0 | M105: 98.05235611 | N105: 89.1470121 | O105: 1.974195001 | P105: 8.640914557 | Q105: 64.03386017 | R105: 53.99591967 | S105: 0.0710957823 | T105: 20.60198428 | U105: 19.81277199 | AE105: 103 | AF105: 97.0687534 | AG105: 37.08603219 | AH105: 47.38922899 | AI105: 773.9469902 | AJ105: 723.0446972 | AK105: 0.8593011038 | AL105: 26.37663193 | AM105: 24.70043701 | AN105: 0 | AO105: 0 | AP105: 0 | AQ105: 14.91739962 | AR105: 12.31789589 | AS105: 0.1195912223 | AW105: 417.0779238 | AX105: 393.4508257 | AY105: 3.81991093 | AZ105: 431.9953235 | BA105: 405.7687216 | BB105: 3.939502152 | BC105: 0 | BD105: 0 | BE105: 0 | BF105: 431.9953235 | BG105: 405.7687216 | BH105: 3.939502152
A106: 20090521 | B106: Example 1 | C106: 104 | D106: 100.677048 | E106: 96.10498918 | F106: 0 | G106: 3.747255571 | H106: 62.60571355 | I106: 0 | J106: 0.07060953512 | K106: 20.10586716 | L106: 0 | M106: 99.05235611 | N106: 90.1470121 | O106: 1.981072542 | P106: 8.575867521 | Q106: 63.01746302 | R106: 53.41800121 | S106: 0.07107392467 | T106: 20.70022741 | U106: 20.00666918 | AE106: 104 | AF106: 98.0687534 | AG106: 37.11327429 | AH106: 46.92358356 | AI106: 761.0235552 | AJ106: 712.6123826 | AK106: 0.8583165402 | AL106: 26.45831211 | AM106: 24.91842825 | AN106: 0 | AO106: 0 | AP106: 0 | AQ106: 15.03346487 | AR106: 12.48530382 | AS106: 0.1200509983 | AW106: 418.6201725 | AX106: 395.4089727 | AY106: 3.802009353 | AZ106: 433.6536374 | BA106: 407.8942765 | BB106: 3.922060351 | BC106: 0 | BD106: 0 | BE106: 0 | BF106: 433.6536374 | BG106: 407.8942765 | BH106: 3.922060351
A107: 20090521 | B107: Example 1 | C107: 105 | D107: 101.677048 | E107: 97.10498918 | F107: 0 | G107: 3.707996191 | H107: 62.51999701 | I107: 0 | J107: 0.07161985947 | K107: 20.20604315 | L107: 0 | M107: 100.0523561 | N107: 91.1470121 | O107: 1.987711245 | P107: 8.51010295 | Q107: 62.01496047 | R107: 52.83533399 | S107: 0.07104131424 | T107: 20.79693593 | U107: 20.20149317 | AE107: 105 | AF107: 99.0687534 | AG107: 37.13888679 | AH107: 46.46072669 | AI107: 748.4072331 | AJ107: 702.3503247 | AK107: 0.8573388263 | AL107: 26.53860789 | AM107: 25.13625145 | AN107: 0 | AO107: 0 | AP107: 0 | AQ107: 15.14713601 | AR107: 12.64876471 | AS107: 0.1204644258 | AW107: 420.1247474 | AX107: 397.3044971 | AY107: 3.783852353 | AZ107: 435.2718834 | BA107: 409.9532618 | BB107: 3.904316779 | BC107: 0 | BD107: 0 | BE107: 0 | BF107: 435.2718834 | BG107: 409.9532618 | BH107: 3.904316779
A108: 20090521 | B108: Example 1 | C108: 106 | D108: 102.677048 | E108: 98.10498918 | F108: 0 | G108: 3.66827067 | H108: 62.43229115 | I108: 0 | J108: 0.0726339011 | K108: 20.30524181 | L108: 0 | M108: 101.0523561 | N108: 92.1470121 | O108: 1.994118522 | P108: 8.44364451 | Q108: 61.02640935 | R108: 52.24868597 | S108: 0.07099829431 | T108: 20.89214111 | U108: 20.39725071 | AE108: 106 | AF108: 100.0687534 | AG108: 37.16293423 | AH108: 46.00071853 | AI108: 736.0888414 | AJ108: 692.2575926 | AK108: 0.8563678046 | AL108: 26.61755157 | AM108: 25.35390978 | AN108: 0 | AO108: 0 | AP108: 0 | AQ108: 15.25845823 | AR108: 12.80833244 | AS108: 0.1208333249 | AW108: 421.5926738 | AX108: 399.1399054 | AY108: 3.765470806 | AZ108: 436.851132 | BA108: 411.9482379 | BB108: 3.886304131 | BC108: 0 | BD108: 0 | BE108: 0 | BF108: 436.851132 | BG108: 411.9482379 | BH108: 3.886304131
A109: 20090521 | B109: Example 1 | C109: 107 | D109: 103.677048 | E109: 99.10498918 | F109: 0 | G109: 3.628102314 | H109: 62.34257916 | I109: 0 | J109: 0.07365147204 | K109: 20.40347832 | L109: 0 | M109: 102.0523561 | N109: 93.1470121 | O109: 2.000301606 | P109: 8.376516573 | Q109: 60.05184888 | R109: 51.65878848 | S109: 0.07094520516 | T109: 20.98587346 | U109: 20.5939479 | AE109: 107 | AF109: 101.0687534 | AG109: 37.18547868 | AH109: 45.54361624 | AI109: 724.0595184 | AJ109: 682.3330408 | AK109: 0.8554033228 | AL109: 26.69517456 | AM109: 25.57140638 | AN109: 0 | AO109: 0 | AP109: 0 | AQ109: 15.36747673 | AR109: 12.96406485 | AS109: 0.1211594846 | AW109: 423.0249496 | AX109: 400.9175862 | AY109: 3.746893329 | AZ109: 438.3924263 | BA109: 413.8816511 | BB109: 3.868052814 | BC109: 0 | BD109: 0 | BE109: 0 | BF109: 438.3924263 | BG109: 413.8816511 | BH109: 3.868052814
A110: 20090521 | B110: Example 1 | C110: 108 | D110: 104.677048 | E110: 100.1049892 | F110: 0 | G110: 3.587515178 | H110: 62.2508448 | I110: 0 | J110: 0.07467238228 | K110: 20.50076751 | L110: 0 | M110: 103.0523561 | N110: 94.1470121 | O110: 2.006267555 | P110: 8.308744178 | Q110: 59.09130151 | R110: 51.06633683 | S110: 0.07088238352 | T110: 21.07816281 | U110: 20.79159019 | AE110: 108 | AF110: 102.0687534 | AG110: 37.20657986 | AH110: 45.08947405 | AI110: 712.3107104 | AJ110: 672.5753333 | AK110: 0.8544452342 | AL110: 26.77150733 | AM110: 25.78874436 | AN110: 0 | AO110: 0 | AP110: 0 | AQ110: 15.47423666 | AR110: 13.11602312 | AS110: 0.1214446585 | AW110: 424.4225453 | AX110: 402.6398154 | AY110: 3.728146438 | AZ110: 439.896782 | BA110: 415.7558385 | BB110: 3.849591097 | BC110: 0 | BD110: 0 | BE110: 0 | BF110: 439.896782 | BG110: 415.7558385 | BH110: 3.849591097
A111: 20090521 | B111: Example 1 | C111: 109 | D111: 105.677048 | E111: 101.1049892 | F111: 0 | G111: 3.546534007 | H111: 62.15707238 | I111: 0 | J111: 0.07569643992 | K111: 20.59712393 | L111: 0 | M111: 104.0523561 | N111: 95.1470121 | O111: 2.012023249 | P111: 8.240352995 | Q111: 58.14477386 | R111: 50.47199111 | S111: 0.07081016227 | T111: 21.1690383 | U111: 20.99018246 | AE111: 109 | AF111: 103.0687534 | AG111: 37.22629518 | AH111: 44.63834333 | AI111: 700.8341602 | AJ111: 662.982966 | AK111: 0.8534933978 | AL111: 26.84657951 | AM111: 26.00592685 | AN111: 0 | AO111: 0 | AP111: 0 | AQ111: 15.57878303 | AR111: 13.26427137 | AS111: 0.1216905631 | AW111: 425.7864051 | AX111: 404.3087621 | AY111: 3.709254698 | AZ111: 441.3651881 | BA111: 417.5730334 | BB111: 3.830945261 | BC111: 0 | BD111: 0 | BE111: 0 | BF111: 441.3651881 | BG111: 417.5730334 | BH111: 3.830945261
A112: 20090521 | B112: Example 1 | C112: 110 | D112: 106.677048 | E112: 102.1049892 | F112: 0 | G112: 3.505184171 | H112: 62.06124677 | I112: 0 | J112: 0.07672345122 | K112: 20.69256182 | L112: 0 | M112: 105.0523561 | N112: 96.1470121 | O112: 2.017575398 | P112: 8.171369279 | Q112: 57.21225759 | R112: 49.87637695 | S112: 0.07072886999 | T112: 21.25852839 | U112: 21.18972904 | AE112: 110 | AF112: 104.0687534 | AG112: 37.24467988 | AH112: 44.1902726 | AI112: 689.6218958 | AJ112: 653.5542872 | AK112: 0.8525476788 | AL112: 26.92041987 | AM112: 26.2229569 | AN112: 0 | AO112: 0 | AP112: 0 | AQ112: 15.68116065 | AR112: 13.40887617 | AS112: 0.1218988743 | AW112: 427.1174466 | AX112: 405.9264943 | AY112: 3.690240857 | AZ112: 442.7986073 | BA112: 419.3353705 | BB112: 3.812139732 | BC112: 0 | BD112: 0 | BE112: 0 | BF112: 442.7986073 | BG112: 419.3353705 | BH112: 3.812139732
A113: 20090521 | B113: Example 1 | C113: 111 | D113: 107.677048 | E113: 103.1049892 | F113: 0 | G113: 3.463491604 | H113: 61.96335345 | I113: 0 | J113: 0.07775322072 | K113: 20.78709509 | L113: 0 | M113: 106.0523561 | N113: 97.1470121 | O113: 2.022930535 | P113: 8.101819833 | Q113: 56.29373027 | R113: 49.28008638 | S113: 0.07063883071 | T113: 21.34666087 | U113: 21.39023374 | AE113: 111 | AF113: 105.0687534 | AG113: 37.26178703 | AH113: 43.74530762 | AI113: 678.666219 | AJ113: 644.2875157 | AK113: 0.8516079486 | AL113: 26.99305636 | AM113: 26.43983757 | AN113: 0 | AO113: 0 | AP113: 0 | AQ113: 15.78141408 | AR113: 13.54990613 | AS113: 0.1220712264 | AW113: 428.4165624 | AX113: 407.4949838 | AY113: 3.671125981 | AZ113: 444.1979765 | BA113: 421.04489 | BB113: 3.793197207 | BC113: 0 | BD113: 0 | BE113: 0 | BF113: 444.1979765 | BG113: 421.04489 | BH113: 3.793197207
A114: 20090521 | B114: Example 1 | C114: 112 | D114: 108.677048 | E114: 104.1049892 | F114: 0 | G114: 3.421482734 | H114: 61.8633785 | I114: 0 | J114: 0.07878555135 | K114: 20.88073741 | L114: 0 | M114: 107.0523561 | N114: 98.1470121 | O114: 2.028095026 | P114: 8.031731962 | Q114: 55.38915621 | R114: 48.6836787 | S114: 0.07054036357 | T114: 21.43346291 | U114: 21.59169987 | AE114: 112 | AF114: 106.0687534 | AG114: 37.27766768 | AH114: 43.30349141 | AI114: 667.9596957 | AJ114: 635.1807578 | AK114: 0.8506740851 | AL114: 27.06451616 | AM114: 26.65657184 | AN114: 0 | AO114: 0 | AP114: 0 | AQ114: 15.87958759 | AR114: 13.68743151 | AS114: 0.1222092099 | AW114: 429.6846197 | AX114: 409.0161112 | AY114: 3.651929565 | AZ114: 445.5642073 | BA114: 422.7035427 | BB114: 3.774138775 | BC114: 0 | BD114: 0 | BE114: 0 | BF114: 445.5642073 | BG114: 422.7035427 | BH114: 3.774138775
A115: 20090521 | B115: Example 1 | C115: 113 | D115: 109.677048 | E115: 105.1049892 | F115: 0 | G115: 3.379184418 | H115: 61.7613086 | I115: 0 | J115: 0.07982024453 | K115: 20.97350213 | L115: 0 | M115: 108.0523561 | N115: 99.1470121 | O115: 2.033075066 | P115: 7.961133428 | Q115: 54.49848729 | R115: 48.08768147 | S115: 0.07043378258 | T115: 21.51896103 | U115: 21.79413027 | AE115: 113 | AF115: 107.0687534 | AG115: 37.2923709 | AH115: 42.86486434 | AI115: 657.4951452 | AJ115: 626.2320227 | AK115: 0.8497459729 | AL115: 27.13482567 | AM115: 26.8731627 | AN115: 0 | AO115: 0 | AP115: 0 | AQ115: 15.97572506 | AR115: 13.82152391 | AS115: 0.1223143709 | AW115: 430.9224612 | AX115: 410.4916705 | AY115: 3.63266965 | AZ115: 446.8981863 | BA115: 424.3131944 | BB115: 3.754984021 | BC115: 0 | BD115: 0 | BE115: 0 | BF115: 446.8981863 | BG115: 424.3131944 | BH115: 3.754984021
A116: 20090521 | B116: Example 1 | C116: 114 | D116: 110.677048 | E116: 106.1049892 | F116: 0 | G116: 3.336623868 | H116: 61.65713108 | I116: 0 | J116: 0.08085710026 | K116: 21.06540234 | L116: 0 | M116: 109.0523561 | N116: 100.1470121 | O116: 2.037876684 | P116: 7.890052409 | Q116: 53.62166373 | R116: 47.49259143 | S116: 0.07031939638 | T116: 21.60318113 | U116: 21.99752739 | AE116: 114 | AF116: 108.0687534 | AG116: 37.30594385 | AH116: 42.42946413 | AI116: 647.2656309 | AJ116: 617.4392365 | AK116: 0.8488235034 | AL116: 27.20401057 | AM116: 27.08961307 | AN116: 0 | AO116: 0 | AP116: 0 | AQ116: 16.06986998 | AR116: 13.95225591 | AS116: 0.1223882098 | AW116: 432.1309059 | AX116: 411.9233734 | AY116: 3.613362924 | AZ116: 448.2007759 | BA116: 425.8756293 | BB116: 3.735751134 | BC116: 0 | BD116: 0 | BE116: 0 | BF116: 448.2007759 | BG116: 425.8756293 | BH116: 3.735751134
A117: 20090521 | B117: Example 1 | C117: 115 | D117: 111.677048 | E117: 107.1049892 | F117: 0 | G117: 3.293828585 | H117: 61.55083392 | I117: 0 | J117: 0.08189591725 | K117: 21.15645087 | L117: 0 | M117: 110.0523561 | N117: 101.1470121 | O117: 2.042505744 | P117: 7.818517449 | Q117: 52.75861491 | R117: 46.8988755 | S117: 0.07019750808 | T117: 21.68614854 | U117: 22.20189324 | AE117: 115 | AF117: 109.0687534 | AG117: 37.31843185 | AH117: 41.99732599 | AI117: 637.2644511 | AJ117: 608.8002548 | AK117: 0.8479065747 | AL117: 27.2720958 | AM117: 27.30592582 | AN117: 0 | AO117: 0 | AP117: 0 | AQ117: 16.16206541 | AR117: 14.0797008 | AS117: 0.1224321809 | AW117: 433.3107492 | AX117: 413.3128538 | AY117: 3.594024816 | AZ117: 449.4728146 | BA117: 427.3925546 | BB117: 3.716456997 | BC117: 0 | BD117: 0 | BE117: 0 | BF117: 449.4728146 | BG117: 427.3925546 | BH117: 3.716456997
A118: 20090521 | B118: Example 1 | C118: 116 | D118: 112.677048 | E118: 108.1049892 | F118: 0 | G118: 3.250826287 | H118: 61.44240573 | I118: 0 | J118: 0.08293649304 | K118: 21.24666027 | L118: 0 | M118: 111.0523561 | N118: 102.1470121 | O118: 2.046967949 | P118: 7.746557415 | Q118: 51.90926006 | R118: 46.30697176 | S118: 0.07006841503 | T118: 21.76788798 | U118: 22.40722945 | AE118: 116 | AF118: 110.0687534 | AG118: 37.32987845 | AH118: 41.56848259 | AI118: 627.4851297 | AJ118: 600.3128744 | AK118: 0.8469950919 | AL118: 27.33910564 | AM118: 27.52210377 | AN118: 0 | AO118: 0 | AP118: 0 | AQ118: 16.25235392 | AR118: 14.20393232 | AS118: 0.1224476924 | AW118: 434.4627637 | AX118: 414.6616717 | AY118: 3.574669584 | AZ118: 450.7151176 | BA118: 428.865604 | BB118: 3.697117276 | BC118: 0 | BD118: 0 | BE118: 0 | BF118: 450.7151176 | BG118: 428.865604 | BH118: 3.697117276
A119: 20090521 | B119: Example 1 | C119: 117 | D119: 113.677048 | E119: 109.1049892 | F119: 0 | G119: 3.207644836 | H119: 61.33183584 | I119: 0 | J119: 0.08397862406 | K119: 21.33604286 | L119: 0 | M119: 112.0523561 | N119: 103.1470121 | O119: 2.05126884 | P119: 7.674201448 | Q119: 51.073509 | R119: 45.71729051 | S119: 0.06993240872 | T119: 21.84842359 | U119: 22.61353733 | AE119: 117 | AF119: 111.0687534 | AG119: 37.34032549 | AH119: 41.14296417 | AI119: 617.9214082 | AJ119: 591.9748433 | AK119: 0.8460889672 | AL119: 27.40506368 | AM119: 27.73814972 | AN119: 0 | AO119: 0 | AP119: 0 | AQ119: 16.34077756 | AR119: 14.3250244 | AS119: 0.122436106 | AW119: 435.5876999 | AX119: 415.9713168 | AY119: 3.5553104 | AZ119: 451.9284774 | BA119: 430.2963412 | BB119: 3.677746506 | BC119: 0 | BD119: 0 | BE119: 0 | BF119: 451.9284774 | BG119: 430.2963412 | BH119: 3.677746506
A120: 20090521 | B120: Example 1 | C120: 118 | D120: 114.677048 | E120: 110.1049892 | F120: 0 | G120: 3.164312171 | H120: 61.21911422 | I120: 0 | J120: 0.0850221058 | K120: 21.4246107 | L120: 0 | M120: 113.0523561 | N120: 104.1470121 | O120: 2.055413805 | P120: 7.601478919 | Q120: 50.25126283 | R120: 45.13021523 | S120: 0.06978977464 | T120: 21.92777899 | U120: 22.82081781 | AE120: 118 | AF120: 112.0687534 | AG120: 37.34981318 | AH120: 40.7207986 | AI120: 608.5672372 | AJ120: 583.7838709 | AK120: 0.8451881196 | AL120: 27.46999287 | AM120: 27.95406639 | AN120: 0 | AO120: 0 | AP120: 0 | AQ120: 16.42737785 | AR120: 14.44305096 | AS120: 0.122398737 | AW120: 436.6862861 | AX120: 417.2432123 | AY120: 3.535959426 | AZ120: 453.113664 | BA120: 431.6862632 | BB120: 3.658358163 | BC120: 0 | BD120: 0 | BE120: 0 | BF120: 453.113664 | BG120: 431.6862632 | BH120: 3.658358163
A121: 20090521 | B121: Example 1 | C121: 119 | D121: 115.677048 | E121: 111.1049892 | F121: 0 | G121: 3.120856237 | H121: 61.10423156 | I121: 0 | J121: 0.08606673289 | K121: 21.51237561 | L121: 0 | M121: 114.0523561 | N121: 105.1470121 | O121: 2.059408076 | P121: 7.52841938 | Q121: 49.4424146 | R121: 44.54610366 | S121: 0.06964079217 | T121: 22.00597721 | U121: 23.02907155 | AE121: 119 | AF121: 113.0687534 | AG121: 37.35838013 | AH121: 40.3020114 | AI121: 599.4167684 | AJ121: 575.7376357 | AK121: 0.8442924749 | AL121: 27.53391553 | AM121: 28.16985644 | AN121: 0 | AO121: 0 | AP121: 0 | AQ121: 16.51219573 | AR121: 14.55808574 | AS121: 0.122336855 | AW121: 437.75923 | AX121: 418.4787179 | AY121: 3.516627881 | AZ121: 454.2714257 | BA121: 433.0368036 | BB121: 3.638964736 | BC121: 0 | BD121: 0 | BE121: 0 | BF121: 454.2714257 | BG121: 433.0368036 | BH121: 3.638964736
A122: 20090521 | B122: Example 1 | C122: 120 | D122: 116.677048 | E122: 112.1049892 | F122: 0 | G122: 3.077304913 | H122: 60.98717927 | I122: 0 | J122: 0.08711229921 | K122: 21.59934917 | L122: 0 | M122: 115.0523561 | N122: 106.1470121 | O122: 2.063256733 | P122: 7.455052517 | Q122: 48.64684995 | R122: 43.96528876 | S122: 0.06948573452 | T122: 22.08304078 | U122: 23.23829888 | AE122: 120 | AF122: 114.0687534 | AG122: 37.36606344 | AH122: 39.88662586 | AI122: 590.4643476 | AJ122: 567.8337938 | AK122: 0.8434019663 | AL122: 27.59685339 | AM122: 28.3855225 | AN122: 0 | AO122: 0 | AP122: 0 | AQ122: 16.59527157 | AR122: 14.67020207 | AS122: 0.1222516839 | AW122: 438.807218 | AX122: 419.6791334 | AY122: 3.497326112 | AZ122: 455.4024896 | BA122: 434.3493355 | BB122: 3.619577796 | BC122: 0 | BD122: 0 | BE122: 0 | BF122: 455.4024896 | BG122: 434.3493355 | BH122: 3.619577796
A123: 20090521 | B123: Example 1 | C123: 121 | D123: 117.677048 | E123: 113.1049892 | F123: 0 | G123: 3.033685948 | H123: 60.86794947 | I123: 0 | J123: 0.08815859801 | K123: 21.68554275 | L123: 0 | M123: 116.0523561 | N123: 107.1470121 | O123: 2.066964709 | P123: 7.381408107 | Q123: 47.86444769 | R123: 43.38807974 | S123: 0.06932486867 | T123: 22.15899169 | U123: 23.44849989 | AE123: 121 | AF123: 115.0687534 | AG123: 37.37289874 | AH123: 39.47466302 | AI123: 581.7045068 | AJ123: 560.0699855 | AK123: 0.8425165333 | AL123: 27.65882756 | AM123: 28.60106712 | AN123: 0 | AO123: 0 | AP123: 0 | AQ123: 16.67664511 | AR123: 14.77947277 | AS123: 0.122144403 | AW123: 439.8309168 | AX123: 420.8457017 | AY123: 3.47806365 | AZ123: 456.5075619 | BA123: 435.6251744 | BB123: 3.600208053 | BC123: 0 | BD123: 0 | BE123: 0 | BF123: 456.5075619 | BG123: 435.6251744 | BH123: 3.600208053
A124: 20090521 | B124: Example 1 | C124: 122 | D124: 118.677048 | E124: 114.1049892 | F124: 0 | G124: 2.990026895 | H124: 60.746535 | I124: 0 | J124: 0.08920542206 | K124: 21.77096747 | L124: 0 | M124: 117.0523561 | N124: 108.1470121 | O124: 2.07053679 | P124: 7.307515966 | Q124: 47.09508042 | R124: 42.81476308 | S124: 0.06915845531 | T124: 22.23385145 | U124: 23.6596744 | AE124: 122 | AF124: 116.0687534 | AG124: 37.37892024 | AH124: 39.06614181 | AI124: 573.1319577 | AJ124: 552.4438416 | AK124: 0.8416361226 | AL124: 27.71985863 | AM124: 28.8164928 | AN124: 0 | AO124: 0 | AP124: 0 | AQ124: 16.75635547 | AR124: 14.88596996 | AS124: 0.1220161472 | AW124: 440.8309733 | AX124: 421.9796112 | AY124: 3.458849272 | AZ124: 457.5873288 | BA124: 436.8655811 | BB124: 3.580865419 | BC124: 0 | BD124: 0 | BE124: 0 | BF124: 457.5873288 | BG124: 436.8655811 | BH124: 3.580865419
A125: 20090521 | B125: Example 1 | C125: 123 | D125: 119.677048 | E125: 115.1049892 | F125: 0 | G125: 2.946355044 | H125: 60.62292947 | I125: 0 | J125: 0.09025256369 | K125: 21.85563425 | L125: 0 | M125: 118.0523561 | N125: 109.1470121 | O125: 2.07397762 | P125: 7.233405909 | Q125: 46.33861508 | R125: 42.24560347 | S125: 0.06898674883 | T125: 22.30764105 | U125: 23.87182199 | AE125: 123 | AF125: 117.0687534 | AG125: 37.38416079 | AH125: 38.66107907 | AI125: 564.7415849 | AJ125: 544.9529892 | AK125: 0.8407606875 | AL125: 27.7799666 | AM125: 29.03180199 | AN125: 0 | AO125: 0 | AP125: 0 | AQ125: 16.83444112 | AR125: 14.989765 | AS125: 0.1218680081 | AW125: 441.8080153 | AX125: 423.0819991 | AY125: 3.439691049 | AZ125: 458.6424564 | BA125: 438.0717641 | BB125: 3.561559057 | BC125: 0 | BD125: 0 | BE125: 0 | BF125: 458.6424564 | BG125: 438.0717641 | BH125: 3.561559057
A126: 20090521 | B126: Example 1 | C126: 124 | D126: 120.677048 | E126: 116.1049892 | F126: 0 | G126: 2.902697363 | H126: 60.49712723 | I126: 0 | J126: 0.09129981496 | K126: 21.9395538 | L126: 0 | M126: 119.0523561 | N126: 110.1470121 | O126: 2.077291706 | P126: 7.159107704 | Q126: 45.59491344 | R126: 41.6808448 | S126: 0.06880999729 | T126: 22.38038101 | U126: 24.08494201 | AE126: 124 | AF126: 118.0687534 | AG126: 37.38865192 | AH126: 38.25948959 | AI126: 556.5284395 | AJ126: 537.5950564 | AK126: 0.8398901877 | AL126: 27.83917094 | AM126: 29.24699706 | AN126: 0 | AO126: 0 | AP126: 0 | AQ126: 16.9109399 | AR126: 15.09092833 | AS126: 0.1217010349 | AW126: 442.7626521 | AX126: 424.1539535 | AY126: 3.420596399 | AZ126: 459.673592 | BA126: 439.2448818 | BB126: 3.542297434 | BC126: 0 | BD126: 0 | BE126: 0 | BF126: 459.673592 | BG126: 439.2448818 | BH126: 3.542297434
A127: 20090521 | B127: Example 1 | C127: 125 | D127: 121.677048 | E127: 117.1049892 | F127: 0 | G127: 2.85908044 | H127: 60.3691234 | I127: 0 | J127: 0.09234696777 | K127: 22.02273662 | L127: 0 | M127: 120.0523561 | N127: 111.1470121 | O127: 2.080483414 | P127: 7.084651023 | Q127: 44.86383269 | R127: 41.12071113 | S127: 0.06862844246 | T127: 22.45209139 | U127: 24.29903363 | AE127: 125 | AF127: 119.0687534 | AG127: 37.39242392 | AH127: 37.86138623 | AI127: 548.4877329 | AJ127: 530.3676776 | AK127: 0.8390245898 | AL127: 27.89749064 | AM127: 29.46208032 | AN127: 0 | AO127: 0 | AP127: 0 | AQ127: 16.98588895 | AR127: 15.18952942 | AS127: 0.1215162353 | AW127: 443.6954748 | AX127: 425.196516 | AY127: 3.401572128 | AZ127: 460.6813637 | BA127: 440.3860454 | BB127: 3.523088364 | BC127: 0 | BD127: 0 | BE127: 0 | BF127: 460.6813637 | BG127: 440.3860454 | BH127: 3.523088364
A128: 20090521 | B128: Example 1 | C128: 126 | D128: 122.677048 | E128: 118.1049892 | F128: 0 | G128: 2.81553042 | H128: 60.23891388 | I128: 0 | J128: 0.09339381396 | K128: 22.10519299 | L128: 0 | M128: 121.0523561 | N128: 112.1470121 | O128: 2.083556981 | P128: 7.010065405 | Q128: 44.14522583 | R128: 40.56540758 | S128: 0.0684423198 | T128: 22.52279177 | U128: 24.5140958 | AE128: 126 | AF128: 120.0687534 | AG128: 37.39550585 | AH128: 37.46677991 | AI128: 540.614831 | AJ128: 523.2684966 | AK128: 0.8381638662 | AL128: 27.95494414 | AM128: 29.67705404 | AN128: 0 | AO128: 0 | AP128: 0 | AQ128: 17.05932475 | AR128: 15.28563663 | AS128: 0.1213145765 | AW128: 444.6070569 | AX128: 426.2106841 | AY128: 3.382624477 | AZ128: 461.6663816 | BA128: 441.4963208 | BB128: 3.503939054 | BC128: 0 | BD128: 0 | BE128: 0 | BF128: 461.6663816 | BG128: 441.4963208 | BH128: 3.503939054
A129: 20090521 | B129: Example 1 | C129: 127 | D129: 123.677048 | E129: 119.1049892 | F129: 0 | G129: 2.77207296 | H129: 60.10649533 | I129: 0 | J129: 0.09444014541 | K129: 22.18693302 | L129: 0 | M129: 122.0523561 | N129: 113.1470121 | O129: 2.08651651 | P129: 6.935380211 | Q129: 43.43894217 | R129: 40.01512125 | S129: 0.06825185851 | T129: 22.5925013 | U129: 24.73012729 | AE129: 127 | AF129: 121.0687534 | AG129: 37.39792561 | AH129: 37.07567972 | AI129: 532.9052485 | AJ129: 516.295171 | AK129: 0.8373079961 | AL129: 28.01154943 | AM129: 29.89192041 | AN129: 0 | AO129: 0 | AP129: 0 | AQ129: 17.13128312 | AR129: 15.37931723 | AS129: 0.1210969861 | AW129: 445.4979549 | AX129: 427.1974131 | AY129: 3.363759158 | AZ129: 462.629238 | BA129: 442.5767303 | BB129: 3.484856144 | BC129: 0 | BD129: 0 | BE129: 0 | BF129: 462.629238 | BG129: 442.5767303 | BH129: 3.484856144
A130: 20090521 | B130: Example 1 | C130: 128 | D130: 124.677048 | E130: 120.1049892 | F130: 0 | G130: 2.728733173 | H130: 59.97186523 | I130: 0 | J130: 0.09548575419 | K130: 22.26796662 | L130: 0 | M130: 123.0523561 | N130: 114.1470121 | O130: 2.089365979 | P130: 6.860624581 | Q130: 42.74482778 | R130: 39.47002213 | S130: 0.06805728157 | T130: 22.66123869 | U130: 24.94712671 | AE130: 128 | AF130: 122.0687534 | AG130: 37.39970998 | AH130: 36.68809297 | AI130: 525.3546433 | AJ130: 509.445375 | AK130: 0.8364569642 | AL130: 28.06732403 | AM130: 30.10668156 | AN130: 0 | AO130: 0 | AP130: 0 | AQ130: 17.20179916 | AR130: 15.47063725 | AS130: 0.1208643535 | AW130: 446.3687086 | AX130: 428.1576183 | AY130: 3.344981393 | AZ130: 463.5705077 | BA130: 443.6282555 | BB130: 3.465845746 | BC130: 0 | BD130: 0 | BE130: 0 | BF130: 463.5705077 | BG130: 443.6282555 | BH130: 3.465845746
A131: 20090521 | B131: Example 1 | C131: 129 | D131: 125.677048 | E131: 121.1049892 | F131: 0 | G131: 2.68553558 | H131: 59.83502185 | I131: 0 | J131: 0.09653043265 | K131: 22.3483035 | L131: 0 | M131: 124.0523561 | N131: 115.1470121 | O131: 2.09210924 | P131: 6.785827398 | Q131: 42.06272586 | R131: 38.93026392 | S131: 0.06785880577 | T131: 22.72902223 | U131: 25.16509251 | AE131: 129 | AF131: 123.0687534 | AG131: 37.40088466 | AH131: 36.30402521 | AI131: 517.9588116 | AJ131: 502.7168022 | AK131: 0.8356107616 | AL131: 28.12228498 | AM131: 30.32133955 | AN131: 0 | AO131: 0 | AP131: 0 | AQ131: 17.2709073 | AR131: 15.55966148 | AS131: 0.1206175309 | AW131: 447.2198417 | AX131: 429.0921768 | AY131: 3.326295944 | AZ131: 464.490749 | BA131: 444.6518382 | BB131: 3.446913475 | BC131: 0 | BD131: 0 | BE131: 0 | BF131: 464.490749 | BG131: 444.6518382 | BH131: 3.446913475
A132: 20090521 | B132: Example 1 | C132: 130 | D132: 126.677048 | E132: 122.1049892 | F132: 0 | G132: 2.642504073 | H132: 59.69596425 | I132: 0 | J132: 0.09757397353 | K132: 22.42795319 | L132: 0 | M132: 125.0523561 | N132: 116.1470121 | O132: 2.094750026 | P132: 6.711017246 | Q132: 41.39247715 | R132: 38.39598487 | S132: 0.06765664179 | T132: 22.79586979 | U132: 25.384023 | AE132: 130 | AF132: 124.0687534 | AG132: 37.40147429 | AH132: 35.92348034 | AI132: 510.7136826 | AJ132: 496.1071685 | AK132: 0.8347693847 | AL132: 28.1764489 | AM132: 30.5358964 | AN132: 0 | AO132: 0 | AP132: 0 | AQ132: 17.33864129 | AR132: 15.64645344 | AS132: 0.1203573342 | AW132: 448.0518621 | AX132: 430.0019295 | AY132: 3.30770715 | AZ132: 465.3905034 | BA132: 445.6483829 | BB132: 3.428064484 | BC132: 0 | BD132: 0 | BE132: 0 | BF132: 465.3905034 | BG132: 445.6483829 | BH132: 3.428064484
A133: 20090521 | B133: Example 1 | C133: 131 | D133: 127.677048 | E133: 123.1049892 | F133: 0 | G133: 2.599661866 | H133: 59.55469233 | I133: 0 | J133: 0.09861617009 | K133: 22.50692506 | L133: 0 | M133: 126.0523561 | N133: 117.1470121 | O133: 2.097291948 | P133: 6.636222376 | Q133: 40.73392026 | R133: 37.86730863 | S133: 0.06745099425 | T133: 22.86179884 | U133: 25.60391635 | AE133: 131 | AF133: 125.0687534 | AG133: 37.40150253 | AH133: 35.54646063 | AI133: 503.6153138 | AJ133: 489.6142137 | AK133: 0.8339328357 | AL133: 28.22983198 | AM133: 30.75035404 | AN133: 0 | AO133: 0 | AP133: 0 | AQ133: 17.40503417 | AR133: 15.73107531 | AS133: 0.1200845444 | AW133: 448.8652626 | AX133: 430.8876828 | AY133: 3.289218953 | AZ133: 466.2702968 | BA133: 446.6187581 | BB133: 3.409303497 | BC133: 0 | BD133: 0 | BE133: 0 | BF133: 466.2702968 | BG133: 446.6187581 | BH133: 3.409303497
A134: 20090521 | B134: Example 1 | C134: 132 | D134: 128.677048 | E134: 124.1049892 | F134: 0 | G134: 2.557031463 | H134: 59.41120678 | I134: 0 | J134: 0.0996568162 | K134: 22.58522828 | L134: 0 | M134: 127.0523561 | N134: 118.1470121 | O134: 2.099738506 | P134: 6.561470667 | Q134: 40.08689209 | R134: 37.34434497 | S134: 0.06724206179 | T134: 22.92682646 | U134: 25.82477058 | AE134: 132 | AF134: 126.0687534 | AG134: 37.40099208 | AH134: 35.17296681 | AI134: 496.6598865 | AJ134: 483.2357041 | AK134: 0.833101122 | AL134: 28.28245 | AM134: 30.96471435 | AN134: 0 | AO134: 0 | AP134: 0 | AQ134: 17.4701183 | AR134: 15.81358795 | AS134: 0.1197999087 | AW134: 449.6605211 | AX134: 431.7502101 | AY134: 3.270834925 | AZ134: 467.1306394 | BA134: 447.563798 | BB134: 3.390634834 | BC134: 0 | BD134: 0 | BE134: 0 | BF134: 467.1306394 | BG134: 447.563798 | BH134: 3.390634834
A135: 20090521 | B135: Example 1 | C135: 133 | D135: 129.677048 | E135: 125.1049892 | F135: 0 | G135: 2.514634627 | H135: 59.26550914 | I135: 0 | J135: 0.1006957065 | K135: 22.66287186 | L135: 0 | M135: 128.0523561 | N135: 119.1470121 | O135: 2.102093085 | P135: 6.486789594 | Q135: 39.45122805 | R135: 36.82719059 | S135: 0.06703003715 | T135: 22.99096932 | U135: 26.04658364 | AE135: 133 | AF135: 127.0687534 | AG135: 37.39996472 | AH135: 34.80299807 | AI135: 489.8437012 | AJ135: 476.9694335 | AK135: 0.8322742564 | AL135: 28.33431831 | AM135: 31.17897915 | AN135: 0 | AO135: 0 | AP135: 0 | AQ135: 17.53392536 | AR135: 15.89405082 | AS135: 0.1195041415 | AW135: 450.4381012 | AX135: 432.5902535 | AY135: 3.252558297 | AZ135: 467.9720266 | BA135: 448.4843043 | BB135: 3.372062438 | BC135: 0 | BD135: 0 | BE135: 0 | BF135: 467.9720266 | BG135: 448.4843043 | BH135: 3.372062438
A136: 20090521 | B136: Example 1 | C136: 134 | D136: 130.677048 | E136: 126.1049892 | F136: 0 | G136: 2.472492345 | H136: 59.11760177 | I136: 0 | J136: 0.1017326363 | K136: 22.73986466 | L136: 0 | M136: 129.0523561 | N136: 120.1470121 | O136: 2.104358961 | P136: 6.412206195 | Q136: 38.82676244 | R136: 36.3159298 | S136: 0.06681510726 | T136: 23.05424376 | U136: 26.26935332 | AE136: 134 | AF136: 128.0687534 | AG136: 37.39844132 | AH136: 34.43655218 | AI136: 483.1631732 | AJ136: 470.8132252 | AK136: 0.8314522564 | AL136: 28.38545191 | AM136: 31.39315021 | AN136: 0 | AO136: 0 | AP136: 0 | AQ136: 17.59648633 | AR136: 15.97252203 | AS136: 0.1191979256 | AW136: 451.1984524 | AX136: 433.4085251 | AY136: 3.234391978 | AZ136: 468.7949388 | BA136: 449.3810471 | BB136: 3.353589904 | BC136: 0 | BD136: 0 | BE136: 0 | BF136: 468.7949388 | BG136: 449.3810471 | BH136: 3.353589904
A137: 20090521 | B137: Example 1 | C137: 135 | D137: 131.677048 | E137: 127.1049892 | F137: 0 | G137: 2.430624807 | H137: 58.96748786 | I137: 0 | J137: 0.1027674022 | K137: 22.81621536 | L137: 0 | M137: 130.0523561 | N137: 121.1470121 | O137: 2.106539303 | P137: 6.337747042 | Q137: 38.21332872 | R137: 35.81063525 | S137: 0.06659745331 | T137: 23.11666572 | U137: 26.49307735 | AE137: 135 | AF137: 129.0687534 | AG137: 37.39644192 | AH137: 34.0736255 | AI137: 476.614829 | AJ137: 464.7649326 | AK137: 0.8306351445 | AL137: 28.4358654 | AM137: 31.6072292 | AN137: 0 | AO137: 0 | AP137: 0 | AQ137: 17.65783152 | AR137: 16.0490583 | AS137: 0.1188819134 | AW137: 451.9420109 | AX137: 434.2057086 | AY137: 3.216338582 | AZ137: 469.5998425 | BA137: 450.2547669 | BB137: 3.335220496 | BC137: 0 | BD137: 0 | BE137: 0 | BF137: 469.5998425 | BG137: 450.2547669 | BH137: 3.335220496
A138: 20090521 | B138: Example 1 | C138: 136 | D138: 132.677048 | E138: 128.1049892 | F138: 0 | G138: 2.38905138 | H138: 58.81517145 | I138: 0 | J138: 0.1037998014 | K138: 22.89193247 | L138: 0 | M138: 131.0523561 | N138: 122.1470121 | O138: 2.108637179 | P138: 6.263438207 | Q138: 37.61075973 | R138: 35.31136862 | S138: 0.06637725088 | T138: 23.1782508 | U138: 26.71775333 | AE138: 136 | AF138: 130.0687534 | AG138: 37.39398573 | AH138: 33.71421305 | AI138: 470.1953017 | AJ138: 458.8224411 | AK138: 0.8298229477 | AL138: 28.48557301 | AM138: 31.82121777 | AN138: 0 | AO138: 0 | AP138: 0 | AQ138: 17.71799057 | AR138: 16.12371497 | AS138: 0.1185567278 | AW138: 452.6691996 | AX138: 434.9824605 | AY138: 3.198400445 | AZ138: 470.3871902 | BA138: 451.1061755 | BB138: 3.316957173 | BC138: 0 | BD138: 0 | BE138: 0 | BF138: 470.3871902 | BG138: 451.1061755 | BH138: 3.316957173
A139: 20090521 | B139: Example 1 | C139: 137 | D139: 133.677048 | E139: 129.1049892 | F139: 0 | G139: 2.347790594 | H139: 58.66065741 | I139: 0 | J139: 0.1048296327 | K139: 22.96702436 | L139: 0 | M139: 132.0523561 | N139: 123.1470121 | O139: 2.110655552 | P139: 6.18930524 | Q139: 37.018888 | R139: 34.81818121 | S139: 0.06615466998 | T139: 23.23901425 | U139: 26.94337881 | AE139: 137 | AF139: 131.0687534 | AG139: 37.39109117 | AH139: 33.35830856 | AI139: 463.9013278 | AJ139: 452.983668 | AK139: 0.8290156973 | AL139: 28.53458862 | AM139: 32.03511749 | AN139: 0 | AO139: 0 | AP139: 0 | AQ139: 17.77699244 | AR139: 16.196546 | AS139: 0.1182229635 | AW139: 453.3804287 | AX139: 435.7394113 | AY139: 3.180579644 | AZ139: 471.1574212 | BA139: 451.9359573 | BB139: 3.298802608 | BC139: 0 | BD139: 0 | BE139: 0 | BF139: 471.1574212 | BG139: 451.9359573 | BH139: 3.298802608
A140: 20090521 | B140: Example 1 | C140: 138 | D140: 134.677048 | E140: 130.1049892 | F140: 0 | G140: 2.306860122 | H140: 58.50395144 | I140: 0 | J140: 0.1058566959 | K140: 23.04149927 | L140: 0 | M140: 133.0523561 | N140: 124.1470121 | O140: 2.112597291 | P140: 6.115373143 | Q140: 36.43754593 | R140: 34.33111462 | S140: 0.06592987521 | T140: 23.29897098 | U140: 27.16995123 | AE140: 138 | AF140: 132.0687534 | AG140: 37.3877759 | AH140: 33.0059045 | AI140: 457.7297433 | AJ140: 447.2465639 | AK140: 0.8282134289 | AL140: 28.58292577 | AM140: 32.24892987 | AN140: 0 | AO140: 0 | AP140: 0 | AQ140: 17.83486544 | AR140: 16.26760394 | AS140: 0.117881188 | AW140: 454.0760961 | AX140: 436.4771667 | AY140: 3.162878019 | AZ140: 471.9109615 | BA140: 452.7447706 | BB140: 3.280759207 | BC140: 0 | BD140: 0 | BE140: 0 | BF140: 471.9109615 | BG140: 452.7447706 | BH140: 3.280759207
A141: 20090521 | B141: Example 1 | C141: 139 | D141: 135.677048 | E141: 131.1049892 | F141: 0 | G141: 2.266276771 | H141: 58.34506011 | I141: 0 | J141: 0.1068807921 | K141: 23.11536524 | L141: 0 | M141: 134.0523561 | N141: 125.1470121 | O141: 2.114465167 | P141: 6.041666342 | Q141: 35.86656606 | R141: 33.85020131 | S141: 0.06570302584 | T141: 23.35813557 | U141: 27.39746796 | AE141: 139 | AF141: 133.0687534 | AG141: 37.38405686 | AH141: 32.65699219 | AI141: 451.6774802 | AJ141: 441.6091128 | AK141: 0.827416182 | AL141: 28.63059767 | AM141: 32.46265637 | AN141: 0 | AO141: 0 | AP141: 0 | AQ141: 17.89163722 | AR141: 16.33694 | AS141: 0.1175319425 | AW141: 454.7565876 | AX141: 437.1963089 | AY141: 3.145297186 | AZ141: 472.6482248 | BA141: 453.5332489 | BB141: 3.262829129 | BC141: 0 | BD141: 0 | BE141: 0 | BF141: 472.6482248 | BG141: 453.5332489 | BH141: 3.262829129
A142: 20090521 | B142: Example 1 | C142: 140 | D142: 136.677048 | E142: 132.1049892 | F142: 0 | G142: 2.226056475 | H142: 58.18399082 | I142: 0 | J142: 0.1079017242 | K142: 23.18863021 | L142: 0 | M142: 135.0523561 | N142: 126.1470121 | O142: 2.116261859 | P142: 5.96820867 | Q142: 35.30578121 | R142: 33.37546518 | S142: 0.0654742759 | T142: 23.41652228 | U142: 27.62592631 | AE142: 140 | AF142: 134.0687534 | AG142: 37.3799503 | AH142: 32.31156177 | AI142: 445.7415631 | AJ142: 436.0693329 | AK142: 0.8266239999 | AL142: 28.67761718 | AM142: 32.67629839 | AN142: 0 | AO142: 0 | AP142: 0 | AQ142: 17.94733477 | AR142: 16.40460404 | AS142: 0.1171757431 | AW142: 455.4222776 | AX142: 437.8973974 | AY142: 3.127838553 | AZ142: 473.3696123 | BA142: 454.3020015 | BB142: 3.245014296 | BC142: 0 | BD142: 0 | BE142: 0 | BF142: 473.3696123 | BG142: 454.3020015 | BH142: 3.245014296
A143: 20090521 | B143: Example 1 | C143: 141 | D143: 137.677048 | E143: 133.1049892 | F143: 0 | G143: 2.186214286 | H143: 58.02075183 | I143: 0 | J143: 0.1089192964 | K143: 23.26130196 | L143: 0 | M143: 136.0523561 | N143: 127.1470121 | O143: 2.117989958 | P143: 5.895023345 | Q143: 34.7550247 | R143: 32.90692211 | S143: 0.06524377431 | T143: 23.47414505 | U143: 27.85532352 | AE143: 141 | AF143: 135.0687534 | AG143: 37.37547178 | AH143: 31.9696023 | AI143: 439.9191062 | AJ143: 430.6252767 | AK143: 0.8258369293 | AL143: 28.72399687 | AM143: 32.88985727 | AN143: 0 | AO143: 0 | AP143: 0 | AQ143: 18.00198445 | AR143: 16.47064454 | AS143: 0.1168130819 | AW143: 456.073529 | AX143: 438.5809703 | AY143: 3.110503336 | AZ143: 474.0755134 | BA143: 455.0516149 | BB143: 3.227316418 | BC143: 0 | BD143: 0 | BE143: 0 | BF143: 474.0755134 | BG143: 455.0516149 | BH143: 3.227316418
A144: 20090521 | B144: Example 1 | C144: 142 | D144: 138.677048 | E144: 134.1049892 | F144: 0 | G144: 2.146764377 | H144: 57.85535221 | I144: 0 | J144: 0.1099333146 | K144: 23.33338814 | L144: 0 | M144: 137.0523561 | N144: 128.1470121 | O144: 2.119651964 | P144: 5.822132953 | Q144: 34.21413054 | R144: 32.4445805 | S144: 0.06501166498 | T144: 23.53101754 | U144: 28.08565678 | AE144: 142 | AF144: 136.0687534 | AG144: 37.37063622 | AH144: 31.63110181 | AI144: 434.2073101 | AJ144: 425.2750314 | AK144: 0.8250550205 | AL144: 28.76974899 | AM144: 33.10333429 | AN144: 0 | AO144: 0 | AP144: 0 | AQ144: 18.055612 | AR144: 16.53510868 | AS144: 0.1164444274 | AW144: 456.710694 | AX144: 439.247545 | AY144: 3.093292571 | AZ144: 474.766306 | BA144: 455.7826537 | BB144: 3.209736998 | BC144: 0 | BD144: 0 | BE144: 0 | BF144: 474.766306 | BG144: 455.7826537 | BH144: 3.209736998
A145: 20090521 | B145: Example 1 | C145: 143 | D145: 139.677048 | E145: 135.1049892 | F145: 0 | G145: 2.107720037 | H145: 57.68780192 | I145: 0 | J145: 0.1109435864 | K145: 23.40489626 | L145: 0 | M145: 138.0523561 | N145: 129.1470121 | O145: 2.121250295 | P145: 5.749559428 | Q145: 33.68293353 | R145: 31.98844173 | S145: 0.06477808692 | T145: 23.58715307 | U145: 28.31692321 | AE145: 143 | AF145: 137.0687534 | AG145: 37.36545792 | AH145: 31.29604731 | AI145: 428.6034586 | AJ145: 420.0167185 | AK145: 0.8242783267 | AL145: 28.8148855 | AM145: 33.31673068 | AN145: 0 | AO145: 0 | AP145: 0 | AQ145: 18.10824252 | AR145: 16.59804233 | AS145: 0.1160702261 | AW145: 457.3341141 | AX145: 439.8976192 | AY145: 3.076207128 | AZ145: 475.4423566 | BA145: 456.4956616 | BB145: 3.192277354 | BC145: 0 | BD145: 0 | BE145: 0 | BF145: 475.4423566 | BG145: 456.4956616 | BH145: 3.192277354
A146: 20090521 | B146: Example 1 | C146: 144 | D146: 140.677048 | E146: 136.1049892 | F146: 0 | G146: 2.06909368 | H146: 57.51811172 | I146: 0 | J146: 0.1119499214 | K146: 23.47583368 | L146: 0 | M146: 139.0523561 | N146: 130.1470121 | O146: 2.122787286 | P146: 5.677324043 | Q146: 33.16126948 | R146: 31.53850067 | S146: 0.06454317435 | T146: 23.64256471 | U146: 28.54911989 | AE146: 144 | AF146: 138.0687534 | AG146: 37.35995061 | AH146: 30.96442486 | AI146: 423.1049161 | AJ146: 414.8484948 | AK146: 0.8235069042 | AL146: 28.85941807 | AM146: 33.53004763 | AN146: 0 | AO146: 0 | AP146: 0 | AQ146: 18.15990051 | AR146: 16.65949006 | AS146: 0.1156909032 | AW146: 457.9441206 | AX146: 440.5316719 | AY146: 3.059247722 | AZ146: 476.1040211 | BA146: 457.191162 | BB146: 3.174938625 | BC146: 0 | BD146: 0 | BE146: 0 | BF146: 476.1040211 | BG146: 457.191162 | BH146: 3.174938625
A147: 20090521 | B147: Example 1 | C147: 145 | D147: 141.677048 | E147: 137.1049892 | F147: 0 | G147: 2.030896849 | H147: 57.34629325 | I147: 0 | J147: 0.1129521312 | K147: 23.54620768 | L147: 0 | M147: 140.0523561 | N147: 131.1470121 | O147: 2.124265193 | P147: 5.605447395 | Q147: 32.64897526 | R147: 31.0947461 | S147: 0.0643070568 | T147: 23.69726522 | U147: 28.78224386 | AE147: 145 | AF147: 139.0687534 | AG147: 37.35412741 | AH147: 30.63621963 | AI147: 417.7091248 | AJ147: 409.7685511 | AK147: 0.822740812 | AL147: 28.90335807 | AM147: 33.74328624 | AN147: 0 | AO147: 0 | AP147: 0 | AQ147: 18.21060986 | AR147: 16.71949517 | AS147: 0.1153068633 | AW147: 458.5410349 | AX147: 441.1501639 | AY147: 3.042414924 | AZ147: 476.7516448 | BA147: 457.8696591 | BB147: 3.157721787 | BC147: 0 | BD147: 0 | BE147: 0 | BF147: 476.7516448 | BG147: 457.8696591 | BH147: 3.157721787
A148: 20090521 | B148: Example 1 | C148: 146 | D148: 142.677048 | E148: 138.1049892 | F148: 0 | G148: 1.993140223 | H148: 57.17235894 | I148: 0 | J148: 0.1139500292 | K148: 23.61602535 | L148: 0 | M148: 141.0523561 | N148: 132.1470121 | O148: 2.125686192 | P148: 5.533949392 | Q148: 32.14588901 | R148: 30.65716115 | S148: 0.06406985926 | T148: 23.75126708 | U148: 29.0162921 | AE148: 146 | AF148: 140.0687534 | AG148: 37.34800092 | AH148: 30.31141589 | AI148: 412.413602 | AJ148: 404.7751134 | AK148: 0.8219801116 | AL148: 28.94671663 | AM148: 33.95644759 | AN148: 0 | AO148: 0 | AP148: 0 | AQ148: 18.26039387 | AR148: 16.77809974 | AS148: 0.1149184913 | AW148: 459.1251688 | AX148: 441.753539 | AY148: 3.025709171 | AZ148: 477.3855627 | BA148: 458.5316388 | BB148: 3.140627663 | BC148: 0 | BD148: 0 | BE148: 0 | BF148: 477.3855627 | BG148: 458.5316388 | BH148: 3.140627663
A149: 20090521 | B149: Example 1 | C149: 147 | D149: 143.677048 | E149: 139.1049892 | F149: 0 | G149: 1.955833634 | H149: 56.99632209 | I149: 0 | J149: 0.114943431 | K149: 23.68529372 | L149: 0 | M149: 142.0523561 | N149: 133.1470121 | O149: 2.127052386 | P149: 5.462849248 | Q149: 31.6518502 | R149: 30.22572373 | S149: 0.06383170222 | T149: 23.80458253 | U149: 29.25126158 | AE149: 147 | AF149: 141.0687534 | AG149: 37.34158321 | AH149: 29.98999711 | AI149: 407.2159376 | AJ149: 399.8664416 | AK149: 0.8212248668 | AL149: 28.9895046 | AM149: 34.1695327 | AN149: 0 | AO149: 0 | AP149: 0 | AQ149: 18.30927527 | AR149: 16.8353446 | AS149: 0.1145261537 | AW149: 459.6968247 | AX149: 442.3422245 | AY149: 3.009130779 | AZ149: 478.0061 | BA149: 459.1775691 | BB149: 3.123656933 | BC149: 0 | BD149: 0 | BE149: 0 | BF149: 478.0061 | BG149: 459.1775691 | BH149: 3.123656933
A150: 20090521 | B150: Example 1 | C150: 148 | D150: 144.677048 | E150: 140.1049892 | F150: 0 | G150: 1.918986071 | H150: 56.81819681 | I150: 0 | J150: 0.1159321545 | K150: 23.75401964 | L150: 0 | M150: 143.0523561 | N150: 134.1470121 | O150: 2.128365806 | P150: 5.392165471 | Q150: 31.16669974 | R150: 29.80040686 | S150: 0.06359270185 | T150: 23.85722352 | U150: 29.4871492 | AE150: 148 | AF150: 142.0687534 | AG150: 37.33488584 | AH150: 29.67194597 | AI150: 402.1137914 | AJ150: 395.0408302 | AK150: 0.8204751436 | AL150: 29.03173257 | AM150: 34.38254254 | AN150: 0 | AO150: 0 | AP150: 0 | AQ150: 18.35727619 | AR150: 16.8912694 | AS150: 0.1141301986 | AW150: 460.2562961 | AX150: 442.9166319 | AY150: 2.992679945 | AZ150: 478.6135723 | BA150: 459.8079012 | BB150: 3.106810144 | BC150: 0 | BD150: 0 | BE150: 0 | BF150: 478.6135723 | BG150: 459.8079012 | BH150: 3.106810144
A151: 20090521 | B151: Example 1 | C151: 149 | D151: 145.677048 | E151: 141.1049892 | F151: 0 | G151: 1.882605704 | H151: 56.63799804 | I151: 0 | J151: 0.1169160199 | K151: 23.8222099 | L151: 0 | M151: 144.0523561 | N151: 135.1470121 | O151: 2.12962841 | P151: 5.321915863 | Q151: 30.69028008 | R151: 29.3811791 | S151: 0.06335297008 | T151: 23.90920176 | U151: 29.72395186 | AE151: 149 | AF151: 143.0687534 | AG151: 37.32791988 | AH151: 29.35724441 | AI151: 397.1048911 | AJ151: 390.2966073 | AK151: 0.81973101 | AL151: 29.07341089 | AM151: 34.59547802 | AN151: 0 | AO151: 0 | AP151: 0 | AQ151: 18.40441823 | AR151: 16.94591261 | AS151: 0.1137309571 | AW151: 460.8038676 | AX151: 443.4771575 | AY151: 2.976356762 | AZ151: 479.2082858 | BA151: 460.4230701 | BB151: 3.090087719 | BC151: 0 | BD151: 0 | BE151: 0 | BF151: 479.2082858 | BG151: 460.4230701 | BH151: 3.090087719
A152: 20090521 | B152: Example 1 | C152: 150 | D152: 146.677048 | E152: 142.1049892 | F152: 0 | G152: 1.846699898 | H152: 56.45574152 | I152: 0 | J152: 0.1178948496 | K152: 23.88987112 | L152: 0 | M152: 145.0523561 | N152: 136.1470121 | O152: 2.130842088 | P152: 5.252117508 | Q152: 30.22243529 | R152: 28.96800485 | S152: 0.0631126147 | T152: 23.96052869 | U152: 29.96166641 | AE152: 150 | AF152: 144.0687534 | AG152: 37.32069596 | AH152: 29.04587364 | AI152: 392.1870299 | AJ152: 385.6321346 | AK152: 0.8189925357 | AL152: 29.11454964 | AM152: 34.80834003 | AN152: 0 | AO152: 0 | AP152: 0 | AQ152: 18.45072242 | AR152: 16.99931158 | AS152: 0.1133287439 | AW152: 461.3398155 | AX152: 444.0241835 | AY152: 2.960161223 | AZ152: 479.790538 | BA152: 461.023495 | BB152: 3.073489967 | BC152: 0 | BD152: 0 | BE152: 0 | BF152: 479.790538 | BG152: 461.023495 | BH152: 3.073489967
A153: 20090521 | B153: Example 1 | C153: 151 | D153: 147.677048 | E153: 143.1049892 | F153: 0 | G153: 1.811275226 | H153: 56.27144382 | I153: 0 | J153: 0.1188684686 | K153: 23.95700984 | L153: 0 | M153: 146.0523561 | N153: 137.1470121 | O153: 2.132008667 | P153: 5.182786779 | Q153: 29.76301114 | R153: 28.5608447 | S153: 0.06287173948 | T153: 24.01121553 | U153: 30.20028968 | AE153: 151 | AF153: 145.0687534 | AG153: 37.31322423 | AH153: 28.73781424 | AI153: 387.3580643 | AJ153: 381.0458073 | AK153: 0.8182597919 | AL153: 29.1551587 | AM153: 35.02112939 | AN153: 0 | AO153: 0 | AP153: 0 | AQ153: 18.49620925 | AR153: 17.05150252 | AS153: 0.1129238578 | AW153: 461.8644079 | AX153: 444.5580779 | AY153: 2.944093231 | AZ153: 480.3606172 | BA153: 461.6095804 | BB153: 3.057017089 | BC153: 0 | BD153: 0 | BE153: 0 | BF153: 480.3606172 | BG153: 461.6095804 | BH153: 3.057017089
A154: 20090521 | B154: Example 1 | C154: 152 | D154: 148.677048 | E154: 144.1049892 | F154: 0 | G154: 1.7763375 | H154: 56.0851223 | I154: 0 | J154: 0.1198367045 | K154: 24.02363249 | L154: 0 | M154: 147.0523561 | N154: 138.1470121 | O154: 2.133129905 | P154: 5.113939326 | Q154: 29.31185517 | R154: 28.15965575 | S154: 0.06263044427 | T154: 24.06127324 | U154: 30.43981848 | AE154: 152 | AF154: 146.0687534 | AG154: 37.30551444 | AH154: 28.43304614 | AI154: 382.6159117 | AJ154: 376.5360533 | AK154: 0.8175328513 | AL154: 29.19524771 | AM154: 35.23384687 | AN154: 0 | AO154: 0 | AP154: 0 | AQ154: 18.5408987 | AR154: 17.10252055 | AS154: 0.1125165825 | AW154: 462.3779049 | AX154: 445.0791957 | AY154: 2.928152604 | AZ154: 480.9188036 | BA154: 462.1817163 | BB154: 3.040669186 | BC154: 0 | BD154: 0 | BE154: 0 | BF154: 480.9188036 | BG154: 462.1817163 | BH154: 3.040669186
A155: 20090521 | B155: Example 1 | C155: 153 | D155: 149.677048 | E155: 145.1049892 | F155: 0 | G155: 1.74189178 | H155: 55.89679511 | I155: 0 | J155: 0.1207993872 | K155: 24.08974537 | L155: 0 | M155: 148.0523561 | N155: 139.1470121 | O155: 2.134207501 | P155: 5.045590088 | Q155: 28.86881675 | R155: 27.76439187 | S155: 0.0623888251 | T155: 24.11071256 | U155: 30.6802496 | AE155: 153 | AF155: 147.0687534 | AG155: 37.29757593 | AH155: 28.13154867 | AI155: 377.9585491 | AJ155: 372.101333 | AK155: 0.8168117877 | AL155: 29.23482607 | AM155: 35.44649321 | AN155: 0 | AO155: 0 | AP155: 0 | AQ155: 18.58481021 | AR155: 17.15239972 | AS155: 0.1121071877 | AW155: 462.880559 | AX155: 445.5878793 | AY155: 2.91233908 | AZ155: 481.4653692 | BA155: 462.740279 | BB155: 3.024446268 | BC155: 0 | BD155: 0 | BE155: 0 | BF155: 481.4653692 | BG155: 462.740279 | BH155: 3.024446268
A156: 20090521 | B156: Example 1 | C156: 154 | D156: 150.677048 | E156: 146.1049892 | F156: 0 | G156: 1.707942406 | H156: 55.70648118 | I156: 0 | J156: 0.1217563497 | K156: 24.1553547 | L156: 0 | M156: 149.0523561 | N156: 140.1470121 | O156: 2.135243094 | P156: 4.977753284 | Q156: 28.43374711 | R156: 27.37500403 | S156: 0.06214697431 | T156: 24.15954401 | U156: 30.92157979 | AE156: 154 | AF156: 148.0687534 | AG156: 37.28941762 | AH156: 27.83330061 | AI156: 373.3840104 | AJ156: 367.7401387 | AK156: 0.816096676 | AL156: 29.27390298 | AM156: 35.65906911 | AN156: 0 | AO156: 0 | AP156: 0 | AQ156: 18.62796272 | AR156: 17.20117305 | AS156: 0.1116959289 | AW156: 463.3726151 | AX156: 446.0844585 | AY156: 2.896652328 | AZ156: 482.0005778 | BA156: 463.2856316 | BB156: 3.008348257 | BC156: 0 | BD156: 0 | BE156: 0 | BF156: 482.0005778 | BG156: 463.2856316 | BH156: 3.008348257
A157: 20090521 | B157: Example 1 | C157: 155 | D157: 151.677048 | E157: 147.1049892 | F157: 0 | G157: 1.674493017 | H157: 55.51420025 | I157: 0 | J157: 0.1227074272 | K157: 24.22046657 | L157: 0 | M157: 150.0523561 | N157: 141.1470121 | O157: 2.136238264 | P157: 4.910442424 | Q157: 28.00649943 | R157: 26.99144051 | S157: 0.06190498063 | T157: 24.20777786 | U157: 31.16380582 | AE157: 155 | AF157: 149.0687534 | AG157: 37.28104808 | AH157: 27.53828021 | AI157: 368.8903849 | AJ157: 363.4509945 | AK157: 0.8153875921 | AL157: 29.31248743 | AM157: 35.87157522 | AN157: 0 | AO157: 0 | AP157: 0 | AQ157: 18.67037468 | AR157: 17.24887256 | AS157: 0.1112830488 | AW157: 463.8543112 | AX157: 446.569252 | AY157: 2.881091949 | AZ157: 482.5246858 | BA157: 463.8181246 | BB157: 2.992374997 | BC157: 0 | BD157: 0 | BE157: 0 | BF157: 482.5246858 | BG157: 463.8181246 | BH157: 2.992374997
A158: 20090521 | B158: Example 1 | C158: 156 | D158: 152.677048 | E158: 148.1049892 | F158: 0 | G158: 1.641546574 | H158: 55.31997277 | I158: 0 | J158: 0.1236524583 | K158: 24.285087 | L158: 0 | M158: 151.0523561 | N158: 142.1470121 | O158: 2.137194534 | P158: 4.843670308 | Q158: 27.58692883 | R158: 26.61364718 | S158: 0.06166292927 | T158: 24.25542421 | U158: 31.40692442 | AE158: 156 | AF158: 150.0687534 | AG158: 37.27247552 | AH158: 27.24646522 | AI158: 364.4758154 | AJ158: 359.2324554 | AK158: 0.8146846124 | AL158: 29.35058819 | AM158: 36.08401214 | AN158: 0 | AO158: 0 | AP158: 0 | AQ158: 18.71206405 | AR158: 17.29552927 | AS158: 0.1108687774 | AW158: 464.325878 | AX158: 447.042567 | AY158: 2.865657481 | AZ158: 483.037942 | BA158: 464.3380962 | BB158: 2.976526258 | BC158: 0 | BD158: 0 | BE158: 0 | BF158: 483.037942 | BG158: 464.3380962 | BH158: 2.976526258
A159: 20090521 | B159: Example 1 | C159: 157 | D159: 153.677048 | E159: 149.1049892 | F159: 0 | G159: 1.609105388 | H159: 55.12382 | I159: 0 | J159: 0.1245912841 | K159: 24.34922187 | L159: 0 | M159: 152.0523561 | N159: 143.1470121 | O159: 2.138113373 | P159: 4.777449037 | Q159: 27.17489247 | R159: 26.24156773 | S159: 0.06142090204 | T159: 24.3024929 | U159: 31.65093231 | AE159: 157 | AF159: 151.0687534 | AG159: 37.26370777 | AH159: 26.95783294 | AI159: 360.1384965 | AJ159: 355.0831073 | AK159: 0.8139878139 | AL159: 29.38821385 | AM159: 36.29638045 | AN159: 0 | AO159: 0 | AP159: 0 | AQ159: 18.75304831 | AR159: 17.34117323 | AS159: 0.1104533327 | AW159: 464.7875397 | AX159: 447.5046999 | AY159: 2.850348407 | AZ159: 483.540588 | BA159: 464.8458732 | BB159: 2.96080174 | BC159: 0 | BD159: 0 | BE159: 0 | BF159: 483.540588 | BG159: 464.8458732 | BH159: 2.96080174
A160: 20090521 | B160: Example 1 | C160: 158 | D160: 154.677048 | E160: 150.1049892 | F160: 0 | G160: 1.57717114 | H160: 54.92576389 | I160: 0 | J160: 0.1255237487 | K160: 24.41287701 | L160: 0 | M160: 153.0523561 | N160: 144.1470121 | O160: 2.138996197 | P160: 4.711790012 | Q160: 26.7702495 | R160: 25.87514388 | S160: 0.06117897745 | T160: 24.34899361 | U160: 31.8958262 | AE160: 158 | AF160: 152.0687534 | AG160: 37.25475236 | AH160: 26.67236022 | AI160: 355.8766728 | AJ160: 351.0015658 | AK160: 0.8132972739 | AL160: 29.42537278 | AM160: 36.50868067 | AN160: 0 | AO160: 0 | AP160: 0 | AQ160: 18.79334449 | AR160: 17.38583359 | AS160: 0.1100369215 | AW160: 465.239514 | AX160: 447.9559372 | AY160: 2.83516416 | AZ160: 484.0328585 | BA160: 465.3417708 | BB160: 2.945201081 | BC160: 0 | BD160: 0 | BE160: 0 | BF160: 484.0328585 | BG160: 465.3417708 | BH160: 2.945201081
A161: 20090521 | B161: Example 1 | C161: 159 | D161: 155.677048 | E161: 151.1049892 | F161: 0 | G161: 1.545744915 | H161: 54.72582716 | I161: 0 | J161: 0.1264496991 | K161: 24.47605812 | L161: 0 | M161: 154.0523561 | N161: 145.1470121 | O161: 2.139844374 | P161: 4.646703949 | Q161: 26.37286116 | R161: 25.51431558 | S161: 0.06093723078 | T161: 24.39493578 | U161: 32.14160279 | AE161: 159 | AF161: 153.0687534 | AG161: 37.24561649 | AH161: 26.39002354 | AI161: 351.6886376 | AJ161: 346.9864766 | AK161: 0.8126130701 | AL161: 29.4620732 | AM161: 36.7209133 | AN161: 0 | AO161: 0 | AP161: 0 | AQ161: 18.83296916 | AR161: 17.42953857 | AS161: 0.1096197394 | AW161: 465.6820121 | AX161: 448.3965552 | AY161: 2.820104121 | AZ161: 484.5149812 | BA161: 465.8260938 | BB161: 2.92972386 | BC161: 0 | BD161: 0 | BE161: 0 | BF161: 484.5149812 | BG161: 465.8260938 | BH161: 2.92972386
A162: 20090521 | B162: Example 1 | C162: 160 | D162: 156.677048 | E162: 152.1049892 | F162: 0 | G162: 1.514827218 | H162: 54.52403323 | I162: 0 | J162: 0.1273689857 | K162: 24.53877081 | L162: 0 | M162: 155.0523561 | N162: 146.1470121 | O162: 2.140659218 | P162: 4.582200884 | Q162: 25.98259075 | R162: 25.15902123 | S162: 0.06069573421 | T162: 24.44032868 | U162: 32.38825877 | AE162: 160 | AF162: 154.0687534 | AG162: 37.23630706 | AH162: 26.11079897 | AI162: 347.572731 | AJ162: 343.0365142 | AK162: 0.8119352801 | AL162: 29.4983231 | AM162: 36.9330788 | AN162: 0 | AO162: 0 | AP162: 0 | AQ162: 18.87193844 | AR162: 17.47231551 | AS162: 0.1092019719 | AW162: 466.1152392 | AX162: 448.8268209 | AY162: 2.805167631 | AZ162: 484.9871776 | BA162: 466.2991365 | BB162: 2.914369603 | BC162: 0 | BD162: 0 | BE162: 0 | BF162: 484.9871776 | BG162: 466.2991365 | BH162: 2.914369603
A163: 20090521 | B163: Example 1 | C163: 161 | D163: 157.677048 | E163: 153.1049892 | F163: 0 | G163: 1.484418007 | H163: 54.32040623 | I163: 0 | J163: 0.1282814615 | K163: 24.60102062 | L163: 0 | M163: 156.0523561 | N163: 147.1470121 | O163: 2.141441998 | P163: 4.518290185 | Q163: 25.59930366 | R163: 24.80919785 | S163: 0.06045455687 | T163: 24.48518138 | U163: 32.63579084 | AE163: 161 | AF163: 155.0687534 | AG163: 37.22683067 | AH163: 25.83466224 | AI163: 343.5273384 | AJ163: 339.1503817 | AK163: 0.8112639816 | AL163: 29.53413034 | AM163: 37.14517759 | AN163: 0 | AO163: 0 | AP163: 0 | AQ163: 18.91026803 | AR163: 17.5141909 | AS163: 0.1087837944 | AW163: 466.5393946 | AX163: 449.2469923 | AY163: 2.790353989 | AZ163: 485.4496626 | BA163: 466.7611831 | BB163: 2.899137784 | BC163: 0 | BD163: 0 | BE163: 0 | BF163: 485.4496626 | BG163: 466.7611831 | BH163: 2.899137784
A164: 20090521 | B164: Example 1 | C164: 162 | D164: 158.677048 | E164: 154.1049892 | F164: 0 | G164: 1.454516716 | H164: 54.11497097 | I164: 0 | J164: 0.1291869831 | K164: 24.66281298 | L164: 0 | M164: 157.0523561 | N164: 148.1470121 | O164: 2.142193937 | P164: 4.454980557 | Q164: 25.2228674 | R164: 24.46478124 | S164: 0.06021376497 | T164: 24.52950277 | U164: 32.88419568 | AE164: 162 | AF164: 156.0687534 | AG164: 37.21719365 | AH164: 25.56158879 | AI164: 339.5508893 | AJ164: 335.3268104 | AK164: 0.8105992519 | AL164: 29.56950256 | AM164: 37.35721004 | AN164: 0 | AO164: 0 | AP164: 0 | AQ164: 18.94797321 | AR164: 17.5551904 | AS164: 0.1083653728 | AW164: 466.9546718 | AX164: 449.6573183 | AY164: 2.775662459 | AZ164: 485.902645 | BA164: 467.2125087 | BB164: 2.884027832 | BC164: 0 | BD164: 0 | BE164: 0 | BF164: 485.902645 | BG164: 467.2125087 | BH164: 2.884027832
A165: 20090521 | B165: Example 1 | C165: 163 | D165: 159.677048 | E165: 155.1049892 | F165: 0 | G165: 1.425122283 | H165: 53.90775296 | I165: 0 | J165: 0.13008541 | K165: 24.72415324 | L165: 0 | M165: 158.0523561 | N165: 149.1470121 | O165: 2.142916213 | P165: 4.39228006 | Q165: 24.85315156 | R165: 24.12570615 | S165: 0.05997342186 | T165: 24.57330155 | U165: 33.13346996 | AE165: 163 | AF165: 157.0687534 | AG165: 37.20740203 | AH165: 25.29155373 | AI165: 335.6418558 | AJ165: 331.564559 | AK165: 0.8099411682 | AL165: 29.60444726 | AM165: 37.56917653 | AN165: 0 | AO165: 0 | AP165: 0 | AQ165: 18.98506882 | AR165: 17.59533886 | AS165: 0.1079468642 | AW165: 467.3612589 | AX165: 450.05804 | AY165: 2.76109227 | AZ165: 486.3463277 | BA165: 467.6533788 | BB165: 2.869039134 | BC165: 0 | BD165: 0 | BE165: 0 | BF165: 486.3463277 | BG165: 467.6533788 | BH165: 2.869039134
A166: 20090521 | B166: Example 1 | C166: 164 | D166: 160.677048 | E166: 156.1049892 | F166: 0 | G166: 1.39623317 | H166: 53.69877833 | I166: 0 | J166: 0.130976605 | K166: 24.78504666 | L166: 0 | M166: 159.0523561 | N166: 150.1470121 | O166: 2.14360996 | P166: 4.330196119 | Q166: 24.49002788 | R166: 23.79190643 | S166: 0.05973358812 | T166: 24.61658624 | U166: 33.38361035 | AE166: 164 | AF166: 158.0687534 | AG166: 37.19746163 | AH166: 25.02453192 | AI166: 331.798751 | AJ166: 327.8624132 | AK166: 0.8092898069 | AL166: 29.63897177 | AM166: 37.78107737 | AN166: 0 | AO166: 0 | AP166: 0 | AQ166: 19.02156934 | AR166: 17.63466035 | AS166: 0.1075284168 | AW166: 467.7593384 | AX166: 450.44939 | AY166: 2.746642622 | AZ166: 486.7809078 | BA166: 468.0840503 | BB166: 2.854171038 | BC166: 0 | BD166: 0 | BE166: 0 | BF166: 486.7809078 | BG166: 468.0840503 | BH166: 2.854171038
A167: 20090521 | B167: Example 1 | C167: 165 | D167: 161.677048 | E167: 157.1049892 | F167: 0 | G167: 1.367847398 | H167: 53.48807391 | I167: 0 | J167: 0.1318604343 | K167: 24.84549842 | L167: 0 | M167: 160.0523561 | N167: 151.1470121 | O167: 2.144276274 | P167: 4.268735532 | Q167: 24.13337019 | R167: 23.46331517 | S167: 0.05949432166 | T167: 24.6593652 | U167: 33.63461354 | AE167: 165 | AF167: 159.0687534 | AG167: 37.187378 | AH167: 24.76049799 | AI167: 328.0201284 | AJ167: 324.2191854 | AK167: 0.8086452441 | AL167: 29.67308326 | AM167: 37.99291284 | AN167: 0 | AO167: 0 | AP167: 0 | AQ167: 19.05748884 | AR167: 17.67317818 | AS167: 0.1071101708 | AW167: 468.149088 | AX167: 450.8315934 | AY167: 2.732312687 | AZ167: 487.2065768 | BA167: 468.5047715 | BB167: 2.839422858 | BC167: 0 | BD167: 0 | BE167: 0 | BF167: 487.2065768 | BG167: 468.5047715 | BH167: 2.839422858
A168: 20090521 | B168: Example 1 | C168: 166 | D168: 162.677048 | E168: 158.1049892 | F168: 0 | G168: 1.339962564 | H168: 53.2756671 | I168: 0 | J168: 0.1327367673 | K168: 24.90551362 | L168: 0 | M168: 161.0523561 | N168: 152.1470121 | O168: 2.144916206 | P168: 4.207904491 | Q168: 23.78305445 | R168: 23.13986485 | S168: 0.05925567779 | T168: 24.70164661 | U168: 33.88647619 | AE168: 166 | AF168: 160.0687534 | AG168: 37.17715643 | AH168: 24.4994263 | AI168: 324.3045796 | AJ168: 320.6337136 | AK168: 0.8080075549 | AL168: 29.70678873 | AM168: 38.20468321 | AN168: 0 | AO168: 0 | AP168: 0 | AQ168: 19.092841 | AR168: 17.71091492 | AS168: 0.1066922586 | AW168: 468.53068 | AX168: 451.2048678 | AY168: 2.718101613 | AZ168: 487.623521 | BA168: 468.9157827 | BB168: 2.824793872 | BC168: 0 | BD168: 0 | BE168: 0 | BF168: 487.623521 | BG168: 468.9157827 | BH168: 2.824793872
A169: 20090521 | B169: Example 1 | C169: 167 | D169: 163.677048 | E169: 159.1049892 | F169: 0 | G169: 1.312575868 | H169: 53.06158596 | I169: 0 | J169: 0.1336054768 | K169: 24.96509728 | L169: 0 | M169: 162.0523561 | N169: 153.1470121 | O169: 2.145530771 | P169: 4.147708589 | Q169: 23.43895873 | R169: 22.82148742 | S169: 0.0590177093 | T169: 24.74343848 | U169: 34.13919498 | AE169: 167 | AF169: 161.0687534 | AG169: 37.16680202 | AH169: 24.24129107 | AI169: 320.6507342 | AJ169: 317.1048615 | AK169: 0.8073768139 | AL169: 29.74009504 | AM169: 38.41638872 | AN169: 0 | AO169: 0 | AP169: 0 | AQ169: 19.12763914 | AR169: 17.74789244 | AS169: 0.106274805 | AW169: 468.904282 | AX169: 451.5694238 | AY169: 2.704008526 | AZ169: 488.0319212 | BA169: 469.3173163 | BB169: 2.810283331 | BC169: 0 | BD169: 0 | BE169: 0 | BF169: 488.0319212 | BG169: 469.3173163 | BH169: 2.810283331
A170: 20090521 | B170: Example 1 | C170: 168 | D170: 164.677048 | E170: 160.1049892 | F170: 0 | G170: 1.28568414 | H170: 52.84585912 | I170: 0 | J170: 0.1344664389 | K170: 25.02425434 | L170: 0 | M170: 163.0523561 | N170: 154.1470121 | O170: 2.146120948 | P170: 4.088152839 | Q170: 23.10096318 | R170: 22.50811444 | S170: 0.05878046656 | T170: 24.78474869 | U170: 34.39276658 | AE170: 168 | AF170: 162.0687534 | AG170: 37.15631964 | AH170: 23.98606631 | AI170: 317.0572577 | AJ170: 313.6315177 | AK170: 0.8067530945 | AL170: 29.77300892 | AM170: 38.62802955 | AN170: 0 | AO170: 0 | AP170: 0 | AQ170: 19.16189621 | AR170: 17.7841319 | AS170: 0.105857928 | AW170: 469.270057 | AX170: 451.9254651 | AY170: 2.690032531 | AZ170: 488.4319532 | BA170: 469.709597 | BB170: 2.795890458 | BC170: 0 | BD170: 0 | BE170: 0 | BF170: 488.4319532 | BG170: 469.709597 | BH170: 2.795890458
A171: 20090521 | B171: Example 1 | C171: 169 | D171: 165.677048 | E171: 161.1049892 | F171: 0 | G171: 1.25928386 | H171: 52.62851581 | I171: 0 | J171: 0.1353195334 | K171: 25.08298964 | L171: 0 | M171: 164.0523561 | N171: 155.1470121 | O171: 2.146687676 | P171: 4.029241686 | Q171: 22.76895008 | R171: 22.19967721 | S171: 0.05854399755 | T171: 24.82558491 | U171: 34.64718766 | AE171: 169 | AF171: 163.0687534 | AG171: 37.14571394 | AH171: 23.73372587 | AI171: 313.522851 | AJ171: 310.2125949 | AK171: 0.8061364691 | AL171: 29.80553691 | AM171: 38.83960589 | AN171: 0 | AO171: 0 | AP171: 0 | AQ171: 19.19562483 | AR171: 17.8196538 | AS171: 0.1054417385 | AW171: 469.6281631 | AX171: 452.2731887 | AY171: 2.676172714 | AZ171: 488.823788 | BA171: 470.0928425 | BB171: 2.781614453 | BC171: 0 | BD171: 0 | BE171: 0 | BF171: 488.823788 | BG171: 470.0928425 | BH171: 2.781614453
A172: 20090521 | B172: Example 1 | C172: 170 | D172: 166.677048 | E172: 162.1049892 | F172: 0 | G172: 1.233371184 | H172: 52.40958578 | I172: 0 | J172: 0.1361646432 | K172: 25.14130799 | L172: 0 | M172: 165.0523561 | N172: 156.1470121 | O172: 2.147231862 | P172: 3.970979021 | Q172: 22.44280375 | R172: 21.89610682 | S172: 0.05830834797 | T172: 24.86595471 | U172: 34.90245492 | AE172: 170 | AF172: 164.0687534 | AG172: 37.1349894 | AH172: 23.48424347 | AI172: 310.046249 | AJ172: 306.8470301 | AK172: 0.8055270088 | AL172: 29.83768546 | AM172: 39.05111789 | AN172: 0 | AO172: 0 | AP172: 0 | AQ172: 19.22883723 | AR172: 17.85447799 | AS172: 0.1050263411 | AW172: 469.9787545 | AX172: 452.6127855 | AY172: 2.66242815 | AZ172: 489.2075918 | BA172: 470.4672635 | BB172: 2.767454491 | BC172: 0 | BD172: 0 | BE172: 0 | BF172: 489.2075918 | BG172: 470.4672635 | BH172: 2.767454491
A173: 20090521 | B173: Example 1 | C173: 171 | D173: 167.677048 | E173: 163.1049892 | F173: 0 | G173: 1.207941966 | H173: 52.18909937 | I173: 0 | J173: 0.1370016548 | K173: 25.19921408 | L173: 0 | M173: 166.0523561 | N173: 157.1470121 | O173: 2.147754379 | P173: 3.913368202 | Q173: 22.12241061 | R173: 21.59733429 | S173: 0.05807356133 | T173: 24.90586548 | U173: 35.15856503 | AE173: 171 | AF173: 165.0687534 | AG173: 37.12415027 | AH173: 23.23759272 | AI173: 306.6262198 | AJ173: 303.5337833 | AK173: 0.8049247838 | AL173: 29.86946084 | AM173: 39.26256567 | AN173: 0 | AO173: 0 | AP173: 0 | AQ173: 19.26154536 | AR173: 17.88862369 | AS173: 0.1046118344 | AW173: 470.3219808 | AX173: 452.94444 | AY173: 2.648797895 | AZ173: 489.5835262 | BA173: 470.8330637 | BB173: 2.753409729 | BC173: 0 | BD173: 0 | BE173: 0 | BF173: 489.5835262 | BG173: 470.8330637 | BH173: 2.753409729
A174: 20090521 | B174: Example 1 | C174: 172 | D174: 168.677048 | E174: 164.1049892 | F174: 0 | G174: 1.182991778 | H174: 51.96708742 | I174: 0 | J174: 0.1378304583 | K174: 25.25671256 | L174: 0 | M174: 167.0523561 | N174: 158.1470121 | O174: 2.148256067 | P174: 3.856412061 | Q174: 21.80765913 | R174: 21.3032906 | S174: 0.05783967897 | T174: 24.94532445 | U174: 35.41551469 | AE174: 172 | AF174: 166.0687534 | AG174: 37.11320066 | AH174: 22.99374713 | AI174: 303.2615634 | AJ174: 300.2718375 | AK174: 0.8043298627 | AL174: 29.90086921 | AM174: 39.47394934 | AN174: 0 | AO174: 0 | AP174: 0 | AQ174: 19.29376081 | AR174: 17.92210951 | AS174: 0.1041983111 | AW174: 470.6579875 | AX174: 453.2683311 | AY174: 2.635280995 | AZ174: 489.9517483 | BA174: 471.1904406 | BB174: 2.739479306 | BC174: 0 | BD174: 0 | BE174: 0 | BF174: 489.9517483 | BG174: 471.1904406 | BH174: 2.739479306
A175: 20090521 | B175: Example 1 | C175: 173 | D175: 169.677048 | E175: 165.1049892 | F175: 0 | G175: 1.158515935 | H175: 51.74358126 | I175: 0 | J175: 0.1386509472 | K175: 25.31380798 | L175: 0 | M175: 168.0523561 | N175: 159.1470121 | O175: 2.148737734 | P175: 3.800112928 | Q175: 21.49843978 | R175: 21.01390685 | S175: 0.05760674016 | T175: 24.98433875 | U175: 35.67330058 | AE175: 173 | AF175: 167.0687534 | AG175: 37.10214446 | AH175: 22.75268011 | AI175: 299.951111 | AJ175: 297.0601982 | AK175: 0.8037423126 | AL175: 29.93191661 | AM175: 39.68526895 | AN175: 0 | AO175: 0 | AP175: 0 | AQ175: 19.32549486 | AR175: 17.95495347 | AS175: 0.1037858582 | AW175: 470.9869162 | AX175: 453.5846321 | AY175: 2.621876486 | AZ175: 490.312411 | BA175: 471.5395855 | BB175: 2.725662344 | BC175: 0 | BD175: 0 | BE175: 0 | BF175: 490.312411 | BG175: 471.5395855 | BH175: 2.725662344
A176: 20090521 | B176: Example 1 | C176: 174 | D176: 170.677048 | E176: 166.1049892 | F176: 0 | G176: 1.134509512 | H176: 51.51861273 | I176: 0 | J176: 0.1394630186 | K176: 25.37050485 | L176: 0 | M176: 169.0523561 | N176: 160.1470121 | O176: 2.149200159 | P176: 3.744472643 | Q176: 21.1946451 | R176: 20.72911423 | S176: 0.05737478218 | T176: 25.02291533 | U176: 35.93191941 | AE176: 174 | AF176: 168.0687534 | AG176: 37.09098543 | AH176: 22.51436503 | AI176: 296.6937237 | AJ176: 293.8978925 | AK176: 0.8031621992 | AL176: 29.96260892 | AM176: 39.89652458 | AN176: 0 | AO176: 0 | AP176: 0 | AQ176: 19.35675849 | AR176: 17.98717302 | AS176: 0.1033745576 | AW176: 471.3089046 | AX176: 453.8935106 | AY176: 2.608583394 | AZ176: 490.665663 | BA176: 471.8806836 | BB176: 2.711957952 | BC176: 0 | BD176: 0 | BE176: 0 | BF176: 490.665663 | BG176: 471.8806836 | BH176: 2.711957952
A177: 20090521 | B177: Example 1 | C177: 175 | D177: 171.677048 | E177: 167.1049892 | F177: 0 | G177: 1.110967367 | H177: 51.29221412 | I177: 0 | J177: 0.140266573 | K177: 25.42680759 | L177: 0 | M177: 170.0523561 | N177: 161.1470121 | O177: 2.149644091 | P177: 3.689492571 | Q177: 20.89616958 | R177: 20.4488442 | S177: 0.05714384035 | T177: 25.06106103 | U177: 36.19136788 | AE177: 175 | AF177: 169.0687534 | AG177: 37.07972716 | AH177: 22.27877518 | AI177: 293.488292 | AJ177: 290.7839692 | AK177: 0.8025895867 | AL177: 29.99295193 | AM177: 40.10771625 | AN177: 0 | AO177: 0 | AP177: 0 | AQ177: 19.38756236 | AR177: 18.01878507 | AS177: 0.1029644861 | AW177: 471.6240866 | AX177: 454.1951293 | AY177: 2.595400739 | AZ177: 491.011649 | BA177: 472.2139144 | BB177: 2.698365225 | BC177: 0 | BD177: 0 | BE177: 0 | BF177: 491.011649 | BG177: 472.2139144 | BH177: 2.698365225
A178: 20090521 | B178: Example 1 | C178: 176 | D178: 172.677048 | E178: 168.1049892 | F178: 0 | G178: 1.087884156 | H178: 51.06441817 | I178: 0 | J178: 0.1410615145 | K178: 25.48272057 | L178: 0 | M178: 171.0523561 | N178: 162.1470121 | O178: 2.150070252 | P178: 3.63517362 | Q178: 20.60290971 | R178: 20.17302846 | S178: 0.05691394813 | T178: 25.09878254 | U178: 36.45164272 | AE178: 176 | AF178: 170.0687534 | AG178: 37.06837307 | AH178: 22.04588386 | AI178: 290.3337349 | AJ178: 287.7174977 | AK178: 0.8020245373 | AL178: 30.02295128 | AM178: 40.31884397 | AN178: 0 | AO178: 0 | AP178: 0 | AQ178: 19.41791687 | AR178: 18.04980597 | AS178: 0.1025557157 | AW178: 471.9325926 | AX178: 454.4896458 | AY178: 2.582327533 | AZ178: 491.3505095 | BA178: 472.5394518 | BB178: 2.684883249 | BC178: 0 | BD178: 0 | BE178: 0 | BF178: 491.3505095 | BG178: 472.5394518 | BH178: 2.684883249
A179: 20090521 | B179: Example 1 | C179: 177 | D179: 173.677048 | E179: 169.1049892 | F179: 0 | G179: 1.065254359 | H179: 50.83525804 | I179: 0 | J179: 0.141847751 | K179: 25.53824806 | L179: 0 | M179: 172.0523561 | N179: 163.1470121 | O179: 2.150479335 | P179: 3.581516258 | Q179: 20.31476392 | R179: 19.90159905 | S179: 0.05668513716 | T179: 25.13608641 | U179: 36.71274064 | AE179: 177 | AF179: 171.0687534 | AG179: 37.05692644 | AH179: 21.8156643 | AI179: 287.2289984 | AJ179: 284.6975682 | AK179: 0.8014671119 | AL179: 30.05261253 | AM179: 40.52990774 | AN179: 0 | AO179: 0 | AP179: 0 | AQ179: 19.4478321 | AR179: 18.08025157 | AS179: 0.102148314 | AW179: 472.2345495 | AX179: 454.7772127 | AY179: 2.569362784 | AZ179: 491.6823816 | BA179: 472.8574643 | BB179: 2.671511098 | BC179: 0 | BD179: 0 | BE179: 0 | BF179: 491.6823816 | BG179: 472.8574643 | BH179: 2.671511098
A180: 20090521 | B180: Example 1 | C180: 178 | D180: 174.677048 | E180: 170.1049892 | F180: 0 | G180: 1.043072289 | H180: 50.6047673 | I180: 0 | J180: 0.1426251936 | K180: 25.59339431 | L180: 0 | M180: 173.0523561 | N180: 164.1470121 | O180: 2.150872009 | P180: 3.528520527 | Q180: 20.0316326 | R180: 19.63448841 | S180: 0.05645743732 | T180: 25.1729791 | U180: 36.97465838 | AE180: 178 | AF180: 172.0687534 | AG180: 37.04539044 | AH180: 21.58808978 | AI180: 284.1730557 | AJ180: 281.7232906 | AK180: 0.8009173691 | AL180: 30.08194108 | AM180: 40.74090752 | AN180: 0 | AO180: 0 | AP180: 0 | AQ180: 19.47731788 | AR180: 18.11013723 | AS180: 0.101742344 | AW180: 472.5300806 | AX180: 455.0579782 | AY180: 2.556505496 | AZ180: 492.0073985 | BA180: 473.1681154 | BB180: 2.65824784 | BC180: 0 | BD180: 0 | BE180: 0 | BF180: 492.0073985 | BG180: 473.1681154 | BH180: 2.65824784
A181: 20090521 | B181: Example 1 | C181: 179 | D181: 175.677048 | E181: 171.1049892 | F181: 0 | G181: 1.021332114 | H181: 50.3729799 | I181: 0 | J181: 0.1433937572 | K181: 25.64816347 | L181: 0 | M181: 174.0523561 | N181: 165.1470121 | O181: 2.151248915 | P181: 3.476186061 | Q181: 19.75341801 | R181: 19.3716294 | S181: 0.0562308768 | T181: 25.20946692 | U181: 37.23739267 | AE181: 179 | AF181: 173.0687534 | AG181: 37.03376806 | AH181: 21.36313354 | AI181: 281.1649056 | AJ181: 278.7937946 | AK181: 0.800375366 | AL181: 30.11094227 | AM181: 40.95184327 | AN181: 0 | AO181: 0 | AP181: 0 | AQ181: 19.50638377 | AR181: 18.13947779 | AS181: 0.1013378647 | AW181: 472.8193062 | AX181: 455.3320858 | AY181: 2.543754669 | AZ181: 492.3256899 | BA181: 473.4715636 | BB181: 2.645092534 | BC181: 0 | BD181: 0 | BE181: 0 | BF181: 492.3256899 | BG181: 473.4715636 | BH181: 2.645092534
A182: 20090521 | B182: Example 1 | C182: 180 | D182: 176.677048 | E182: 172.1049892 | F182: 0 | G182: 1.000027873 | H182: 50.13993015 | I182: 0 | J182: 0.1441533603 | K182: 25.70255965 | L182: 0 | M182: 175.0523561 | N182: 166.1470121 | O182: 2.151610672 | P182: 3.424512099 | Q182: 19.48002431 | R182: 19.11295537 | S182: 0.05600548216 | T182: 25.24555605 | U182: 37.50094026 | AE182: 180 | AF182: 174.0687534 | AG182: 37.02206218 | AH182: 21.14076888 | AI182: 278.2035721 | AJ182: 275.9082287 | AK182: 0.7998411575 | AL182: 30.13962128 | AM182: 41.16271492 | AN182: 0 | AO182: 0 | AP182: 0 | AQ182: 19.53503905 | AR182: 18.16828765 | AS182: 0.1009349314 | AW182: 473.1023432 | AX182: 455.5996749 | AY182: 2.531109305 | AZ182: 492.6373822 | BA182: 473.7679625 | BB182: 2.632044236 | BC182: 0 | BD182: 0 | BE182: 0 | BF182: 492.6373822 | BG182: 473.7679625 | BH182: 2.632044236
A183: 20090521 | B183: Example 1 | C183: 181 | D183: 177.677048 | E183: 173.1049892 | F183: 0 | G183: 0.9791534915 | H183: 49.9056527 | I183: 0 | J183: 0.1449039248 | K183: 25.75658689 | L183: 0 | M183: 176.0523561 | N183: 167.1470121 | O183: 2.151957876 | P183: 3.373497505 | Q183: 19.21135752 | R183: 18.8584002 | S183: 0.05578127837 | T183: 25.28125256 | U183: 37.76529792 | AE183: 181 | AF183: 175.0687534 | AG183: 37.01027557 | AH183: 20.92096911 | AI183: 275.2881035 | AJ183: 273.0657604 | AK183: 0.7993147968 | AL183: 30.16798321 | AM183: 41.37352239 | AN183: 0 | AO183: 0 | AP183: 0 | AQ183: 19.56329276 | AR183: 18.19658076 | AS183: 0.1005335953 | AW183: 473.3793054 | AX183: 455.8608805 | AY183: 2.5185684 | AZ183: 492.9425982 | BA183: 474.0574612 | BB183: 2.619101996 | BC183: 0 | BD183: 0 | BE183: 0 | BF183: 492.9425982 | BG183: 474.0574612 | BH183: 2.619101996
A184: 20090521 | B184: Example 1 | C184: 182 | D184: 178.677048 | E184: 174.1049892 | F184: 0 | G184: 0.9587027933 | H184: 49.67018253 | I184: 0 | J184: 0.1456453763 | K184: 25.81024916 | L184: 0 | M184: 177.0523561 | N184: 168.1470121 | O184: 2.152291097 | P184: 3.32314078 | Q184: 18.94732548 | R184: 18.60789831 | S184: 0.05555828887 | T184: 25.31656242 | U184: 38.03046242 | AE184: 182 | AF184: 176.0687534 | AG184: 36.99841085 | AH184: 20.7037076 | AI184: 272.4175719 | AJ184: 270.2655752 | AK184: 0.7987963349 | AL184: 30.19603307 | AM184: 41.58426559 | AN184: 0 | AO184: 0 | AP184: 0 | AQ184: 19.59115371 | AR184: 18.22437061 | AS184: 0.1001339044 | AW184: 473.6503039 | AX184: 456.1158338 | AY184: 2.506130955 | AZ184: 493.2414576 | BA184: 474.3402044 | BB184: 2.606264859 | BC184: 0 | BD184: 0 | BE184: 0 | BF184: 493.2414576 | BG184: 474.3402044 | BH184: 2.606264859
A185: 20090521 | B185: Example 1 | C185: 183 | D185: 179.677048 | E185: 175.1049892 | F185: 0 | G185: 0.9386695185 | H185: 49.43355489 | I185: 0 | J185: 0.1463776438 | K185: 25.8635504 | L185: 0 | M185: 178.0523561 | N185: 169.1470121 | O185: 2.152610887 | P185: 3.273440081 | Q185: 18.68783785 | R185: 18.36138472 | S185: 0.05533653564 | T185: 25.35149147 | U185: 38.29643054 | AE185: 183 | AF185: 177.0687534 | AG185: 36.98647057 | AH185: 20.48895778 | AI185: 269.5910722 | AJ185: 267.5068765 | AK185: 0.7982858206 | AL185: 30.22377573 | AM185: 41.79494439 | AN185: 0 | AO185: 0 | AP185: 0 | AQ185: 19.61863043 | AR185: 18.25167029 | AS185: 0.09973590321 | AW185: 473.9154467 | AX185: 456.3646621 | AY185: 2.493795968 | AZ185: 493.5340771 | BA185: 474.6163324 | BB185: 2.593531871 | BC185: 0 | BD185: 0 | BE185: 0 | BF185: 493.5340771 | BG185: 474.6163324 | BH185: 2.593531871
A186: 20090521 | B186: Example 1 | C186: 184 | D186: 180.677048 | E186: 176.1049892 | F186: 0 | G186: 0.919047335 | H186: 49.19580535 | I186: 0 | J186: 0.14710066 | K186: 25.91649446 | L186: 0 | M186: 179.0523561 | N186: 170.1470121 | O186: 2.152917775 | P186: 3.224393234 | Q186: 18.43280606 | R186: 18.11879507 | S186: 0.05511603922 | T186: 25.38604543 | U186: 38.56319907 | AE186: 184 | AF186: 178.0687534 | AG186: 36.97445714 | AH186: 20.27669313 | AI186: 266.8077218 | AJ186: 264.788885 | AK186: 0.7977833008 | AL186: 30.25121601 | AM186: 42.00555868 | AN186: 0 | AO186: 0 | AP186: 0 | AQ186: 19.64573126 | AR186: 18.27849246 | AS186: 0.09933963292 | AW186: 474.1748389 | AX186: 456.6074889 | AY186: 2.48156244 | AZ186: 493.8205702 | BA186: 474.8859813 | BB186: 2.580902072 | BC186: 0 | BD186: 0 | BE186: 0 | BF186: 493.8205702 | BG186: 474.8859813 | BH186: 2.580902072
A187: 20090521 | B187: Example 1 | C187: 185 | D187: 181.677048 | E187: 177.1049892 | F187: 0 | G187: 0.8998298512 | H187: 48.95696968 | I187: 0 | J187: 0.1478143611 | K187: 25.96908516 | L187: 0 | M187: 180.0523561 | N187: 171.1470121 | O187: 2.153212271 | P187: 3.175997749 | Q187: 18.18214328 | R187: 17.88006565 | S187: 0.05489681878 | T187: 25.42022993 | U187: 38.83076481 | AE187: 185 | AF187: 179.0687534 | AG187: 36.96237287 | AH187: 20.06688723 | AI187: 264.0666596 | AJ187: 262.1108386 | AK187: 0.7972888201 | AL187: 30.2783586 | AM187: 42.21610831 | AN187: 0 | AO187: 0 | AP187: 0 | AQ187: 19.67246428 | AR187: 18.30484939 | AS187: 0.09894513185 | AW187: 474.4285832 | AX187: 456.8444342 | AY187: 2.469429374 | AZ187: 494.1010475 | BA187: 475.1492836 | BB187: 2.568374506 | BC187: 0 | BD187: 0 | BE187: 0 | BF187: 494.1010475 | BG187: 475.1492836 | BH187: 2.568374506
A188: 20090521 | B188: Example 1 | C188: 186 | D188: 182.677048 | E188: 178.1049892 | F188: 0 | G188: 0.8810106281 | H188: 48.71708394 | I188: 0 | J188: 0.1485186869 | K188: 26.02132624 | L188: 0 | M188: 181.0523561 | N188: 172.1470121 | O188: 2.153494863 | P188: 3.128250837 | Q188: 17.93576442 | R188: 17.64513342 | S188: 0.05467889219 | T188: 25.45405049 | U188: 39.09912459 | AE188: 186 | AF188: 180.0687534 | AG188: 36.95021999 | AH188: 19.85951374 | AI188: 261.3670457 | AJ188: 259.4719917 | AK188: 0.7968024209 | AL188: 30.30520809 | AM188: 42.42659311 | AN188: 0 | AO188: 0 | AP188: 0 | AQ188: 19.69883738 | AR188: 18.33075298 | AS188: 0.09855243539 | AW188: 474.6767794 | AX188: 457.0756145 | AY188: 2.457395777 | AZ188: 494.3756168 | BA188: 475.4063675 | BB188: 2.555948212 | BC188: 0 | BD188: 0 | BE188: 0 | BF188: 494.3756168 | BG188: 475.4063675 | BH188: 2.555948212
A189: 20090521 | B189: Example 1 | C189: 187 | D189: 183.677048 | E189: 179.1049892 | F189: 0 | G189: 0.8625831908 | H189: 48.47618437 | I189: 0 | J189: 0.1492135804 | K189: 26.07322141 | L189: 0 | M189: 182.0523561 | N189: 173.1470121 | O189: 2.153766023 | P189: 3.081149424 | Q189: 17.69358609 | R189: 17.41393605 | S189: 0.05446227599 | T189: 25.48751251 | U189: 39.36827523 | AE189: 187 | AF189: 181.0687534 | AG189: 36.9380006 | AH189: 19.65454641 | AI189: 258.7080605 | AJ189: 256.8716148 | AK189: 0.7963241436 | AL189: 30.33176901 | AM189: 42.63701293 | AN189: 0 | AO189: 0 | AP189: 0 | AQ189: 19.7248582 | AR189: 18.35621475 | AS189: 0.0981615762 | AW189: 474.9195248 | AX189: 457.301143 | AY189: 2.445460658 | AZ189: 494.644383 | BA189: 475.6573578 | BB189: 2.543622234 | BC189: 0 | BD189: 0 | BE189: 0 | BF189: 494.644383 | BG189: 475.6573578 | BH189: 2.543622234
A190: 20090521 | B190: Example 1 | C190: 188 | D190: 184.677048 | E190: 180.1049892 | F190: 0 | G190: 0.844541039 | H190: 48.23430739 | I190: 0 | J190: 0.1498989885 | K190: 26.12477429 | L190: 0 | M190: 183.0523561 | N190: 174.1470121 | O190: 2.154026204 | P190: 3.034690161 | Q190: 17.45552656 | R190: 17.18641191 | S190: 0.05424698554 | T190: 25.52062132 | U190: 39.63821357 | AE190: 188 | AF190: 182.0687534 | AG190: 36.92571675 | AH190: 19.4519591 | AI190: 256.0889043 | AJ190: 254.3089946 | AK190: 0.795854026 | AL190: 30.35804579 | AM190: 42.84736758 | AN190: 0 | AO190: 0 | AP190: 0 | AQ190: 19.75053421 | AR190: 18.38124585 | AS190: 0.09777258433 | AW190: 475.1569145 | AX190: 457.5211297 | AY190: 2.43362303 | AZ190: 494.9074487 | BA190: 475.9023756 | BB190: 2.531395615 | BC190: 0 | BD190: 0 | BE190: 0 | BF190: 494.9074487 | BG190: 475.9023756 | BH190: 2.531395615
A191: 20090521 | B191: Example 1 | C191: 189 | D191: 185.677048 | E191: 181.1049892 | F191: 0 | G191: 0.8268776569 | H191: 47.99148961 | I191: 0 | J191: 0.1505748612 | K191: 26.1759885 | L191: 0 | M191: 184.0523561 | N191: 175.1470121 | O191: 2.154275841 | P191: 2.988869448 | Q191: 17.22150574 | R191: 16.96250011 | S191: 0.05403303497 | T191: 25.55338211 | U191: 39.90893647 | AE191: 189 | AF191: 183.0687534 | AG191: 36.91337037 | AH191: 19.25172581 | AI191: 253.5087967 | AJ191: 251.7834328 | AK191: 0.7953921038 | AL191: 30.38404275 | AM191: 43.05765687 | AN191: 0 | AO191: 0 | AP191: 0 | AQ191: 19.77587266 | AR191: 18.40585711 | AS191: 0.09738548735 | AW191: 475.3890408 | AX191: 457.7356814 | AY191: 2.421881912 | AZ191: 495.1649134 | BA191: 476.1415385 | BB191: 2.5192674 | BC191: 0 | BD191: 0 | BE191: 0 | BF191: 495.1649134 | BG191: 476.1415385 | BH191: 2.5192674
A192: 20090521 | B192: Example 1 | C192: 190 | D192: 186.677048 | E192: 182.1049892 | F192: 0 | G192: 0.8095865226 | H192: 47.74776779 | I192: 0 | J192: 0.1512411523 | K192: 26.22686756 | L192: 0 | M192: 185.0523561 | N192: 176.1470121 | O192: 2.154515352 | P192: 2.943683436 | Q192: 16.99144515 | R192: 16.74214049 | S192: 0.05382043731 | T192: 25.58580002 | U192: 40.1804408 | AE192: 190 | AF192: 184.0687534 | AG192: 36.90096334 | AH192: 19.05382062 | AI192: 250.966976 | AJ192: 249.2942466 | AK192: 0.7949384104 | AL192: 30.40976415 | AM192: 43.26788059 | AN192: 0 | AO192: 0 | AP192: 0 | AQ192: 19.8008806 | AR192: 18.430059 | AS192: 0.09700031051 | AW192: 475.615994 | AX192: 457.944902 | AY192: 2.410236327 | AZ192: 495.4168746 | BA192: 476.374961 | BB192: 2.507236637 | BC192: 0 | BD192: 0 | BE192: 0 | BF192: 495.4168746 | BG192: 476.374961 | BH192: 2.507236637
A193: 20090521 | B193: Example 1 | C193: 191 | D193: 187.677048 | E193: 183.1049892 | F193: 0 | G193: 0.7926611173 | H193: 47.50317878 | I193: 0 | J193: 0.1518978186 | K193: 26.27741497 | L193: 0 | M193: 186.0523561 | N193: 177.1470121 | O193: 2.15474514 | P193: 2.899128051 | Q193: 16.76526791 | R193: 16.52527367 | S193: 0.05360920443 | T193: 25.61788005 | U193: 40.45272344 | AE193: 191 | AF193: 185.0687534 | AG193: 36.88849743 | AH193: 18.85821776 | AI193: 248.4626987 | AJ193: 246.8407678 | AK193: 0.794492977 | AL193: 30.43521415 | AM193: 43.47803853 | AN193: 0 | AO193: 0 | AP193: 0 | AQ193: 19.82556491 | AR193: 18.45386168 | AS193: 0.09661707684 | AW193: 475.837862 | AX193: 458.1488926 | AY193: 2.398685301 | AZ193: 495.6634269 | BA193: 476.6027542 | BB193: 2.495302378 | BC193: 0 | BD193: 0 | BE193: 0 | BF193: 495.6634269 | BG193: 476.6027542 | BH193: 2.495302378
A194: 20090521 | B194: Example 1 | C194: 192 | D194: 188.677048 | E194: 184.1049892 | F194: 0 | G194: 0.7760949331 | H194: 47.25775958 | I194: 0 | J194: 0.1525448206 | K194: 26.32763416 | L194: 0 | M194: 187.0523561 | N194: 178.1470121 | O194: 2.154965593 | P194: 2.855198999 | Q194: 16.54289868 | R194: 16.31184102 | S194: 0.05339934719 | T194: 25.64962714 | U194: 40.72578128 | AE194: 192 | AF194: 186.0687534 | AG194: 36.87597435 | AH194: 18.66489161 | AI194: 245.9952391 | AJ194: 244.4223427 | AK194: 0.7940558322 | AL194: 30.46039686 | AM194: 43.68813046 | AN194: 0 | AO194: 0 | AP194: 0 | AQ194: 19.84993226 | AR194: 18.47727499 | AS194: 0.09623580725 | AW194: 476.0547307 | AX194: 458.3477512 | AY194: 2.387227871 | AZ194: 495.904663 | BA194: 476.8250262 | BB194: 2.483463678 | BC194: 0 | BD194: 0 | BE194: 0 | BF194: 495.904663 | BG194: 476.8250262 | BH194: 2.483463678
A195: 20090521 | B195: Example 1 | C195: 193 | D195: 189.677048 | E195: 185.1049892 | F195: 0 | G195: 0.7598814808 | H195: 47.01154725 | I195: 0 | J195: 0.1531821221 | K195: 26.37752852 | L195: 0 | M195: 188.0523561 | N195: 179.1470121 | O195: 2.155177081 | P195: 2.811891785 | Q195: 16.32426367 | R195: 16.10178472 | S195: 0.05319087539 | T195: 25.68104612 | U195: 40.99961124 | AE195: 193 | AF195: 187.0687534 | AG195: 36.86339573 | AH195: 18.47381667 | AI195: 243.5638886 | AJ195: 242.0383314 | AK195: 0.7936270025 | AL195: 30.48531628 | AM195: 43.89815615 | AN195: 0 | AO195: 0 | AP195: 0 | AQ195: 19.87398915 | AR195: 18.50030848 | AS195: 0.09585652064 | AW195: 476.2666838 | AX195: 458.5415734 | AY195: 2.375863074 | AZ195: 496.1406729 | BA195: 477.0418819 | BB195: 2.471719595 | BC195: 0 | BD195: 0 | BE195: 0 | BF195: 496.1406729 | BG195: 477.0418819 | BH195: 2.471719595
A196: 20090521 | B196: Example 1 | C196: 194 | D196: 190.677048 | E196: 186.1049892 | F196: 0 | G196: 0.7440142972 | H196: 46.76457889 | I196: 0 | J196: 0.1538096902 | K196: 26.4271014 | L196: 0 | M196: 189.0523561 | N196: 180.1470121 | O196: 2.155379962 | P196: 2.769201721 | Q196: 16.10929059 | R196: 15.8950477 | S196: 0.05298379786 | T196: 25.71214174 | U196: 41.27421024 | AE196: 194 | AF196: 188.0687534 | AG196: 36.85076315 | AH196: 18.28496761 | AI196: 241.1679554 | AJ196: 239.6881081 | AK196: 0.7932065119 | AL196: 30.50997633 | AM196: 44.10811535 | AN196: 0 | AO196: 0 | AP196: 0 | AQ196: 19.89774193 | AR196: 18.52297141 | AS196: 0.09547923405 | AW196: 476.4738028 | AX196: 458.7304521 | AY196: 2.364589959 | AZ196: 496.3715447 | BA196: 477.2534235 | BB196: 2.460069193 | BC196: 0 | BD196: 0 | BE196: 0 | BF196: 496.3715447 | BG196: 477.2534235 | BH196: 2.460069193
A197: 20090521 | B197: Example 1 | C197: 195 | D197: 191.677048 | E197: 187.1049892 | F197: 0 | G197: 0.7284869515 | H197: 46.51689168 | I197: 0 | J197: 0.1544274953 | K197: 26.47635609 | L197: 0 | M197: 190.0523561 | N197: 181.1470121 | O197: 2.155574581 | P197: 2.727123941 | Q197: 15.8979086 | R197: 15.69157371 | S197: 0.05277812247 | T197: 25.74291866 | U197: 41.54957522 | AE197: 195 | AF197: 189.0687534 | AG197: 36.83807809 | AH197: 18.09831923 | AI197: 238.8067638 | AJ197: 237.3710603 | AK197: 0.7927943822 | AL197: 30.53438087 | AM197: 44.31800781 | AN197: 0 | AO197: 0 | AP197: 0 | AQ197: 19.92119675 | AR197: 18.54527273 | AS197: 0.0951039627 | AW197: 476.6761675 | AX197: 458.9144777 | AY197: 2.353407578 | AZ197: 496.5973642 | BA197: 477.4597505 | BB197: 2.448511541 | BC197: 0 | BD197: 0 | BE197: 0 | BF197: 496.5973642 | BG197: 477.4597505 | BH197: 2.448511541
A198: 20090521 | B198: Example 1 | C198: 196 | D198: 192.677048 | E198: 188.1049892 | F198: 0 | G198: 0.7132930516 | H198: 46.2685228 | I198: 0 | J198: 0.1550355111 | K198: 26.52529583 | L198: 0 | M198: 191.0523561 | N198: 182.1470121 | O198: 2.155761266 | P198: 2.685653412 | Q198: 15.69004835 | R198: 15.49130728 | S198: 0.05257385621 | T198: 25.77338146 | U198: 41.82570313 | AE198: 196 | AF198: 190.0687534 | AG198: 36.82534199 | AH198: 17.91384652 | AI198: 236.4796542 | AJ198: 235.0865885 | AK198: 0.7923906327 | AL198: 30.5585337 | AM198: 44.52783327 | AN198: 0 | AO198: 0 | AP198: 0 | AQ198: 19.94435961 | AR198: 18.56722114 | AS198: 0.09473072009 | AW198: 476.8738555 | AX198: 459.0937383 | AY198: 2.342314991 | AZ198: 496.8182151 | BA198: 477.6609594 | BB198: 2.437045711 | BC198: 0 | BD198: 0 | BE198: 0 | BF198: 496.8182151 | BG198: 477.6609594 | BH198: 2.437045711
A199: 20090521 | B199: Example 1 | C199: 197 | D199: 193.677048 | E199: 189.1049892 | F199: 0 | G199: 0.6984262498 | H199: 46.01950943 | I199: 0 | J199: 0.1556337144 | K199: 26.57392384 | L199: 0 | M199: 192.0523561 | N199: 183.1470121 | O199: 2.155940337 | P199: 2.644784944 | Q199: 15.48564187 | R199: 15.29419376 | S199: 0.05237100514 | T199: 25.80353463 | U199: 42.10259095 | AE199: 197 | AF199: 191.0687534 | AG199: 36.81255623 | AH199: 17.73152462 | AI199: 234.1859822 | AJ199: 232.834106 | AK199: 0.7919952804 | AL199: 30.58243851 | AM199: 44.73759146 | AN199: 0 | AO199: 0 | AP199: 0 | AQ199: 19.96723635 | AR199: 18.58882507 | AS199: 0.09435951815 | AW199: 477.0669429 | AX199: 459.2683193 | AY199: 2.331311266 | AZ199: 497.0341792 | BA199: 477.8571444 | BB199: 2.425670784 | BC199: 0 | BD199: 0 | BE199: 0 | BF199: 497.0341792 | BG199: 477.8571444 | BH199: 2.425670784
A200: 20090521 | B200: Example 1 | C200: 198 | D200: 194.677048 | E200: 190.1049892 | F200: 0 | G200: 0.683880248 | H200: 45.76988872 | I200: 0 | J200: 0.1562220855 | K200: 26.62224327 | L200: 0 | M200: 193.0523561 | N200: 184.1470121 | O200: 2.156112096 | P200: 2.604513203 | Q200: 15.28462261 | R200: 15.10017929 | S200: 0.05216957452 | T200: 25.83338259 | U200: 42.38023565 | AE200: 198 | AF200: 192.0687534 | AG200: 36.79972213 | AH200: 17.55132883 | AI200: 231.9251182 | AJ200: 230.6130388 | AK200: 0.79160834 | AL200: 30.60609895 | AM200: 44.94728211 | AN200: 0 | AO200: 0 | AP200: 0 | AQ200: 19.98983264 | AR200: 18.61009271 | AS200: 0.09399036724 | AW200: 477.2555037 | AX200: 459.4383043 | AY200: 2.320395476 | AZ200: 497.2453363 | BA200: 478.048397 | BB200: 2.414385843 | BC200: 0 | BD200: 0 | BE200: 0 | BF200: 497.2453363 | BG200: 478.048397 | BH200: 2.414385843
... 52 more rows

Sheet GYPSY_Report
C1: Yield Table Generator Report
A6: Forecast Values | F6: Compiler Information
A8: Stand Id: | C8: =IF(GYPSY_Observed!A1="","No GYPSY Output!",GYPSY_Observed!B2) -> Example 1 | F8: GYPSY Model: | H8: 2009-May-21
A9: Stand Type: | C9: =GYPSY_Observed!C2 -> Regenerated | F9: COM DLL: | H9: 20100329b35
A10: Stand Age: | C10: =GYPSY_Observed!D2 -> 18 | D10: years | F10: Application Version: | H10: 2022-08-03p
A11: Spatial: | C11: =IF(GYPSY_Observed!E2="Y","YES","NO") -> YES
A12: BA adjusted: | C12: =IF(GYPSY_Observed!F2="Y","YES","NO") -> YES
A14: Input Data
A16: species | B16: totage | C16: topht | D16: den | E16: ps | F16: ba | G16: utilization
A17: AW | B17: =GYPSY_Observed!S2 -> 14.677048 | C17: =GYPSY_Observed!U2 -> 4.707395723 | D17: =GYPSY_Observed!V2 -> 65.03037207 | E17: =GYPSY_Observed!W2 -> 5.017143979 | F17: =GYPSY_Observed!X2 -> 0.02820191017 | G17: =" " & GYPSY_Observed!G2&"/"&GYPSY_Observed!H2&"/"&TEXT(100*GYPSY_Observed!I2,"00") -> 15/10/30
A18: PL | B18: =GYPSY_Observed!AK2 -> 18 | C18: =GYPSY_Observed!AM2 -> 6.960995585 | D18: =GYPSY_Observed!AN2 -> 5167.686248 | E18: =GYPSY_Observed!AO2 -> 84.5107329 | F18: =GYPSY_Observed!AP2 -> 10.98205929 | G18: =" " & GYPSY_Observed!P2&"/"&GYPSY_Observed!Q2&"/"&TEXT(100*GYPSY_Observed!R2,"00") -> 15/10/30
A19: SB | B19: =IF(GYPSY_Observed!Y2=0,"",GYPSY_Observed!Y2) -> 13.05235611 | C19: =IF(B19="","",GYPSY_Observed!AA2) -> 2.450941738 | D19: =IF(B19="","",GYPSY_Observed!AB2) -> 144.7037087 | E19: =IF(B19="","",GYPSY_Observed!AC2) -> 11.03486888 | G19: =IF(B19="",""," " & GYPSY_Observed!J2&"/"&GYPSY_Observed!K2&"/"&TEXT(100*GYPSY_Observed!L2,"00")) -> 15/10/30
A20: SW | B20: =IF(GYPSY_Observed!AE2=0,"",GYPSY_Observed!AE2) -> 11.51819737 | C20: =IF(B20="","",GYPSY_Observed!AG2) -> 2.234953567 | D20: =IF(B20="","",GYPSY_Observed!AH2) -> 0 | E20: =IF(B20="","",GYPSY_Observed!AI2) -> 2.854518602 | G20: =IF(B20="",""," " & GYPSY_Observed!M2&"/"&GYPSY_Observed!N2&"/"&TEXT(100*GYPSY_Observed!O2,"00")) -> 15/10/30
A22: Calculated Attributes
A24: species | B24: bhage | C24: y2bh | D24: si_bh | E24: si_t | F24: sdf | G24: psi
A25: AW | B25: =GYPSY_Observed!T2 -> 10.10498918 | C25: =GYPSY_Observed!AS2 -> 4.572058817 | D25: =GYPSY_Observed!AQ2 -> 14.06779347 | E25: =GYPSY_Observed!AR2 -> 13.26034488 | F25: =GYPSY_Observed!AT2 -> 64.77194766 | G25: =GYPSY_Observed!AV2 -> 4.904569888
A26: PL | B26: =GYPSY_Observed!AL2 -> 12.0687534 | C26: =GYPSY_Observed!BK2 -> 5.931246597 | D26: =GYPSY_Observed!BI2 -> 20.04901044 | E26: =GYPSY_Observed!BJ2 -> 18.68742325 | F26: =GYPSY_Observed!BL2 -> 2330.116334 | G26: =GYPSY_Observed!BN2 -> 73.34010176
A27: SB | B27: =IF(B19="","",GYPSY_Observed!Z2) -> 4.147012104 | C27: =IF(B19="","",GYPSY_Observed!AY2) -> 8.905344005 | D27: =IF(B19="","",GYPSY_Observed!AW2) -> 15.11782156 | E27: =IF(B19="","",GYPSY_Observed!AX2) -> 13.24592836 | F27: =IF(B19="","",GYPSY_Observed!AZ2) -> 121.757283 | G27: =IF(B19="","",GYPSY_Observed!BB2) -> 10.68406033
A28: SW | B28: =IF(B20="","",GYPSY_Observed!AF2) -> 3.179031639 | C28: =IF(B20="","",GYPSY_Observed!BE2) -> 8.339165728 | D28: =IF(B20="","",GYPSY_Observed!BC2) -> 16.51429314 | E28: =IF(B20="","",GYPSY_Observed!BD2) -> 14.43505246 | F28: =IF(B20="","",GYPSY_Observed!BF2) -> 0 | G28: =IF(B20="","",GYPSY_Observed!BH2) -> 2.811549199
A30: Volume & Yield Information
A32: species | B32: culm. MAI | C32: stand age @ PL culm. | F32: species group | G32: culm. MAI | H32: culm. stand age | I32: sec. MAI
A33: AW | B33: =IF(C34="","",INDEX(GYPSY_Projected!BE2:BE252,C34+1)) -> 0.018171902 | F33: Coniferous | G33: =IF(GYPSY_Projected!A1="","",MAX(GYPSY_Projected!BB2:BB252)) -> 4.146340316 | H33: =IF(G33="","",MATCH(G33,GYPSY_Projected!BB2:BB252,0)-1) -> 84 | I33: =IF(H33="","",INDEX(GYPSY_Projected!BE2:BE252,H33+1)) -> 0.01664702256
A34: PL | B34: =IF(GYPSY_Projected!A1="","",MAX(GYPSY_Projected!AY2:AY252)) -> 4.047562254 | C34: =IF(B34="","",MATCH(B34,GYPSY_Projected!AY2:AY252,0)-1) -> 83 | F34: Deciduous | G34: =IF(GYPSY_Projected!A1="","",MAX(GYPSY_Projected!BE2:BE252)) -> 0.03591929053 | H34: =IF(G34="","",MATCH(G34,GYPSY_Projected!BE2:BE252,0)-1) -> 64 | I34: =IF(H34="","",INDEX(GYPSY_Projected!BB2:BB252,H34+1)) -> 3.553171276
A35: SB | B35: =IF(C34="","",INDEX(GYPSY_Projected!AS2:AS252,C34+1)) -> 0.09785567094
A36: SW | B36: =IF(C34="","",INDEX(GYPSY_Projected!AV2:AV252,C34+1)) -> 0
A166: ="Yield Table for Stand Id: " & C8 -> Yield Table for Stand Id: Example 1
A169: Stand Age | B169: Coniferous | E169: Deciduous | H169: Total
B171: mvol | C171: mai | D171: pc. size | E171: mvol | F171: mai | G171: pc. size | H171: mvol | I171: mai
A172: years | B172: m3/ha | C172: m3/ha/yr | D172: trees/m3 | E172: m3/ha | F172: m3/ha/yr | G172: trees/m3 | H172: m3/ha | I172: m3/ha/yr
A173: 10 | B173: =IF(ISNA(VLOOKUP($A173,GYPSY_Projected!$C$1:$BH$252,51,FALSE)),"",VLOOKUP($A173,GYPSY_Projected!$C$1:$BH$252,51,FALSE)) -> 0 | C173: =IF(ISNA(VLOOKUP($A173,GYPSY_Projected!$C$1:$BH$252,52,FALSE)),"",VLOOKUP($A173,GYPSY_Projected!$C$1:$BH$252,52,FALSE)) -> 0 | D173: =IF(ISNA(IF(B173>=5,VLOOKUP($A173,GYPSY_Projected!$C$1:$BH$252,34,FALSE)/B173,0)),"",IF(B173>=5,(VLOOKUP($A173,GYPSY_Projected!$C$1:$BH$252,16,FALSE)+VLOOKUP($A173,GYPSY_Projected!$C$1:$BH$252,25,FALSE)+VLOOKUP($A173,GYPSY_Projected!$C$1:$BH$252,34,FALSE))/B173,"")) ->  | E173: =IF(ISNA(VLOOKUP($A173,GYPSY_Projected!$C$1:$BH$252,54,FALSE)),"",VLOOKUP($A173,GYPSY_Projected!$C$1:$BH$252,54,FALSE)) -> 0 | F173: =IF(ISNA(VLOOKUP($A173,GYPSY_Projected!$C$1:$BH$252,55,FALSE)),"",VLOOKUP($A173,GYPSY_Projected!$C$1:$BH$252,55,FALSE)) -> 0 | G173: =IF(ISNA(IF(E173>=5,VLOOKUP($A173,GYPSY_Projected!$C$1:$BH$252,7,FALSE)/E173,0)),"",IF(E173>=5,VLOOKUP($A173,GYPSY_Projected!$C$1:$BH$252,7,FALSE)/E173,"")) ->  | H173: =IF(ISNA(VLOOKUP($A173,GYPSY_Projected!$C$1:$BH$252,57,FALSE)),"",VLOOKUP($A173,GYPSY_Projected!$C$1:$BH$252,57,FALSE)) -> 0 | I173: =IF(ISNA(VLOOKUP($A173,GYPSY_Projected!$C$1:$BH$252,58,FALSE)),"",VLOOKUP($A173,GYPSY_Projected!$C$1:$BH$252,58,FALSE)) -> 0
A174: 20 | B174: =IF(ISNA(VLOOKUP($A174,GYPSY_Projected!$C$1:$BH$252,51,FALSE)),"",VLOOKUP($A174,GYPSY_Projected!$C$1:$BH$252,51,FALSE)) -> 0.2402764078 | C174: =IF(ISNA(VLOOKUP($A174,GYPSY_Projected!$C$1:$BH$252,52,FALSE)),"",VLOOKUP($A174,GYPSY_Projected!$C$1:$BH$252,52,FALSE)) -> 0.01201382039 | D174: =IF(ISNA(IF(B174>=5,VLOOKUP($A174,GYPSY_Projected!$C$1:$BH$252,34,FALSE)/B174,0)),"",IF(B174>=5,(VLOOKUP($A174,GYPSY_Projected!$C$1:$BH$252,16,FALSE)+VLOOKUP($A174,GYPSY_Projected!$C$1:$BH$252,25,FALSE)+VLOOKUP($A174,GYPSY_Projected!$C$1:$BH$252,34,FALSE))/B174,"")) ->  | E174: =IF(ISNA(VLOOKUP($A174,GYPSY_Projected!$C$1:$BH$252,54,FALSE)),"",VLOOKUP($A174,GYPSY_Projected!$C$1:$BH$252,54,FALSE)) -> 8.38454923e-05 | F174: =IF(ISNA(VLOOKUP($A174,GYPSY_Projected!$C$1:$BH$252,55,FALSE)),"",VLOOKUP($A174,GYPSY_Projected!$C$1:$BH$252,55,FALSE)) -> 4.192274615e-06 | G174: =IF(ISNA(IF(E174>=5,VLOOKUP($A174,GYPSY_Projected!$C$1:$BH$252,7,FALSE)/E174,0)),"",IF(E174>=5,VLOOKUP($A174,GYPSY_Projected!$C$1:$BH$252,7,FALSE)/E174,"")) ->  | H174: =IF(ISNA(VLOOKUP($A174,GYPSY_Projected!$C$1:$BH$252,57,FALSE)),"",VLOOKUP($A174,GYPSY_Projected!$C$1:$BH$252,57,FALSE)) -> 0.2403602532 | I174: =IF(ISNA(VLOOKUP($A174,GYPSY_Projected!$C$1:$BH$252,58,FALSE)),"",VLOOKUP($A174,GYPSY_Projected!$C$1:$BH$252,58,FALSE)) -> 0.01201801266
A175: 30 | B175: =IF(ISNA(VLOOKUP($A175,GYPSY_Projected!$C$1:$BH$252,51,FALSE)),"",VLOOKUP($A175,GYPSY_Projected!$C$1:$BH$252,51,FALSE)) -> 5.164581078 | C175: =IF(ISNA(VLOOKUP($A175,GYPSY_Projected!$C$1:$BH$252,52,FALSE)),"",VLOOKUP($A175,GYPSY_Projected!$C$1:$BH$252,52,FALSE)) -> 0.1721527026 | D175: =IF(ISNA(IF(B175>=5,VLOOKUP($A175,GYPSY_Projected!$C$1:$BH$252,34,FALSE)/B175,0)),"",IF(B175>=5,(VLOOKUP($A175,GYPSY_Projected!$C$1:$BH$252,16,FALSE)+VLOOKUP($A175,GYPSY_Projected!$C$1:$BH$252,25,FALSE)+VLOOKUP($A175,GYPSY_Projected!$C$1:$BH$252,34,FALSE))/B175,"")) -> 83.59641751 | E175: =IF(ISNA(VLOOKUP($A175,GYPSY_Projected!$C$1:$BH$252,54,FALSE)),"",VLOOKUP($A175,GYPSY_Projected!$C$1:$BH$252,54,FALSE)) -> 0.03423544158 | F175: =IF(ISNA(VLOOKUP($A175,GYPSY_Projected!$C$1:$BH$252,55,FALSE)),"",VLOOKUP($A175,GYPSY_Projected!$C$1:$BH$252,55,FALSE)) -> 0.001141181386 | G175: =IF(ISNA(IF(E175>=5,VLOOKUP($A175,GYPSY_Projected!$C$1:$BH$252,7,FALSE)/E175,0)),"",IF(E175>=5,VLOOKUP($A175,GYPSY_Projected!$C$1:$BH$252,7,FALSE)/E175,"")) ->  | H175: =IF(ISNA(VLOOKUP($A175,GYPSY_Projected!$C$1:$BH$252,57,FALSE)),"",VLOOKUP($A175,GYPSY_Projected!$C$1:$BH$252,57,FALSE)) -> 5.198816519 | I175: =IF(ISNA(VLOOKUP($A175,GYPSY_Projected!$C$1:$BH$252,58,FALSE)),"",VLOOKUP($A175,GYPSY_Projected!$C$1:$BH$252,58,FALSE)) -> 0.173293884
A176: 40 | B176: =IF(ISNA(VLOOKUP($A176,GYPSY_Projected!$C$1:$BH$252,51,FALSE)),"",VLOOKUP($A176,GYPSY_Projected!$C$1:$BH$252,51,FALSE)) -> 32.69052781 | C176: =IF(ISNA(VLOOKUP($A176,GYPSY_Projected!$C$1:$BH$252,52,FALSE)),"",VLOOKUP($A176,GYPSY_Projected!$C$1:$BH$252,52,FALSE)) -> 0.8172631952 | D176: =IF(ISNA(IF(B176>=5,VLOOKUP($A176,GYPSY_Projected!$C$1:$BH$252,34,FALSE)/B176,0)),"",IF(B176>=5,(VLOOKUP($A176,GYPSY_Projected!$C$1:$BH$252,16,FALSE)+VLOOKUP($A176,GYPSY_Projected!$C$1:$BH$252,25,FALSE)+VLOOKUP($A176,GYPSY_Projected!$C$1:$BH$252,34,FALSE))/B176,"")) -> 29.35572989 | E176: =IF(ISNA(VLOOKUP($A176,GYPSY_Projected!$C$1:$BH$252,54,FALSE)),"",VLOOKUP($A176,GYPSY_Projected!$C$1:$BH$252,54,FALSE)) -> 0.3731489246 | F176: =IF(ISNA(VLOOKUP($A176,GYPSY_Projected!$C$1:$BH$252,55,FALSE)),"",VLOOKUP($A176,GYPSY_Projected!$C$1:$BH$252,55,FALSE)) -> 0.009328723114 | G176: =IF(ISNA(IF(E176>=5,VLOOKUP($A176,GYPSY_Projected!$C$1:$BH$252,7,FALSE)/E176,0)),"",IF(E176>=5,VLOOKUP($A176,GYPSY_Projected!$C$1:$BH$252,7,FALSE)/E176,"")) ->  | H176: =IF(ISNA(VLOOKUP($A176,GYPSY_Projected!$C$1:$BH$252,57,FALSE)),"",VLOOKUP($A176,GYPSY_Projected!$C$1:$BH$252,57,FALSE)) -> 33.06367673 | I176: =IF(ISNA(VLOOKUP($A176,GYPSY_Projected!$C$1:$BH$252,58,FALSE)),"",VLOOKUP($A176,GYPSY_Projected!$C$1:$BH$252,58,FALSE)) -> 0.8265919183
A177: 50 | B177: =IF(ISNA(VLOOKUP($A177,GYPSY_Projected!$C$1:$BH$252,51,FALSE)),"",VLOOKUP($A177,GYPSY_Projected!$C$1:$BH$252,51,FALSE)) -> 101.7038754 | C177: =IF(ISNA(VLOOKUP($A177,GYPSY_Projected!$C$1:$BH$252,52,FALSE)),"",VLOOKUP($A177,GYPSY_Projected!$C$1:$BH$252,52,FALSE)) -> 2.034077508 | D177: =IF(ISNA(IF(B177>=5,VLOOKUP($A177,GYPSY_Projected!$C$1:$BH$252,34,FALSE)/B177,0)),"",IF(B177>=5,(VLOOKUP($A177,GYPSY_Projected!$C$1:$BH$252,16,FALSE)+VLOOKUP($A177,GYPSY_Projected!$C$1:$BH$252,25,FALSE)+VLOOKUP($A177,GYPSY_Projected!$C$1:$BH$252,34,FALSE))/B177,"")) -> 12.22237066 | E177: =IF(ISNA(VLOOKUP($A177,GYPSY_Projected!$C$1:$BH$252,54,FALSE)),"",VLOOKUP($A177,GYPSY_Projected!$C$1:$BH$252,54,FALSE)) -> 1.219170703 | F177: =IF(ISNA(VLOOKUP($A177,GYPSY_Projected!$C$1:$BH$252,55,FALSE)),"",VLOOKUP($A177,GYPSY_Projected!$C$1:$BH$252,55,FALSE)) -> 0.02438341405 | G177: =IF(ISNA(IF(E177>=5,VLOOKUP($A177,GYPSY_Projected!$C$1:$BH$252,7,FALSE)/E177,0)),"",IF(E177>=5,VLOOKUP($A177,GYPSY_Projected!$C$1:$BH$252,7,FALSE)/E177,"")) ->  | H177: =IF(ISNA(VLOOKUP($A177,GYPSY_Projected!$C$1:$BH$252,57,FALSE)),"",VLOOKUP($A177,GYPSY_Projected!$C$1:$BH$252,57,FALSE)) -> 102.9230461 | I177: =IF(ISNA(VLOOKUP($A177,GYPSY_Projected!$C$1:$BH$252,58,FALSE)),"",VLOOKUP($A177,GYPSY_Projected!$C$1:$BH$252,58,FALSE)) -> 2.058460922
A178: 60 | B178: =IF(ISNA(VLOOKUP($A178,GYPSY_Projected!$C$1:$BH$252,51,FALSE)),"",VLOOKUP($A178,GYPSY_Projected!$C$1:$BH$252,51,FALSE)) -> 193.0338155 | C178: =IF(ISNA(VLOOKUP($A178,GYPSY_Projected!$C$1:$BH$252,52,FALSE)),"",VLOOKUP($A178,GYPSY_Projected!$C$1:$BH$252,52,FALSE)) -> 3.217230259 | D178: =IF(ISNA(IF(B178>=5,VLOOKUP($A178,GYPSY_Projected!$C$1:$BH$252,34,FALSE)/B178,0)),"",IF(B178>=5,(VLOOKUP($A178,GYPSY_Projected!$C$1:$BH$252,16,FALSE)+VLOOKUP($A178,GYPSY_Projected!$C$1:$BH$252,25,FALSE)+VLOOKUP($A178,GYPSY_Projected!$C$1:$BH$252,34,FALSE))/B178,"")) -> 6.655463798 | E178: =IF(ISNA(VLOOKUP($A178,GYPSY_Projected!$C$1:$BH$252,54,FALSE)),"",VLOOKUP($A178,GYPSY_Projected!$C$1:$BH$252,54,FALSE)) -> 2.093879303 | F178: =IF(ISNA(VLOOKUP($A178,GYPSY_Projected!$C$1:$BH$252,55,FALSE)),"",VLOOKUP($A178,GYPSY_Projected!$C$1:$BH$252,55,FALSE)) -> 0.03489798838 | G178: =IF(ISNA(IF(E178>=5,VLOOKUP($A178,GYPSY_Projected!$C$1:$BH$252,7,FALSE)/E178,0)),"",IF(E178>=5,VLOOKUP($A178,GYPSY_Projected!$C$1:$BH$252,7,FALSE)/E178,"")) ->  | H178: =IF(ISNA(VLOOKUP($A178,GYPSY_Projected!$C$1:$BH$252,57,FALSE)),"",VLOOKUP($A178,GYPSY_Projected!$C$1:$BH$252,57,FALSE)) -> 195.1276948 | I178: =IF(ISNA(VLOOKUP($A178,GYPSY_Projected!$C$1:$BH$252,58,FALSE)),"",VLOOKUP($A178,GYPSY_Projected!$C$1:$BH$252,58,FALSE)) -> 3.252128247
A179: 70 | B179: =IF(ISNA(VLOOKUP($A179,GYPSY_Projected!$C$1:$BH$252,51,FALSE)),"",VLOOKUP($A179,GYPSY_Projected!$C$1:$BH$252,51,FALSE)) -> 272.6332125 | C179: =IF(ISNA(VLOOKUP($A179,GYPSY_Projected!$C$1:$BH$252,52,FALSE)),"",VLOOKUP($A179,GYPSY_Projected!$C$1:$BH$252,52,FALSE)) -> 3.894760179 | D179: =IF(ISNA(IF(B179>=5,VLOOKUP($A179,GYPSY_Projected!$C$1:$BH$252,34,FALSE)/B179,0)),"",IF(B179>=5,(VLOOKUP($A179,GYPSY_Projected!$C$1:$BH$252,16,FALSE)+VLOOKUP($A179,GYPSY_Projected!$C$1:$BH$252,25,FALSE)+VLOOKUP($A179,GYPSY_Projected!$C$1:$BH$252,34,FALSE))/B179,"")) -> 4.399839959 | E179: =IF(ISNA(VLOOKUP($A179,GYPSY_Projected!$C$1:$BH$252,54,FALSE)),"",VLOOKUP($A179,GYPSY_Projected!$C$1:$BH$252,54,FALSE)) -> 2.366520162 | F179: =IF(ISNA(VLOOKUP($A179,GYPSY_Projected!$C$1:$BH$252,55,FALSE)),"",VLOOKUP($A179,GYPSY_Projected!$C$1:$BH$252,55,FALSE)) -> 0.03380743088 | G179: =IF(ISNA(IF(E179>=5,VLOOKUP($A179,GYPSY_Projected!$C$1:$BH$252,7,FALSE)/E179,0)),"",IF(E179>=5,VLOOKUP($A179,GYPSY_Projected!$C$1:$BH$252,7,FALSE)/E179,"")) ->  | H179: =IF(ISNA(VLOOKUP($A179,GYPSY_Projected!$C$1:$BH$252,57,FALSE)),"",VLOOKUP($A179,GYPSY_Projected!$C$1:$BH$252,57,FALSE)) -> 274.9997327 | I179: =IF(ISNA(VLOOKUP($A179,GYPSY_Projected!$C$1:$BH$252,58,FALSE)),"",VLOOKUP($A179,GYPSY_Projected!$C$1:$BH$252,58,FALSE)) -> 3.92856761
A180: 80 | B180: =IF(ISNA(VLOOKUP($A180,GYPSY_Projected!$C$1:$BH$252,51,FALSE)),"",VLOOKUP($A180,GYPSY_Projected!$C$1:$BH$252,51,FALSE)) -> 330.4358455 | C180: =IF(ISNA(VLOOKUP($A180,GYPSY_Projected!$C$1:$BH$252,52,FALSE)),"",VLOOKUP($A180,GYPSY_Projected!$C$1:$BH$252,52,FALSE)) -> 4.130448069 | D180: =IF(ISNA(IF(B180>=5,VLOOKUP($A180,GYPSY_Projected!$C$1:$BH$252,34,FALSE)/B180,0)),"",IF(B180>=5,(VLOOKUP($A180,GYPSY_Projected!$C$1:$BH$252,16,FALSE)+VLOOKUP($A180,GYPSY_Projected!$C$1:$BH$252,25,FALSE)+VLOOKUP($A180,GYPSY_Projected!$C$1:$BH$252,34,FALSE))/B180,"")) -> 3.236545349 | E180: =IF(ISNA(VLOOKUP($A180,GYPSY_Projected!$C$1:$BH$252,54,FALSE)),"",VLOOKUP($A180,GYPSY_Projected!$C$1:$BH$252,54,FALSE)) -> 1.810324763 | F180: =IF(ISNA(VLOOKUP($A180,GYPSY_Projected!$C$1:$BH$252,55,FALSE)),"",VLOOKUP($A180,GYPSY_Projected!$C$1:$BH$252,55,FALSE)) -> 0.02262905954 | G180: =IF(ISNA(IF(E180>=5,VLOOKUP($A180,GYPSY_Projected!$C$1:$BH$252,7,FALSE)/E180,0)),"",IF(E180>=5,VLOOKUP($A180,GYPSY_Projected!$C$1:$BH$252,7,FALSE)/E180,"")) ->  | H180: =IF(ISNA(VLOOKUP($A180,GYPSY_Projected!$C$1:$BH$252,57,FALSE)),"",VLOOKUP($A180,GYPSY_Projected!$C$1:$BH$252,57,FALSE)) -> 332.2461703 | I180: =IF(ISNA(VLOOKUP($A180,GYPSY_Projected!$C$1:$BH$252,58,FALSE)),"",VLOOKUP($A180,GYPSY_Projected!$C$1:$BH$252,58,FALSE)) -> 4.153077128
A181: 90 | B181: =IF(ISNA(VLOOKUP($A181,GYPSY_Projected!$C$1:$BH$252,51,FALSE)),"",VLOOKUP($A181,GYPSY_Projected!$C$1:$BH$252,51,FALSE)) -> 370.6687492 | C181: =IF(ISNA(VLOOKUP($A181,GYPSY_Projected!$C$1:$BH$252,52,FALSE)),"",VLOOKUP($A181,GYPSY_Projected!$C$1:$BH$252,52,FALSE)) -> 4.118541658 | D181: =IF(ISNA(IF(B181>=5,VLOOKUP($A181,GYPSY_Projected!$C$1:$BH$252,34,FALSE)/B181,0)),"",IF(B181>=5,(VLOOKUP($A181,GYPSY_Projected!$C$1:$BH$252,16,FALSE)+VLOOKUP($A181,GYPSY_Projected!$C$1:$BH$252,25,FALSE)+VLOOKUP($A181,GYPSY_Projected!$C$1:$BH$252,34,FALSE))/B181,"")) -> 2.521523529 | E181: =IF(ISNA(VLOOKUP($A181,GYPSY_Projected!$C$1:$BH$252,54,FALSE)),"",VLOOKUP($A181,GYPSY_Projected!$C$1:$BH$252,54,FALSE)) -> 0.7016788586 | F181: =IF(ISNA(VLOOKUP($A181,GYPSY_Projected!$C$1:$BH$252,55,FALSE)),"",VLOOKUP($A181,GYPSY_Projected!$C$1:$BH$252,55,FALSE)) -> 0.007796431763 | G181: =IF(ISNA(IF(E181>=5,VLOOKUP($A181,GYPSY_Projected!$C$1:$BH$252,7,FALSE)/E181,0)),"",IF(E181>=5,VLOOKUP($A181,GYPSY_Projected!$C$1:$BH$252,7,FALSE)/E181,"")) ->  | H181: =IF(ISNA(VLOOKUP($A181,GYPSY_Projected!$C$1:$BH$252,57,FALSE)),"",VLOOKUP($A181,GYPSY_Projected!$C$1:$BH$252,57,FALSE)) -> 371.3704281 | I181: =IF(ISNA(VLOOKUP($A181,GYPSY_Projected!$C$1:$BH$252,58,FALSE)),"",VLOOKUP($A181,GYPSY_Projected!$C$1:$BH$252,58,FALSE)) -> 4.12633809
A182: 100 | B182: =IF(ISNA(VLOOKUP($A182,GYPSY_Projected!$C$1:$BH$252,51,FALSE)),"",VLOOKUP($A182,GYPSY_Projected!$C$1:$BH$252,51,FALSE)) -> 398.9651983 | C182: =IF(ISNA(VLOOKUP($A182,GYPSY_Projected!$C$1:$BH$252,52,FALSE)),"",VLOOKUP($A182,GYPSY_Projected!$C$1:$BH$252,52,FALSE)) -> 3.989651983 | D182: =IF(ISNA(IF(B182>=5,VLOOKUP($A182,GYPSY_Projected!$C$1:$BH$252,34,FALSE)/B182,0)),"",IF(B182>=5,(VLOOKUP($A182,GYPSY_Projected!$C$1:$BH$252,16,FALSE)+VLOOKUP($A182,GYPSY_Projected!$C$1:$BH$252,25,FALSE)+VLOOKUP($A182,GYPSY_Projected!$C$1:$BH$252,34,FALSE))/B182,"")) -> 2.032913247 | E182: =IF(ISNA(VLOOKUP($A182,GYPSY_Projected!$C$1:$BH$252,54,FALSE)),"",VLOOKUP($A182,GYPSY_Projected!$C$1:$BH$252,54,FALSE)) -> 0.0006100927019 | F182: =IF(ISNA(VLOOKUP($A182,GYPSY_Projected!$C$1:$BH$252,55,FALSE)),"",VLOOKUP($A182,GYPSY_Projected!$C$1:$BH$252,55,FALSE)) -> 6.100927019e-06 | G182: =IF(ISNA(IF(E182>=5,VLOOKUP($A182,GYPSY_Projected!$C$1:$BH$252,7,FALSE)/E182,0)),"",IF(E182>=5,VLOOKUP($A182,GYPSY_Projected!$C$1:$BH$252,7,FALSE)/E182,"")) ->  | H182: =IF(ISNA(VLOOKUP($A182,GYPSY_Projected!$C$1:$BH$252,57,FALSE)),"",VLOOKUP($A182,GYPSY_Projected!$C$1:$BH$252,57,FALSE)) -> 398.9658084 | I182: =IF(ISNA(VLOOKUP($A182,GYPSY_Projected!$C$1:$BH$252,58,FALSE)),"",VLOOKUP($A182,GYPSY_Projected!$C$1:$BH$252,58,FALSE)) -> 3.989658084
A183: 110 | B183: =IF(ISNA(VLOOKUP($A183,GYPSY_Projected!$C$1:$BH$252,51,FALSE)),"",VLOOKUP($A183,GYPSY_Projected!$C$1:$BH$252,51,FALSE)) -> 419.3353705 | C183: =IF(ISNA(VLOOKUP($A183,GYPSY_Projected!$C$1:$BH$252,52,FALSE)),"",VLOOKUP($A183,GYPSY_Projected!$C$1:$BH$252,52,FALSE)) -> 3.812139732 | D183: =IF(ISNA(IF(B183>=5,VLOOKUP($A183,GYPSY_Projected!$C$1:$BH$252,34,FALSE)/B183,0)),"",IF(B183>=5,(VLOOKUP($A183,GYPSY_Projected!$C$1:$BH$252,16,FALSE)+VLOOKUP($A183,GYPSY_Projected!$C$1:$BH$252,25,FALSE)+VLOOKUP($A183,GYPSY_Projected!$C$1:$BH$252,34,FALSE))/B183,"")) -> 1.67748946 | E183: =IF(ISNA(VLOOKUP($A183,GYPSY_Projected!$C$1:$BH$252,54,FALSE)),"",VLOOKUP($A183,GYPSY_Projected!$C$1:$BH$252,54,FALSE)) -> 0 | F183: =IF(ISNA(VLOOKUP($A183,GYPSY_Projected!$C$1:$BH$252,55,FALSE)),"",VLOOKUP($A183,GYPSY_Projected!$C$1:$BH$252,55,FALSE)) -> 0 | G183: =IF(ISNA(IF(E183>=5,VLOOKUP($A183,GYPSY_Projected!$C$1:$BH$252,7,FALSE)/E183,0)),"",IF(E183>=5,VLOOKUP($A183,GYPSY_Projected!$C$1:$BH$252,7,FALSE)/E183,"")) ->  | H183: =IF(ISNA(VLOOKUP($A183,GYPSY_Projected!$C$1:$BH$252,57,FALSE)),"",VLOOKUP($A183,GYPSY_Projected!$C$1:$BH$252,57,FALSE)) -> 419.3353705 | I183: =IF(ISNA(VLOOKUP($A183,GYPSY_Projected!$C$1:$BH$252,58,FALSE)),"",VLOOKUP($A183,GYPSY_Projected!$C$1:$BH$252,58,FALSE)) -> 3.812139732
A184: 120 | B184: =IF(ISNA(VLOOKUP($A184,GYPSY_Projected!$C$1:$BH$252,51,FALSE)),"",VLOOKUP($A184,GYPSY_Projected!$C$1:$BH$252,51,FALSE)) -> 434.3493355 | C184: =IF(ISNA(VLOOKUP($A184,GYPSY_Projected!$C$1:$BH$252,52,FALSE)),"",VLOOKUP($A184,GYPSY_Projected!$C$1:$BH$252,52,FALSE)) -> 3.619577796 | D184: =IF(ISNA(IF(B184>=5,VLOOKUP($A184,GYPSY_Projected!$C$1:$BH$252,34,FALSE)/B184,0)),"",IF(B184>=5,(VLOOKUP($A184,GYPSY_Projected!$C$1:$BH$252,16,FALSE)+VLOOKUP($A184,GYPSY_Projected!$C$1:$BH$252,25,FALSE)+VLOOKUP($A184,GYPSY_Projected!$C$1:$BH$252,34,FALSE))/B184,"")) -> 1.408541542 | E184: =IF(ISNA(VLOOKUP($A184,GYPSY_Projected!$C$1:$BH$252,54,FALSE)),"",VLOOKUP($A184,GYPSY_Projected!$C$1:$BH$252,54,FALSE)) -> 0 | F184: =IF(ISNA(VLOOKUP($A184,GYPSY_Projected!$C$1:$BH$252,55,FALSE)),"",VLOOKUP($A184,GYPSY_Projected!$C$1:$BH$252,55,FALSE)) -> 0 | G184: =IF(ISNA(IF(E184>=5,VLOOKUP($A184,GYPSY_Projected!$C$1:$BH$252,7,FALSE)/E184,0)),"",IF(E184>=5,VLOOKUP($A184,GYPSY_Projected!$C$1:$BH$252,7,FALSE)/E184,"")) ->  | H184: =IF(ISNA(VLOOKUP($A184,GYPSY_Projected!$C$1:$BH$252,57,FALSE)),"",VLOOKUP($A184,GYPSY_Projected!$C$1:$BH$252,57,FALSE)) -> 434.3493355 | I184: =IF(ISNA(VLOOKUP($A184,GYPSY_Projected!$C$1:$BH$252,58,FALSE)),"",VLOOKUP($A184,GYPSY_Projected!$C$1:$BH$252,58,FALSE)) -> 3.619577796
A185: 130 | B185: =IF(ISNA(VLOOKUP($A185,GYPSY_Projected!$C$1:$BH$252,51,FALSE)),"",VLOOKUP($A185,GYPSY_Projected!$C$1:$BH$252,51,FALSE)) -> 445.6483829 | C185: =IF(ISNA(VLOOKUP($A185,GYPSY_Projected!$C$1:$BH$252,52,FALSE)),"",VLOOKUP($A185,GYPSY_Projected!$C$1:$BH$252,52,FALSE)) -> 3.428064484 | D185: =IF(ISNA(IF(B185>=5,VLOOKUP($A185,GYPSY_Projected!$C$1:$BH$252,34,FALSE)/B185,0)),"",IF(B185>=5,(VLOOKUP($A185,GYPSY_Projected!$C$1:$BH$252,16,FALSE)+VLOOKUP($A185,GYPSY_Projected!$C$1:$BH$252,25,FALSE)+VLOOKUP($A185,GYPSY_Projected!$C$1:$BH$252,34,FALSE))/B185,"")) -> 1.199383132 | E185: =IF(ISNA(VLOOKUP($A185,GYPSY_Projected!$C$1:$BH$252,54,FALSE)),"",VLOOKUP($A185,GYPSY_Projected!$C$1:$BH$252,54,FALSE)) -> 0 | F185: =IF(ISNA(VLOOKUP($A185,GYPSY_Projected!$C$1:$BH$252,55,FALSE)),"",VLOOKUP($A185,GYPSY_Projected!$C$1:$BH$252,55,FALSE)) -> 0 | G185: =IF(ISNA(IF(E185>=5,VLOOKUP($A185,GYPSY_Projected!$C$1:$BH$252,7,FALSE)/E185,0)),"",IF(E185>=5,VLOOKUP($A185,GYPSY_Projected!$C$1:$BH$252,7,FALSE)/E185,"")) ->  | H185: =IF(ISNA(VLOOKUP($A185,GYPSY_Projected!$C$1:$BH$252,57,FALSE)),"",VLOOKUP($A185,GYPSY_Projected!$C$1:$BH$252,57,FALSE)) -> 445.6483829 | I185: =IF(ISNA(VLOOKUP($A185,GYPSY_Projected!$C$1:$BH$252,58,FALSE)),"",VLOOKUP($A185,GYPSY_Projected!$C$1:$BH$252,58,FALSE)) -> 3.428064484
A186: 140 | B186: =IF(ISNA(VLOOKUP($A186,GYPSY_Projected!$C$1:$BH$252,51,FALSE)),"",VLOOKUP($A186,GYPSY_Projected!$C$1:$BH$252,51,FALSE)) -> 454.3020015 | C186: =IF(ISNA(VLOOKUP($A186,GYPSY_Projected!$C$1:$BH$252,52,FALSE)),"",VLOOKUP($A186,GYPSY_Projected!$C$1:$BH$252,52,FALSE)) -> 3.245014296 | D186: =IF(ISNA(IF(B186>=5,VLOOKUP($A186,GYPSY_Projected!$C$1:$BH$252,34,FALSE)/B186,0)),"",IF(B186>=5,(VLOOKUP($A186,GYPSY_Projected!$C$1:$BH$252,16,FALSE)+VLOOKUP($A186,GYPSY_Projected!$C$1:$BH$252,25,FALSE)+VLOOKUP($A186,GYPSY_Projected!$C$1:$BH$252,34,FALSE))/B186,"")) -> 1.033332005 | E186: =IF(ISNA(VLOOKUP($A186,GYPSY_Projected!$C$1:$BH$252,54,FALSE)),"",VLOOKUP($A186,GYPSY_Projected!$C$1:$BH$252,54,FALSE)) -> 0 | F186: =IF(ISNA(VLOOKUP($A186,GYPSY_Projected!$C$1:$BH$252,55,FALSE)),"",VLOOKUP($A186,GYPSY_Projected!$C$1:$BH$252,55,FALSE)) -> 0 | G186: =IF(ISNA(IF(E186>=5,VLOOKUP($A186,GYPSY_Projected!$C$1:$BH$252,7,FALSE)/E186,0)),"",IF(E186>=5,VLOOKUP($A186,GYPSY_Projected!$C$1:$BH$252,7,FALSE)/E186,"")) ->  | H186: =IF(ISNA(VLOOKUP($A186,GYPSY_Projected!$C$1:$BH$252,57,FALSE)),"",VLOOKUP($A186,GYPSY_Projected!$C$1:$BH$252,57,FALSE)) -> 454.3020015 | I186: =IF(ISNA(VLOOKUP($A186,GYPSY_Projected!$C$1:$BH$252,58,FALSE)),"",VLOOKUP($A186,GYPSY_Projected!$C$1:$BH$252,58,FALSE)) -> 3.245014296
A187: 150 | B187: =IF(ISNA(VLOOKUP($A187,GYPSY_Projected!$C$1:$BH$252,51,FALSE)),"",VLOOKUP($A187,GYPSY_Projected!$C$1:$BH$252,51,FALSE)) -> 461.023495 | C187: =IF(ISNA(VLOOKUP($A187,GYPSY_Projected!$C$1:$BH$252,52,FALSE)),"",VLOOKUP($A187,GYPSY_Projected!$C$1:$BH$252,52,FALSE)) -> 3.073489967 | D187: =IF(ISNA(IF(B187>=5,VLOOKUP($A187,GYPSY_Projected!$C$1:$BH$252,34,FALSE)/B187,0)),"",IF(B187>=5,(VLOOKUP($A187,GYPSY_Projected!$C$1:$BH$252,16,FALSE)+VLOOKUP($A187,GYPSY_Projected!$C$1:$BH$252,25,FALSE)+VLOOKUP($A187,GYPSY_Projected!$C$1:$BH$252,34,FALSE))/B187,"")) -> 0.89930371 | E187: =IF(ISNA(VLOOKUP($A187,GYPSY_Projected!$C$1:$BH$252,54,FALSE)),"",VLOOKUP($A187,GYPSY_Projected!$C$1:$BH$252,54,FALSE)) -> 0 | F187: =IF(ISNA(VLOOKUP($A187,GYPSY_Projected!$C$1:$BH$252,55,FALSE)),"",VLOOKUP($A187,GYPSY_Projected!$C$1:$BH$252,55,FALSE)) -> 0 | G187: =IF(ISNA(IF(E187>=5,VLOOKUP($A187,GYPSY_Projected!$C$1:$BH$252,7,FALSE)/E187,0)),"",IF(E187>=5,VLOOKUP($A187,GYPSY_Projected!$C$1:$BH$252,7,FALSE)/E187,"")) ->  | H187: =IF(ISNA(VLOOKUP($A187,GYPSY_Projected!$C$1:$BH$252,57,FALSE)),"",VLOOKUP($A187,GYPSY_Projected!$C$1:$BH$252,57,FALSE)) -> 461.023495 | I187: =IF(ISNA(VLOOKUP($A187,GYPSY_Projected!$C$1:$BH$252,58,FALSE)),"",VLOOKUP($A187,GYPSY_Projected!$C$1:$BH$252,58,FALSE)) -> 3.073489967
A188: 160 | B188: =IF(ISNA(VLOOKUP($A188,GYPSY_Projected!$C$1:$BH$252,51,FALSE)),"",VLOOKUP($A188,GYPSY_Projected!$C$1:$BH$252,51,FALSE)) -> 466.2991365 | C188: =IF(ISNA(VLOOKUP($A188,GYPSY_Projected!$C$1:$BH$252,52,FALSE)),"",VLOOKUP($A188,GYPSY_Projected!$C$1:$BH$252,52,FALSE)) -> 2.914369603 | D188: =IF(ISNA(IF(B188>=5,VLOOKUP($A188,GYPSY_Projected!$C$1:$BH$252,34,FALSE)/B188,0)),"",IF(B188>=5,(VLOOKUP($A188,GYPSY_Projected!$C$1:$BH$252,16,FALSE)+VLOOKUP($A188,GYPSY_Projected!$C$1:$BH$252,25,FALSE)+VLOOKUP($A188,GYPSY_Projected!$C$1:$BH$252,34,FALSE))/B188,"")) -> 0.7896123039 | E188: =IF(ISNA(VLOOKUP($A188,GYPSY_Projected!$C$1:$BH$252,54,FALSE)),"",VLOOKUP($A188,GYPSY_Projected!$C$1:$BH$252,54,FALSE)) -> 0 | F188: =IF(ISNA(VLOOKUP($A188,GYPSY_Projected!$C$1:$BH$252,55,FALSE)),"",VLOOKUP($A188,GYPSY_Projected!$C$1:$BH$252,55,FALSE)) -> 0 | G188: =IF(ISNA(IF(E188>=5,VLOOKUP($A188,GYPSY_Projected!$C$1:$BH$252,7,FALSE)/E188,0)),"",IF(E188>=5,VLOOKUP($A188,GYPSY_Projected!$C$1:$BH$252,7,FALSE)/E188,"")) ->  | H188: =IF(ISNA(VLOOKUP($A188,GYPSY_Projected!$C$1:$BH$252,57,FALSE)),"",VLOOKUP($A188,GYPSY_Projected!$C$1:$BH$252,57,FALSE)) -> 466.2991365 | I188: =IF(ISNA(VLOOKUP($A188,GYPSY_Projected!$C$1:$BH$252,58,FALSE)),"",VLOOKUP($A188,GYPSY_Projected!$C$1:$BH$252,58,FALSE)) -> 2.914369603
A189: 170 | B189: =IF(ISNA(VLOOKUP($A189,GYPSY_Projected!$C$1:$BH$252,51,FALSE)),"",VLOOKUP($A189,GYPSY_Projected!$C$1:$BH$252,51,FALSE)) -> 470.4672635 | C189: =IF(ISNA(VLOOKUP($A189,GYPSY_Projected!$C$1:$BH$252,52,FALSE)),"",VLOOKUP($A189,GYPSY_Projected!$C$1:$BH$252,52,FALSE)) -> 2.767454491 | D189: =IF(ISNA(IF(B189>=5,VLOOKUP($A189,GYPSY_Projected!$C$1:$BH$252,34,FALSE)/B189,0)),"",IF(B189>=5,(VLOOKUP($A189,GYPSY_Projected!$C$1:$BH$252,16,FALSE)+VLOOKUP($A189,GYPSY_Projected!$C$1:$BH$252,25,FALSE)+VLOOKUP($A189,GYPSY_Projected!$C$1:$BH$252,34,FALSE))/B189,"")) -> 0.6987587925 | E189: =IF(ISNA(VLOOKUP($A189,GYPSY_Projected!$C$1:$BH$252,54,FALSE)),"",VLOOKUP($A189,GYPSY_Projected!$C$1:$BH$252,54,FALSE)) -> 0 | F189: =IF(ISNA(VLOOKUP($A189,GYPSY_Projected!$C$1:$BH$252,55,FALSE)),"",VLOOKUP($A189,GYPSY_Projected!$C$1:$BH$252,55,FALSE)) -> 0 | G189: =IF(ISNA(IF(E189>=5,VLOOKUP($A189,GYPSY_Projected!$C$1:$BH$252,7,FALSE)/E189,0)),"",IF(E189>=5,VLOOKUP($A189,GYPSY_Projected!$C$1:$BH$252,7,FALSE)/E189,"")) ->  | H189: =IF(ISNA(VLOOKUP($A189,GYPSY_Projected!$C$1:$BH$252,57,FALSE)),"",VLOOKUP($A189,GYPSY_Projected!$C$1:$BH$252,57,FALSE)) -> 470.4672635 | I189: =IF(ISNA(VLOOKUP($A189,GYPSY_Projected!$C$1:$BH$252,58,FALSE)),"",VLOOKUP($A189,GYPSY_Projected!$C$1:$BH$252,58,FALSE)) -> 2.767454491
A190: 180 | B190: =IF(ISNA(VLOOKUP($A190,GYPSY_Projected!$C$1:$BH$252,51,FALSE)),"",VLOOKUP($A190,GYPSY_Projected!$C$1:$BH$252,51,FALSE)) -> 473.7679625 | C190: =IF(ISNA(VLOOKUP($A190,GYPSY_Projected!$C$1:$BH$252,52,FALSE)),"",VLOOKUP($A190,GYPSY_Projected!$C$1:$BH$252,52,FALSE)) -> 2.632044236 | D190: =IF(ISNA(IF(B190>=5,VLOOKUP($A190,GYPSY_Projected!$C$1:$BH$252,34,FALSE)/B190,0)),"",IF(B190>=5,(VLOOKUP($A190,GYPSY_Projected!$C$1:$BH$252,16,FALSE)+VLOOKUP($A190,GYPSY_Projected!$C$1:$BH$252,25,FALSE)+VLOOKUP($A190,GYPSY_Projected!$C$1:$BH$252,34,FALSE))/B190,"")) -> 0.6227123982 | E190: =IF(ISNA(VLOOKUP($A190,GYPSY_Projected!$C$1:$BH$252,54,FALSE)),"",VLOOKUP($A190,GYPSY_Projected!$C$1:$BH$252,54,FALSE)) -> 0 | F190: =IF(ISNA(VLOOKUP($A190,GYPSY_Projected!$C$1:$BH$252,55,FALSE)),"",VLOOKUP($A190,GYPSY_Projected!$C$1:$BH$252,55,FALSE)) -> 0 | G190: =IF(ISNA(IF(E190>=5,VLOOKUP($A190,GYPSY_Projected!$C$1:$BH$252,7,FALSE)/E190,0)),"",IF(E190>=5,VLOOKUP($A190,GYPSY_Projected!$C$1:$BH$252,7,FALSE)/E190,"")) ->  | H190: =IF(ISNA(VLOOKUP($A190,GYPSY_Projected!$C$1:$BH$252,57,FALSE)),"",VLOOKUP($A190,GYPSY_Projected!$C$1:$BH$252,57,FALSE)) -> 473.7679625 | I190: =IF(ISNA(VLOOKUP($A190,GYPSY_Projected!$C$1:$BH$252,58,FALSE)),"",VLOOKUP($A190,GYPSY_Projected!$C$1:$BH$252,58,FALSE)) -> 2.632044236
A191: 190 | B191: =IF(ISNA(VLOOKUP($A191,GYPSY_Projected!$C$1:$BH$252,51,FALSE)),"",VLOOKUP($A191,GYPSY_Projected!$C$1:$BH$252,51,FALSE)) -> 476.374961 | C191: =IF(ISNA(VLOOKUP($A191,GYPSY_Projected!$C$1:$BH$252,52,FALSE)),"",VLOOKUP($A191,GYPSY_Projected!$C$1:$BH$252,52,FALSE)) -> 2.507236637 | D191: =IF(ISNA(IF(B191>=5,VLOOKUP($A191,GYPSY_Projected!$C$1:$BH$252,34,FALSE)/B191,0)),"",IF(B191>=5,(VLOOKUP($A191,GYPSY_Projected!$C$1:$BH$252,16,FALSE)+VLOOKUP($A191,GYPSY_Projected!$C$1:$BH$252,25,FALSE)+VLOOKUP($A191,GYPSY_Projected!$C$1:$BH$252,34,FALSE))/B191,"")) -> 0.5584600554 | E191: =IF(ISNA(VLOOKUP($A191,GYPSY_Projected!$C$1:$BH$252,54,FALSE)),"",VLOOKUP($A191,GYPSY_Projected!$C$1:$BH$252,54,FALSE)) -> 0 | F191: =IF(ISNA(VLOOKUP($A191,GYPSY_Projected!$C$1:$BH$252,55,FALSE)),"",VLOOKUP($A191,GYPSY_Projected!$C$1:$BH$252,55,FALSE)) -> 0 | G191: =IF(ISNA(IF(E191>=5,VLOOKUP($A191,GYPSY_Projected!$C$1:$BH$252,7,FALSE)/E191,0)),"",IF(E191>=5,VLOOKUP($A191,GYPSY_Projected!$C$1:$BH$252,7,FALSE)/E191,"")) ->  | H191: =IF(ISNA(VLOOKUP($A191,GYPSY_Projected!$C$1:$BH$252,57,FALSE)),"",VLOOKUP($A191,GYPSY_Projected!$C$1:$BH$252,57,FALSE)) -> 476.374961 | I191: =IF(ISNA(VLOOKUP($A191,GYPSY_Projected!$C$1:$BH$252,58,FALSE)),"",VLOOKUP($A191,GYPSY_Projected!$C$1:$BH$252,58,FALSE)) -> 2.507236637
A192: 200 | B192: =IF(ISNA(VLOOKUP($A192,GYPSY_Projected!$C$1:$BH$252,51,FALSE)),"",VLOOKUP($A192,GYPSY_Projected!$C$1:$BH$252,51,FALSE)) -> 478.4164591 | C192: =IF(ISNA(VLOOKUP($A192,GYPSY_Projected!$C$1:$BH$252,52,FALSE)),"",VLOOKUP($A192,GYPSY_Projected!$C$1:$BH$252,52,FALSE)) -> 2.392082296 | D192: =IF(ISNA(IF(B192>=5,VLOOKUP($A192,GYPSY_Projected!$C$1:$BH$252,34,FALSE)/B192,0)),"",IF(B192>=5,(VLOOKUP($A192,GYPSY_Projected!$C$1:$BH$252,16,FALSE)+VLOOKUP($A192,GYPSY_Projected!$C$1:$BH$252,25,FALSE)+VLOOKUP($A192,GYPSY_Projected!$C$1:$BH$252,34,FALSE))/B192,"")) -> 0.5037120815 | E192: =IF(ISNA(VLOOKUP($A192,GYPSY_Projected!$C$1:$BH$252,54,FALSE)),"",VLOOKUP($A192,GYPSY_Projected!$C$1:$BH$252,54,FALSE)) -> 0 | F192: =IF(ISNA(VLOOKUP($A192,GYPSY_Projected!$C$1:$BH$252,55,FALSE)),"",VLOOKUP($A192,GYPSY_Projected!$C$1:$BH$252,55,FALSE)) -> 0 | G192: =IF(ISNA(IF(E192>=5,VLOOKUP($A192,GYPSY_Projected!$C$1:$BH$252,7,FALSE)/E192,0)),"",IF(E192>=5,VLOOKUP($A192,GYPSY_Projected!$C$1:$BH$252,7,FALSE)/E192,"")) ->  | H192: =IF(ISNA(VLOOKUP($A192,GYPSY_Projected!$C$1:$BH$252,57,FALSE)),"",VLOOKUP($A192,GYPSY_Projected!$C$1:$BH$252,57,FALSE)) -> 478.4164591 | I192: =IF(ISNA(VLOOKUP($A192,GYPSY_Projected!$C$1:$BH$252,58,FALSE)),"",VLOOKUP($A192,GYPSY_Projected!$C$1:$BH$252,58,FALSE)) -> 2.392082296
A193: 210 | B193: =IF(ISNA(VLOOKUP($A193,GYPSY_Projected!$C$1:$BH$252,51,FALSE)),"",VLOOKUP($A193,GYPSY_Projected!$C$1:$BH$252,51,FALSE)) -> 479.988934 | C193: =IF(ISNA(VLOOKUP($A193,GYPSY_Projected!$C$1:$BH$252,52,FALSE)),"",VLOOKUP($A193,GYPSY_Projected!$C$1:$BH$252,52,FALSE)) -> 2.28566159 | D193: =IF(ISNA(IF(B193>=5,VLOOKUP($A193,GYPSY_Projected!$C$1:$BH$252,34,FALSE)/B193,0)),"",IF(B193>=5,(VLOOKUP($A193,GYPSY_Projected!$C$1:$BH$252,16,FALSE)+VLOOKUP($A193,GYPSY_Projected!$C$1:$BH$252,25,FALSE)+VLOOKUP($A193,GYPSY_Projected!$C$1:$BH$252,34,FALSE))/B193,"")) -> 0.4567036193 | E193: =IF(ISNA(VLOOKUP($A193,GYPSY_Projected!$C$1:$BH$252,54,FALSE)),"",VLOOKUP($A193,GYPSY_Projected!$C$1:$BH$252,54,FALSE)) -> 0 | F193: =IF(ISNA(VLOOKUP($A193,GYPSY_Projected!$C$1:$BH$252,55,FALSE)),"",VLOOKUP($A193,GYPSY_Projected!$C$1:$BH$252,55,FALSE)) -> 0 | G193: =IF(ISNA(IF(E193>=5,VLOOKUP($A193,GYPSY_Projected!$C$1:$BH$252,7,FALSE)/E193,0)),"",IF(E193>=5,VLOOKUP($A193,GYPSY_Projected!$C$1:$BH$252,7,FALSE)/E193,"")) ->  | H193: =IF(ISNA(VLOOKUP($A193,GYPSY_Projected!$C$1:$BH$252,57,FALSE)),"",VLOOKUP($A193,GYPSY_Projected!$C$1:$BH$252,57,FALSE)) -> 479.988934 | I193: =IF(ISNA(VLOOKUP($A193,GYPSY_Projected!$C$1:$BH$252,58,FALSE)),"",VLOOKUP($A193,GYPSY_Projected!$C$1:$BH$252,58,FALSE)) -> 2.28566159
A194: 220 | B194: =IF(ISNA(VLOOKUP($A194,GYPSY_Projected!$C$1:$BH$252,51,FALSE)),"",VLOOKUP($A194,GYPSY_Projected!$C$1:$BH$252,51,FALSE)) -> 481.1664049 | C194: =IF(ISNA(VLOOKUP($A194,GYPSY_Projected!$C$1:$BH$252,52,FALSE)),"",VLOOKUP($A194,GYPSY_Projected!$C$1:$BH$252,52,FALSE)) -> 2.187120022 | D194: =IF(ISNA(IF(B194>=5,VLOOKUP($A194,GYPSY_Projected!$C$1:$BH$252,34,FALSE)/B194,0)),"",IF(B194>=5,(VLOOKUP($A194,GYPSY_Projected!$C$1:$BH$252,16,FALSE)+VLOOKUP($A194,GYPSY_Projected!$C$1:$BH$252,25,FALSE)+VLOOKUP($A194,GYPSY_Projected!$C$1:$BH$252,34,FALSE))/B194,"")) -> 0.4160572169 | E194: =IF(ISNA(VLOOKUP($A194,GYPSY_Projected!$C$1:$BH$252,54,FALSE)),"",VLOOKUP($A194,GYPSY_Projected!$C$1:$BH$252,54,FALSE)) -> 0 | F194: =IF(ISNA(VLOOKUP($A194,GYPSY_Projected!$C$1:$BH$252,55,FALSE)),"",VLOOKUP($A194,GYPSY_Projected!$C$1:$BH$252,55,FALSE)) -> 0 | G194: =IF(ISNA(IF(E194>=5,VLOOKUP($A194,GYPSY_Projected!$C$1:$BH$252,7,FALSE)/E194,0)),"",IF(E194>=5,VLOOKUP($A194,GYPSY_Projected!$C$1:$BH$252,7,FALSE)/E194,"")) ->  | H194: =IF(ISNA(VLOOKUP($A194,GYPSY_Projected!$C$1:$BH$252,57,FALSE)),"",VLOOKUP($A194,GYPSY_Projected!$C$1:$BH$252,57,FALSE)) -> 481.1664049 | I194: =IF(ISNA(VLOOKUP($A194,GYPSY_Projected!$C$1:$BH$252,58,FALSE)),"",VLOOKUP($A194,GYPSY_Projected!$C$1:$BH$252,58,FALSE)) -> 2.187120022
A195: 230 | B195: =IF(ISNA(VLOOKUP($A195,GYPSY_Projected!$C$1:$BH$252,51,FALSE)),"",VLOOKUP($A195,GYPSY_Projected!$C$1:$BH$252,51,FALSE)) -> 482.0067268 | C195: =IF(ISNA(VLOOKUP($A195,GYPSY_Projected!$C$1:$BH$252,52,FALSE)),"",VLOOKUP($A195,GYPSY_Projected!$C$1:$BH$252,52,FALSE)) -> 2.095681421 | D195: =IF(ISNA(IF(B195>=5,VLOOKUP($A195,GYPSY_Projected!$C$1:$BH$252,34,FALSE)/B195,0)),"",IF(B195>=5,(VLOOKUP($A195,GYPSY_Projected!$C$1:$BH$252,16,FALSE)+VLOOKUP($A195,GYPSY_Projected!$C$1:$BH$252,25,FALSE)+VLOOKUP($A195,GYPSY_Projected!$C$1:$BH$252,34,FALSE))/B195,"")) -> 0.3806856938 | E195: =IF(ISNA(VLOOKUP($A195,GYPSY_Projected!$C$1:$BH$252,54,FALSE)),"",VLOOKUP($A195,GYPSY_Projected!$C$1:$BH$252,54,FALSE)) -> 0 | F195: =IF(ISNA(VLOOKUP($A195,GYPSY_Projected!$C$1:$BH$252,55,FALSE)),"",VLOOKUP($A195,GYPSY_Projected!$C$1:$BH$252,55,FALSE)) -> 0 | G195: =IF(ISNA(IF(E195>=5,VLOOKUP($A195,GYPSY_Projected!$C$1:$BH$252,7,FALSE)/E195,0)),"",IF(E195>=5,VLOOKUP($A195,GYPSY_Projected!$C$1:$BH$252,7,FALSE)/E195,"")) ->  | H195: =IF(ISNA(VLOOKUP($A195,GYPSY_Projected!$C$1:$BH$252,57,FALSE)),"",VLOOKUP($A195,GYPSY_Projected!$C$1:$BH$252,57,FALSE)) -> 482.0067268 | I195: =IF(ISNA(VLOOKUP($A195,GYPSY_Projected!$C$1:$BH$252,58,FALSE)),"",VLOOKUP($A195,GYPSY_Projected!$C$1:$BH$252,58,FALSE)) -> 2.095681421
A196: 240 | B196: =IF(ISNA(VLOOKUP($A196,GYPSY_Projected!$C$1:$BH$252,51,FALSE)),"",VLOOKUP($A196,GYPSY_Projected!$C$1:$BH$252,51,FALSE)) -> 482.5559201 | C196: =IF(ISNA(VLOOKUP($A196,GYPSY_Projected!$C$1:$BH$252,52,FALSE)),"",VLOOKUP($A196,GYPSY_Projected!$C$1:$BH$252,52,FALSE)) -> 2.010649667 | D196: =IF(ISNA(IF(B196>=5,VLOOKUP($A196,GYPSY_Projected!$C$1:$BH$252,34,FALSE)/B196,0)),"",IF(B196>=5,(VLOOKUP($A196,GYPSY_Projected!$C$1:$BH$252,16,FALSE)+VLOOKUP($A196,GYPSY_Projected!$C$1:$BH$252,25,FALSE)+VLOOKUP($A196,GYPSY_Projected!$C$1:$BH$252,34,FALSE))/B196,"")) -> 0.3497222425 | E196: =IF(ISNA(VLOOKUP($A196,GYPSY_Projected!$C$1:$BH$252,54,FALSE)),"",VLOOKUP($A196,GYPSY_Projected!$C$1:$BH$252,54,FALSE)) -> 0 | F196: =IF(ISNA(VLOOKUP($A196,GYPSY_Projected!$C$1:$BH$252,55,FALSE)),"",VLOOKUP($A196,GYPSY_Projected!$C$1:$BH$252,55,FALSE)) -> 0 | G196: =IF(ISNA(IF(E196>=5,VLOOKUP($A196,GYPSY_Projected!$C$1:$BH$252,7,FALSE)/E196,0)),"",IF(E196>=5,VLOOKUP($A196,GYPSY_Projected!$C$1:$BH$252,7,FALSE)/E196,"")) ->  | H196: =IF(ISNA(VLOOKUP($A196,GYPSY_Projected!$C$1:$BH$252,57,FALSE)),"",VLOOKUP($A196,GYPSY_Projected!$C$1:$BH$252,57,FALSE)) -> 482.5559201 | I196: =IF(ISNA(VLOOKUP($A196,GYPSY_Projected!$C$1:$BH$252,58,FALSE)),"",VLOOKUP($A196,GYPSY_Projected!$C$1:$BH$252,58,FALSE)) -> 2.010649667
A197: 250 | B197: =IF(ISNA(VLOOKUP($A197,GYPSY_Projected!$C$1:$BH$252,51,FALSE)),"",VLOOKUP($A197,GYPSY_Projected!$C$1:$BH$252,51,FALSE)) -> 482.8511871 | C197: =IF(ISNA(VLOOKUP($A197,GYPSY_Projected!$C$1:$BH$252,52,FALSE)),"",VLOOKUP($A197,GYPSY_Projected!$C$1:$BH$252,52,FALSE)) -> 1.931404749 | D197: =IF(ISNA(IF(B197>=5,VLOOKUP($A197,GYPSY_Projected!$C$1:$BH$252,34,FALSE)/B197,0)),"",IF(B197>=5,(VLOOKUP($A197,GYPSY_Projected!$C$1:$BH$252,16,FALSE)+VLOOKUP($A197,GYPSY_Projected!$C$1:$BH$252,25,FALSE)+VLOOKUP($A197,GYPSY_Projected!$C$1:$BH$252,34,FALSE))/B197,"")) -> 0.3224693454 | E197: =IF(ISNA(VLOOKUP($A197,GYPSY_Projected!$C$1:$BH$252,54,FALSE)),"",VLOOKUP($A197,GYPSY_Projected!$C$1:$BH$252,54,FALSE)) -> 0 | F197: =IF(ISNA(VLOOKUP($A197,GYPSY_Projected!$C$1:$BH$252,55,FALSE)),"",VLOOKUP($A197,GYPSY_Projected!$C$1:$BH$252,55,FALSE)) -> 0 | G197: =IF(ISNA(IF(E197>=5,VLOOKUP($A197,GYPSY_Projected!$C$1:$BH$252,7,FALSE)/E197,0)),"",IF(E197>=5,VLOOKUP($A197,GYPSY_Projected!$C$1:$BH$252,7,FALSE)/E197,"")) ->  | H197: =IF(ISNA(VLOOKUP($A197,GYPSY_Projected!$C$1:$BH$252,57,FALSE)),"",VLOOKUP($A197,GYPSY_Projected!$C$1:$BH$252,57,FALSE)) -> 482.8511871 | I197: =IF(ISNA(VLOOKUP($A197,GYPSY_Projected!$C$1:$BH$252,58,FALSE)),"",VLOOKUP($A197,GYPSY_Projected!$C$1:$BH$252,58,FALSE)) -> 1.931404749

Sheet Stop Errors (hidden)
A1: Variable | B1: Condition
A2: ConesMiss | B2: TRUE
A3: ElevMiss | B3: TRUE
A4: LatMiss | B4: TRUE
A5: LFHmiss | B5: TRUE
A6: nTwarning | B6: "Error: thinning target missing"
A7: PlantDataWarning | B7: "Error: planting density missing"
A8: psAWesMiss | B8: TRUE
A9: psSBesMiss | B9: TRUE
A10: psSWesMiss | B10: TRUE
A11: SlopeMiss | B11: TRUE
A12: StandMiss | B12: TRUE
A13: StandErrorWarning | B13: "Inputs for stand and site factors incomplete"
A14: YSCperfEarlyLate | B14: "Error: performance assessment year missing"
A15: YSCzeroOutNote | B15: "Error: year of cut missing"
A16: YrPlantWarning | B16: "Error: planting before cut"
A17: YrPlantWarning | B17: "Error: planting before site preparation"
A18: YrPlantWarning | B18: "Error: planting year missing"
A19: YrPrepWarning | B19: "Error: site preparation year missing"
A20: YrPrepWarning | B20: "Error: site preparation before cut"
A21: YrThinWarning | B21: "Error: thinning year missing"
A22: YrThinWarning | B22: "Error: thinning too late (in or after handover year)"
A23: YrWeedWarning | B23: "Error: weeding year missing"
A24: YrWeedWarning | B24: "Error: weeding before cut"
A25: InElev | B25: <840, >1621
A26: InLat | B26: <51.5, >54.8
A27: InLFH | B27: <2, >57
A28: InSlope | B28: <0, >23
A29: InCones | B29: <0, >30
A30: InPsAWes | B30: <0, >100
A31: InPsSBes | B31: <0, >100
A32: InPsSWes | B32: <0, >100
A33: InYrC | B33: <1980, >2050
A34: InNpInput | B34: <800, >4500
A35: InNt | B35: <500, >5000
A36: YrP | B36: < YrC
A37: YrPerf | B37: < YrC
A38: YrPrep | B38: < YrC
A39: YrThin | B39: < YrC
A40: YrWeed | B40: < YrC
